Workbook

Sheet Introduction

Sheet Abbreviations & Assumptions
B1: Capacity Analysis for Planning of Junctions Capacity Analysis for Planning of Junctions | BK1: Capacity Analysis for Planning of Junctions Capacity Analysis for Planning of Junctions
B3: Abbreviation Definitions | BK3: Intersection-Specific Assumptions
B34: General Assumptions
B51: Shared Lane Configuration Options
C63: 0,1,0 | Q63: 0,2,0 | AE63: 0,1,1 | AS63: 1,1,0

Sheet Changelog
A1: Capacity Analysis for Planning of Junctions
A3: Changelog
C6: 10/25/2018 (V3.0.0) | J6: Initial Release of Version 3.0.0 Update
C10: 8/14/2019 (V3.0.1) | J10: Updated labeling of 1x2 and 2x1 roundabouts to more accurately reflect that they represent 1NS x 2EW and 2NS x 1EW, respectively. Additionally, fixed issue where the incorrect major street alternative intersection was being displayed as the exising conditions in the 2 - Base and Alt Sel tab for some 3-leg intersection configurations.

Sheet 1 - Volume Input
B1: Capacity Analysis for Planning of Junctions
B3: Step 1
E8: Project Name: | M8: Cap-X Sample Street
E10: Project Number: | M10: 10000
E12: Location | M12: Anywhere, USA
E14: Date | M14: 2017 AM
E16: Number of Intersection Legs | BH16: 3 | BI16: N
BH17: 4 | BI17: S
E18: Major Street Direction | M18: North-South | BG18: North-South | BI18: E
BG19: East-West | BI19: W
E20: Which leg is the minor street? | M20: N
E22: Traffic Volume Demand
K24: Volume (Veh/hr) | AQ24: Percent (%)
K26: U-Turn | S26: Left | AA26: Thru | AI26: Right | AQ26: Heavy Vehicles | AY26: Volume Growth
E32: Eastbound | K32: 0 | S32: 30 | AA32: 200 | AI32: 50 | AQ32: 0.02 | AY32: 0
E34: Westbound | K34: 0 | S34: 30 | AA34: 200 | AI34: 50 | AQ34: 0.02 | AY34: 0
E36: Southbound | K36: 0 | S36: 30 | AA36: 200 | AI36: 50 | AQ36: 0.02 | AY36: 0
E38: Northbound | K38: 0 | S38: 100 | AA38: 500 | AI38: 200 | AQ38: 0.02 | AY38: 0
BH39: Low
E40: Adjustment Factor | K40: 0.8 | S40: 0.95 | AI40: 0.85 | BH40: Medium
BH41: High
E42: Suggested | K42: 0.8 | S42: 0.95 | AI42: 0.85
E44: Truck to PCE Factor | AI44: Suggested = 2.00 | AU44: 2
E46: Multimodal Activity Level | W46: Low | AI46: Multimodal Ped | AU46: Multimodal Bike
E48: E-W / Crossing East-West Legs | W48: =IF(Multimodal=1,"Low",IF(Multimodal=2,"Medium","High")) -> Low | AI48: =IF(Multimodal=1,"Low",IF(Multimodal=2,"Medium","High")) -> Low | AU48: =IF(Multimodal=1,"Low",IF(Multimodal=2,"Medium","High")) -> Low
E50: Westbound / Crossing East Leg | W50: =IF(Multimodal=1,"Low",IF(Multimodal=2,"Medium","High")) -> Low | AI50: =IF(Multimodal=1,"Low",IF(Multimodal=2,"Medium","High")) -> Low | AU50: =IF(Multimodal=1,"Low",IF(Multimodal=2,"Medium","High")) -> Low
E52: N-S / Crossing North-South Legs | W52: =IF(Multimodal=1,"Low",IF(Multimodal=2,"Medium","High")) -> Low | AI52: =IF(Multimodal=1,"Low",IF(Multimodal=2,"Medium","High")) -> Low | AU52: =IF(Multimodal=1,"Low",IF(Multimodal=2,"Medium","High")) -> Low
E54: Northbound / Crossing South Leg | W54: =IF(Multimodal=1,"Low",IF(Multimodal=2,"Medium","High")) -> Low | AI54: =IF(Multimodal=1,"Low",IF(Multimodal=2,"Medium","High")) -> Low | AU54: =IF(Multimodal=1,"Low",IF(Multimodal=2,"Medium","High")) -> Low
E56: Critical Lane Volume Sum Limit | O56: 2-phase signal | W56: Suggested = 1800 (Urban), 1650 (Rural) | AU56: 1800
O58: 3-phase signal | W58: Suggested = 1750 (Urban), 1600 (Rural) | AU58: 1750
O60: 4-phase signal | W60: Suggested = 1700 (Urban), 1550 (Rural) | AU60: 1700
M64: Equivalent Passenger Car Volume | BB64: =IF(W48="Low",1,IF(W48="Medium",2,3)) -> 1 | BC64: =IF(AI48="Low",1,IF(AI48="Medium",2,3)) -> 1 | BG64: =IF(W46=BH39,1,IF(W46=BH40,2,3)) -> 1
S66: Volume (Veh/hr) | BB66: =IF(W50="Low",1,IF(W50="Medium",2,3)) -> 1 | BC66: =IF(AI50="Low",1,IF(AI50="Medium",2,3)) -> 1
S68: U-Turn | AA68: Left | AI68: Thru | AQ68: Right | BB68: =IF(W52="Low",1,IF(W52="Medium",2,3)) -> 1 | BC68: =IF(AI52="Low",1,IF(AI52="Medium",2,3)) -> 1
BB70: =IF(W54="Low",1,IF(W54="Medium",2,3)) -> 1 | BC70: =IF(AI54="Low",1,IF(AI54="Medium",2,3)) -> 1
M74: Eastbound | S74: =+ROUND((K32*(1-EB_Truck_Percentage) +K32* EB_Truck_Percentage*Truck_Adjustment_Factor)*(1+EB_Growth_Factor),0) -> 0 | AA74: =+ROUND((S32*(1-EB_Truck_Percentage) +S32* EB_Truck_Percentage*Truck_Adjustment_Factor)*(1+EB_Growth_Factor),0) -> 31 | AI74: =+ROUND((AA32*(1-EB_Truck_Percentage) +AA32* EB_Truck_Percentage*Truck_Adjustment_Factor)*(1+EB_Growth_Factor),0) -> 204 | AQ74: =+ROUND((AI32*(1-EB_Truck_Percentage) +AI32* EB_Truck_Percentage*Truck_Adjustment_Factor)*(1+EB_Growth_Factor),0) -> 51
M76: Westbound | S76: =+ROUND((K34*(1-WB_Truck_Percentage) +K34*WB_Truck_Percentage*Truck_Adjustment_Factor)*(1+WB_Growth_Factor),0) -> 0 | AA76: =+ROUND((S34*(1-WB_Truck_Percentage) +S34* WB_Truck_Percentage*Truck_Adjustment_Factor)*(1+WB_Growth_Factor),0) -> 31 | AI76: =+ROUND((AA34*(1-WB_Truck_Percentage) +AA34* WB_Truck_Percentage*Truck_Adjustment_Factor)*(1+WB_Growth_Factor),0) -> 204 | AQ76: =+ROUND((AI34*(1-WB_Truck_Percentage) +AI34* WB_Truck_Percentage*Truck_Adjustment_Factor)*(1+WB_Growth_Factor),0) -> 51
M78: Southbound | S78: =+ROUND((K36*(1-SB_Truck_Percentage) +K36* SB_Truck_Percentage*Truck_Adjustment_Factor)*(1+SB_Growth_Factor),0) -> 0 | AA78: =+ROUND((S36*(1-SB_Truck_Percentage) +S36* SB_Truck_Percentage*Truck_Adjustment_Factor)*(1+SB_Growth_Factor),0) -> 31 | AI78: =+ROUND((AA36*(1-SB_Truck_Percentage) +AA36* SB_Truck_Percentage*Truck_Adjustment_Factor)*(1+SB_Growth_Factor),0) -> 204 | AQ78: =+ROUND((AI36*(1-SB_Truck_Percentage) +AI36* SB_Truck_Percentage*Truck_Adjustment_Factor)*(1+SB_Growth_Factor),0) -> 51
M80: Northbound | S80: =+ROUND((K38*(1-NB_Truck_Percentage) +K38* NB_Truck_Percentage*Truck_Adjustment_Factor)*(1+NB_Growth_Factor),0) -> 0 | AA80: =+ROUND((S38*(1-NB_Truck_Percentage) +S38* NB_Truck_Percentage*Truck_Adjustment_Factor)*(1+NB_Growth_Factor),0) -> 102 | AI80: =+ROUND((AA38*(1-NB_Truck_Percentage) +AA38* NB_Truck_Percentage*Truck_Adjustment_Factor)*(1+NB_Growth_Factor),0) -> 510 | AQ80: =+ROUND((AI38*(1-NB_Truck_Percentage) +AI38* NB_Truck_Percentage*Truck_Adjustment_Factor)*(1+NB_Growth_Factor),0) -> 204
E85: Notes:
E86: Left-Turn Adjustment Factor | W86: Conversion of left-turning vehicles to equivalent through vehicles
E87: Right-turn Adjustment Factor | W87: Conversion of right-turning vehicles to equivalent through vehicles
E88: U-turn Adjustment Factor | W88: Conversion of U-turning vehicles to equivalent through vehicles
E89: Truck to PCE Factor | W89: 1 truck = X Passenger Car Equivalents
E90: Critical Lane Volume Sum Limit | W90: Saturation Value for Critical Lane Volume Sum at an intersection

Sheet 2 - Base and Alt Sel
A1: Capacity Analysis for Planning of Junctions | BL1: Major Str Offset | BN1: =IF(OR($L$14='1 - Volume Input'!$BG$18,$L$14='1 - Volume Input'!$BI$18,$L$14='1 - Volume Input'!$BI$19),0,2) -> 0 | BP1: NB Lanes | BT1: SB Lanes | BX1: EB Lanes | CB1: WB Lanes | CF1: Zone 1 | CH1: Zone 2 | CJ1: Zone 3 | CL1: Zone 4 | CN1: Zone 5 | CP1: Zone 6 | CR1: Overall V/C | CS1: Ped Accom. | CT1: Bike Accom. | CU1: Transit Accom.
A3: Step 2A: Base Conditions Analysis | BL3: Existing Intx List: | BN3: No Lanes | BO3: Outputs | BP3: U | BQ3: L | BR3: T | BS3: R | BT3: U | BU3: L | BV3: T | BW3: R | BX3: U | BY3: L | BZ3: T | CA3: R | CB3: U | CC3: L | CD3: T | CE3: R | CF3: CLV | CG3: VC | CH3: CLV | CI3: VC | CJ3: CLV | CK3: VC | CL3: CLV | CM3: VC | CN3: CLV | CO3: VC | CP3: CLV | CQ3: VC
BL4: ='3 - Alt Num Lanes Input'!E24 -> Traffic Signal | BN4: =24 -> 24 | BO4: =24 -> 24 | BP4: =INDIRECT("'3 - Alt Num Lanes Input'!AA"&$BN4) -> 0 | BQ4: =INDIRECT("'3 - Alt Num Lanes Input'!AC"&$BN4) -> 1 | BR4: =INDIRECT("'3 - Alt Num Lanes Input'!AE"&$BN4) -> 1 | BS4: =INDIRECT("'3 - Alt Num Lanes Input'!AG"&$BN4) -> 1 | BT4: =INDIRECT("'3 - Alt Num Lanes Input'!AI"&$BN4) -> 0 | BU4: =INDIRECT("'3 - Alt Num Lanes Input'!AK"&$BN4) -> 1 | BV4: =INDIRECT("'3 - Alt Num Lanes Input'!AM"&$BN4) -> 1 | BW4: =INDIRECT("'3 - Alt Num Lanes Input'!AO"&$BN4) -> 1 | BX4: =INDIRECT("'3 - Alt Num Lanes Input'!AQ"&$BN4) -> 0 | BY4: =INDIRECT("'3 - Alt Num Lanes Input'!AS"&$BN4) -> 1 | BZ4: =INDIRECT("'3 - Alt Num Lanes Input'!AU"&$BN4) -> 1 | CA4: =INDIRECT("'3 - Alt Num Lanes Input'!AW"&$BN4) -> 1 | CB4: =INDIRECT("'3 - Alt Num Lanes Input'!AY"&$BN4) -> 0 | CC4: =INDIRECT("'3 - Alt Num Lanes Input'!BA"&$BN4) -> 1 | CD4: =INDIRECT("'3 - Alt Num Lanes Input'!BC"&$BN4) -> 1 | CE4: =INDIRECT("'3 - Alt Num Lanes Input'!BE"&$BN4) -> 1 | CF4: =INDIRECT("'4b - Detailed Results'!AD"&$BO4) -> 0 | CG4: =INDIRECT("'4b - Detailed Results'!AG"&$BO4) -> 0 | CH4: =INDIRECT("'4b - Detailed Results'!AJ"&$BO4) -> 0 | CI4: =INDIRECT("'4b - Detailed Results'!AM"&$BO4) -> 0 | CJ4: =INDIRECT("'4b - Detailed Results'!AP"&$BO4) -> 0 | CK4: =INDIRECT("'4b - Detailed Results'!AS"&$BO4) -> 0 | CL4: =INDIRECT("'4b - Detailed Results'!AV"&$BO4) -> 0 | CM4: =INDIRECT("'4b - Detailed Results'!AY"&$BO4) -> 0 | CN4: =INDIRECT("'4b - Detailed Results'!BB"&$BO4) -> 780.9806094 | CO4: =INDIRECT("'4b - Detailed Results'!BE"&$BO4) -> 0.46 | CP4: 0 | CQ4: 0 | CR4: =INDIRECT("'4b - Detailed Results'!BH"&$BO4) -> 0.46 | CS4: =INDIRECT("'4b - Detailed Results'!BO"&$BO4) -> Good | CT4: =INDIRECT("'4b - Detailed Results'!BS"&$BO4) -> Excellent | CU4: =INDIRECT("'4b - Detailed Results'!BW"&$BO4) -> 0
BL5: ='3 - Alt Num Lanes Input'!E28 -> Two-Way Stop Control | BN5: =28 +$BN$1 -> 28 | BO5: =28 +$BN$1 -> 28 | BP5: =INDIRECT("'3 - Alt Num Lanes Input'!AA"&$BN5) -> 0 | BQ5: =INDIRECT("'3 - Alt Num Lanes Input'!AC"&$BN5) -> 1 | BR5: =INDIRECT("'3 - Alt Num Lanes Input'!AE"&$BN5) -> 1 | BS5: =INDIRECT("'3 - Alt Num Lanes Input'!AG"&$BN5) -> 1 | BT5: =INDIRECT("'3 - Alt Num Lanes Input'!AI"&$BN5) -> 0 | BU5: =INDIRECT("'3 - Alt Num Lanes Input'!AK"&$BN5) -> 1 | BV5: =INDIRECT("'3 - Alt Num Lanes Input'!AM"&$BN5) -> 1 | BW5: =INDIRECT("'3 - Alt Num Lanes Input'!AO"&$BN5) -> 1 | BX5: =INDIRECT("'3 - Alt Num Lanes Input'!AQ"&$BN5) -> 0 | BY5: =INDIRECT("'3 - Alt Num Lanes Input'!AS"&$BN5) -> 1 | BZ5: =INDIRECT("'3 - Alt Num Lanes Input'!AU"&$BN5) -> 1 | CA5: =INDIRECT("'3 - Alt Num Lanes Input'!AW"&$BN5) -> 1 | CB5: =INDIRECT("'3 - Alt Num Lanes Input'!AY"&$BN5) -> 0 | CC5: =INDIRECT("'3 - Alt Num Lanes Input'!BA"&$BN5) -> 1 | CD5: =INDIRECT("'3 - Alt Num Lanes Input'!BC"&$BN5) -> 1 | CE5: =INDIRECT("'3 - Alt Num Lanes Input'!BE"&$BN5) -> 1 | CF5: =INDIRECT("'4b - Detailed Results'!AD"&$BO5) -> 0 | CG5: =INDIRECT("'4b - Detailed Results'!AG"&$BO5) -> 0 | CH5: =INDIRECT("'4b - Detailed Results'!AJ"&$BO5) -> 0 | CI5: =INDIRECT("'4b - Detailed Results'!AM"&$BO5) -> 0 | CJ5: =INDIRECT("'4b - Detailed Results'!AP"&$BO5) -> 0 | CK5: =INDIRECT("'4b - Detailed Results'!AS"&$BO5) -> 0 | CL5: =INDIRECT("'4b - Detailed Results'!AV"&$BO5) -> 0 | CM5: =INDIRECT("'4b - Detailed Results'!AY"&$BO5) -> 0 | CN5: =INDIRECT("'4b - Detailed Results'!BB"&$BO5) -> -- | CO5: =INDIRECT("'4b - Detailed Results'!BE"&$BO5) -> 15.84968173 | CP5: 0 | CQ5: 0 | CR5: 15.84968173 | CS5: Fair | CT5: Good | CU5: 0
D6: Project Name: | L6: ='1 - Volume Input'!M8 -> Cap-X Sample Street | BL6: ='3 - Alt Num Lanes Input'!E32 -> All-Way Stop Control | BN6: =32 -> 32 | BO6: =32 -> 32 | BP6: 0 | BQ6: 0 | BR6: 1 | BS6: 0 | BT6: 0 | BU6: 0 | BV6: 1 | BW6: 0 | BX6: 0 | BY6: 0 | BZ6: 1 | CA6: 0 | CB6: 0 | CC6: 0 | CD6: 1 | CE6: 0 | CF6: =INDIRECT("'4b - Detailed Results'!AD"&$BO6) -> 0 | CG6: =INDIRECT("'4b - Detailed Results'!AG"&$BO6) -> 0 | CH6: =INDIRECT("'4b - Detailed Results'!AJ"&$BO6) -> 0 | CI6: =INDIRECT("'4b - Detailed Results'!AM"&$BO6) -> 0 | CJ6: =INDIRECT("'4b - Detailed Results'!AP"&$BO6) -> 0 | CK6: =INDIRECT("'4b - Detailed Results'!AS"&$BO6) -> 0 | CL6: =INDIRECT("'4b - Detailed Results'!AV"&$BO6) -> 0 | CM6: =INDIRECT("'4b - Detailed Results'!AY"&$BO6) -> 0 | CN6: =INDIRECT("'4b - Detailed Results'!BB"&$BO6) -> 1572 | CO6: =INDIRECT("'4b - Detailed Results'!BE"&$BO6) -> 1.31 | CP6: 0 | CQ6: 0 | CR6: 1.31 | CS6: Good | CT6: Excellent | CU6: 0
BL7: 1x1 Roundabout | BN7: =-1 -> -1 | BO7: 114 | BP7: -- | BQ7: -- | BR7: -- | BS7: -- | BT7: -- | BU7: -- | BV7: -- | BW7: -- | BX7: -- | BY7: -- | BZ7: -- | CA7: -- | CB7: -- | CC7: -- | CD7: -- | CE7: -- | CF7: =INDIRECT("'4b - Detailed Results'!L"&$BO7) -> 0.2922613136 | CG7: =INDIRECT("'4b - Detailed Results'!P"&$BO7) -> 0 | CH7: =INDIRECT("'4b - Detailed Results'!T"&$BO7) -> 0 | CI7: =INDIRECT("'4b - Detailed Results'!X"&$BO7) -> 0.2718439835 | CJ7: =INDIRECT("'4b - Detailed Results'!AB"&$BO7) -> 0 | CK7: =INDIRECT("'4b - Detailed Results'!AF"&$BO7) -> 0 | CL7: =INDIRECT("'4b - Detailed Results'!AJ"&$BO7) -> 0.7756108061 | CM7: =INDIRECT("'4b - Detailed Results'!AN"&$BO7) -> 0 | CN7: =INDIRECT("'4b - Detailed Results'!AR"&$BO7) -> 0 | CO7: =INDIRECT("'4b - Detailed Results'!AV"&$BO7) -> 0.3993220809 | CP7: =INDIRECT("'4b - Detailed Results'!AZ"&$BO7) -> 0 | CQ7: =INDIRECT("'4b - Detailed Results'!BD"&$BO7) -> 0 | CR7: 0.7756108061 | CS7: Excellent | CT7: Excellent | CU7: 0
D8: Project Number: | L8: ='1 - Volume Input'!M10 -> 10000 | BL8: 1x2 Roundabout | BN8: -1 | BO8: =116 +(2-$BN$1) -> 118 | BP8: -- | BQ8: -- | BR8: -- | BS8: -- | BT8: -- | BU8: -- | BV8: -- | BW8: -- | BX8: -- | BY8: -- | BZ8: -- | CA8: -- | CB8: -- | CC8: -- | CD8: -- | CE8: -- | CF8: =INDIRECT("'4b - Detailed Results'!L"&$BO8) -> 0.135762174 | CG8: =INDIRECT("'4b - Detailed Results'!P"&$BO8) -> 0.1421533873 | CH8: =INDIRECT("'4b - Detailed Results'!T"&$BO8) -> 0 | CI8: =INDIRECT("'4b - Detailed Results'!X"&$BO8) -> 0.2525059819 | CJ8: =INDIRECT("'4b - Detailed Results'!AB"&$BO8) -> 0 | CK8: =INDIRECT("'4b - Detailed Results'!AF"&$BO8) -> 0 | CL8: =INDIRECT("'4b - Detailed Results'!AJ"&$BO8) -> 0.3628564053 | CM8: =INDIRECT("'4b - Detailed Results'!AN"&$BO8) -> 0.3818314233 | CN8: =INDIRECT("'4b - Detailed Results'!AR"&$BO8) -> 0 | CO8: =INDIRECT("'4b - Detailed Results'!AV"&$BO8) -> 0.3478895134 | CP8: =INDIRECT("'4b - Detailed Results'!AZ"&$BO8) -> 0 | CQ8: =INDIRECT("'4b - Detailed Results'!BD"&$BO8) -> 0 | CR8: 0.3818314233 | CS8: Good | CT8: Excellent | CU8: 0
BL9: 2x2 Roundabout | BN9: -1 | BO9: 120 | BP9: -- | BQ9: -- | BR9: -- | BS9: -- | BT9: -- | BU9: -- | BV9: -- | BW9: -- | BX9: -- | BY9: -- | BZ9: -- | CA9: -- | CB9: -- | CC9: -- | CD9: -- | CE9: -- | CF9: =INDIRECT("'4b - Detailed Results'!L"&$BO9) -> 0.135762174 | CG9: =INDIRECT("'4b - Detailed Results'!P"&$BO9) -> 0.1421533873 | CH9: =INDIRECT("'4b - Detailed Results'!T"&$BO9) -> 0 | CI9: =INDIRECT("'4b - Detailed Results'!X"&$BO9) -> 0.1799042265 | CJ9: =INDIRECT("'4b - Detailed Results'!AB"&$BO9) -> 0.1843814421 | CK9: =INDIRECT("'4b - Detailed Results'!AF"&$BO9) -> 0 | CL9: =INDIRECT("'4b - Detailed Results'!AJ"&$BO9) -> 0.3628564053 | CM9: =INDIRECT("'4b - Detailed Results'!AN"&$BO9) -> 0.3818314233 | CN9: =INDIRECT("'4b - Detailed Results'!AR"&$BO9) -> 0 | CO9: =INDIRECT("'4b - Detailed Results'!AV"&$BO9) -> 0.1271776126 | CP9: =INDIRECT("'4b - Detailed Results'!AZ"&$BO9) -> 0.1338281704 | CQ9: =INDIRECT("'4b - Detailed Results'!BD"&$BO9) -> 0 | CR9: 0.3818314233 | CS9: Good | CT9: Excellent | CU9: 0
D10: Location: | L10: ='1 - Volume Input'!M12 -> Anywhere, USA | BL10: Traditional Diamond | BN10: =111 +(2-$BN$1) -> 113 | BO10: =108 +(2-$BN$1) -> 110 | BP10: 0 | BQ10: 1 | BR10: 2 | BS10: 1 | BT10: 0 | BU10: 1 | BV10: 2 | BW10: 1 | BX10: 0 | BY10: 1 | BZ10: 2 | CA10: 1 | CB10: 0 | CC10: 1 | CD10: 2 | CE10: 1 | CF10: =INDIRECT("'4b - Detailed Results'!X"&$BO10) -> 0.3862844897 | CG10: =INDIRECT("'4b - Detailed Results'!AA"&$BO10) -> 0 | CH10: =INDIRECT("'4b - Detailed Results'!AD"&$BO10) -> 0 | CI10: =INDIRECT("'4b - Detailed Results'!AG"&$BO10) -> 0 | CJ10: =INDIRECT("'4b - Detailed Results'!AJ"&$BO10) -> 1.063928823 | CK10: =INDIRECT("'4b - Detailed Results'!AM"&$BO10) -> 0 | CL10: =INDIRECT("'4b - Detailed Results'!AP"&$BO10) -> 0 | CM10: =INDIRECT("'4b - Detailed Results'!AS"&$BO10) -> 0 | CN10: =INDIRECT("'4b - Detailed Results'!AV"&$BO10) -> 0.7971360042 | CO10: =INDIRECT("'4b - Detailed Results'!AY"&$BO10) -> 0 | CP10: =INDIRECT("'4b - Detailed Results'!BB"&$BO10) -> 0 | CQ10: =INDIRECT("'4b - Detailed Results'!BE"&$BO10) -> 0 | CR10: 1.063928823 | CS10: Excellent | CT10: Good | CU10: 0
BL11: Partial Cloverleaf A | BN11: =115 +(2-$BN$1) -> 117 | BO11: =112 +(2-$BN$1) -> 114 | BP11: 0 | BQ11: 1 | BR11: 0 | BS11: 1 | BT11: 0 | BU11: 1 | BV11: 0 | BW11: 1 | BX11: 0 | BY11: 0 | BZ11: 2 | CA11: 0 | CB11: 0 | CC11: 0 | CD11: 2 | CE11: 0 | CF11: =INDIRECT("'4b - Detailed Results'!X"&$BO11) -> 0.2718439835 | CG11: =INDIRECT("'4b - Detailed Results'!AA"&$BO11) -> 0 | CH11: =INDIRECT("'4b - Detailed Results'!AD"&$BO11) -> 0 | CI11: =INDIRECT("'4b - Detailed Results'!AG"&$BO11) -> 0 | CJ11: =INDIRECT("'4b - Detailed Results'!AJ"&$BO11) -> 0.7756108061 | CK11: =INDIRECT("'4b - Detailed Results'!AM"&$BO11) -> 0 | CL11: =INDIRECT("'4b - Detailed Results'!AP"&$BO11) -> 0 | CM11: =INDIRECT("'4b - Detailed Results'!AS"&$BO11) -> 0 | CN11: =INDIRECT("'4b - Detailed Results'!AV"&$BO11) -> 0.3993220809 | CO11: =INDIRECT("'4b - Detailed Results'!AY"&$BO11) -> 0 | CP11: =INDIRECT("'4b - Detailed Results'!BB"&$BO11) -> 0 | CQ11: =INDIRECT("'4b - Detailed Results'!BE"&$BO11) -> 0 | CR11: 0.7756108061 | CS11: Excellent | CT11: Excellent | CU11: 0
D12: Date: | L12: ='1 - Volume Input'!M14 -> 2017 AM | BL12: Partial Cloverleaf B | BN12: =119 +(2-$BN$1) -> 121 | BO12: =116 +(2-$BN$1) -> 118 | BP12: 0 | BQ12: 1 | BR12: 0 | BS12: 1 | BT12: 0 | BU12: 1 | BV12: 0 | BW12: 1 | BX12: 0 | BY12: 1 | BZ12: 2 | CA12: 1 | CB12: 0 | CC12: 1 | CD12: 2 | CE12: 1 | CF12: =INDIRECT("'4b - Detailed Results'!X"&$BO12) -> 0.2525059819 | CG12: =INDIRECT("'4b - Detailed Results'!AA"&$BO12) -> 0 | CH12: =INDIRECT("'4b - Detailed Results'!AD"&$BO12) -> 0 | CI12: =INDIRECT("'4b - Detailed Results'!AG"&$BO12) -> 0 | CJ12: =INDIRECT("'4b - Detailed Results'!AJ"&$BO12) -> 0.3628564053 | CK12: =INDIRECT("'4b - Detailed Results'!AM"&$BO12) -> 0 | CL12: =INDIRECT("'4b - Detailed Results'!AP"&$BO12) -> 0 | CM12: =INDIRECT("'4b - Detailed Results'!AS"&$BO12) -> 0 | CN12: =INDIRECT("'4b - Detailed Results'!AV"&$BO12) -> 0.3478895134 | CO12: =INDIRECT("'4b - Detailed Results'!AY"&$BO12) -> 0 | CP12: =INDIRECT("'4b - Detailed Results'!BB"&$BO12) -> 0 | CQ12: =INDIRECT("'4b - Detailed Results'!BE"&$BO12) -> 0 | CR12: 0.3818314233 | CS12: Good | CT12: Excellent | CU12: 0
BL13: None | BN13: -1 | BO13: -1 | BP13: -- | BQ13: -- | BR13: -- | BS13: -- | BT13: -- | BU13: -- | BV13: -- | BW13: -- | BX13: -- | BY13: -- | BZ13: -- | CA13: -- | CB13: -- | CC13: -- | CD13: -- | CE13: -- | CF13: -- | CG13: -- | CH13: -- | CI13: -- | CJ13: -- | CK13: -- | CL13: -- | CM13: -- | CN13: -- | CO13: -- | CP13: -- | CQ13: -- | CR13: -- | CS13: -- | CT13: -- | CU13: --
D14: =IF(Input_NumLegs = 3,'1 - Volume Input'!E20, '1 - Volume Input'!E18) -> Major Street Direction | L14: =IF(Input_NumLegs = 3, Input_MinorStreetLeg, '1 - Volume Input'!M18) -> North-South
D17: Existing Intersection Configuration | AH17: Two-Way Stop Control
D20: Number of Lanes for Existing Configuration (Can be edited in "3- Alt Num Lanes Input" as needed)
D22: TYPE OF INTERSECTION | U22: Sheet | AA22: Northbound | AI22: Southbound | AQ22: Eastbound | AY22: Westbound
AA24: U | AC24: L | AE24: T | AG24: R | AI24: U | AK24: L | AM24: T | AO24: R | AQ24: U | AS24: L | AU24: T | AW24: R | AY24: U | BA24: L | BC24: T | BE24: R
D26: =AH17 -> Two-Way Stop Control | U26: =IF(AH17=BL13,"",IF(VLOOKUP(AH17,$BL$4:$BO$13,3,FALSE)>0,INDIRECT("'3 - Alt Num Lanes Input'!V"&VLOOKUP(AH17,$BL$4:$BO$13,3,FALSE)),INDIRECT("'4b - Detailed Results'!E"&VLOOKUP(AH17,$BL$4:$BO$13,4,FALSE)))) -> N-S | AC26: =VLOOKUP($AH$17,$BL$4:$CE$13,6,FALSE) -> 1 | AE26: =VLOOKUP($AH$17,$BL$4:$CE$13,7,FALSE) -> 1 | AG26: =VLOOKUP($AH$17,$BL$4:$CE$13,8,FALSE) -> 1 | AK26: =VLOOKUP($AH$17,$BL$4:$CE$13,10,FALSE) -> 1 | AM26: =VLOOKUP($AH$17,$BL$4:$CE$13,11,FALSE) -> 1 | AO26: =VLOOKUP($AH$17,$BL$4:$CE$13,12,FALSE) -> 1 | AS26: =VLOOKUP($AH$17,$BL$4:$CE$13,14,FALSE) -> 1 | AU26: =VLOOKUP($AH$17,$BL$4:$CE$13,15,FALSE) -> 1 | AW26: =VLOOKUP($AH$17,$BL$4:$CE$13,16,FALSE) -> 1 | BA26: =VLOOKUP($AH$17,$BL$4:$CE$13,18,FALSE) -> 1 | BC26: =VLOOKUP($AH$17,$BL$4:$CE$13,19,FALSE) -> 1 | BE26: =VLOOKUP($AH$17,$BL$4:$CE$13,20,FALSE) -> 1
D29: Results for Existing Configuration
D31: TYPE OF INTERSECTION | Q31: Sheet | W31: =IF($C$35=1,'4b - Detailed Results'!AD20,IF($C$35=2,'4b - Detailed Results'!L106,'4b - Detailed Results'!X127)) -> Zone 1 (North) | AC31: =IF($C$35=1,'4b - Detailed Results'!AJ20,IF($C$35=2,'4b - Detailed Results'!X106,'4b - Detailed Results'!AD127)) -> Zone 2 (South) | AI31: =IF($C$35=1,'4b - Detailed Results'!AP20,IF($C$35=2,'4b - Detailed Results'!AJ106,'4b - Detailed Results'!AJ127)) -> Zone 3 (East) | AO31: =IF($C$35=1,'4b - Detailed Results'!AV20,IF($C$35=2,'4b - Detailed Results'!AV106,'4b - Detailed Results'!AP127)) -> Zone 4 (West) | AU31: =IF($C$35=1,'4b - Detailed Results'!BB20,IF($C$35=2,"",'4b - Detailed Results'!AV127)) -> Zone 5 (Center) | BA31: =IF($C$35=1,"",IF($C$35=2,"",'4b - Detailed Results'!BB127)) -> 
W33: =IF(W31<>"",IF($C$35=2,"V/C","CLV"),"") -> CLV | Z33: =IF(W31<>"","V/C","") -> V/C | AC33: =IF(AC31<>"",IF($C$35=2,"V/C","CLV"),"") -> CLV | AF33: =IF(AC31<>"","V/C","") -> V/C | AI33: =IF(AI31<>"",IF($C$35=2,"V/C","CLV"),"") -> CLV | AL33: =IF(AI31<>"","V/C","") -> V/C | AO33: =IF(AO31<>"",IF($C$35=2,"V/C","CLV"),"") -> CLV | AR33: =IF(AO31<>"","V/C","") -> V/C | AU33: =IF(AU31<>"","CLV","") -> CLV | AX33: =IF(AU31<>"","V/C","") -> V/C | BA33: =IF(BA31<>"","CLV","") ->  | BD33: =IF(BA31<>"","V/C","") -> 
C35: =IF(VLOOKUP(AH17,$BL$4:$BO$13,3,FALSE)<0,2,IF(VLOOKUP(AH17,$BL$4:$BO$13,3,FALSE)>80,3,1)) -> 1 | D35: =AH17 -> Two-Way Stop Control | Q35: =IF(AH17=BL13,"",IF(VLOOKUP(AH17,$BL$4:$BO$13,3,FALSE)>0,INDIRECT("'3 - Alt Num Lanes Input'!V"&VLOOKUP(AH17,$BL$4:$BO$13,3,FALSE)),INDIRECT("'4b - Detailed Results'!E"&VLOOKUP(AH17,$BL$4:$BO$13,4,FALSE)))) -> N-S | W35: =VLOOKUP($AH$17,$BL$4:$CQ$13,21,FALSE) -> 0 | Z35: =VLOOKUP($AH$17,$BL$4:$CQ$13,22,FALSE) -> 0 | AC35: =IF($C$35<>2,VLOOKUP($AH$17,$BL$4:$CQ$13,23,FALSE),VLOOKUP($AH$17,$BL$4:$CQ$13,24,FALSE)) -> 0 | AF35: =IF($C$35<>2,VLOOKUP($AH$17,$BL$4:$CQ$13,24,FALSE),VLOOKUP($AH$17,$BL$4:$CQ$13,25,FALSE)) -> 0 | AI35: =IF($C$35<>2,VLOOKUP($AH$17,$BL$4:$CQ$13,25,FALSE),VLOOKUP($AH$17,$BL$4:$CQ$13,27,FALSE)) -> 0 | AL35: =IF($C$35<>2,VLOOKUP($AH$17,$BL$4:$CQ$13,26,FALSE),VLOOKUP($AH$17,$BL$4:$CQ$13,28,FALSE)) -> 0 | AO35: =IF($C$35<>2,VLOOKUP($AH$17,$BL$4:$CQ$13,27,FALSE),VLOOKUP($AH$17,$BL$4:$CQ$13,30,FALSE)) -> 0 | AR35: =IF($C$35<>2,VLOOKUP($AH$17,$BL$4:$CQ$13,28,FALSE),VLOOKUP($AH$17,$BL$4:$CQ$13,31,FALSE)) -> 0 | AU35: =IF($C$35<>2,VLOOKUP($AH$17,$BL$4:$CQ$13,29,FALSE),0) -> -- | AX35: =IF($C$35<>2,VLOOKUP($AH$17,$BL$4:$CQ$13,30,FALSE),0) -> 15.84968173 | BA35: =IF($C$35<>2,VLOOKUP($AH$17,$BL$4:$CQ$13,31,FALSE),0) -> 0 | BD35: =IF($C$35<>2,VLOOKUP($AH$17,$BL$4:$CQ$13,32,FALSE),0) -> 0
D38: Existing Configuration Results
D40: Overall v/c Ratio | J40: =VLOOKUP($AH$17,$BL$4:$CU$13,33,FALSE) -> 15.84968173 | Q40: Pedestrian Accommodation | AH40: =VLOOKUP($AH$17,$BL$4:$CU$13,34,FALSE) -> Fair | AM40: Bicycle Accommodation | BB40: =VLOOKUP($AH$17,$BL$4:$CU$13,35,FALSE) -> Good
A43: Step 2B: Alternative Selection
BG45: Yes
D46: Rankings Inclusion | AH46: Yes/No | AN46: Comment | BG46: No
C47: =IF(AH47=$BG$45,TRUE,FALSE) -> TRUE | D47: At-Grade Non-Roundabout Intersections? | AH47: Yes
C48: =IF(AH48=$BG$45,TRUE,FALSE) -> TRUE | D48: ='3 - Alt Num Lanes Input'!E24 -> Traffic Signal | AH48: Yes
C49: TRUE | D49: ='3 - Alt Num Lanes Input'!E28 -> Two-Way Stop Control | AH49: Yes
C50: TRUE | D50: ='3 - Alt Num Lanes Input'!E32 -> All-Way Stop Control | AH50: Yes
C51: TRUE | D51: Continuous Green T | AH51: Yes
C52: TRUE | D52: Quadrant Roadway | AB52: S-W | AH52: Yes
C53: TRUE | AB53: N-E | AH53: Yes
C54: TRUE | AB54: S-E | AH54: Yes
C55: TRUE | AB55: N-W | AH55: Yes
C56: TRUE | D56: Partial Displaced Left Turn | AH56: Yes
C57: TRUE | D57: Displaced Left Turn | AH57: Yes
C58: TRUE | D58: ='3 - Alt Num Lanes Input'!E56 -> Signalized Restricted Crossing U-Turn | AH58: Yes
C59: TRUE | D59: ='3 - Alt Num Lanes Input'!E60 -> Unsignalized Restricted Crossing U-Turn | AH59: Yes
C60: TRUE | D60: Median U-Turn | AH60: Yes
C61: TRUE | D61: Partial Median U-Turn | AH61: Yes
C62: TRUE | D62: Bowtie | AH62: Yes
C63: =IF(AH63=$BG$45,TRUE,FALSE) -> TRUE | D63: Split Intersection | AH63: Yes
C64: =IF(AH64=$BG$45,TRUE,FALSE) -> TRUE | D64: Grade Separated Intersections? | AH64: Yes
C65: TRUE | D65: Echelon | AH65: Yes
C66: =IF(AH66=$BG$45,TRUE,FALSE) -> TRUE | D66: Center Turn Overpass | AH66: Yes
C67: TRUE | D67: Roundabouts? | AH67: Yes
C68: TRUE | D68: 50 ICD Miniroundabout | AH68: Yes
C69: TRUE | D69: 75 ICD Miniroundaobut | AH69: Yes
C70: TRUE | D70: 1x1 | AH70: Yes
C71: TRUE | D71: 1NS x 2EW | AH71: Yes
C72: TRUE | D72: 2NS x 1EW | AH72: Yes
C73: TRUE | D73: 2x2 | AH73: Yes
C74: TRUE | D74: 3x3 | AH74: Yes
C75: TRUE | D75: Grade Separated Interchanges? | AH75: Yes
C76: TRUE | D76: Diamond | AH76: Yes
C77: TRUE | D77: Partial Cloverleaf A | AH77: Yes
C78: TRUE | D78: Partial Cloverleaf B | AH78: Yes
C79: TRUE | D79: Displaced Left Turn Interchange | AH79: Yes
C80: =IF(AH80=$BG$45,TRUE,FALSE) -> TRUE | D80: Contraflow Left Interchange | AH80: Yes
C81: =IF(AH81=$BG$45,TRUE,FALSE) -> TRUE | D81: Diverging Diamond Interchange | AH81: Yes
C82: =IF(AH82=$BG$45,TRUE,FALSE) -> TRUE | D82: Single Point | AH82: Yes
C83: TRUE | D83: Single Point with Roundabout | AH83: Yes

Sheet LanesDefaults (hidden)
B1: Capacity Analysis for Planning of Junctions Capacity Analysis for Planning of Junctions
B3: Input Worksheet 2
E8: Project Name: | M8: Defaults for No Lanes Inputs
E10: Project Number: | M10: --
E12: Location | M12: --
E14: Date | M14: --
E18: Number of Lanes for Non-roundabout Intersections
E20: TYPE OF INTERSECTION | V20: Sheet | AA20: Northbound | AI20: Southbound | AQ20: Eastbound | AY20: Westbound
AA22: U | AC22: L | AE22: T | AG22: R | AI22: U | AK22: L | AM22: T | AO22: R | AQ22: U | AS22: L | AU22: T | AW22: R | AY22: U | BA22: L | BC22: T | BE22: R
E24: Traffic Signal | V24: FULL | AC24: 1 | AE24: 2 | AG24: 1 | AK24: 1 | AM24: 2 | AO24: 1 | AS24: 1 | AU24: 2 | AW24: 1 | BA24: 1 | BC24: 2 | BE24: 1
E26: Conventional Shared RT LN | V26: CSRL | AC26: 1 | AE26: 2 | AK26: 1 | AM26: 2 | AS26: 1 | AU26: 2 | BA26: 1 | BC26: 2
E28: Two-Way Stop Control | V28: FULL | AC28: 1 | AE28: 2 | AG28: 1 | AK28: 1 | AM28: 2 | AO28: 1 | AS28: 1 | AU28: 1 | AW28: 0 | BA28: 1 | BC28: 1 | BE28: 0
V30: N-S | AC30: 1 | AE30: 1 | AG30: 0 | AK30: 1 | AM30: 1 | AO30: 0 | AS30: 1 | AU30: 2 | AW30: 1 | BA30: 1 | BC30: 2 | BE30: 1
E32: All-Way Stop Control | V32: E-W | AC32: 1 | AE32: 2 | AG32: 1 | AK32: 1 | AM32: 2 | AO32: 1 | AS32: 1 | AU32: 2 | AW32: 1 | BA32: 1 | BC32: 2 | BE32: 1
E34: Continuous Green T | V34: W | AC34: 1 | AE34: 2 | AM34: 2 | AO34: 1 | AS34: 1 | AW34: 1
V36: N | AK36: 1 | AO36: 1 | AS36: 1 | AU36: 2 | BC36: 2 | BE36: 1
V38: E | AE38: 2 | AG38: 1 | AK38: 1 | AM38: 2 | BA38: 1 | BE38: 1
V40: S | AC40: 1 | AG40: 1 | AU40: 2 | AW40: 1 | BA40: 1 | BC40: 2
E42: Quadrant Roadway | V42: S-W | AA42: Use the respective intersection tab(s) to specify the # of lanes inputs.
V44: N-E
V46: S-E
V48: N-W
E50: Partial Displaced Left Turn | V50: N-S | AC50: 1 | AE50: 2 | AG50: 1 | AK50: 1 | AM50: 2 | AO50: 1 | AS50: 1 | AU50: 2 | AW50: 1 | BA50: 1 | BC50: 2 | BE50: 1
V52: E-W | AC52: 1 | AE52: 2 | AG52: 1 | AK52: 1 | AM52: 2 | AO52: 1 | AS52: 1 | AU52: 2 | AW52: 1 | BA52: 1 | BC52: 2 | BE52: 1
E54: Displaced Left Turn | V54: FULL | AC54: 1 | AE54: 2 | AG54: 1 | AK54: 1 | AM54: 2 | AO54: 1 | AS54: 1 | AU54: 2 | AW54: 1 | BA54: 1 | BC54: 2 | BE54: 1
E56: Signalized Restricted Crossing U-Turn | V56: N-S | AA56: 1 | AC56: 1 | AE56: 2 | AG56: 1 | AI56: 1 | AK56: 1 | AM56: 2 | AO56: 1 | AW56: 1 | BE56: 1
V58: E-W | AG58: 1 | AO58: 1 | AQ58: 1 | AS58: 1 | AU58: 2 | AW58: 1 | AY58: 1 | BA58: 1 | BC58: 2 | BE58: 1
E60: Unsignalized Restricted Crossing U-Turn | V60: N-S | AA60: 1 | AC60: 1 | AE60: 2 | AG60: 1 | AI60: 1 | AK60: 1 | AM60: 2 | AO60: 1 | AW60: 1 | BE60: 1
V62: E-W | AG62: 1 | AO62: 1 | AQ62: 1 | AS62: 1 | AU62: 2 | AW62: 1 | AY62: 1 | BA62: 1 | BC62: 2 | BE62: 1
E64: Median U-Turn | V64: N-S | AA64: 1 | AE64: 2 | AG64: 1 | AI64: 1 | AM64: 2 | AO64: 1 | AU64: 2 | AW64: 1 | BC64: 2 | BE64: 1
V66: E-W | AE66: 2 | AG66: 1 | AM66: 2 | AO66: 1 | AQ66: 1 | AU66: 2 | AW66: 1 | AY66: 1 | BC66: 2 | BE66: 1
E68: Partial Median U-Turn | V68: N-S | AA68: 1 | AE68: 2 | AG68: 1 | AI68: 1 | AM68: 2 | AO68: 1 | AS68: 1 | AU68: 2 | AW68: 1 | BA68: 1 | BC68: 2 | BE68: 1
V70: E-W | AC70: 1 | AE70: 2 | AG70: 1 | AK70: 1 | AM70: 2 | AO70: 1 | AQ70: 1 | AU70: 2 | AW70: 1 | AY70: 1 | BC70: 2 | BE70: 1
E72: Bowtie | V72: N-S | AE72: 1 | AG72: 1 | AM72: 1 | AO72: 1 | AU72: 1 | AW72: 1 | BC72: 1 | BE72: 1
V74: E-W | AE74: 1 | AG74: 1 | AM74: 1 | AO74: 1 | AU74: 1 | AW74: 1 | BC74: 1 | BE74: 1
E76: Split Intersection | V76: N-S | AA76: Use the respective intersection tab(s) to specify the # of lanes inputs.
V78: E-W
E81: For shared lanes, enter "0" in L or R
E82: For AWSC enter number of approach lanes (1 or 2) for each approach.
B83: Capacity Analysis for Planning of Junctions Capacity Analysis for Planning of Junctions
B85: Input Worksheet 2
E89: Number of Lanes for Grade Seperated Intersections
E91: TYPE OF INTERSECTION | V91: Sheet | AA91: Northbound | AI91: Southbound | AQ91: Eastbound | AY91: Westbound
AA93: U | AC93: L | AE93: T | AG93: R | AI93: U | AK93: L | AM93: T | AO93: R | AQ93: U | AS93: L | AU93: T | AW93: R | AY93: U | BA93: L | BC93: T | BE93: R
E95: Echelon | V95: N-S | AC95: 1 | AE95: 2 | AG95: 1 | AK95: 1 | AM95: 2 | AO95: 1 | AS95: 1 | AU95: 2 | AW95: 1 | BA95: 1 | BC95: 2 | BE95: 1
V97: E-W | AC97: 1 | AE97: 2 | AG97: 1 | AK97: 1 | AM97: 2 | AO97: 1 | AS97: 1 | AU97: 2 | AW97: 1 | BA97: 1 | BC97: 2 | BE97: 1
E99: Center Turn Overpass | V99: Full | AC99: 1 | AE99: 2 | AG99: 1 | AK99: 1 | AM99: 2 | AO99: 1 | AS99: 1 | AU99: 2 | AW99: 1 | BA99: 1 | BC99: 2 | BE99: 1
V101: E-W
E105: Number of Lanes for Interchanges
E107: TYPE OF INTERCHANGE | V107: Sheet | AA107: Northbound | AI107: Southbound | AQ107: Eastbound | AY107: Westbound
AA109: U | AC109: L | AE109: T | AG109: R | AI109: U | AK109: L | AM109: T | AO109: R | AQ109: U | AS109: L | AU109: T | AW109: R | AY109: U | BA109: L | BC109: T | BE109: R
E111: Diamond | V111: N-S | AC111: 1 | AE111: 2 | AG111: 1 | AK111: 1 | AM111: 2 | AO111: 1 | AS111: 1 | AU111: 2 | AW111: 1 | BA111: 1 | BC111: 2 | BE111: 1
V113: E-W | AC113: 1 | AE113: 2 | AG113: 1 | AK113: 1 | AM113: 2 | AO113: 1 | AS113: 1 | AU113: 2 | AW113: 1 | BA113: 1 | BC113: 2 | BE113: 1
E115: Partial Cloverleaf A | V115: N-S | AE115: 2 | AM115: 2 | AS115: 1 | AW115: 1 | BA115: 1 | BE115: 1
V117: E-W | AC117: 1 | AG117: 1 | AK117: 1 | AO117: 1 | AU117: 2 | BC117: 2
E119: Partial Cloverleaf B | V119: N-S | AC119: 1 | AE119: 2 | AG119: 1 | AK119: 1 | AM119: 2 | AO119: 1 | AS119: 1 | AW119: 1 | BA119: 1 | BE119: 1
V121: E-W | AC121: 1 | AG121: 1 | AK121: 1 | AO121: 1 | AS121: 1 | AU121: 2 | AW121: 1 | BA121: 1 | BC121: 2 | BE121: 1
E123: Displaced Left Turn | V123: N-S | AC123: 1 | AE123: 2 | AG123: 1 | AK123: 1 | AM123: 2 | AO123: 1 | AS123: 1 | AU123: 2 | AW123: 1 | BA123: 1 | BC123: 2 | BE123: 1
V125: E-W | AC125: 1 | AE125: 2 | AG125: 1 | AK125: 1 | AM125: 2 | AO125: 1 | AS125: 1 | AU125: 2 | AW125: 1 | BA125: 1 | BC125: 2 | BE125: 1
E127: Contraflow Left Interchange | V127: N-S | AC127: 1 | AE127: 2 | AG127: 1 | AK127: 1 | AM127: 2 | AO127: 1 | AS127: 1 | AW127: 1 | BA127: 1 | BE127: 1
V129: E-W | AC129: 1 | AG129: 1 | AK129: 1 | AO129: 1 | AS129: 1 | AU129: 2 | AW129: 1 | BA129: 1 | BC129: 2 | BE129: 1
E131: Diverging Diamond Interchange | V131: N-S | AC131: 1 | AE131: 2 | AG131: 1 | AK131: 1 | AM131: 2 | AO131: 1 | AS131: 1 | AW131: 1 | BA131: 1 | BE131: 1
V133: E-W | AC133: 1 | AG133: 1 | AK133: 1 | AO133: 1 | AS133: 1 | AU133: 2 | AW133: 1 | BA133: 1 | BC133: 2 | BE133: 1
E135: Single Point | V135: N-S | AC135: 1 | AE135: 2 | AG135: 1 | AK135: 1 | AM135: 2 | AO135: 1 | AS135: 1 | AU135: 2 | AW135: 1 | BA135: 1 | BC135: 2 | BE135: 1
V137: E-W | AC137: 1 | AE137: 2 | AG137: 1 | AK137: 1 | AM137: 2 | AO137: 1 | AS137: 1 | AU137: 2 | AW137: 1 | BA137: 1 | BC137: 2 | BE137: 1
E139: Single Point with Roundabout | V139: N-S | AA139: Use the respective intersection tab(s) to specify the # of lanes inputs.
V141: E-W

Sheet 3 - Alt Num Lanes Input
B1: Capacity Analysis for Planning of Junctions | BL1: Capacity Analysis for Planning of Junctions Capacity Analysis for Planning of Junctions
B3: Step 3 | BL3: Input Worksheet 2
E8: Project Name: | M8: ='1 - Volume Input'!M8 -> Cap-X Sample Street | BO8: Project Name: | BW8: =M8 -> Cap-X Sample Street
E10: Project Number: | M10: ='1 - Volume Input'!M10 -> 10000 | BO10: Project Number: | BW10: =M10 -> 10000
E12: Location: | M12: ='1 - Volume Input'!M12 -> Anywhere, USA | BO12: Location: | BW12: =M12 -> Anywhere, USA
E14: Date: | M14: ='1 - Volume Input'!M14 -> 2017 AM | BO14: Date: | BW14: =M14 -> 2017 AM
E16: Analysis Type: | M16: Intersections and Interchanges | BH16: Intersections and Interchanges | BI16: 1 | BO16: Analysis Type: | BW16: =AnalysisType -> Intersections and Interchanges
BH17: Intersections Only
E18: Number of Lanes for Non-roundabout Intersections | BO18: Volume Echo with Shared Lane Adjustment for Non-roundabout Intersections
E20: TYPE OF INTERSECTION | V20: Sheet | AA20: Northbound | AI20: Southbound | AQ20: Eastbound | AY20: Westbound | BO20: TYPE OF INTERSECTION | CF20: Sheet | CK20: Northbound | CS20: Southbound | DA20: Eastbound | DI20: Westbound
AA22: U | AC22: L | AE22: T | AG22: R | AI22: U | AK22: L | AM22: T | AO22: R | AQ22: U | AS22: L | AU22: T | AW22: R | AY22: U | BA22: L | BC22: T | BE22: R | CK22: U | CM22: L | CO22: T | CQ22: R | CS22: U | CU22: L | CW22: T | CY22: R | DA22: U | DC22: L | DE22: T | DG22: R | DI22: U | DK22: L | DM22: T | DO22: R
E24: Traffic Signal | V24: FULL | AC24: 1 | AE24: 1 | AG24: 1 | AK24: 1 | AM24: 1 | AO24: 1 | AS24: 1 | AU24: 1 | AW24: 1 | BA24: 1 | BC24: 1 | BE24: 1 | BO24: ='3 - Alt Num Lanes Input'!E24 -> Traffic Signal | CF24: FULL | CM24: =IF(AND(AC24=0,AE24=1,AG24=0),0,IF(AND(AC24=0,AE24=2,AG24=0),0,IF(AND(AC24=0,AE24=1,AG24=1),0,NBL_Master))) -> 102 | CO24: =NBT_Master + IF(AC24=0,NBL_Master,0) + IF(AG24=0,NBR_Master) -> 510 | CQ24: =IF(AND(AC24=0,AE24=1,AG24=0),0,IF(AND(AC24=0,AE24=2,AG24=0),0,IF(AND(AC24=1,AE24=1,AG24=0),0,NBR_Master))) -> 204 | CU24: =IF(AND(AK24=0,AM24=1,AO24=0),0,IF(AND(AK24=0,AM24=2,AO24=0),0,IF(AND(AK24=0,AM24=1,AO24=1),0,SBL_Master))) -> 31 | CW24: =SBT_Master + IF(AK24=0,SBL_Master,0) + IF(AO24=0,SBR_Master) -> 204 | CY24: =IF(AND(AK24=0,AM24=1,AO24=0),0,IF(AND(AK24=0,AM24=2,AO24=0),0,IF(AND(AK24=1,AM24=1,AO24=0),0,SBR_Master))) -> 51 | DC24: =IF(AND(AS24=0,AU24=1,AW24=0),0,IF(AND(AS24=0,AU24=2,AW24=0),0,IF(AND(AS24=0,AU24=1,AW24=1),0,EBL_Master))) -> 31 | DE24: =EBT_Master + IF(AS24=0,EBL_Master,0) + IF(AW24=0,EBR_Master) -> 204 | DG24: =IF(AND(AS24=0,AU24=1,AW24=0),0,IF(AND(AS24=0,AU24=2,AW24=0),0,IF(AND(AS24=1,AU24=1,AW24=0),0,EBR_Master))) -> 51 | DK24: =IF(AND(BA24=0,BC24=1,BE24=0),0,IF(AND(BA24=0,BC24=2,BE24=0),0,IF(AND(BA24=0,BC24=1,BE24=1),0,WBL_Master))) -> 31 | DM24: =WBT_Master + IF(BA24=0,WBL_Master,0) + IF(BE24=0,WBR_Master) -> 204 | DO24: =IF(AND(BA24=0,BC24=1,BE24=0),0,IF(AND(BA24=0,BC24=2,BE24=0),0,IF(AND(BA24=1,BC24=1,BE24=0),0,WBR_Master))) -> 51
E26: Conventional Shared RT LN | V26: CSRL | AC26: 1 | AE26: 2 | AK26: 1 | AM26: 2 | AS26: 1 | AU26: 2 | BA26: 1 | BC26: 2 | BO26: Conventional Shared RT LN | CF26: CSRL | CM26: =IF(AC26>0,NBL_Master,0) -> 102 | CO26: =NBT_Master + NBR_Master -> 714 | CU26: =IF(AK26>0,SBL_Master,0) -> 31 | CW26: =SBT_Master + SBR_Master -> 255 | DC26: =IF(AS26>0,EBL_Master,0) -> 31 | DE26: =EBT_Master + EBR_Master -> 255 | DK26: =IF(BA26>0,WBL_Master,0) -> 31 | DM26: =WBT_Master + WBR_Master -> 255
E28: Two-Way Stop Control | V28: N-S | AC28: 1 | AE28: 1 | AG28: 1 | AK28: 1 | AM28: 1 | AO28: 1 | AS28: 1 | AU28: 1 | AW28: 1 | BA28: 1 | BC28: 1 | BE28: 1 | BO28: =E28 -> Two-Way Stop Control | CF28: N-S | CM28: =IF(AC28>0,NBL_Master,0) -> 102 | CO28: =NBT_Master + IF(AC28=0,NBL_Master,0) + IF(AG28=0,NBR_Master) -> 510 | CQ28: =IF(AG28>0,NBR_Master,0) -> 204 | CU28: =IF(AK28>0,SBL_Master,0) -> 31 | CW28: =SBT_Master + IF(AK28=0,SBL_Master,0) + IF(AO28=0,SBR_Master) -> 204 | CY28: =IF(AO28>0,SBR_Master,0) -> 51 | DC28: =IF(AS28>0,EBL_Master,0) -> 31 | DE28: =EBT_Master + IF(AS28=0,EBL_Master,0) + IF(AW28=0,EBR_Master) -> 204 | DG28: =IF(AW28>0,EBR_Master,0) -> 51 | DK28: =IF(BA28>0,WBL_Master,0) -> 31 | DM28: =WBT_Master + IF(BA28=0,WBL_Master,0) + IF(BE28=0,WBR_Master) -> 204 | DO28: =IF(BE28>0,WBR_Master,0) -> 51
V30: E-W | AC30: 1 | AE30: 1 | AG30: 1 | AK30: 1 | AM30: 1 | AO30: 1 | AS30: 1 | AU30: 1 | AW30: 1 | BA30: 1 | BC30: 1 | BE30: 1 | CF30: E-W | CM30: =IF(AC30>0,NBL_Master,0) -> 102 | CO30: =NBT_Master + IF(AC30=0,NBL_Master,0) + IF(AG30=0,NBR_Master) -> 510 | CQ30: =IF(AG30>0,NBR_Master,0) -> 204 | CU30: =IF(AK30>0,SBL_Master,0) -> 31 | CW30: =SBT_Master + IF(AK30=0,SBL_Master,0) + IF(AO30=0,SBR_Master) -> 204 | CY30: =IF(AO30>0,SBR_Master,0) -> 51 | DC30: =IF(AS30>0,EBL_Master,0) -> 31 | DE30: =EBT_Master + IF(AS30=0,EBL_Master,0) + IF(AW30=0,EBR_Master) -> 204 | DG30: =IF(AW30>0,EBR_Master,0) -> 51 | DK30: =IF(BA30>0,WBL_Master,0) -> 31 | DM30: =WBT_Master + IF(BA30=0,WBL_Master,0) + IF(BE30=0,WBR_Master) -> 204 | DO30: =IF(BE30>0,WBR_Master,0) -> 51
E32: All-Way Stop Control | V32: FULL | AC32: 0 | AE32: 1 | AG32: 0 | AK32: 0 | AM32: 1 | AO32: 0 | AS32: 0 | AU32: 1 | AW32: 0 | BA32: 0 | BC32: 1 | BE32: 0 | BO32: =E32 -> All-Way Stop Control | CF32: FULL | CM32: =IF(AC32>0,NBL_Master,0) -> 0 | CO32: =NBT_Master + IF(AC32=0,NBL_Master,0) + IF(AG32=0,NBR_Master) -> 816 | CQ32: =IF(AG32>0,NBR_Master,0) -> 0 | CU32: =IF(AK32>0,SBL_Master,0) -> 0 | CW32: =SBT_Master + IF(AK32=0,SBL_Master,0) + IF(AO32=0,SBR_Master) -> 286 | CY32: =IF(AO32>0,SBR_Master,0) -> 0 | DC32: =IF(AS32>0,EBL_Master,0) -> 0 | DE32: =EBT_Master + IF(AS32=0,EBL_Master,0) + IF(AW32=0,EBR_Master) -> 286 | DG32: =IF(AW32>0,EBR_Master,0) -> 0 | DK32: =IF(BA32>0,WBL_Master,0) -> 0 | DM32: =WBT_Master + IF(BA32=0,WBL_Master,0) + IF(BE32=0,WBR_Master) -> 286 | DO32: =IF(BE32>0,WBR_Master,0) -> 0
E34: Continuous Green T | V34: W | AC34: 1 | AE34: 1 | AM34: 2 | AO34: 1 | AS34: 1 | AW34: 1 | BO34: Continuous Green T | CF34: W | CM34: =IF(AC34>0,NBL_Master,0) -> 102 | CO34: =NBT_Master + IF(AC34=0,NBL_Master,0) -> 510 | CW34: =SBT_Master + IF(AO34=0,SBR_Master) -> 204 | CY34: =IF(AO34>0,SBR_Master,0) -> 51 | DC34: =IF(AS34>0,EBL_Master,0) -> 31 | DG34: =IF(AW34>0,EBR_Master,0) -> 51
V36: N | AK36: 1 | AO36: 1 | AS36: 1 | AU36: 2 | BC36: 2 | BE36: 1 | CF36: N | CU36: =IF(AK36>0,SBL_Master,0) -> 31 | CY36: =IF(AO36>0,SBR_Master,0) -> 51 | DC36: =IF(AS36>0,EBL_Master,0) -> 31 | DE36: =EBT_Master + IF(AS36=0,EBL_Master,0) -> 204 | DM36: =WBT_Master + IF(BE36=0,WBR_Master) -> 204 | DO36: =IF(BE36>0,WBL_Master,0) -> 31
V38: E | AE38: 2 | AG38: 1 | AK38: 1 | AM38: 2 | BA38: 1 | BE38: 1 | CF38: E | CO38: =NBT_Master + IF(AG38=0,NBR_Master) -> 510 | CQ38: =IF(AG38>0,NBR_Master,0) -> 204 | CU38: =IF(AK38>0,SBL_Master,0) -> 31 | CW38: =SBT_Master + IF(AK38=0,SBL_Master,0) -> 204 | DK38: =IF(BA38>0,WBL_Master,0) -> 31 | DO38: =IF(BE38>0,WBL_Master,0) -> 31
V40: S | AC40: 1 | AG40: 1 | AU40: 2 | AW40: 1 | BA40: 1 | BC40: 2 | CF40: S | CM40: =IF(AC40>0,NBL_Master,0) -> 102 | CQ40: =IF(AG40>0,NBR_Master,0) -> 204 | DE40: =EBT_Master+ IF(AW40=0,EBR_Master) -> 204 | DG40: =IF(AW40>0,EBR_Master,0) -> 51 | DK40: =IF(BA40>0,WBL_Master,0) -> 31 | DM40: =WBT_Master + IF(BA40=0,WBL_Master,0) -> 204
E42: Quadrant Roadway | V42: S-W | AA42: Use the respective intersection tab(s) to specify the # of lanes inputs. | BO42: Quadrant Roadway | CF42: S-W | CM42: =NBL_Master -> 102 | CO42: =NBT_Master -> 510 | CQ42: =NBR_Master -> 204 | CW42: =SBT_Master -> 204 | CY42: =SBR_Master -> 51 | DC42: =EBL_Master -> 31 | DE42: =EBT_Master -> 204 | DG42: =EBR_Master -> 51 | DK42: =WBL_Master -> 31 | DM42: =WBT_Master -> 204 | DO42: =WBR_Master -> 51
V44: N-E | CF44: N-E | CO44: =NBT_Master -> 510 | CQ44: =NBR_Master -> 204 | CU44: =SBL_Master -> 31 | CW44: =SBT_Master -> 204 | CY44: =SBR_Master -> 51 | DC44: =EBL_Master -> 31 | DE44: =EBT_Master -> 204 | DG44: =EBR_Master -> 51 | DK44: =WBL_Master -> 31 | DM44: =WBT_Master -> 204 | DO44: =WBR_Master -> 51
V46: S-E | CF46: S-E | CM46: =NBL_Master -> 102 | CO46: =NBT_Master -> 510 | CQ46: =NBR_Master -> 204 | CU46: =SBL_Master -> 31 | CW46: =SBT_Master -> 204 | CY46: =SBR_Master -> 51 | DE46: =EBT_Master -> 204 | DG46: =EBR_Master -> 51 | DK46: =WBL_Master -> 31 | DM46: =WBT_Master -> 204 | DO46: =WBR_Master -> 51
V48: N-W | CF48: N-W | CM48: =NBL_Master -> 102 | CO48: =NBT_Master -> 510 | CQ48: =NBR_Master -> 204 | CU48: =SBL_Master -> 31 | CW48: =SBT_Master -> 204 | CY48: =SBR_Master -> 51 | DC48: =EBL_Master -> 31 | DE48: =EBT_Master -> 204 | DG48: =EBR_Master -> 51 | DM48: =WBT_Master -> 204 | DO48: =WBR_Master -> 51
E50: Partial Displaced Left Turn | V50: N-S | AC50: 1 | AE50: 1 | AG50: 1 | AK50: 1 | AM50: 1 | AO50: 1 | AS50: 1 | AU50: 2 | AW50: 1 | BA50: 1 | BC50: 2 | BE50: 1 | BO50: Partial Displaced Left Turn | CF50: N-S | CM50: =NBL_Master -> 102 | CO50: =NBT_Master + IF(AG50=0,NBR_Master) -> 510 | CQ50: =IF(AG50>0,NBR_Master,0) -> 204 | CU50: =SBL_Master -> 31 | CW50: =SBT_Master + IF(AO50=0,SBR_Master) -> 204 | CY50: =IF(AO50>0,SBR_Master,0) -> 51 | DC50: =IF(AS50>0,EBL_Master,0) -> 31 | DE50: =EBT_Master + IF(AS50=0,EBL_Master,0) + IF(AW50=0,EBR_Master) -> 204 | DG50: =IF(AW50>0,EBR_Master,0) -> 51 | DK50: =IF(BA50>0,WBL_Master,0) -> 31 | DM50: =WBT_Master + IF(BA50=0,WBL_Master,0) + IF(BE50=0,WBR_Master) -> 204 | DO50: =IF(BE50>0,WBR_Master,0) -> 51
V52: E-W | AC52: 1 | AE52: 2 | AG52: 1 | AK52: 1 | AM52: 2 | AO52: 1 | AS52: 1 | AU52: 1 | AW52: 1 | BA52: 1 | BC52: 1 | BE52: 1 | CF52: E-W | CM52: =IF(AC52>0,NBL_Master,0) -> 102 | CO52: =NBT_Master + IF(AC52=0,NBL_Master,0) + IF(AG52=0,NBR_Master) -> 510 | CQ52: =IF(AG52>0,NBR_Master,0) -> 204 | CU52: =IF(AK52>0,SBL_Master,0) -> 31 | CW52: =SBT_Master + IF(AK52=0,SBL_Master,0) + IF(AO52=0,SBR_Master) -> 204 | CY52: =IF(AO52>0,SBR_Master,0) -> 51 | DC52: =EBL_Master -> 31 | DE52: =EBT_Master+ IF(AW52=0,EBR_Master) -> 204 | DG52: =IF(AW52>0,EBR_Master,0) -> 51 | DK52: =WBL_Master -> 31 | DM52: =WBT_Master + IF(BE52=0,WBR_Master) -> 204 | DO52: =IF(BE52>0,WBR_Master,0) -> 51
E54: Displaced Left Turn | V54: FULL | AC54: 1 | AE54: 2 | AG54: 1 | AK54: 1 | AM54: 2 | AO54: 1 | AS54: 1 | AU54: 2 | AW54: 1 | BA54: 1 | BC54: 2 | BE54: 1 | BO54: Displaced Left Turn | CF54: FULL | CM54: =NBL_Master -> 102 | CO54: =NBT_Master + IF(AG54=0,NBR_Master) -> 510 | CQ54: =IF(AG54>0,NBR_Master,0) -> 204 | CU54: =SBL_Master -> 31 | CW54: =SBT_Master + IF(AO54=0,SBR_Master) -> 204 | CY54: =IF(AO54>0,SBR_Master,0) -> 51 | DC54: =EBL_Master -> 31 | DE54: =EBT_Master + IF(AW54=0,EBR_Master) -> 204 | DG54: =IF(AW54>0,EBR_Master,0) -> 51 | DK54: =WBL_Master -> 31 | DM54: =WBT_Master + IF(BE54=0,WBR_Master) -> 204 | DO54: =IF(BE54>0,WBR_Master,0) -> 51
E56: Signalized Restricted Crossing U-Turn | V56: N-S | AA56: 1 | AC56: 1 | AE56: 2 | AG56: 1 | AI56: 1 | AK56: 1 | AM56: 2 | AO56: 1 | AW56: 1 | BE56: 1 | BO56: =E56 -> Signalized Restricted Crossing U-Turn | CF56: N-S | CK56: =IF(AA56>0,NBU_Master,0) -> 0 | CM56: =NBL_Master -> 102 | CO56: =NBT_Master + IF(AG56=0,NBR_Master) -> 510 | CQ56: =IF(AG56>0,NBR_Master,0) -> 204 | CS56: =IF(AI56>0,SBU_Master,0) -> 0 | CU56: =IF(AK56>0,SBL_Master,0) -> 31 | CW56: =SBT_Master + IF(AK56=0,SBL_Master,0) + IF(AO56=0,SBR_Master)+ IF(AI56=0,SBU_Master) -> 204 | CY56: =IF(AO56>0,SBR_Master,0) -> 51 | DG56: =IF(AW56>0,EBR_Master,0) -> 51 | DO56: =IF(BE56>0,WBR_Master,0) -> 51
V58: E-W | AG58: 1 | AO58: 1 | AQ58: 1 | AS58: 1 | AU58: 2 | AW58: 1 | AY58: 1 | BA58: 1 | BC58: 2 | BE58: 1 | CF58: E-W | CQ58: =IF(AG58>0,NBR_Master,0) -> 204 | CY58: =IF(AO58>0,SBR_Master,0) -> 51 | DA58: =IF(AQ58>0,EBU_Master,0) -> 0 | DC58: =IF(AS58>0,EBL_Master,0) -> 31 | DE58: =EBT_Master + IF(AS58=0,EBL_Master,0) + IF(AW58=0,EBR_Master)+ IF(AQ58=0,EBU_Master) -> 204 | DG58: =IF(AW58>0,EBR_Master,0) -> 51 | DI58: =IF(AY58>0,WBU_Master,0) -> 0 | DK58: =IF(BA58>0,WBL_Master,0) -> 31 | DM58: =WBT_Master + IF(BA58=0,WBL_Master,0) + IF(BE58=0,WBR_Master)+ IF(AY58=0,WBU_Master) -> 204 | DO58: =IF(BE58>0,WBR_Master,0) -> 51
E60: Unsignalized Restricted Crossing U-Turn | V60: N-S | AA60: 1 | AC60: 1 | AE60: 2 | AG60: 1 | AI60: 1 | AK60: 1 | AM60: 2 | AO60: 1 | AW60: 1 | BE60: 1 | BO60: =E60 -> Unsignalized Restricted Crossing U-Turn | CF60: N-S | CK60: =IF(AA60>0,NBU_Master,0) -> 0 | CM60: =NBL_Master -> 102 | CO60: =NBT_Master + IF(AG60=0,NBR_Master) -> 510 | CQ60: =IF(AG60>0,NBR_Master,0) -> 204 | CS60: =IF(AI60>0,SBU_Master,0) -> 0 | CU60: =IF(AK60>0,SBL_Master,0) -> 31 | CW60: =SBT_Master + IF(AK60=0,SBL_Master,0) + IF(AO60=0,SBR_Master)+ IF(AI60=0,SBU_Master) -> 204 | CY60: =IF(AO60>0,SBR_Master,0) -> 51 | DG60: =IF(AW60>0,EBR_Master,0) -> 51 | DO60: =IF(BE60>0,WBR_Master,0) -> 51
V62: E-W | AG62: 1 | AO62: 1 | AQ62: 1 | AS62: 1 | AU62: 2 | AW62: 1 | AY62: 1 | BA62: 1 | BC62: 2 | BE62: 1 | CF62: E-W | CQ62: =IF(AG62>0,NBR_Master,0) -> 204 | CY62: =IF(AO62>0,SBR_Master,0) -> 51 | DA62: =IF(AQ62>0,EBU_Master,0) -> 0 | DC62: =IF(AS62>0,EBL_Master,0) -> 31 | DE62: =EBT_Master + IF(AS62=0,EBL_Master,0) + IF(AW62=0,EBR_Master)+ IF(AQ62=0,EBU_Master) -> 204 | DG62: =IF(AW62>0,EBR_Master,0) -> 51 | DI62: =IF(AY62>0,WBU_Master,0) -> 0 | DK62: =IF(BA62>0,WBL_Master,0) -> 31 | DM62: =WBT_Master + IF(BA62=0,WBL_Master,0) + IF(BE62=0,WBR_Master)+ IF(AY62=0,WBU_Master) -> 204 | DO62: =IF(BE62>0,WBR_Master,0) -> 51
E64: Median U-Turn | V64: N-S | AA64: 1 | AE64: 2 | AG64: 1 | AI64: 1 | AM64: 2 | AO64: 1 | AU64: 2 | AW64: 1 | BC64: 2 | BE64: 1 | BO64: Median U-Turn | CF64: N-S | CK64: =IF(AA64>0,NBU_Master,0) -> 0 | CO64: =NBT_Master + IF(AG64=0,NBR_Master)+ IF(AA56=0,NBU_Master) -> 510 | CQ64: =IF(AG64>0,NBR_Master,0) -> 204 | CS64: =IF(AI64>0,SBU_Master,0) -> 0 | CW64: =SBT_Master + IF(AO64=0,SBR_Master)+ IF(AI56=0,SBU_Master) -> 204 | CY64: =IF(AO64>0,SBR_Master,0) -> 51 | DE64: =EBT_Master+ IF(AW64=0,EBR_Master) -> 204 | DG64: =IF(AW64>0,EBR_Master,0) -> 51 | DM64: =WBT_Master + IF(BE64=0,WBR_Master) -> 204 | DO64: =IF(BE64>0,WBR_Master,0) -> 51
V66: E-W | AE66: 2 | AG66: 1 | AM66: 2 | AO66: 1 | AQ66: 1 | AU66: 2 | AW66: 1 | AY66: 1 | BC66: 2 | BE66: 1 | CF66: E-W | CO66: =NBT_Master + IF(AG66=0,NBR_Master) -> 510 | CQ66: =IF(AG66>0,NBR_Master,0) -> 204 | CW66: =SBT_Master + IF(AO66=0,SBR_Master) -> 204 | CY66: =IF(AO66>0,SBR_Master,0) -> 51 | DA66: =IF(AQ66>0,EBU_Master,0) -> 0 | DE66: =EBT_Master+ IF(AW66=0,EBR_Master)+ IF(AQ58=0,EBU_Master) -> 204 | DG66: =IF(AW66>0,EBR_Master,0) -> 51 | DI66: =IF(AY66>0,WBU_Master,0) -> 0 | DM66: =WBT_Master + IF(BE66=0,WBR_Master)+ IF(AY58=0,WBU_Master) -> 204 | DO66: =IF(BE66>0,WBR_Master,0) -> 51
E68: Partial Median U-Turn | V68: N-S | AA68: 1 | AE68: 2 | AG68: 1 | AI68: 1 | AM68: 2 | AO68: 1 | AS68: 1 | AU68: 2 | AW68: 1 | BA68: 1 | BC68: 2 | BE68: 1 | BO68: Partial Median U-Turn | CF68: N-S | CK68: =IF(AA68>0,NBU_Master,0) -> 0 | CO68: =NBT_Master + IF(AG68=0,NBR_Master)+ IF(AA56=0,NBU_Master) -> 510 | CQ68: =IF(AG68>0,NBR_Master,0) -> 204 | CS68: =IF(AI68>0,SBU_Master,0) -> 0 | CW68: =SBT_Master + IF(AO68=0,SBR_Master)+ IF(AI56=0,SBU_Master) -> 204 | CY68: =IF(AO68>0,SBR_Master,0) -> 51 | DC68: =IF(AS68>0,EBL_Master,0) -> 31 | DE68: =EBT_Master + IF(AS68=0,EBL_Master,0) + IF(AW68=0,EBR_Master) -> 204 | DG68: =IF(AW68>0,EBR_Master,0) -> 51 | DK68: =IF(BA68>0,WBL_Master,0) -> 31 | DM68: =WBT_Master + IF(BA68=0,WBL_Master,0) + IF(BE68=0,WBR_Master) -> 204 | DO68: =IF(BE68>0,WBR_Master,0) -> 51
V70: E-W | AC70: 1 | AE70: 2 | AG70: 1 | AK70: 1 | AM70: 2 | AO70: 1 | AQ70: 1 | AU70: 2 | AW70: 1 | AY70: 1 | BC70: 2 | BE70: 1 | CF70: E-W | CM70: =IF(AC70>0,NBL_Master,0) -> 102 | CO70: =NBT_Master + IF(AC70=0,NBL_Master,0) + IF(AG70=0,NBR_Master) -> 510 | CQ70: =IF(AG70>0,NBR_Master,0) -> 204 | CU70: =IF(AK70>0,SBL_Master,0) -> 31 | CW70: =SBT_Master + IF(AK70=0,SBL_Master,0) + IF(AO70=0,SBR_Master) -> 204 | CY70: =IF(AO70>0,SBR_Master,0) -> 51 | DA70: =IF(AQ70>0,EBU_Master,0) -> 0 | DE70: =EBT_Master+ IF(AW70=0,EBR_Master)+ IF(AQ58=0,EBU_Master) -> 204 | DG70: =IF(AW70>0,EBR_Master,0) -> 51 | DI70: =IF(AY70>0,WBU_Master,0) -> 0 | DM70: =WBT_Master + IF(BE70=0,WBR_Master)+ IF(AY58=0,WBU_Master) -> 204 | DO70: =IF(BE70>0,WBR_Master,0) -> 51
E72: Bowtie | V72: N-S | AE72: 1 | AG72: 1 | AM72: 1 | AO72: 1 | AU72: 1 | AW72: 1 | BC72: 1 | BE72: 1 | BO72: =E72 -> Bowtie | CF72: N-S | CM72: =NBL_Master -> 102 | CO72: =NBT_Master -> 510 | CQ72: =NBR_Master -> 204 | CW72: =SBT_Master -> 204 | CY72: =SBR_Master -> 51 | DC72: =EBL_Master -> 31 | DE72: =EBT_Master -> 204 | DG72: =EBR_Master -> 51 | DK72: =WBL_Master -> 31 | DM72: =WBT_Master -> 204 | DO72: =WBR_Master -> 51
V74: E-W | AE74: 1 | AG74: 1 | AM74: 1 | AO74: 1 | AU74: 1 | AW74: 1 | BC74: 1 | BE74: 1 | CF74: E-W | CM74: =NBL_Master -> 102 | CO74: =NBT_Master -> 510 | CQ74: =NBR_Master -> 204 | CW74: =SBT_Master -> 204 | CY74: =SBR_Master -> 51 | DC74: =EBL_Master -> 31 | DE74: =EBT_Master -> 204 | DG74: =EBR_Master -> 51 | DK74: =WBL_Master -> 31 | DM74: =WBT_Master -> 204 | DO74: =WBR_Master -> 51
E76: Split Intersection | V76: N-S | AA76: Use the respective intersection tab(s) to specify the # of lanes inputs. | BO76: =E76 -> Split Intersection | CF76: N-S | CM76: =NBL_Master -> 102 | CO76: =NBT_Master -> 510 | CQ76: =NBR_Master -> 204 | CW76: =SBT_Master -> 204 | CY76: =SBR_Master -> 51 | DC76: =EBL_Master -> 31 | DE76: =EBT_Master -> 204 | DG76: =EBR_Master -> 51 | DK76: =WBL_Master -> 31 | DM76: =WBT_Master -> 204 | DO76: =WBR_Master -> 51
V78: E-W | CF78: E-W | CM78: =NBL_Master -> 102 | CO78: =NBT_Master -> 510 | CQ78: =NBR_Master -> 204 | CW78: =SBT_Master -> 204 | CY78: =SBR_Master -> 51 | DC78: =EBL_Master -> 31 | DE78: =EBT_Master -> 204 | DG78: =EBR_Master -> 51 | DK78: =WBL_Master -> 31 | DM78: =WBT_Master -> 204 | DO78: =WBR_Master -> 51
E81: For shared lanes, enter "0" in L or R
E82: For AWSC enter number of approach lanes (1 or 2) for each approach.
B83: Capacity Analysis for Planning of Junctions Capacity Analysis for Planning of Junctions | BL83: Capacity Analysis for Planning of Junctions Capacity Analysis for Planning of Junctions
B85: Step 3 (Cont.) | BL85: Input Worksheet 2
E89: Number of Lanes for Grade Separated Intersections | BO89: Number of Lanes for Grade Separated Intersections
E91: TYPE OF INTERSECTION | V91: Sheet | AA91: Northbound | AI91: Southbound | AQ91: Eastbound | AY91: Westbound | BO91: TYPE OF INTERSECTION | CF91: Sheet | CK91: Northbound | CS91: Southbound | DA91: Eastbound | DI91: Westbound
AA93: U | AC93: L | AE93: T | AG93: R | AI93: U | AK93: L | AM93: T | AO93: R | AQ93: U | AS93: L | AU93: T | AW93: R | AY93: U | BA93: L | BC93: T | BE93: R | CK93: U | CM93: L | CO93: T | CQ93: R | CS93: U | CU93: L | CW93: T | CY93: R | DA93: U | DC93: L | DE93: T | DG93: R | DI93: U | DK93: L | DM93: T | DO93: R
E95: Echelon | V95: N-S | AC95: 1 | AE95: 2 | AG95: 1 | AK95: 1 | AM95: 2 | AO95: 1 | AS95: 1 | AU95: 2 | AW95: 1 | BA95: 1 | BC95: 2 | BE95: 1 | BO95: =E95 -> Echelon | CF95: N-S | CM95: =NBL_Master -> 102 | CO95: =NBT_Master + IF(AG95=0, NBR_Master,0) -> 510 | CQ95: =IF(AG95<>0, NBR_Master,0) -> 204 | CU95: =SBL_Master -> 31 | CW95: =SBT_Master + IF(AO95=0,SBR_Master,0) -> 204 | CY95: =IF(AO95<>0,SBR_Master,0) -> 51 | DC95: =EBL_Master -> 31 | DE95: =EBT_Master + IF(AW95=0,EBR_Master,0) -> 204 | DG95: =IF(AW95<>0,EBR_Master,0) -> 51 | DK95: =WBL_Master -> 31 | DM95: =WBT_Master + IF(BE95=0,WBR_Master,0) -> 204 | DO95: =IF(BE95<>0,WBR_Master,0) -> 51
V97: E-W | AC97: 1 | AE97: 2 | AG97: 1 | AK97: 1 | AM97: 2 | AO97: 1 | AS97: 1 | AU97: 2 | AW97: 1 | BA97: 1 | BC97: 2 | BE97: 1 | CF97: E-W | CM97: =NBL_Master -> 102 | CO97: =NBT_Master + IF(AG97=0, NBR_Master,0) -> 510 | CQ97: =IF(AG97<>0, NBR_Master,0) -> 204 | CU97: =SBL_Master -> 31 | CW97: =SBT_Master + IF(AO97=0,SBR_Master,0) -> 204 | CY97: =IF(AO97<>0,SBR_Master,0) -> 51 | DC97: =EBL_Master -> 31 | DE97: =EBT_Master + IF(AW97=0,EBR_Master,0) -> 204 | DG97: =IF(AW97<>0,EBR_Master,0) -> 51 | DK97: =WBL_Master -> 31 | DM97: =WBT_Master + IF(BE97=0,WBR_Master,0) -> 204 | DO97: =IF(BE97<>0,WBR_Master,0) -> 51
E99: Center Turn Overpass | V99: Full | AC99: 1 | AE99: 2 | AG99: 1 | AK99: 1 | AM99: 2 | AO99: 1 | AS99: 1 | AU99: 2 | AW99: 1 | BA99: 1 | BC99: 2 | BE99: 1 | BO99: =E99 -> Center Turn Overpass | CF99: Full | CM99: =NBL_Master -> 102 | CO99: =NBT_Master + IF(AG99=0, NBR_Master,0) -> 510 | CQ99: =IF(AG99<>0, NBR_Master,0) -> 204 | CU99: =SBL_Master -> 31 | CW99: =SBT_Master + IF(AO99=0,SBR_Master,0) -> 204 | CY99: =IF(AO99<>0,SBR_Master,0) -> 51 | DC99: =EBL_Master -> 31 | DE99: =EBT_Master + IF(AW99=0,EBR_Master,0) -> 204 | DG99: =IF(AW99<>0,EBR_Master,0) -> 51 | DK99: =WBL_Master -> 31 | DM99: =WBT_Master + IF(BE99=0,WBR_Master,0) -> 204 | DO99: =IF(BE99<>0,WBR_Master,0) -> 51
V101: E-W | CF101: E-W
E105: Number of Lanes for Interchanges
E107: TYPE OF INTERCHANGE | V107: Sheet | AA107: Northbound | AI107: Southbound | AQ107: Eastbound | AY107: Westbound
AA109: U | AC109: L | AE109: T | AG109: R | AI109: U | AK109: L | AM109: T | AO109: R | AQ109: U | AS109: L | AU109: T | AW109: R | AY109: U | BA109: L | BC109: T | BE109: R
E111: Diamond | V111: N-S | AC111: 1 | AE111: 2 | AG111: 1 | AK111: 1 | AM111: 2 | AO111: 1 | AS111: 1 | AU111: 2 | AW111: 1 | BA111: 1 | BC111: 2 | BE111: 1
V113: E-W | AC113: 1 | AE113: 2 | AG113: 1 | AK113: 1 | AM113: 2 | AO113: 1 | AS113: 1 | AU113: 2 | AW113: 1 | BA113: 1 | BC113: 2 | BE113: 1
E115: Partial Cloverleaf A | V115: N-S | AE115: 2 | AM115: 2 | AS115: 1 | AW115: 1 | BA115: 1 | BE115: 1
V117: E-W | AC117: 1 | AG117: 1 | AK117: 1 | AO117: 1 | AU117: 2 | BC117: 2
E119: Partial Cloverleaf B | V119: N-S | AC119: 1 | AE119: 2 | AG119: 1 | AK119: 1 | AM119: 2 | AO119: 1 | AS119: 1 | AW119: 1 | BA119: 1 | BE119: 1
V121: E-W | AC121: 1 | AG121: 1 | AK121: 1 | AO121: 1 | AS121: 1 | AU121: 2 | AW121: 1 | BA121: 1 | BC121: 2 | BE121: 1
E123: Displaced Left Turn | V123: N-S | AC123: 1 | AE123: 2 | AG123: 1 | AK123: 1 | AM123: 2 | AO123: 1 | AS123: 1 | AU123: 2 | AW123: 1 | BA123: 1 | BC123: 2 | BE123: 1
V125: E-W | AC125: 1 | AE125: 2 | AG125: 1 | AK125: 1 | AM125: 2 | AO125: 1 | AS125: 1 | AU125: 2 | AW125: 1 | BA125: 1 | BC125: 2 | BE125: 1
E127: Contraflow Left Interchange | V127: N-S | AC127: 1 | AE127: 2 | AG127: 1 | AK127: 1 | AM127: 2 | AO127: 1 | AS127: 1 | AW127: 1 | BA127: 1 | BE127: 1
V129: E-W | AC129: 1 | AG129: 1 | AK129: 1 | AO129: 1 | AS129: 1 | AU129: 2 | AW129: 1 | BA129: 1 | BC129: 2 | BE129: 1
E131: Diverging Diamond Interchange | V131: N-S | AC131: 1 | AE131: 2 | AG131: 1 | AK131: 1 | AM131: 2 | AO131: 1 | AS131: 1 | AW131: 1 | BA131: 1 | BE131: 1
V133: E-W | AC133: 1 | AG133: 1 | AK133: 1 | AO133: 1 | AS133: 1 | AU133: 2 | AW133: 1 | BA133: 1 | BC133: 2 | BE133: 1
E135: Single Point | V135: N-S | AC135: 1 | AE135: 2 | AG135: 1 | AK135: 1 | AM135: 2 | AO135: 1 | AS135: 1 | AU135: 2 | AW135: 1 | BA135: 1 | BC135: 2 | BE135: 1
V137: E-W | AC137: 1 | AE137: 2 | AG137: 1 | AK137: 1 | AM137: 2 | AO137: 1 | AS137: 1 | AU137: 2 | AW137: 1 | BA137: 1 | BC137: 2 | BE137: 1
E139: Single Point with Roundabout | V139: N-S | AA139: Use the respective intersection tab(s) to specify the # of lanes inputs.
V141: E-W

Sheet Multimodal Ped
A2: Capacity Analysis for Planning of Junctions
A4: Multimodal Intersection Configuration for Pedestrian Crossings
BR7: Scoring Ranges | CD7: Veh Speed | CN7: # Lanes Crossed
BR8: Excellent | BX8: 100 | BZ8: 80 | CD8: Stop / Signal | CJ8: 10 | CN8: 1 Lane | CV8: 10
BR9: Good | BX9: 79 | BZ9: 60 | CD9: <20mph | CJ9: 8 | CN9: 2 Lanes | CV9: 8
BR10: Fair | BX10: 59 | BZ10: 40 | CD10: 20-30mph | CJ10: 6 | CN10: 3+ Lanes | CV10: 6
BR11: Poor | BX11: 39 | BZ11: 0 | CD11: >30mph | CJ11: 4
A17: Pedestrian Crossing Configurations for Non-roundabout Intersections | GL17: Pedestrian Multimodal Scoring for Non-Roundabout Intersections
A19: DO NOT MODIFY THIS ROW | AD19: 1 | AI19: =AD19 -> 1 | AN19: 2 | AS19: =AN19 -> 2 | AX19: 3 | BC19: =AX19 -> 3 | BH19: 4 | BM19: =BH19 -> 4 | BR19: 5 | BW19: =BR19 -> 5 | CB19: 6 | CG19: =CB19 -> 6 | CL19: 7 | CQ19: =CL19 -> 7 | CV19: 8 | DA19: =CV19 -> 8 | DF19: 9 | DK19: =DF19 -> 9 | DP19: 10 | DU19: =DP19 -> 10 | DZ19: 11 | EE19: =DZ19 -> 11 | EJ19: 12 | EO19: =EJ19 -> 12 | ET19: 13 | EY19: =ET19 -> 13 | FD19: 14 | FI19: =FD19 -> 14 | FN19: 15 | FS19: =FN19 -> 15 | FX19: 16 | GC19: =FX19 -> 16
A20: TYPE OF INTERSECTION | T20: Sheet | Z20: # Of X-ings | AD20: Crossing #1 | AN20: Crossing #2 | AX20: Crossing #3 | BH20: Crossing #4 | BR20: Crossing #5 | CB20: Crossing #6 | CL20: Crossing #7 | CV20: Crossing #8 | DF20: Crossing #9 | DP20: Crossing #10 | DZ20: Crossing #11 | EJ20: Crossing #12 | ET20: Crossing #13 | FD20: Crossing #14 | FN20: Crossing #15 | FX20: Crossing #16 | GL20: Intx Scores | HA20: Individual Crossing Scores
AD22: # Lanes | AI22: Veh Speed | AN22: # Lanes | AS22: Veh Speed | AX22: # Lanes | BC22: Veh Speed | BH22: # Lanes | BM22: Veh Speed | BR22: # Lanes | BW22: Veh Speed | CB22: # Lanes | CG22: Veh Speed | CL22: # Lanes | CQ22: Veh Speed | CV22: # Lanes | DA22: Veh Speed | DF22: # Lanes | DK22: Veh Speed | DP22: # Lanes | DU22: Veh Speed | DZ22: # Lanes | EE22: Veh Speed | EJ22: # Lanes | EO22: Veh Speed | ET22: # Lanes | EY22: Veh Speed | FD22: # Lanes | FI22: Veh Speed | FN22: # Lanes | FS22: Veh Speed | FX22: # Lanes | GC22: Veh Speed | GL22: Report | GQ22: Worst | GV22: Avg | HA22: #1 | HK22: #2 | HU22: #3 | IE22: #4 | IO22: #5 | IY22: #6 | JI22: #7 | JS22: #8 | KC22: #9 | KM22: #10 | KW22: #11 | LG22: #12 | LQ22: #13 | MA22: #14 | MK22: #15 | MU22: #16
A24: ='3 - Alt Num Lanes Input'!E24 -> Traffic Signal | T24: FULL | Z24: 6 | AD24: 2 Lanes | AI24: Stop / Signal | AN24: 3+ Lanes | AS24: Stop / Signal | AX24: 2 Lanes | BC24: Stop / Signal | BH24: 2 Lanes | BM24: Stop / Signal | BR24: 2 Lanes | BW24: Stop / Signal | CB24: 2 Lanes | CG24: Stop / Signal | CL24: 2 Lanes | CQ24: <20mph | CV24: 2 Lanes | DA24: <20mph | DF24: 2 Lanes | DK24: <20mph | DP24: 2 Lanes | DU24: <20mph | DZ24: 2 Lanes | EE24: <20mph | EJ24: 2 Lanes | EO24: <20mph | ET24: 2 Lanes | EY24: <20mph | FD24: 2 Lanes | FI24: <20mph | FN24: 2 Lanes | FS24: <20mph | FX24: 2 Lanes | GC24: <20mph | GL24: =IF(GV24<=$BX$11,$BR$11,IF(GV24<=$BX$10,$BR$10,IF(GV24<=$BX$9,$BR$9,$BR$8))) -> Good | GQ24: =MIN(HA24:ND25) -> 60 | GV24: =AVERAGE(HA24:ND25) -> 76.66666667 | HA24: =IF(AD$19>$Z24,"--",IF(AD24=$CN$8,$CV$8,IF(AD24=$CN$9,$CV$9,$CV$10))*IF(AI24=$CD$8,$CJ$8,IF(AI24=$CD$9,$CJ$9,IF(AI24=$CD$10,$CJ$10,$CJ$11)))) -> 80 | HK24: =IF(AN$19>$Z24,"--",IF(AN24=$CN$8,$CV$8,IF(AN24=$CN$9,$CV$9,$CV$10))*IF(AS24=$CD$8,$CJ$8,IF(AS24=$CD$9,$CJ$9,IF(AS24=$CD$10,$CJ$10,$CJ$11)))) -> 60 | HU24: =IF(AX$19>$Z24,"--",IF(AX24=$CN$8,$CV$8,IF(AX24=$CN$9,$CV$9,$CV$10))*IF(BC24=$CD$8,$CJ$8,IF(BC24=$CD$9,$CJ$9,IF(BC24=$CD$10,$CJ$10,$CJ$11)))) -> 80 | IE24: =IF(BH$19>$Z24,"--",IF(BH24=$CN$8,$CV$8,IF(BH24=$CN$9,$CV$9,$CV$10))*IF(BM24=$CD$8,$CJ$8,IF(BM24=$CD$9,$CJ$9,IF(BM24=$CD$10,$CJ$10,$CJ$11)))) -> 80 | IO24: =IF(BR$19>$Z24,"--",IF(BR24=$CN$8,$CV$8,IF(BR24=$CN$9,$CV$9,$CV$10))*IF(BW24=$CD$8,$CJ$8,IF(BW24=$CD$9,$CJ$9,IF(BW24=$CD$10,$CJ$10,$CJ$11)))) -> 80 | IY24: =IF(CB$19>$Z24,"--",IF(CB24=$CN$8,$CV$8,IF(CB24=$CN$9,$CV$9,$CV$10))*IF(CG24=$CD$8,$CJ$8,IF(CG24=$CD$9,$CJ$9,IF(CG24=$CD$10,$CJ$10,$CJ$11)))) -> 80 | JI24: =IF(CL$19>$Z24,"--",IF(CL24=$CN$8,$CV$8,IF(CL24=$CN$9,$CV$9,$CV$10))*IF(CQ24=$CD$8,$CJ$8,IF(CQ24=$CD$9,$CJ$9,IF(CQ24=$CD$10,$CJ$10,$CJ$11)))) -> -- | JS24: =IF(CV$19>$Z24,"--",IF(CV24=$CN$8,$CV$8,IF(CV24=$CN$9,$CV$9,$CV$10))*IF(DA24=$CD$8,$CJ$8,IF(DA24=$CD$9,$CJ$9,IF(DA24=$CD$10,$CJ$10,$CJ$11)))) -> -- | KC24: =IF(DF$19>$Z24,"--",IF(DF24=$CN$8,$CV$8,IF(DF24=$CN$9,$CV$9,$CV$10))*IF(DK24=$CD$8,$CJ$8,IF(DK24=$CD$9,$CJ$9,IF(DK24=$CD$10,$CJ$10,$CJ$11)))) -> -- | KM24: =IF(DP$19>$Z24,"--",IF(DP24=$CN$8,$CV$8,IF(DP24=$CN$9,$CV$9,$CV$10))*IF(DU24=$CD$8,$CJ$8,IF(DU24=$CD$9,$CJ$9,IF(DU24=$CD$10,$CJ$10,$CJ$11)))) -> -- | KW24: =IF(DZ$19>$Z24,"--",IF(DZ24=$CN$8,$CV$8,IF(DZ24=$CN$9,$CV$9,$CV$10))*IF(EE24=$CD$8,$CJ$8,IF(EE24=$CD$9,$CJ$9,IF(EE24=$CD$10,$CJ$10,$CJ$11)))) -> -- | LG24: =IF(EJ$19>$Z24,"--",IF(EJ24=$CN$8,$CV$8,IF(EJ24=$CN$9,$CV$9,$CV$10))*IF(EO24=$CD$8,$CJ$8,IF(EO24=$CD$9,$CJ$9,IF(EO24=$CD$10,$CJ$10,$CJ$11)))) -> -- | LQ24: =IF(ET$19>$Z24,"--",IF(ET24=$CN$8,$CV$8,IF(ET24=$CN$9,$CV$9,$CV$10))*IF(EY24=$CD$8,$CJ$8,IF(EY24=$CD$9,$CJ$9,IF(EY24=$CD$10,$CJ$10,$CJ$11)))) -> -- | MA24: =IF(FD$19>$Z24,"--",IF(FD24=$CN$8,$CV$8,IF(FD24=$CN$9,$CV$9,$CV$10))*IF(FI24=$CD$8,$CJ$8,IF(FI24=$CD$9,$CJ$9,IF(FI24=$CD$10,$CJ$10,$CJ$11)))) -> -- | MK24: =IF(FN$19>$Z24,"--",IF(FN24=$CN$8,$CV$8,IF(FN24=$CN$9,$CV$9,$CV$10))*IF(FS24=$CD$8,$CJ$8,IF(FS24=$CD$9,$CJ$9,IF(FS24=$CD$10,$CJ$10,$CJ$11)))) -> -- | MU24: =IF(FX$19>$Z24,"--",IF(FX24=$CN$8,$CV$8,IF(FX24=$CN$9,$CV$9,$CV$10))*IF(GC24=$CD$8,$CJ$8,IF(GC24=$CD$9,$CJ$9,IF(GC24=$CD$10,$CJ$10,$CJ$11)))) -> --
A26: Conventional Shared RT LN | T26: CSRL | Z26: 4 | AD26: 2 Lanes | AI26: Stop / Signal | AN26: 2 Lanes | AS26: Stop / Signal | AX26: 2 Lanes | BC26: Stop / Signal | BH26: 2 Lanes | BM26: Stop / Signal | BR26: 2 Lanes | BW26: <20mph | CB26: 2 Lanes | CG26: <20mph | CL26: 2 Lanes | CQ26: <20mph | CV26: 2 Lanes | DA26: <20mph | DF26: 2 Lanes | DK26: <20mph | DP26: 2 Lanes | DU26: <20mph | DZ26: 2 Lanes | EE26: <20mph | EJ26: 2 Lanes | EO26: <20mph | ET26: 2 Lanes | EY26: <20mph | FD26: 2 Lanes | FI26: <20mph | FN26: 2 Lanes | FS26: <20mph | FX26: 2 Lanes | GC26: <20mph | GL26: =IF(GV26<=$BX$11,$BR$11,IF(GV26<=$BX$10,$BR$10,IF(GV26<=$BX$9,$BR$9,$BR$8))) -> Excellent | GQ26: =MIN(HA26:ND27) -> 80 | GV26: =AVERAGE(HA26:ND27) -> 80 | HA26: =IF(AD$19>$Z26,"--",IF(AD26=$CN$8,$CV$8,IF(AD26=$CN$9,$CV$9,$CV$10))*IF(AI26=$CD$8,$CJ$8,IF(AI26=$CD$9,$CJ$9,IF(AI26=$CD$10,$CJ$10,$CJ$11)))) -> 80 | HK26: =IF(AN$19>$Z26,"--",IF(AN26=$CN$8,$CV$8,IF(AN26=$CN$9,$CV$9,$CV$10))*IF(AS26=$CD$8,$CJ$8,IF(AS26=$CD$9,$CJ$9,IF(AS26=$CD$10,$CJ$10,$CJ$11)))) -> 80 | HU26: =IF(AX$19>$Z26,"--",IF(AX26=$CN$8,$CV$8,IF(AX26=$CN$9,$CV$9,$CV$10))*IF(BC26=$CD$8,$CJ$8,IF(BC26=$CD$9,$CJ$9,IF(BC26=$CD$10,$CJ$10,$CJ$11)))) -> 80 | IE26: =IF(BH$19>$Z26,"--",IF(BH26=$CN$8,$CV$8,IF(BH26=$CN$9,$CV$9,$CV$10))*IF(BM26=$CD$8,$CJ$8,IF(BM26=$CD$9,$CJ$9,IF(BM26=$CD$10,$CJ$10,$CJ$11)))) -> 80 | IO26: =IF(BR$19>$Z26,"--",IF(BR26=$CN$8,$CV$8,IF(BR26=$CN$9,$CV$9,$CV$10))*IF(BW26=$CD$8,$CJ$8,IF(BW26=$CD$9,$CJ$9,IF(BW26=$CD$10,$CJ$10,$CJ$11)))) -> -- | IY26: =IF(CB$19>$Z26,"--",IF(CB26=$CN$8,$CV$8,IF(CB26=$CN$9,$CV$9,$CV$10))*IF(CG26=$CD$8,$CJ$8,IF(CG26=$CD$9,$CJ$9,IF(CG26=$CD$10,$CJ$10,$CJ$11)))) -> -- | JI26: =IF(CL$19>$Z26,"--",IF(CL26=$CN$8,$CV$8,IF(CL26=$CN$9,$CV$9,$CV$10))*IF(CQ26=$CD$8,$CJ$8,IF(CQ26=$CD$9,$CJ$9,IF(CQ26=$CD$10,$CJ$10,$CJ$11)))) -> -- | JS26: =IF(CV$19>$Z26,"--",IF(CV26=$CN$8,$CV$8,IF(CV26=$CN$9,$CV$9,$CV$10))*IF(DA26=$CD$8,$CJ$8,IF(DA26=$CD$9,$CJ$9,IF(DA26=$CD$10,$CJ$10,$CJ$11)))) -> -- | KC26: =IF(DF$19>$Z26,"--",IF(DF26=$CN$8,$CV$8,IF(DF26=$CN$9,$CV$9,$CV$10))*IF(DK26=$CD$8,$CJ$8,IF(DK26=$CD$9,$CJ$9,IF(DK26=$CD$10,$CJ$10,$CJ$11)))) -> -- | KM26: =IF(DP$19>$Z26,"--",IF(DP26=$CN$8,$CV$8,IF(DP26=$CN$9,$CV$9,$CV$10))*IF(DU26=$CD$8,$CJ$8,IF(DU26=$CD$9,$CJ$9,IF(DU26=$CD$10,$CJ$10,$CJ$11)))) -> -- | KW26: =IF(DZ$19>$Z26,"--",IF(DZ26=$CN$8,$CV$8,IF(DZ26=$CN$9,$CV$9,$CV$10))*IF(EE26=$CD$8,$CJ$8,IF(EE26=$CD$9,$CJ$9,IF(EE26=$CD$10,$CJ$10,$CJ$11)))) -> -- | LG26: =IF(EJ$19>$Z26,"--",IF(EJ26=$CN$8,$CV$8,IF(EJ26=$CN$9,$CV$9,$CV$10))*IF(EO26=$CD$8,$CJ$8,IF(EO26=$CD$9,$CJ$9,IF(EO26=$CD$10,$CJ$10,$CJ$11)))) -> -- | LQ26: =IF(ET$19>$Z26,"--",IF(ET26=$CN$8,$CV$8,IF(ET26=$CN$9,$CV$9,$CV$10))*IF(EY26=$CD$8,$CJ$8,IF(EY26=$CD$9,$CJ$9,IF(EY26=$CD$10,$CJ$10,$CJ$11)))) -> -- | MA26: =IF(FD$19>$Z26,"--",IF(FD26=$CN$8,$CV$8,IF(FD26=$CN$9,$CV$9,$CV$10))*IF(FI26=$CD$8,$CJ$8,IF(FI26=$CD$9,$CJ$9,IF(FI26=$CD$10,$CJ$10,$CJ$11)))) -> -- | MK26: =IF(FN$19>$Z26,"--",IF(FN26=$CN$8,$CV$8,IF(FN26=$CN$9,$CV$9,$CV$10))*IF(FS26=$CD$8,$CJ$8,IF(FS26=$CD$9,$CJ$9,IF(FS26=$CD$10,$CJ$10,$CJ$11)))) -> -- | MU26: =IF(FX$19>$Z26,"--",IF(FX26=$CN$8,$CV$8,IF(FX26=$CN$9,$CV$9,$CV$10))*IF(GC26=$CD$8,$CJ$8,IF(GC26=$CD$9,$CJ$9,IF(GC26=$CD$10,$CJ$10,$CJ$11)))) -> --
A28: ='3 - Alt Num Lanes Input'!E28 -> Two-Way Stop Control | T28: N-S | Z28: 4 | AD28: 3+ Lanes | AI28: >30mph | AN28: 3+ Lanes | AS28: >30mph | AX28: 2 Lanes | BC28: Stop / Signal | BH28: 2 Lanes | BM28: Stop / Signal | BR28: 2 Lanes | BW28: <20mph | CB28: 2 Lanes | CG28: <20mph | CL28: 2 Lanes | CQ28: <20mph | CV28: 2 Lanes | DA28: <20mph | DF28: 2 Lanes | DK28: <20mph | DP28: 2 Lanes | DU28: <20mph | DZ28: 2 Lanes | EE28: <20mph | EJ28: 2 Lanes | EO28: <20mph | ET28: 2 Lanes | EY28: <20mph | FD28: 2 Lanes | FI28: <20mph | FN28: 2 Lanes | FS28: <20mph | FX28: 2 Lanes | GC28: <20mph | GL28: =IF(GV28<=$BX$11,$BR$11,IF(GV28<=$BX$10,$BR$10,IF(GV28<=$BX$9,$BR$9,$BR$8))) -> Fair | GQ28: =MIN(HA28:ND29) -> 24 | GV28: =AVERAGE(HA28:ND29) -> 52 | HA28: =IF(AD$19>$Z28,"--",IF(AD28=$CN$8,$CV$8,IF(AD28=$CN$9,$CV$9,$CV$10))*IF(AI28=$CD$8,$CJ$8,IF(AI28=$CD$9,$CJ$9,IF(AI28=$CD$10,$CJ$10,$CJ$11)))) -> 24 | HK28: =IF(AN$19>$Z28,"--",IF(AN28=$CN$8,$CV$8,IF(AN28=$CN$9,$CV$9,$CV$10))*IF(AS28=$CD$8,$CJ$8,IF(AS28=$CD$9,$CJ$9,IF(AS28=$CD$10,$CJ$10,$CJ$11)))) -> 24 | HU28: =IF(AX$19>$Z28,"--",IF(AX28=$CN$8,$CV$8,IF(AX28=$CN$9,$CV$9,$CV$10))*IF(BC28=$CD$8,$CJ$8,IF(BC28=$CD$9,$CJ$9,IF(BC28=$CD$10,$CJ$10,$CJ$11)))) -> 80 | IE28: =IF(BH$19>$Z28,"--",IF(BH28=$CN$8,$CV$8,IF(BH28=$CN$9,$CV$9,$CV$10))*IF(BM28=$CD$8,$CJ$8,IF(BM28=$CD$9,$CJ$9,IF(BM28=$CD$10,$CJ$10,$CJ$11)))) -> 80 | IO28: =IF(BR$19>$Z28,"--",IF(BR28=$CN$8,$CV$8,IF(BR28=$CN$9,$CV$9,$CV$10))*IF(BW28=$CD$8,$CJ$8,IF(BW28=$CD$9,$CJ$9,IF(BW28=$CD$10,$CJ$10,$CJ$11)))) -> -- | IY28: =IF(CB$19>$Z28,"--",IF(CB28=$CN$8,$CV$8,IF(CB28=$CN$9,$CV$9,$CV$10))*IF(CG28=$CD$8,$CJ$8,IF(CG28=$CD$9,$CJ$9,IF(CG28=$CD$10,$CJ$10,$CJ$11)))) -> -- | JI28: =IF(CL$19>$Z28,"--",IF(CL28=$CN$8,$CV$8,IF(CL28=$CN$9,$CV$9,$CV$10))*IF(CQ28=$CD$8,$CJ$8,IF(CQ28=$CD$9,$CJ$9,IF(CQ28=$CD$10,$CJ$10,$CJ$11)))) -> -- | JS28: =IF(CV$19>$Z28,"--",IF(CV28=$CN$8,$CV$8,IF(CV28=$CN$9,$CV$9,$CV$10))*IF(DA28=$CD$8,$CJ$8,IF(DA28=$CD$9,$CJ$9,IF(DA28=$CD$10,$CJ$10,$CJ$11)))) -> -- | KC28: =IF(DF$19>$Z28,"--",IF(DF28=$CN$8,$CV$8,IF(DF28=$CN$9,$CV$9,$CV$10))*IF(DK28=$CD$8,$CJ$8,IF(DK28=$CD$9,$CJ$9,IF(DK28=$CD$10,$CJ$10,$CJ$11)))) -> -- | KM28: =IF(DP$19>$Z28,"--",IF(DP28=$CN$8,$CV$8,IF(DP28=$CN$9,$CV$9,$CV$10))*IF(DU28=$CD$8,$CJ$8,IF(DU28=$CD$9,$CJ$9,IF(DU28=$CD$10,$CJ$10,$CJ$11)))) -> -- | KW28: =IF(DZ$19>$Z28,"--",IF(DZ28=$CN$8,$CV$8,IF(DZ28=$CN$9,$CV$9,$CV$10))*IF(EE28=$CD$8,$CJ$8,IF(EE28=$CD$9,$CJ$9,IF(EE28=$CD$10,$CJ$10,$CJ$11)))) -> -- | LG28: =IF(EJ$19>$Z28,"--",IF(EJ28=$CN$8,$CV$8,IF(EJ28=$CN$9,$CV$9,$CV$10))*IF(EO28=$CD$8,$CJ$8,IF(EO28=$CD$9,$CJ$9,IF(EO28=$CD$10,$CJ$10,$CJ$11)))) -> -- | LQ28: =IF(ET$19>$Z28,"--",IF(ET28=$CN$8,$CV$8,IF(ET28=$CN$9,$CV$9,$CV$10))*IF(EY28=$CD$8,$CJ$8,IF(EY28=$CD$9,$CJ$9,IF(EY28=$CD$10,$CJ$10,$CJ$11)))) -> -- | MA28: =IF(FD$19>$Z28,"--",IF(FD28=$CN$8,$CV$8,IF(FD28=$CN$9,$CV$9,$CV$10))*IF(FI28=$CD$8,$CJ$8,IF(FI28=$CD$9,$CJ$9,IF(FI28=$CD$10,$CJ$10,$CJ$11)))) -> -- | MK28: =IF(FN$19>$Z28,"--",IF(FN28=$CN$8,$CV$8,IF(FN28=$CN$9,$CV$9,$CV$10))*IF(FS28=$CD$8,$CJ$8,IF(FS28=$CD$9,$CJ$9,IF(FS28=$CD$10,$CJ$10,$CJ$11)))) -> -- | MU28: =IF(FX$19>$Z28,"--",IF(FX28=$CN$8,$CV$8,IF(FX28=$CN$9,$CV$9,$CV$10))*IF(GC28=$CD$8,$CJ$8,IF(GC28=$CD$9,$CJ$9,IF(GC28=$CD$10,$CJ$10,$CJ$11)))) -> --
T30: E-W | Z30: 4 | AD30: 3+ Lanes | AI30: >30mph | AN30: 3+ Lanes | AS30: >30mph | AX30: 2 Lanes | BC30: Stop / Signal | BH30: 2 Lanes | BM30: Stop / Signal | BR30: 2 Lanes | BW30: <20mph | CB30: 2 Lanes | CG30: <20mph | CL30: 2 Lanes | CQ30: <20mph | CV30: 2 Lanes | DA30: <20mph | DF30: 2 Lanes | DK30: <20mph | DP30: 2 Lanes | DU30: <20mph | DZ30: 2 Lanes | EE30: <20mph | EJ30: 2 Lanes | EO30: <20mph | ET30: 2 Lanes | EY30: <20mph | FD30: 2 Lanes | FI30: <20mph | FN30: 2 Lanes | FS30: <20mph | FX30: 2 Lanes | GC30: <20mph | GL30: =IF(GV30<=$BX$11,$BR$11,IF(GV30<=$BX$10,$BR$10,IF(GV30<=$BX$9,$BR$9,$BR$8))) -> Fair | GQ30: =MIN(HA30:ND31) -> 24 | GV30: =AVERAGE(HA30:ND31) -> 52 | HA30: =IF(AD$19>$Z30,"--",IF(AD30=$CN$8,$CV$8,IF(AD30=$CN$9,$CV$9,$CV$10))*IF(AI30=$CD$8,$CJ$8,IF(AI30=$CD$9,$CJ$9,IF(AI30=$CD$10,$CJ$10,$CJ$11)))) -> 24 | HK30: =IF(AN$19>$Z30,"--",IF(AN30=$CN$8,$CV$8,IF(AN30=$CN$9,$CV$9,$CV$10))*IF(AS30=$CD$8,$CJ$8,IF(AS30=$CD$9,$CJ$9,IF(AS30=$CD$10,$CJ$10,$CJ$11)))) -> 24 | HU30: =IF(AX$19>$Z30,"--",IF(AX30=$CN$8,$CV$8,IF(AX30=$CN$9,$CV$9,$CV$10))*IF(BC30=$CD$8,$CJ$8,IF(BC30=$CD$9,$CJ$9,IF(BC30=$CD$10,$CJ$10,$CJ$11)))) -> 80 | IE30: =IF(BH$19>$Z30,"--",IF(BH30=$CN$8,$CV$8,IF(BH30=$CN$9,$CV$9,$CV$10))*IF(BM30=$CD$8,$CJ$8,IF(BM30=$CD$9,$CJ$9,IF(BM30=$CD$10,$CJ$10,$CJ$11)))) -> 80 | IO30: =IF(BR$19>$Z30,"--",IF(BR30=$CN$8,$CV$8,IF(BR30=$CN$9,$CV$9,$CV$10))*IF(BW30=$CD$8,$CJ$8,IF(BW30=$CD$9,$CJ$9,IF(BW30=$CD$10,$CJ$10,$CJ$11)))) -> -- | IY30: =IF(CB$19>$Z30,"--",IF(CB30=$CN$8,$CV$8,IF(CB30=$CN$9,$CV$9,$CV$10))*IF(CG30=$CD$8,$CJ$8,IF(CG30=$CD$9,$CJ$9,IF(CG30=$CD$10,$CJ$10,$CJ$11)))) -> -- | JI30: =IF(CL$19>$Z30,"--",IF(CL30=$CN$8,$CV$8,IF(CL30=$CN$9,$CV$9,$CV$10))*IF(CQ30=$CD$8,$CJ$8,IF(CQ30=$CD$9,$CJ$9,IF(CQ30=$CD$10,$CJ$10,$CJ$11)))) -> -- | JS30: =IF(CV$19>$Z30,"--",IF(CV30=$CN$8,$CV$8,IF(CV30=$CN$9,$CV$9,$CV$10))*IF(DA30=$CD$8,$CJ$8,IF(DA30=$CD$9,$CJ$9,IF(DA30=$CD$10,$CJ$10,$CJ$11)))) -> -- | KC30: =IF(DF$19>$Z30,"--",IF(DF30=$CN$8,$CV$8,IF(DF30=$CN$9,$CV$9,$CV$10))*IF(DK30=$CD$8,$CJ$8,IF(DK30=$CD$9,$CJ$9,IF(DK30=$CD$10,$CJ$10,$CJ$11)))) -> -- | KM30: =IF(DP$19>$Z30,"--",IF(DP30=$CN$8,$CV$8,IF(DP30=$CN$9,$CV$9,$CV$10))*IF(DU30=$CD$8,$CJ$8,IF(DU30=$CD$9,$CJ$9,IF(DU30=$CD$10,$CJ$10,$CJ$11)))) -> -- | KW30: =IF(DZ$19>$Z30,"--",IF(DZ30=$CN$8,$CV$8,IF(DZ30=$CN$9,$CV$9,$CV$10))*IF(EE30=$CD$8,$CJ$8,IF(EE30=$CD$9,$CJ$9,IF(EE30=$CD$10,$CJ$10,$CJ$11)))) -> -- | LG30: =IF(EJ$19>$Z30,"--",IF(EJ30=$CN$8,$CV$8,IF(EJ30=$CN$9,$CV$9,$CV$10))*IF(EO30=$CD$8,$CJ$8,IF(EO30=$CD$9,$CJ$9,IF(EO30=$CD$10,$CJ$10,$CJ$11)))) -> -- | LQ30: =IF(ET$19>$Z30,"--",IF(ET30=$CN$8,$CV$8,IF(ET30=$CN$9,$CV$9,$CV$10))*IF(EY30=$CD$8,$CJ$8,IF(EY30=$CD$9,$CJ$9,IF(EY30=$CD$10,$CJ$10,$CJ$11)))) -> -- | MA30: =IF(FD$19>$Z30,"--",IF(FD30=$CN$8,$CV$8,IF(FD30=$CN$9,$CV$9,$CV$10))*IF(FI30=$CD$8,$CJ$8,IF(FI30=$CD$9,$CJ$9,IF(FI30=$CD$10,$CJ$10,$CJ$11)))) -> -- | MK30: =IF(FN$19>$Z30,"--",IF(FN30=$CN$8,$CV$8,IF(FN30=$CN$9,$CV$9,$CV$10))*IF(FS30=$CD$8,$CJ$8,IF(FS30=$CD$9,$CJ$9,IF(FS30=$CD$10,$CJ$10,$CJ$11)))) -> -- | MU30: =IF(FX$19>$Z30,"--",IF(FX30=$CN$8,$CV$8,IF(FX30=$CN$9,$CV$9,$CV$10))*IF(GC30=$CD$8,$CJ$8,IF(GC30=$CD$9,$CJ$9,IF(GC30=$CD$10,$CJ$10,$CJ$11)))) -> --
A32: All-Way Stop Control | T32: FULL | Z32: 4 | AD32: 2 Lanes | AI32: <20mph | AN32: 2 Lanes | AS32: <20mph | AX32: 2 Lanes | BC32: <20mph | BH32: 2 Lanes | BM32: <20mph | BR32: 2 Lanes | BW32: <20mph | CB32: 2 Lanes | CG32: <20mph | CL32: 2 Lanes | CQ32: <20mph | CV32: 2 Lanes | DA32: <20mph | DF32: 2 Lanes | DK32: <20mph | DP32: 2 Lanes | DU32: <20mph | DZ32: 2 Lanes | EE32: <20mph | EJ32: 2 Lanes | EO32: <20mph | ET32: 2 Lanes | EY32: <20mph | FD32: 2 Lanes | FI32: <20mph | FN32: 2 Lanes | FS32: <20mph | FX32: 2 Lanes | GC32: <20mph | GL32: =IF(GV32<=$BX$11,$BR$11,IF(GV32<=$BX$10,$BR$10,IF(GV32<=$BX$9,$BR$9,$BR$8))) -> Good | GQ32: =MIN(HA32:ND33) -> 64 | GV32: =AVERAGE(HA32:ND33) -> 64 | HA32: =IF(AD$19>$Z32,"--",IF(AD32=$CN$8,$CV$8,IF(AD32=$CN$9,$CV$9,$CV$10))*IF(AI32=$CD$8,$CJ$8,IF(AI32=$CD$9,$CJ$9,IF(AI32=$CD$10,$CJ$10,$CJ$11)))) -> 64 | HK32: =IF(AN$19>$Z32,"--",IF(AN32=$CN$8,$CV$8,IF(AN32=$CN$9,$CV$9,$CV$10))*IF(AS32=$CD$8,$CJ$8,IF(AS32=$CD$9,$CJ$9,IF(AS32=$CD$10,$CJ$10,$CJ$11)))) -> 64 | HU32: =IF(AX$19>$Z32,"--",IF(AX32=$CN$8,$CV$8,IF(AX32=$CN$9,$CV$9,$CV$10))*IF(BC32=$CD$8,$CJ$8,IF(BC32=$CD$9,$CJ$9,IF(BC32=$CD$10,$CJ$10,$CJ$11)))) -> 64 | IE32: =IF(BH$19>$Z32,"--",IF(BH32=$CN$8,$CV$8,IF(BH32=$CN$9,$CV$9,$CV$10))*IF(BM32=$CD$8,$CJ$8,IF(BM32=$CD$9,$CJ$9,IF(BM32=$CD$10,$CJ$10,$CJ$11)))) -> 64 | IO32: =IF(BR$19>$Z32,"--",IF(BR32=$CN$8,$CV$8,IF(BR32=$CN$9,$CV$9,$CV$10))*IF(BW32=$CD$8,$CJ$8,IF(BW32=$CD$9,$CJ$9,IF(BW32=$CD$10,$CJ$10,$CJ$11)))) -> -- | IY32: =IF(CB$19>$Z32,"--",IF(CB32=$CN$8,$CV$8,IF(CB32=$CN$9,$CV$9,$CV$10))*IF(CG32=$CD$8,$CJ$8,IF(CG32=$CD$9,$CJ$9,IF(CG32=$CD$10,$CJ$10,$CJ$11)))) -> -- | JI32: =IF(CL$19>$Z32,"--",IF(CL32=$CN$8,$CV$8,IF(CL32=$CN$9,$CV$9,$CV$10))*IF(CQ32=$CD$8,$CJ$8,IF(CQ32=$CD$9,$CJ$9,IF(CQ32=$CD$10,$CJ$10,$CJ$11)))) -> -- | JS32: =IF(CV$19>$Z32,"--",IF(CV32=$CN$8,$CV$8,IF(CV32=$CN$9,$CV$9,$CV$10))*IF(DA32=$CD$8,$CJ$8,IF(DA32=$CD$9,$CJ$9,IF(DA32=$CD$10,$CJ$10,$CJ$11)))) -> -- | KC32: =IF(DF$19>$Z32,"--",IF(DF32=$CN$8,$CV$8,IF(DF32=$CN$9,$CV$9,$CV$10))*IF(DK32=$CD$8,$CJ$8,IF(DK32=$CD$9,$CJ$9,IF(DK32=$CD$10,$CJ$10,$CJ$11)))) -> -- | KM32: =IF(DP$19>$Z32,"--",IF(DP32=$CN$8,$CV$8,IF(DP32=$CN$9,$CV$9,$CV$10))*IF(DU32=$CD$8,$CJ$8,IF(DU32=$CD$9,$CJ$9,IF(DU32=$CD$10,$CJ$10,$CJ$11)))) -> -- | KW32: =IF(DZ$19>$Z32,"--",IF(DZ32=$CN$8,$CV$8,IF(DZ32=$CN$9,$CV$9,$CV$10))*IF(EE32=$CD$8,$CJ$8,IF(EE32=$CD$9,$CJ$9,IF(EE32=$CD$10,$CJ$10,$CJ$11)))) -> -- | LG32: =IF(EJ$19>$Z32,"--",IF(EJ32=$CN$8,$CV$8,IF(EJ32=$CN$9,$CV$9,$CV$10))*IF(EO32=$CD$8,$CJ$8,IF(EO32=$CD$9,$CJ$9,IF(EO32=$CD$10,$CJ$10,$CJ$11)))) -> -- | LQ32: =IF(ET$19>$Z32,"--",IF(ET32=$CN$8,$CV$8,IF(ET32=$CN$9,$CV$9,$CV$10))*IF(EY32=$CD$8,$CJ$8,IF(EY32=$CD$9,$CJ$9,IF(EY32=$CD$10,$CJ$10,$CJ$11)))) -> -- | MA32: =IF(FD$19>$Z32,"--",IF(FD32=$CN$8,$CV$8,IF(FD32=$CN$9,$CV$9,$CV$10))*IF(FI32=$CD$8,$CJ$8,IF(FI32=$CD$9,$CJ$9,IF(FI32=$CD$10,$CJ$10,$CJ$11)))) -> -- | MK32: =IF(FN$19>$Z32,"--",IF(FN32=$CN$8,$CV$8,IF(FN32=$CN$9,$CV$9,$CV$10))*IF(FS32=$CD$8,$CJ$8,IF(FS32=$CD$9,$CJ$9,IF(FS32=$CD$10,$CJ$10,$CJ$11)))) -> -- | MU32: =IF(FX$19>$Z32,"--",IF(FX32=$CN$8,$CV$8,IF(FX32=$CN$9,$CV$9,$CV$10))*IF(GC32=$CD$8,$CJ$8,IF(GC32=$CD$9,$CJ$9,IF(GC32=$CD$10,$CJ$10,$CJ$11)))) -> --
A34: Continuous Green T | T34: W | Z34: 6 | AD34: 2 Lanes | AI34: <20mph | AN34: 2 Lanes | AS34: <20mph | AX34: 2 Lanes | BC34: <20mph | BH34: 2 Lanes | BM34: <20mph | BR34: 2 Lanes | BW34: <20mph | CB34: 2 Lanes | CG34: <20mph | CL34: 2 Lanes | CQ34: <20mph | CV34: 2 Lanes | DA34: <20mph | DF34: 2 Lanes | DK34: <20mph | DP34: 2 Lanes | DU34: <20mph | DZ34: 2 Lanes | EE34: <20mph | EJ34: 2 Lanes | EO34: <20mph | ET34: 2 Lanes | EY34: <20mph | FD34: 2 Lanes | FI34: <20mph | FN34: 2 Lanes | FS34: <20mph | FX34: 2 Lanes | GC34: <20mph | GL34: =IF(GV34<=$BX$11,$BR$11,IF(GV34<=$BX$10,$BR$10,IF(GV34<=$BX$9,$BR$9,$BR$8))) -> Good | GQ34: =MIN(HA34:ND35) -> 64 | GV34: =AVERAGE(HA34:ND35) -> 64 | HA34: =IF(AD$19>$Z34,"--",IF(AD34=$CN$8,$CV$8,IF(AD34=$CN$9,$CV$9,$CV$10))*IF(AI34=$CD$8,$CJ$8,IF(AI34=$CD$9,$CJ$9,IF(AI34=$CD$10,$CJ$10,$CJ$11)))) -> 64 | HK34: =IF(AN$19>$Z34,"--",IF(AN34=$CN$8,$CV$8,IF(AN34=$CN$9,$CV$9,$CV$10))*IF(AS34=$CD$8,$CJ$8,IF(AS34=$CD$9,$CJ$9,IF(AS34=$CD$10,$CJ$10,$CJ$11)))) -> 64 | HU34: =IF(AX$19>$Z34,"--",IF(AX34=$CN$8,$CV$8,IF(AX34=$CN$9,$CV$9,$CV$10))*IF(BC34=$CD$8,$CJ$8,IF(BC34=$CD$9,$CJ$9,IF(BC34=$CD$10,$CJ$10,$CJ$11)))) -> 64 | IE34: =IF(BH$19>$Z34,"--",IF(BH34=$CN$8,$CV$8,IF(BH34=$CN$9,$CV$9,$CV$10))*IF(BM34=$CD$8,$CJ$8,IF(BM34=$CD$9,$CJ$9,IF(BM34=$CD$10,$CJ$10,$CJ$11)))) -> 64 | IO34: =IF(BR$19>$Z34,"--",IF(BR34=$CN$8,$CV$8,IF(BR34=$CN$9,$CV$9,$CV$10))*IF(BW34=$CD$8,$CJ$8,IF(BW34=$CD$9,$CJ$9,IF(BW34=$CD$10,$CJ$10,$CJ$11)))) -> 64 | IY34: =IF(CB$19>$Z34,"--",IF(CB34=$CN$8,$CV$8,IF(CB34=$CN$9,$CV$9,$CV$10))*IF(CG34=$CD$8,$CJ$8,IF(CG34=$CD$9,$CJ$9,IF(CG34=$CD$10,$CJ$10,$CJ$11)))) -> 64 | JI34: =IF(CL$19>$Z34,"--",IF(CL34=$CN$8,$CV$8,IF(CL34=$CN$9,$CV$9,$CV$10))*IF(CQ34=$CD$8,$CJ$8,IF(CQ34=$CD$9,$CJ$9,IF(CQ34=$CD$10,$CJ$10,$CJ$11)))) -> -- | JS34: =IF(CV$19>$Z34,"--",IF(CV34=$CN$8,$CV$8,IF(CV34=$CN$9,$CV$9,$CV$10))*IF(DA34=$CD$8,$CJ$8,IF(DA34=$CD$9,$CJ$9,IF(DA34=$CD$10,$CJ$10,$CJ$11)))) -> -- | KC34: =IF(DF$19>$Z34,"--",IF(DF34=$CN$8,$CV$8,IF(DF34=$CN$9,$CV$9,$CV$10))*IF(DK34=$CD$8,$CJ$8,IF(DK34=$CD$9,$CJ$9,IF(DK34=$CD$10,$CJ$10,$CJ$11)))) -> -- | KM34: =IF(DP$19>$Z34,"--",IF(DP34=$CN$8,$CV$8,IF(DP34=$CN$9,$CV$9,$CV$10))*IF(DU34=$CD$8,$CJ$8,IF(DU34=$CD$9,$CJ$9,IF(DU34=$CD$10,$CJ$10,$CJ$11)))) -> -- | KW34: =IF(DZ$19>$Z34,"--",IF(DZ34=$CN$8,$CV$8,IF(DZ34=$CN$9,$CV$9,$CV$10))*IF(EE34=$CD$8,$CJ$8,IF(EE34=$CD$9,$CJ$9,IF(EE34=$CD$10,$CJ$10,$CJ$11)))) -> -- | LG34: =IF(EJ$19>$Z34,"--",IF(EJ34=$CN$8,$CV$8,IF(EJ34=$CN$9,$CV$9,$CV$10))*IF(EO34=$CD$8,$CJ$8,IF(EO34=$CD$9,$CJ$9,IF(EO34=$CD$10,$CJ$10,$CJ$11)))) -> -- | LQ34: =IF(ET$19>$Z34,"--",IF(ET34=$CN$8,$CV$8,IF(ET34=$CN$9,$CV$9,$CV$10))*IF(EY34=$CD$8,$CJ$8,IF(EY34=$CD$9,$CJ$9,IF(EY34=$CD$10,$CJ$10,$CJ$11)))) -> -- | MA34: =IF(FD$19>$Z34,"--",IF(FD34=$CN$8,$CV$8,IF(FD34=$CN$9,$CV$9,$CV$10))*IF(FI34=$CD$8,$CJ$8,IF(FI34=$CD$9,$CJ$9,IF(FI34=$CD$10,$CJ$10,$CJ$11)))) -> -- | MK34: =IF(FN$19>$Z34,"--",IF(FN34=$CN$8,$CV$8,IF(FN34=$CN$9,$CV$9,$CV$10))*IF(FS34=$CD$8,$CJ$8,IF(FS34=$CD$9,$CJ$9,IF(FS34=$CD$10,$CJ$10,$CJ$11)))) -> -- | MU34: =IF(FX$19>$Z34,"--",IF(FX34=$CN$8,$CV$8,IF(FX34=$CN$9,$CV$9,$CV$10))*IF(GC34=$CD$8,$CJ$8,IF(GC34=$CD$9,$CJ$9,IF(GC34=$CD$10,$CJ$10,$CJ$11)))) -> --
T36: N | Z36: 6 | AD36: 2 Lanes | AI36: <20mph | AN36: 2 Lanes | AS36: <20mph | AX36: 2 Lanes | BC36: <20mph | BH36: 2 Lanes | BM36: <20mph | BR36: 2 Lanes | BW36: <20mph | CB36: 2 Lanes | CG36: <20mph | CL36: 2 Lanes | CQ36: <20mph | CV36: 2 Lanes | DA36: <20mph | DF36: 2 Lanes | DK36: <20mph | DP36: 2 Lanes | DU36: <20mph | DZ36: 2 Lanes | EE36: <20mph | EJ36: 2 Lanes | EO36: <20mph | ET36: 2 Lanes | EY36: <20mph | FD36: 2 Lanes | FI36: <20mph | FN36: 2 Lanes | FS36: <20mph | FX36: 2 Lanes | GC36: <20mph | GL36: =IF(GV36<=$BX$11,$BR$11,IF(GV36<=$BX$10,$BR$10,IF(GV36<=$BX$9,$BR$9,$BR$8))) -> Good | GQ36: =MIN(HA36:ND37) -> 64 | GV36: =AVERAGE(HA36:ND37) -> 64 | HA36: =IF(AD$19>$Z36,"--",IF(AD36=$CN$8,$CV$8,IF(AD36=$CN$9,$CV$9,$CV$10))*IF(AI36=$CD$8,$CJ$8,IF(AI36=$CD$9,$CJ$9,IF(AI36=$CD$10,$CJ$10,$CJ$11)))) -> 64 | HK36: =IF(AN$19>$Z36,"--",IF(AN36=$CN$8,$CV$8,IF(AN36=$CN$9,$CV$9,$CV$10))*IF(AS36=$CD$8,$CJ$8,IF(AS36=$CD$9,$CJ$9,IF(AS36=$CD$10,$CJ$10,$CJ$11)))) -> 64 | HU36: =IF(AX$19>$Z36,"--",IF(AX36=$CN$8,$CV$8,IF(AX36=$CN$9,$CV$9,$CV$10))*IF(BC36=$CD$8,$CJ$8,IF(BC36=$CD$9,$CJ$9,IF(BC36=$CD$10,$CJ$10,$CJ$11)))) -> 64 | IE36: =IF(BH$19>$Z36,"--",IF(BH36=$CN$8,$CV$8,IF(BH36=$CN$9,$CV$9,$CV$10))*IF(BM36=$CD$8,$CJ$8,IF(BM36=$CD$9,$CJ$9,IF(BM36=$CD$10,$CJ$10,$CJ$11)))) -> 64 | IO36: =IF(BR$19>$Z36,"--",IF(BR36=$CN$8,$CV$8,IF(BR36=$CN$9,$CV$9,$CV$10))*IF(BW36=$CD$8,$CJ$8,IF(BW36=$CD$9,$CJ$9,IF(BW36=$CD$10,$CJ$10,$CJ$11)))) -> 64 | IY36: =IF(CB$19>$Z36,"--",IF(CB36=$CN$8,$CV$8,IF(CB36=$CN$9,$CV$9,$CV$10))*IF(CG36=$CD$8,$CJ$8,IF(CG36=$CD$9,$CJ$9,IF(CG36=$CD$10,$CJ$10,$CJ$11)))) -> 64 | JI36: =IF(CL$19>$Z36,"--",IF(CL36=$CN$8,$CV$8,IF(CL36=$CN$9,$CV$9,$CV$10))*IF(CQ36=$CD$8,$CJ$8,IF(CQ36=$CD$9,$CJ$9,IF(CQ36=$CD$10,$CJ$10,$CJ$11)))) -> -- | JS36: =IF(CV$19>$Z36,"--",IF(CV36=$CN$8,$CV$8,IF(CV36=$CN$9,$CV$9,$CV$10))*IF(DA36=$CD$8,$CJ$8,IF(DA36=$CD$9,$CJ$9,IF(DA36=$CD$10,$CJ$10,$CJ$11)))) -> -- | KC36: =IF(DF$19>$Z36,"--",IF(DF36=$CN$8,$CV$8,IF(DF36=$CN$9,$CV$9,$CV$10))*IF(DK36=$CD$8,$CJ$8,IF(DK36=$CD$9,$CJ$9,IF(DK36=$CD$10,$CJ$10,$CJ$11)))) -> -- | KM36: =IF(DP$19>$Z36,"--",IF(DP36=$CN$8,$CV$8,IF(DP36=$CN$9,$CV$9,$CV$10))*IF(DU36=$CD$8,$CJ$8,IF(DU36=$CD$9,$CJ$9,IF(DU36=$CD$10,$CJ$10,$CJ$11)))) -> -- | KW36: =IF(DZ$19>$Z36,"--",IF(DZ36=$CN$8,$CV$8,IF(DZ36=$CN$9,$CV$9,$CV$10))*IF(EE36=$CD$8,$CJ$8,IF(EE36=$CD$9,$CJ$9,IF(EE36=$CD$10,$CJ$10,$CJ$11)))) -> -- | LG36: =IF(EJ$19>$Z36,"--",IF(EJ36=$CN$8,$CV$8,IF(EJ36=$CN$9,$CV$9,$CV$10))*IF(EO36=$CD$8,$CJ$8,IF(EO36=$CD$9,$CJ$9,IF(EO36=$CD$10,$CJ$10,$CJ$11)))) -> -- | LQ36: =IF(ET$19>$Z36,"--",IF(ET36=$CN$8,$CV$8,IF(ET36=$CN$9,$CV$9,$CV$10))*IF(EY36=$CD$8,$CJ$8,IF(EY36=$CD$9,$CJ$9,IF(EY36=$CD$10,$CJ$10,$CJ$11)))) -> -- | MA36: =IF(FD$19>$Z36,"--",IF(FD36=$CN$8,$CV$8,IF(FD36=$CN$9,$CV$9,$CV$10))*IF(FI36=$CD$8,$CJ$8,IF(FI36=$CD$9,$CJ$9,IF(FI36=$CD$10,$CJ$10,$CJ$11)))) -> -- | MK36: =IF(FN$19>$Z36,"--",IF(FN36=$CN$8,$CV$8,IF(FN36=$CN$9,$CV$9,$CV$10))*IF(FS36=$CD$8,$CJ$8,IF(FS36=$CD$9,$CJ$9,IF(FS36=$CD$10,$CJ$10,$CJ$11)))) -> -- | MU36: =IF(FX$19>$Z36,"--",IF(FX36=$CN$8,$CV$8,IF(FX36=$CN$9,$CV$9,$CV$10))*IF(GC36=$CD$8,$CJ$8,IF(GC36=$CD$9,$CJ$9,IF(GC36=$CD$10,$CJ$10,$CJ$11)))) -> --
T38: E | Z38: 6 | AD38: 2 Lanes | AI38: <20mph | AN38: 2 Lanes | AS38: <20mph | AX38: 2 Lanes | BC38: <20mph | BH38: 2 Lanes | BM38: <20mph | BR38: 2 Lanes | BW38: <20mph | CB38: 2 Lanes | CG38: <20mph | CL38: 2 Lanes | CQ38: <20mph | CV38: 2 Lanes | DA38: <20mph | DF38: 2 Lanes | DK38: <20mph | DP38: 2 Lanes | DU38: <20mph | DZ38: 2 Lanes | EE38: <20mph | EJ38: 2 Lanes | EO38: <20mph | ET38: 2 Lanes | EY38: <20mph | FD38: 2 Lanes | FI38: <20mph | FN38: 2 Lanes | FS38: <20mph | FX38: 2 Lanes | GC38: <20mph | GL38: =IF(GV38<=$BX$11,$BR$11,IF(GV38<=$BX$10,$BR$10,IF(GV38<=$BX$9,$BR$9,$BR$8))) -> Good | GQ38: =MIN(HA38:ND39) -> 64 | GV38: =AVERAGE(HA38:ND39) -> 64 | HA38: =IF(AD$19>$Z38,"--",IF(AD38=$CN$8,$CV$8,IF(AD38=$CN$9,$CV$9,$CV$10))*IF(AI38=$CD$8,$CJ$8,IF(AI38=$CD$9,$CJ$9,IF(AI38=$CD$10,$CJ$10,$CJ$11)))) -> 64 | HK38: =IF(AN$19>$Z38,"--",IF(AN38=$CN$8,$CV$8,IF(AN38=$CN$9,$CV$9,$CV$10))*IF(AS38=$CD$8,$CJ$8,IF(AS38=$CD$9,$CJ$9,IF(AS38=$CD$10,$CJ$10,$CJ$11)))) -> 64 | HU38: =IF(AX$19>$Z38,"--",IF(AX38=$CN$8,$CV$8,IF(AX38=$CN$9,$CV$9,$CV$10))*IF(BC38=$CD$8,$CJ$8,IF(BC38=$CD$9,$CJ$9,IF(BC38=$CD$10,$CJ$10,$CJ$11)))) -> 64 | IE38: =IF(BH$19>$Z38,"--",IF(BH38=$CN$8,$CV$8,IF(BH38=$CN$9,$CV$9,$CV$10))*IF(BM38=$CD$8,$CJ$8,IF(BM38=$CD$9,$CJ$9,IF(BM38=$CD$10,$CJ$10,$CJ$11)))) -> 64 | IO38: =IF(BR$19>$Z38,"--",IF(BR38=$CN$8,$CV$8,IF(BR38=$CN$9,$CV$9,$CV$10))*IF(BW38=$CD$8,$CJ$8,IF(BW38=$CD$9,$CJ$9,IF(BW38=$CD$10,$CJ$10,$CJ$11)))) -> 64 | IY38: =IF(CB$19>$Z38,"--",IF(CB38=$CN$8,$CV$8,IF(CB38=$CN$9,$CV$9,$CV$10))*IF(CG38=$CD$8,$CJ$8,IF(CG38=$CD$9,$CJ$9,IF(CG38=$CD$10,$CJ$10,$CJ$11)))) -> 64 | JI38: =IF(CL$19>$Z38,"--",IF(CL38=$CN$8,$CV$8,IF(CL38=$CN$9,$CV$9,$CV$10))*IF(CQ38=$CD$8,$CJ$8,IF(CQ38=$CD$9,$CJ$9,IF(CQ38=$CD$10,$CJ$10,$CJ$11)))) -> -- | JS38: =IF(CV$19>$Z38,"--",IF(CV38=$CN$8,$CV$8,IF(CV38=$CN$9,$CV$9,$CV$10))*IF(DA38=$CD$8,$CJ$8,IF(DA38=$CD$9,$CJ$9,IF(DA38=$CD$10,$CJ$10,$CJ$11)))) -> -- | KC38: =IF(DF$19>$Z38,"--",IF(DF38=$CN$8,$CV$8,IF(DF38=$CN$9,$CV$9,$CV$10))*IF(DK38=$CD$8,$CJ$8,IF(DK38=$CD$9,$CJ$9,IF(DK38=$CD$10,$CJ$10,$CJ$11)))) -> -- | KM38: =IF(DP$19>$Z38,"--",IF(DP38=$CN$8,$CV$8,IF(DP38=$CN$9,$CV$9,$CV$10))*IF(DU38=$CD$8,$CJ$8,IF(DU38=$CD$9,$CJ$9,IF(DU38=$CD$10,$CJ$10,$CJ$11)))) -> -- | KW38: =IF(DZ$19>$Z38,"--",IF(DZ38=$CN$8,$CV$8,IF(DZ38=$CN$9,$CV$9,$CV$10))*IF(EE38=$CD$8,$CJ$8,IF(EE38=$CD$9,$CJ$9,IF(EE38=$CD$10,$CJ$10,$CJ$11)))) -> -- | LG38: =IF(EJ$19>$Z38,"--",IF(EJ38=$CN$8,$CV$8,IF(EJ38=$CN$9,$CV$9,$CV$10))*IF(EO38=$CD$8,$CJ$8,IF(EO38=$CD$9,$CJ$9,IF(EO38=$CD$10,$CJ$10,$CJ$11)))) -> -- | LQ38: =IF(ET$19>$Z38,"--",IF(ET38=$CN$8,$CV$8,IF(ET38=$CN$9,$CV$9,$CV$10))*IF(EY38=$CD$8,$CJ$8,IF(EY38=$CD$9,$CJ$9,IF(EY38=$CD$10,$CJ$10,$CJ$11)))) -> -- | MA38: =IF(FD$19>$Z38,"--",IF(FD38=$CN$8,$CV$8,IF(FD38=$CN$9,$CV$9,$CV$10))*IF(FI38=$CD$8,$CJ$8,IF(FI38=$CD$9,$CJ$9,IF(FI38=$CD$10,$CJ$10,$CJ$11)))) -> -- | MK38: =IF(FN$19>$Z38,"--",IF(FN38=$CN$8,$CV$8,IF(FN38=$CN$9,$CV$9,$CV$10))*IF(FS38=$CD$8,$CJ$8,IF(FS38=$CD$9,$CJ$9,IF(FS38=$CD$10,$CJ$10,$CJ$11)))) -> -- | MU38: =IF(FX$19>$Z38,"--",IF(FX38=$CN$8,$CV$8,IF(FX38=$CN$9,$CV$9,$CV$10))*IF(GC38=$CD$8,$CJ$8,IF(GC38=$CD$9,$CJ$9,IF(GC38=$CD$10,$CJ$10,$CJ$11)))) -> --
T40: S | Z40: 6 | AD40: 2 Lanes | AI40: <20mph | AN40: 2 Lanes | AS40: <20mph | AX40: 2 Lanes | BC40: <20mph | BH40: 2 Lanes | BM40: <20mph | BR40: 2 Lanes | BW40: <20mph | CB40: 2 Lanes | CG40: <20mph | CL40: 2 Lanes | CQ40: <20mph | CV40: 2 Lanes | DA40: <20mph | DF40: 2 Lanes | DK40: <20mph | DP40: 2 Lanes | DU40: <20mph | DZ40: 2 Lanes | EE40: <20mph | EJ40: 2 Lanes | EO40: <20mph | ET40: 2 Lanes | EY40: <20mph | FD40: 2 Lanes | FI40: <20mph | FN40: 2 Lanes | FS40: <20mph | FX40: 2 Lanes | GC40: <20mph | GL40: =IF(GV40<=$BX$11,$BR$11,IF(GV40<=$BX$10,$BR$10,IF(GV40<=$BX$9,$BR$9,$BR$8))) -> Good | GQ40: =MIN(HA40:ND41) -> 64 | GV40: =AVERAGE(HA40:ND41) -> 64 | HA40: =IF(AD$19>$Z40,"--",IF(AD40=$CN$8,$CV$8,IF(AD40=$CN$9,$CV$9,$CV$10))*IF(AI40=$CD$8,$CJ$8,IF(AI40=$CD$9,$CJ$9,IF(AI40=$CD$10,$CJ$10,$CJ$11)))) -> 64 | HK40: =IF(AN$19>$Z40,"--",IF(AN40=$CN$8,$CV$8,IF(AN40=$CN$9,$CV$9,$CV$10))*IF(AS40=$CD$8,$CJ$8,IF(AS40=$CD$9,$CJ$9,IF(AS40=$CD$10,$CJ$10,$CJ$11)))) -> 64 | HU40: =IF(AX$19>$Z40,"--",IF(AX40=$CN$8,$CV$8,IF(AX40=$CN$9,$CV$9,$CV$10))*IF(BC40=$CD$8,$CJ$8,IF(BC40=$CD$9,$CJ$9,IF(BC40=$CD$10,$CJ$10,$CJ$11)))) -> 64 | IE40: =IF(BH$19>$Z40,"--",IF(BH40=$CN$8,$CV$8,IF(BH40=$CN$9,$CV$9,$CV$10))*IF(BM40=$CD$8,$CJ$8,IF(BM40=$CD$9,$CJ$9,IF(BM40=$CD$10,$CJ$10,$CJ$11)))) -> 64 | IO40: =IF(BR$19>$Z40,"--",IF(BR40=$CN$8,$CV$8,IF(BR40=$CN$9,$CV$9,$CV$10))*IF(BW40=$CD$8,$CJ$8,IF(BW40=$CD$9,$CJ$9,IF(BW40=$CD$10,$CJ$10,$CJ$11)))) -> 64 | IY40: =IF(CB$19>$Z40,"--",IF(CB40=$CN$8,$CV$8,IF(CB40=$CN$9,$CV$9,$CV$10))*IF(CG40=$CD$8,$CJ$8,IF(CG40=$CD$9,$CJ$9,IF(CG40=$CD$10,$CJ$10,$CJ$11)))) -> 64 | JI40: =IF(CL$19>$Z40,"--",IF(CL40=$CN$8,$CV$8,IF(CL40=$CN$9,$CV$9,$CV$10))*IF(CQ40=$CD$8,$CJ$8,IF(CQ40=$CD$9,$CJ$9,IF(CQ40=$CD$10,$CJ$10,$CJ$11)))) -> -- | JS40: =IF(CV$19>$Z40,"--",IF(CV40=$CN$8,$CV$8,IF(CV40=$CN$9,$CV$9,$CV$10))*IF(DA40=$CD$8,$CJ$8,IF(DA40=$CD$9,$CJ$9,IF(DA40=$CD$10,$CJ$10,$CJ$11)))) -> -- | KC40: =IF(DF$19>$Z40,"--",IF(DF40=$CN$8,$CV$8,IF(DF40=$CN$9,$CV$9,$CV$10))*IF(DK40=$CD$8,$CJ$8,IF(DK40=$CD$9,$CJ$9,IF(DK40=$CD$10,$CJ$10,$CJ$11)))) -> -- | KM40: =IF(DP$19>$Z40,"--",IF(DP40=$CN$8,$CV$8,IF(DP40=$CN$9,$CV$9,$CV$10))*IF(DU40=$CD$8,$CJ$8,IF(DU40=$CD$9,$CJ$9,IF(DU40=$CD$10,$CJ$10,$CJ$11)))) -> -- | KW40: =IF(DZ$19>$Z40,"--",IF(DZ40=$CN$8,$CV$8,IF(DZ40=$CN$9,$CV$9,$CV$10))*IF(EE40=$CD$8,$CJ$8,IF(EE40=$CD$9,$CJ$9,IF(EE40=$CD$10,$CJ$10,$CJ$11)))) -> -- | LG40: =IF(EJ$19>$Z40,"--",IF(EJ40=$CN$8,$CV$8,IF(EJ40=$CN$9,$CV$9,$CV$10))*IF(EO40=$CD$8,$CJ$8,IF(EO40=$CD$9,$CJ$9,IF(EO40=$CD$10,$CJ$10,$CJ$11)))) -> -- | LQ40: =IF(ET$19>$Z40,"--",IF(ET40=$CN$8,$CV$8,IF(ET40=$CN$9,$CV$9,$CV$10))*IF(EY40=$CD$8,$CJ$8,IF(EY40=$CD$9,$CJ$9,IF(EY40=$CD$10,$CJ$10,$CJ$11)))) -> -- | MA40: =IF(FD$19>$Z40,"--",IF(FD40=$CN$8,$CV$8,IF(FD40=$CN$9,$CV$9,$CV$10))*IF(FI40=$CD$8,$CJ$8,IF(FI40=$CD$9,$CJ$9,IF(FI40=$CD$10,$CJ$10,$CJ$11)))) -> -- | MK40: =IF(FN$19>$Z40,"--",IF(FN40=$CN$8,$CV$8,IF(FN40=$CN$9,$CV$9,$CV$10))*IF(FS40=$CD$8,$CJ$8,IF(FS40=$CD$9,$CJ$9,IF(FS40=$CD$10,$CJ$10,$CJ$11)))) -> -- | MU40: =IF(FX$19>$Z40,"--",IF(FX40=$CN$8,$CV$8,IF(FX40=$CN$9,$CV$9,$CV$10))*IF(GC40=$CD$8,$CJ$8,IF(GC40=$CD$9,$CJ$9,IF(GC40=$CD$10,$CJ$10,$CJ$11)))) -> --
A42: Quadrant Roadway | T42: S-W | Z42: 6 | AD42: 2 Lanes | AI42: <20mph | AN42: 2 Lanes | AS42: <20mph | AX42: 2 Lanes | BC42: <20mph | BH42: 2 Lanes | BM42: <20mph | BR42: 2 Lanes | BW42: <20mph | CB42: 2 Lanes | CG42: <20mph | CL42: 2 Lanes | CQ42: <20mph | CV42: 2 Lanes | DA42: <20mph | DF42: 2 Lanes | DK42: <20mph | DP42: 2 Lanes | DU42: <20mph | DZ42: 2 Lanes | EE42: <20mph | EJ42: 2 Lanes | EO42: <20mph | ET42: 2 Lanes | EY42: <20mph | FD42: 2 Lanes | FI42: <20mph | FN42: 2 Lanes | FS42: <20mph | FX42: 2 Lanes | GC42: <20mph | GL42: =IF(GV42<=$BX$11,$BR$11,IF(GV42<=$BX$10,$BR$10,IF(GV42<=$BX$9,$BR$9,$BR$8))) -> Good | GQ42: =MIN(HA42:ND43) -> 64 | GV42: =AVERAGE(HA42:ND43) -> 64 | HA42: =IF(AD$19>$Z42,"--",IF(AD42=$CN$8,$CV$8,IF(AD42=$CN$9,$CV$9,$CV$10))*IF(AI42=$CD$8,$CJ$8,IF(AI42=$CD$9,$CJ$9,IF(AI42=$CD$10,$CJ$10,$CJ$11)))) -> 64 | HK42: =IF(AN$19>$Z42,"--",IF(AN42=$CN$8,$CV$8,IF(AN42=$CN$9,$CV$9,$CV$10))*IF(AS42=$CD$8,$CJ$8,IF(AS42=$CD$9,$CJ$9,IF(AS42=$CD$10,$CJ$10,$CJ$11)))) -> 64 | HU42: =IF(AX$19>$Z42,"--",IF(AX42=$CN$8,$CV$8,IF(AX42=$CN$9,$CV$9,$CV$10))*IF(BC42=$CD$8,$CJ$8,IF(BC42=$CD$9,$CJ$9,IF(BC42=$CD$10,$CJ$10,$CJ$11)))) -> 64 | IE42: =IF(BH$19>$Z42,"--",IF(BH42=$CN$8,$CV$8,IF(BH42=$CN$9,$CV$9,$CV$10))*IF(BM42=$CD$8,$CJ$8,IF(BM42=$CD$9,$CJ$9,IF(BM42=$CD$10,$CJ$10,$CJ$11)))) -> 64 | IO42: =IF(BR$19>$Z42,"--",IF(BR42=$CN$8,$CV$8,IF(BR42=$CN$9,$CV$9,$CV$10))*IF(BW42=$CD$8,$CJ$8,IF(BW42=$CD$9,$CJ$9,IF(BW42=$CD$10,$CJ$10,$CJ$11)))) -> 64 | IY42: =IF(CB$19>$Z42,"--",IF(CB42=$CN$8,$CV$8,IF(CB42=$CN$9,$CV$9,$CV$10))*IF(CG42=$CD$8,$CJ$8,IF(CG42=$CD$9,$CJ$9,IF(CG42=$CD$10,$CJ$10,$CJ$11)))) -> 64 | JI42: =IF(CL$19>$Z42,"--",IF(CL42=$CN$8,$CV$8,IF(CL42=$CN$9,$CV$9,$CV$10))*IF(CQ42=$CD$8,$CJ$8,IF(CQ42=$CD$9,$CJ$9,IF(CQ42=$CD$10,$CJ$10,$CJ$11)))) -> -- | JS42: =IF(CV$19>$Z42,"--",IF(CV42=$CN$8,$CV$8,IF(CV42=$CN$9,$CV$9,$CV$10))*IF(DA42=$CD$8,$CJ$8,IF(DA42=$CD$9,$CJ$9,IF(DA42=$CD$10,$CJ$10,$CJ$11)))) -> -- | KC42: =IF(DF$19>$Z42,"--",IF(DF42=$CN$8,$CV$8,IF(DF42=$CN$9,$CV$9,$CV$10))*IF(DK42=$CD$8,$CJ$8,IF(DK42=$CD$9,$CJ$9,IF(DK42=$CD$10,$CJ$10,$CJ$11)))) -> -- | KM42: =IF(DP$19>$Z42,"--",IF(DP42=$CN$8,$CV$8,IF(DP42=$CN$9,$CV$9,$CV$10))*IF(DU42=$CD$8,$CJ$8,IF(DU42=$CD$9,$CJ$9,IF(DU42=$CD$10,$CJ$10,$CJ$11)))) -> -- | KW42: =IF(DZ$19>$Z42,"--",IF(DZ42=$CN$8,$CV$8,IF(DZ42=$CN$9,$CV$9,$CV$10))*IF(EE42=$CD$8,$CJ$8,IF(EE42=$CD$9,$CJ$9,IF(EE42=$CD$10,$CJ$10,$CJ$11)))) -> -- | LG42: =IF(EJ$19>$Z42,"--",IF(EJ42=$CN$8,$CV$8,IF(EJ42=$CN$9,$CV$9,$CV$10))*IF(EO42=$CD$8,$CJ$8,IF(EO42=$CD$9,$CJ$9,IF(EO42=$CD$10,$CJ$10,$CJ$11)))) -> -- | LQ42: =IF(ET$19>$Z42,"--",IF(ET42=$CN$8,$CV$8,IF(ET42=$CN$9,$CV$9,$CV$10))*IF(EY42=$CD$8,$CJ$8,IF(EY42=$CD$9,$CJ$9,IF(EY42=$CD$10,$CJ$10,$CJ$11)))) -> -- | MA42: =IF(FD$19>$Z42,"--",IF(FD42=$CN$8,$CV$8,IF(FD42=$CN$9,$CV$9,$CV$10))*IF(FI42=$CD$8,$CJ$8,IF(FI42=$CD$9,$CJ$9,IF(FI42=$CD$10,$CJ$10,$CJ$11)))) -> -- | MK42: =IF(FN$19>$Z42,"--",IF(FN42=$CN$8,$CV$8,IF(FN42=$CN$9,$CV$9,$CV$10))*IF(FS42=$CD$8,$CJ$8,IF(FS42=$CD$9,$CJ$9,IF(FS42=$CD$10,$CJ$10,$CJ$11)))) -> -- | MU42: =IF(FX$19>$Z42,"--",IF(FX42=$CN$8,$CV$8,IF(FX42=$CN$9,$CV$9,$CV$10))*IF(GC42=$CD$8,$CJ$8,IF(GC42=$CD$9,$CJ$9,IF(GC42=$CD$10,$CJ$10,$CJ$11)))) -> --
T44: N-E | Z44: 6 | AD44: 2 Lanes | AI44: <20mph | AN44: 2 Lanes | AS44: <20mph | AX44: 2 Lanes | BC44: <20mph | BH44: 2 Lanes | BM44: <20mph | BR44: 2 Lanes | BW44: <20mph | CB44: 2 Lanes | CG44: <20mph | CL44: 2 Lanes | CQ44: <20mph | CV44: 2 Lanes | DA44: <20mph | DF44: 2 Lanes | DK44: <20mph | DP44: 2 Lanes | DU44: <20mph | DZ44: 2 Lanes | EE44: <20mph | EJ44: 2 Lanes | EO44: <20mph | ET44: 2 Lanes | EY44: <20mph | FD44: 2 Lanes | FI44: <20mph | FN44: 2 Lanes | FS44: <20mph | FX44: 2 Lanes | GC44: <20mph | GL44: =IF(GV44<=$BX$11,$BR$11,IF(GV44<=$BX$10,$BR$10,IF(GV44<=$BX$9,$BR$9,$BR$8))) -> Good | GQ44: =MIN(HA44:ND45) -> 64 | GV44: =AVERAGE(HA44:ND45) -> 64 | HA44: =IF(AD$19>$Z44,"--",IF(AD44=$CN$8,$CV$8,IF(AD44=$CN$9,$CV$9,$CV$10))*IF(AI44=$CD$8,$CJ$8,IF(AI44=$CD$9,$CJ$9,IF(AI44=$CD$10,$CJ$10,$CJ$11)))) -> 64 | HK44: =IF(AN$19>$Z44,"--",IF(AN44=$CN$8,$CV$8,IF(AN44=$CN$9,$CV$9,$CV$10))*IF(AS44=$CD$8,$CJ$8,IF(AS44=$CD$9,$CJ$9,IF(AS44=$CD$10,$CJ$10,$CJ$11)))) -> 64 | HU44: =IF(AX$19>$Z44,"--",IF(AX44=$CN$8,$CV$8,IF(AX44=$CN$9,$CV$9,$CV$10))*IF(BC44=$CD$8,$CJ$8,IF(BC44=$CD$9,$CJ$9,IF(BC44=$CD$10,$CJ$10,$CJ$11)))) -> 64 | IE44: =IF(BH$19>$Z44,"--",IF(BH44=$CN$8,$CV$8,IF(BH44=$CN$9,$CV$9,$CV$10))*IF(BM44=$CD$8,$CJ$8,IF(BM44=$CD$9,$CJ$9,IF(BM44=$CD$10,$CJ$10,$CJ$11)))) -> 64 | IO44: =IF(BR$19>$Z44,"--",IF(BR44=$CN$8,$CV$8,IF(BR44=$CN$9,$CV$9,$CV$10))*IF(BW44=$CD$8,$CJ$8,IF(BW44=$CD$9,$CJ$9,IF(BW44=$CD$10,$CJ$10,$CJ$11)))) -> 64 | IY44: =IF(CB$19>$Z44,"--",IF(CB44=$CN$8,$CV$8,IF(CB44=$CN$9,$CV$9,$CV$10))*IF(CG44=$CD$8,$CJ$8,IF(CG44=$CD$9,$CJ$9,IF(CG44=$CD$10,$CJ$10,$CJ$11)))) -> 64 | JI44: =IF(CL$19>$Z44,"--",IF(CL44=$CN$8,$CV$8,IF(CL44=$CN$9,$CV$9,$CV$10))*IF(CQ44=$CD$8,$CJ$8,IF(CQ44=$CD$9,$CJ$9,IF(CQ44=$CD$10,$CJ$10,$CJ$11)))) -> -- | JS44: =IF(CV$19>$Z44,"--",IF(CV44=$CN$8,$CV$8,IF(CV44=$CN$9,$CV$9,$CV$10))*IF(DA44=$CD$8,$CJ$8,IF(DA44=$CD$9,$CJ$9,IF(DA44=$CD$10,$CJ$10,$CJ$11)))) -> -- | KC44: =IF(DF$19>$Z44,"--",IF(DF44=$CN$8,$CV$8,IF(DF44=$CN$9,$CV$9,$CV$10))*IF(DK44=$CD$8,$CJ$8,IF(DK44=$CD$9,$CJ$9,IF(DK44=$CD$10,$CJ$10,$CJ$11)))) -> -- | KM44: =IF(DP$19>$Z44,"--",IF(DP44=$CN$8,$CV$8,IF(DP44=$CN$9,$CV$9,$CV$10))*IF(DU44=$CD$8,$CJ$8,IF(DU44=$CD$9,$CJ$9,IF(DU44=$CD$10,$CJ$10,$CJ$11)))) -> -- | KW44: =IF(DZ$19>$Z44,"--",IF(DZ44=$CN$8,$CV$8,IF(DZ44=$CN$9,$CV$9,$CV$10))*IF(EE44=$CD$8,$CJ$8,IF(EE44=$CD$9,$CJ$9,IF(EE44=$CD$10,$CJ$10,$CJ$11)))) -> -- | LG44: =IF(EJ$19>$Z44,"--",IF(EJ44=$CN$8,$CV$8,IF(EJ44=$CN$9,$CV$9,$CV$10))*IF(EO44=$CD$8,$CJ$8,IF(EO44=$CD$9,$CJ$9,IF(EO44=$CD$10,$CJ$10,$CJ$11)))) -> -- | LQ44: =IF(ET$19>$Z44,"--",IF(ET44=$CN$8,$CV$8,IF(ET44=$CN$9,$CV$9,$CV$10))*IF(EY44=$CD$8,$CJ$8,IF(EY44=$CD$9,$CJ$9,IF(EY44=$CD$10,$CJ$10,$CJ$11)))) -> -- | MA44: =IF(FD$19>$Z44,"--",IF(FD44=$CN$8,$CV$8,IF(FD44=$CN$9,$CV$9,$CV$10))*IF(FI44=$CD$8,$CJ$8,IF(FI44=$CD$9,$CJ$9,IF(FI44=$CD$10,$CJ$10,$CJ$11)))) -> -- | MK44: =IF(FN$19>$Z44,"--",IF(FN44=$CN$8,$CV$8,IF(FN44=$CN$9,$CV$9,$CV$10))*IF(FS44=$CD$8,$CJ$8,IF(FS44=$CD$9,$CJ$9,IF(FS44=$CD$10,$CJ$10,$CJ$11)))) -> -- | MU44: =IF(FX$19>$Z44,"--",IF(FX44=$CN$8,$CV$8,IF(FX44=$CN$9,$CV$9,$CV$10))*IF(GC44=$CD$8,$CJ$8,IF(GC44=$CD$9,$CJ$9,IF(GC44=$CD$10,$CJ$10,$CJ$11)))) -> --
T46: S-E | Z46: 6 | AD46: 2 Lanes | AI46: <20mph | AN46: 2 Lanes | AS46: <20mph | AX46: 2 Lanes | BC46: <20mph | BH46: 2 Lanes | BM46: <20mph | BR46: 2 Lanes | BW46: <20mph | CB46: 2 Lanes | CG46: <20mph | CL46: 2 Lanes | CQ46: <20mph | CV46: 2 Lanes | DA46: <20mph | DF46: 2 Lanes | DK46: <20mph | DP46: 2 Lanes | DU46: <20mph | DZ46: 2 Lanes | EE46: <20mph | EJ46: 2 Lanes | EO46: <20mph | ET46: 2 Lanes | EY46: <20mph | FD46: 2 Lanes | FI46: <20mph | FN46: 2 Lanes | FS46: <20mph | FX46: 2 Lanes | GC46: <20mph | GL46: =IF(GV46<=$BX$11,$BR$11,IF(GV46<=$BX$10,$BR$10,IF(GV46<=$BX$9,$BR$9,$BR$8))) -> Good | GQ46: =MIN(HA46:ND47) -> 64 | GV46: =AVERAGE(HA46:ND47) -> 64 | HA46: =IF(AD$19>$Z46,"--",IF(AD46=$CN$8,$CV$8,IF(AD46=$CN$9,$CV$9,$CV$10))*IF(AI46=$CD$8,$CJ$8,IF(AI46=$CD$9,$CJ$9,IF(AI46=$CD$10,$CJ$10,$CJ$11)))) -> 64 | HK46: =IF(AN$19>$Z46,"--",IF(AN46=$CN$8,$CV$8,IF(AN46=$CN$9,$CV$9,$CV$10))*IF(AS46=$CD$8,$CJ$8,IF(AS46=$CD$9,$CJ$9,IF(AS46=$CD$10,$CJ$10,$CJ$11)))) -> 64 | HU46: =IF(AX$19>$Z46,"--",IF(AX46=$CN$8,$CV$8,IF(AX46=$CN$9,$CV$9,$CV$10))*IF(BC46=$CD$8,$CJ$8,IF(BC46=$CD$9,$CJ$9,IF(BC46=$CD$10,$CJ$10,$CJ$11)))) -> 64 | IE46: =IF(BH$19>$Z46,"--",IF(BH46=$CN$8,$CV$8,IF(BH46=$CN$9,$CV$9,$CV$10))*IF(BM46=$CD$8,$CJ$8,IF(BM46=$CD$9,$CJ$9,IF(BM46=$CD$10,$CJ$10,$CJ$11)))) -> 64 | IO46: =IF(BR$19>$Z46,"--",IF(BR46=$CN$8,$CV$8,IF(BR46=$CN$9,$CV$9,$CV$10))*IF(BW46=$CD$8,$CJ$8,IF(BW46=$CD$9,$CJ$9,IF(BW46=$CD$10,$CJ$10,$CJ$11)))) -> 64 | IY46: =IF(CB$19>$Z46,"--",IF(CB46=$CN$8,$CV$8,IF(CB46=$CN$9,$CV$9,$CV$10))*IF(CG46=$CD$8,$CJ$8,IF(CG46=$CD$9,$CJ$9,IF(CG46=$CD$10,$CJ$10,$CJ$11)))) -> 64 | JI46: =IF(CL$19>$Z46,"--",IF(CL46=$CN$8,$CV$8,IF(CL46=$CN$9,$CV$9,$CV$10))*IF(CQ46=$CD$8,$CJ$8,IF(CQ46=$CD$9,$CJ$9,IF(CQ46=$CD$10,$CJ$10,$CJ$11)))) -> -- | JS46: =IF(CV$19>$Z46,"--",IF(CV46=$CN$8,$CV$8,IF(CV46=$CN$9,$CV$9,$CV$10))*IF(DA46=$CD$8,$CJ$8,IF(DA46=$CD$9,$CJ$9,IF(DA46=$CD$10,$CJ$10,$CJ$11)))) -> -- | KC46: =IF(DF$19>$Z46,"--",IF(DF46=$CN$8,$CV$8,IF(DF46=$CN$9,$CV$9,$CV$10))*IF(DK46=$CD$8,$CJ$8,IF(DK46=$CD$9,$CJ$9,IF(DK46=$CD$10,$CJ$10,$CJ$11)))) -> -- | KM46: =IF(DP$19>$Z46,"--",IF(DP46=$CN$8,$CV$8,IF(DP46=$CN$9,$CV$9,$CV$10))*IF(DU46=$CD$8,$CJ$8,IF(DU46=$CD$9,$CJ$9,IF(DU46=$CD$10,$CJ$10,$CJ$11)))) -> -- | KW46: =IF(DZ$19>$Z46,"--",IF(DZ46=$CN$8,$CV$8,IF(DZ46=$CN$9,$CV$9,$CV$10))*IF(EE46=$CD$8,$CJ$8,IF(EE46=$CD$9,$CJ$9,IF(EE46=$CD$10,$CJ$10,$CJ$11)))) -> -- | LG46: =IF(EJ$19>$Z46,"--",IF(EJ46=$CN$8,$CV$8,IF(EJ46=$CN$9,$CV$9,$CV$10))*IF(EO46=$CD$8,$CJ$8,IF(EO46=$CD$9,$CJ$9,IF(EO46=$CD$10,$CJ$10,$CJ$11)))) -> -- | LQ46: =IF(ET$19>$Z46,"--",IF(ET46=$CN$8,$CV$8,IF(ET46=$CN$9,$CV$9,$CV$10))*IF(EY46=$CD$8,$CJ$8,IF(EY46=$CD$9,$CJ$9,IF(EY46=$CD$10,$CJ$10,$CJ$11)))) -> -- | MA46: =IF(FD$19>$Z46,"--",IF(FD46=$CN$8,$CV$8,IF(FD46=$CN$9,$CV$9,$CV$10))*IF(FI46=$CD$8,$CJ$8,IF(FI46=$CD$9,$CJ$9,IF(FI46=$CD$10,$CJ$10,$CJ$11)))) -> -- | MK46: =IF(FN$19>$Z46,"--",IF(FN46=$CN$8,$CV$8,IF(FN46=$CN$9,$CV$9,$CV$10))*IF(FS46=$CD$8,$CJ$8,IF(FS46=$CD$9,$CJ$9,IF(FS46=$CD$10,$CJ$10,$CJ$11)))) -> -- | MU46: =IF(FX$19>$Z46,"--",IF(FX46=$CN$8,$CV$8,IF(FX46=$CN$9,$CV$9,$CV$10))*IF(GC46=$CD$8,$CJ$8,IF(GC46=$CD$9,$CJ$9,IF(GC46=$CD$10,$CJ$10,$CJ$11)))) -> --
T48: N-W | Z48: 6 | AD48: 2 Lanes | AI48: <20mph | AN48: 2 Lanes | AS48: <20mph | AX48: 2 Lanes | BC48: <20mph | BH48: 2 Lanes | BM48: <20mph | BR48: 2 Lanes | BW48: <20mph | CB48: 2 Lanes | CG48: <20mph | CL48: 2 Lanes | CQ48: <20mph | CV48: 2 Lanes | DA48: <20mph | DF48: 2 Lanes | DK48: <20mph | DP48: 2 Lanes | DU48: <20mph | DZ48: 2 Lanes | EE48: <20mph | EJ48: 2 Lanes | EO48: <20mph | ET48: 2 Lanes | EY48: <20mph | FD48: 2 Lanes | FI48: <20mph | FN48: 2 Lanes | FS48: <20mph | FX48: 2 Lanes | GC48: <20mph | GL48: =IF(GV48<=$BX$11,$BR$11,IF(GV48<=$BX$10,$BR$10,IF(GV48<=$BX$9,$BR$9,$BR$8))) -> Good | GQ48: =MIN(HA48:ND49) -> 64 | GV48: =AVERAGE(HA48:ND49) -> 64 | HA48: =IF(AD$19>$Z48,"--",IF(AD48=$CN$8,$CV$8,IF(AD48=$CN$9,$CV$9,$CV$10))*IF(AI48=$CD$8,$CJ$8,IF(AI48=$CD$9,$CJ$9,IF(AI48=$CD$10,$CJ$10,$CJ$11)))) -> 64 | HK48: =IF(AN$19>$Z48,"--",IF(AN48=$CN$8,$CV$8,IF(AN48=$CN$9,$CV$9,$CV$10))*IF(AS48=$CD$8,$CJ$8,IF(AS48=$CD$9,$CJ$9,IF(AS48=$CD$10,$CJ$10,$CJ$11)))) -> 64 | HU48: =IF(AX$19>$Z48,"--",IF(AX48=$CN$8,$CV$8,IF(AX48=$CN$9,$CV$9,$CV$10))*IF(BC48=$CD$8,$CJ$8,IF(BC48=$CD$9,$CJ$9,IF(BC48=$CD$10,$CJ$10,$CJ$11)))) -> 64 | IE48: =IF(BH$19>$Z48,"--",IF(BH48=$CN$8,$CV$8,IF(BH48=$CN$9,$CV$9,$CV$10))*IF(BM48=$CD$8,$CJ$8,IF(BM48=$CD$9,$CJ$9,IF(BM48=$CD$10,$CJ$10,$CJ$11)))) -> 64 | IO48: =IF(BR$19>$Z48,"--",IF(BR48=$CN$8,$CV$8,IF(BR48=$CN$9,$CV$9,$CV$10))*IF(BW48=$CD$8,$CJ$8,IF(BW48=$CD$9,$CJ$9,IF(BW48=$CD$10,$CJ$10,$CJ$11)))) -> 64 | IY48: =IF(CB$19>$Z48,"--",IF(CB48=$CN$8,$CV$8,IF(CB48=$CN$9,$CV$9,$CV$10))*IF(CG48=$CD$8,$CJ$8,IF(CG48=$CD$9,$CJ$9,IF(CG48=$CD$10,$CJ$10,$CJ$11)))) -> 64 | JI48: =IF(CL$19>$Z48,"--",IF(CL48=$CN$8,$CV$8,IF(CL48=$CN$9,$CV$9,$CV$10))*IF(CQ48=$CD$8,$CJ$8,IF(CQ48=$CD$9,$CJ$9,IF(CQ48=$CD$10,$CJ$10,$CJ$11)))) -> -- | JS48: =IF(CV$19>$Z48,"--",IF(CV48=$CN$8,$CV$8,IF(CV48=$CN$9,$CV$9,$CV$10))*IF(DA48=$CD$8,$CJ$8,IF(DA48=$CD$9,$CJ$9,IF(DA48=$CD$10,$CJ$10,$CJ$11)))) -> -- | KC48: =IF(DF$19>$Z48,"--",IF(DF48=$CN$8,$CV$8,IF(DF48=$CN$9,$CV$9,$CV$10))*IF(DK48=$CD$8,$CJ$8,IF(DK48=$CD$9,$CJ$9,IF(DK48=$CD$10,$CJ$10,$CJ$11)))) -> -- | KM48: =IF(DP$19>$Z48,"--",IF(DP48=$CN$8,$CV$8,IF(DP48=$CN$9,$CV$9,$CV$10))*IF(DU48=$CD$8,$CJ$8,IF(DU48=$CD$9,$CJ$9,IF(DU48=$CD$10,$CJ$10,$CJ$11)))) -> -- | KW48: =IF(DZ$19>$Z48,"--",IF(DZ48=$CN$8,$CV$8,IF(DZ48=$CN$9,$CV$9,$CV$10))*IF(EE48=$CD$8,$CJ$8,IF(EE48=$CD$9,$CJ$9,IF(EE48=$CD$10,$CJ$10,$CJ$11)))) -> -- | LG48: =IF(EJ$19>$Z48,"--",IF(EJ48=$CN$8,$CV$8,IF(EJ48=$CN$9,$CV$9,$CV$10))*IF(EO48=$CD$8,$CJ$8,IF(EO48=$CD$9,$CJ$9,IF(EO48=$CD$10,$CJ$10,$CJ$11)))) -> -- | LQ48: =IF(ET$19>$Z48,"--",IF(ET48=$CN$8,$CV$8,IF(ET48=$CN$9,$CV$9,$CV$10))*IF(EY48=$CD$8,$CJ$8,IF(EY48=$CD$9,$CJ$9,IF(EY48=$CD$10,$CJ$10,$CJ$11)))) -> -- | MA48: =IF(FD$19>$Z48,"--",IF(FD48=$CN$8,$CV$8,IF(FD48=$CN$9,$CV$9,$CV$10))*IF(FI48=$CD$8,$CJ$8,IF(FI48=$CD$9,$CJ$9,IF(FI48=$CD$10,$CJ$10,$CJ$11)))) -> -- | MK48: =IF(FN$19>$Z48,"--",IF(FN48=$CN$8,$CV$8,IF(FN48=$CN$9,$CV$9,$CV$10))*IF(FS48=$CD$8,$CJ$8,IF(FS48=$CD$9,$CJ$9,IF(FS48=$CD$10,$CJ$10,$CJ$11)))) -> -- | MU48: =IF(FX$19>$Z48,"--",IF(FX48=$CN$8,$CV$8,IF(FX48=$CN$9,$CV$9,$CV$10))*IF(GC48=$CD$8,$CJ$8,IF(GC48=$CD$9,$CJ$9,IF(GC48=$CD$10,$CJ$10,$CJ$11)))) -> --
A50: Partial Displaced Left Turn | T50: N-S | Z50: 6 | AD50: 2 Lanes | AI50: <20mph | AN50: 2 Lanes | AS50: <20mph | AX50: 2 Lanes | BC50: <20mph | BH50: 2 Lanes | BM50: <20mph | BR50: 2 Lanes | BW50: <20mph | CB50: 2 Lanes | CG50: <20mph | CL50: 2 Lanes | CQ50: <20mph | CV50: 2 Lanes | DA50: <20mph | DF50: 2 Lanes | DK50: <20mph | DP50: 2 Lanes | DU50: <20mph | DZ50: 2 Lanes | EE50: <20mph | EJ50: 2 Lanes | EO50: <20mph | ET50: 2 Lanes | EY50: <20mph | FD50: 2 Lanes | FI50: <20mph | FN50: 2 Lanes | FS50: <20mph | FX50: 2 Lanes | GC50: <20mph | GL50: =IF(GV50<=$BX$11,$BR$11,IF(GV50<=$BX$10,$BR$10,IF(GV50<=$BX$9,$BR$9,$BR$8))) -> Good | GQ50: =MIN(HA50:ND51) -> 64 | GV50: =AVERAGE(HA50:ND51) -> 64 | HA50: =IF(AD$19>$Z50,"--",IF(AD50=$CN$8,$CV$8,IF(AD50=$CN$9,$CV$9,$CV$10))*IF(AI50=$CD$8,$CJ$8,IF(AI50=$CD$9,$CJ$9,IF(AI50=$CD$10,$CJ$10,$CJ$11)))) -> 64 | HK50: =IF(AN$19>$Z50,"--",IF(AN50=$CN$8,$CV$8,IF(AN50=$CN$9,$CV$9,$CV$10))*IF(AS50=$CD$8,$CJ$8,IF(AS50=$CD$9,$CJ$9,IF(AS50=$CD$10,$CJ$10,$CJ$11)))) -> 64 | HU50: =IF(AX$19>$Z50,"--",IF(AX50=$CN$8,$CV$8,IF(AX50=$CN$9,$CV$9,$CV$10))*IF(BC50=$CD$8,$CJ$8,IF(BC50=$CD$9,$CJ$9,IF(BC50=$CD$10,$CJ$10,$CJ$11)))) -> 64 | IE50: =IF(BH$19>$Z50,"--",IF(BH50=$CN$8,$CV$8,IF(BH50=$CN$9,$CV$9,$CV$10))*IF(BM50=$CD$8,$CJ$8,IF(BM50=$CD$9,$CJ$9,IF(BM50=$CD$10,$CJ$10,$CJ$11)))) -> 64 | IO50: =IF(BR$19>$Z50,"--",IF(BR50=$CN$8,$CV$8,IF(BR50=$CN$9,$CV$9,$CV$10))*IF(BW50=$CD$8,$CJ$8,IF(BW50=$CD$9,$CJ$9,IF(BW50=$CD$10,$CJ$10,$CJ$11)))) -> 64 | IY50: =IF(CB$19>$Z50,"--",IF(CB50=$CN$8,$CV$8,IF(CB50=$CN$9,$CV$9,$CV$10))*IF(CG50=$CD$8,$CJ$8,IF(CG50=$CD$9,$CJ$9,IF(CG50=$CD$10,$CJ$10,$CJ$11)))) -> 64 | JI50: =IF(CL$19>$Z50,"--",IF(CL50=$CN$8,$CV$8,IF(CL50=$CN$9,$CV$9,$CV$10))*IF(CQ50=$CD$8,$CJ$8,IF(CQ50=$CD$9,$CJ$9,IF(CQ50=$CD$10,$CJ$10,$CJ$11)))) -> -- | JS50: =IF(CV$19>$Z50,"--",IF(CV50=$CN$8,$CV$8,IF(CV50=$CN$9,$CV$9,$CV$10))*IF(DA50=$CD$8,$CJ$8,IF(DA50=$CD$9,$CJ$9,IF(DA50=$CD$10,$CJ$10,$CJ$11)))) -> -- | KC50: =IF(DF$19>$Z50,"--",IF(DF50=$CN$8,$CV$8,IF(DF50=$CN$9,$CV$9,$CV$10))*IF(DK50=$CD$8,$CJ$8,IF(DK50=$CD$9,$CJ$9,IF(DK50=$CD$10,$CJ$10,$CJ$11)))) -> -- | KM50: =IF(DP$19>$Z50,"--",IF(DP50=$CN$8,$CV$8,IF(DP50=$CN$9,$CV$9,$CV$10))*IF(DU50=$CD$8,$CJ$8,IF(DU50=$CD$9,$CJ$9,IF(DU50=$CD$10,$CJ$10,$CJ$11)))) -> -- | KW50: =IF(DZ$19>$Z50,"--",IF(DZ50=$CN$8,$CV$8,IF(DZ50=$CN$9,$CV$9,$CV$10))*IF(EE50=$CD$8,$CJ$8,IF(EE50=$CD$9,$CJ$9,IF(EE50=$CD$10,$CJ$10,$CJ$11)))) -> -- | LG50: =IF(EJ$19>$Z50,"--",IF(EJ50=$CN$8,$CV$8,IF(EJ50=$CN$9,$CV$9,$CV$10))*IF(EO50=$CD$8,$CJ$8,IF(EO50=$CD$9,$CJ$9,IF(EO50=$CD$10,$CJ$10,$CJ$11)))) -> -- | LQ50: =IF(ET$19>$Z50,"--",IF(ET50=$CN$8,$CV$8,IF(ET50=$CN$9,$CV$9,$CV$10))*IF(EY50=$CD$8,$CJ$8,IF(EY50=$CD$9,$CJ$9,IF(EY50=$CD$10,$CJ$10,$CJ$11)))) -> -- | MA50: =IF(FD$19>$Z50,"--",IF(FD50=$CN$8,$CV$8,IF(FD50=$CN$9,$CV$9,$CV$10))*IF(FI50=$CD$8,$CJ$8,IF(FI50=$CD$9,$CJ$9,IF(FI50=$CD$10,$CJ$10,$CJ$11)))) -> -- | MK50: =IF(FN$19>$Z50,"--",IF(FN50=$CN$8,$CV$8,IF(FN50=$CN$9,$CV$9,$CV$10))*IF(FS50=$CD$8,$CJ$8,IF(FS50=$CD$9,$CJ$9,IF(FS50=$CD$10,$CJ$10,$CJ$11)))) -> -- | MU50: =IF(FX$19>$Z50,"--",IF(FX50=$CN$8,$CV$8,IF(FX50=$CN$9,$CV$9,$CV$10))*IF(GC50=$CD$8,$CJ$8,IF(GC50=$CD$9,$CJ$9,IF(GC50=$CD$10,$CJ$10,$CJ$11)))) -> --
T52: E-W | Z52: 6 | AD52: 2 Lanes | AI52: <20mph | AN52: 2 Lanes | AS52: <20mph | AX52: 2 Lanes | BC52: <20mph | BH52: 2 Lanes | BM52: <20mph | BR52: 2 Lanes | BW52: <20mph | CB52: 2 Lanes | CG52: <20mph | CL52: 2 Lanes | CQ52: <20mph | CV52: 2 Lanes | DA52: <20mph | DF52: 2 Lanes | DK52: <20mph | DP52: 2 Lanes | DU52: <20mph | DZ52: 2 Lanes | EE52: <20mph | EJ52: 2 Lanes | EO52: <20mph | ET52: 2 Lanes | EY52: <20mph | FD52: 2 Lanes | FI52: <20mph | FN52: 2 Lanes | FS52: <20mph | FX52: 2 Lanes | GC52: <20mph | GL52: =IF(GV52<=$BX$11,$BR$11,IF(GV52<=$BX$10,$BR$10,IF(GV52<=$BX$9,$BR$9,$BR$8))) -> Good | GQ52: =MIN(HA52:ND53) -> 64 | GV52: =AVERAGE(HA52:ND53) -> 64 | HA52: =IF(AD$19>$Z52,"--",IF(AD52=$CN$8,$CV$8,IF(AD52=$CN$9,$CV$9,$CV$10))*IF(AI52=$CD$8,$CJ$8,IF(AI52=$CD$9,$CJ$9,IF(AI52=$CD$10,$CJ$10,$CJ$11)))) -> 64 | HK52: =IF(AN$19>$Z52,"--",IF(AN52=$CN$8,$CV$8,IF(AN52=$CN$9,$CV$9,$CV$10))*IF(AS52=$CD$8,$CJ$8,IF(AS52=$CD$9,$CJ$9,IF(AS52=$CD$10,$CJ$10,$CJ$11)))) -> 64 | HU52: =IF(AX$19>$Z52,"--",IF(AX52=$CN$8,$CV$8,IF(AX52=$CN$9,$CV$9,$CV$10))*IF(BC52=$CD$8,$CJ$8,IF(BC52=$CD$9,$CJ$9,IF(BC52=$CD$10,$CJ$10,$CJ$11)))) -> 64 | IE52: =IF(BH$19>$Z52,"--",IF(BH52=$CN$8,$CV$8,IF(BH52=$CN$9,$CV$9,$CV$10))*IF(BM52=$CD$8,$CJ$8,IF(BM52=$CD$9,$CJ$9,IF(BM52=$CD$10,$CJ$10,$CJ$11)))) -> 64 | IO52: =IF(BR$19>$Z52,"--",IF(BR52=$CN$8,$CV$8,IF(BR52=$CN$9,$CV$9,$CV$10))*IF(BW52=$CD$8,$CJ$8,IF(BW52=$CD$9,$CJ$9,IF(BW52=$CD$10,$CJ$10,$CJ$11)))) -> 64 | IY52: =IF(CB$19>$Z52,"--",IF(CB52=$CN$8,$CV$8,IF(CB52=$CN$9,$CV$9,$CV$10))*IF(CG52=$CD$8,$CJ$8,IF(CG52=$CD$9,$CJ$9,IF(CG52=$CD$10,$CJ$10,$CJ$11)))) -> 64 | JI52: =IF(CL$19>$Z52,"--",IF(CL52=$CN$8,$CV$8,IF(CL52=$CN$9,$CV$9,$CV$10))*IF(CQ52=$CD$8,$CJ$8,IF(CQ52=$CD$9,$CJ$9,IF(CQ52=$CD$10,$CJ$10,$CJ$11)))) -> -- | JS52: =IF(CV$19>$Z52,"--",IF(CV52=$CN$8,$CV$8,IF(CV52=$CN$9,$CV$9,$CV$10))*IF(DA52=$CD$8,$CJ$8,IF(DA52=$CD$9,$CJ$9,IF(DA52=$CD$10,$CJ$10,$CJ$11)))) -> -- | KC52: =IF(DF$19>$Z52,"--",IF(DF52=$CN$8,$CV$8,IF(DF52=$CN$9,$CV$9,$CV$10))*IF(DK52=$CD$8,$CJ$8,IF(DK52=$CD$9,$CJ$9,IF(DK52=$CD$10,$CJ$10,$CJ$11)))) -> -- | KM52: =IF(DP$19>$Z52,"--",IF(DP52=$CN$8,$CV$8,IF(DP52=$CN$9,$CV$9,$CV$10))*IF(DU52=$CD$8,$CJ$8,IF(DU52=$CD$9,$CJ$9,IF(DU52=$CD$10,$CJ$10,$CJ$11)))) -> -- | KW52: =IF(DZ$19>$Z52,"--",IF(DZ52=$CN$8,$CV$8,IF(DZ52=$CN$9,$CV$9,$CV$10))*IF(EE52=$CD$8,$CJ$8,IF(EE52=$CD$9,$CJ$9,IF(EE52=$CD$10,$CJ$10,$CJ$11)))) -> -- | LG52: =IF(EJ$19>$Z52,"--",IF(EJ52=$CN$8,$CV$8,IF(EJ52=$CN$9,$CV$9,$CV$10))*IF(EO52=$CD$8,$CJ$8,IF(EO52=$CD$9,$CJ$9,IF(EO52=$CD$10,$CJ$10,$CJ$11)))) -> -- | LQ52: =IF(ET$19>$Z52,"--",IF(ET52=$CN$8,$CV$8,IF(ET52=$CN$9,$CV$9,$CV$10))*IF(EY52=$CD$8,$CJ$8,IF(EY52=$CD$9,$CJ$9,IF(EY52=$CD$10,$CJ$10,$CJ$11)))) -> -- | MA52: =IF(FD$19>$Z52,"--",IF(FD52=$CN$8,$CV$8,IF(FD52=$CN$9,$CV$9,$CV$10))*IF(FI52=$CD$8,$CJ$8,IF(FI52=$CD$9,$CJ$9,IF(FI52=$CD$10,$CJ$10,$CJ$11)))) -> -- | MK52: =IF(FN$19>$Z52,"--",IF(FN52=$CN$8,$CV$8,IF(FN52=$CN$9,$CV$9,$CV$10))*IF(FS52=$CD$8,$CJ$8,IF(FS52=$CD$9,$CJ$9,IF(FS52=$CD$10,$CJ$10,$CJ$11)))) -> -- | MU52: =IF(FX$19>$Z52,"--",IF(FX52=$CN$8,$CV$8,IF(FX52=$CN$9,$CV$9,$CV$10))*IF(GC52=$CD$8,$CJ$8,IF(GC52=$CD$9,$CJ$9,IF(GC52=$CD$10,$CJ$10,$CJ$11)))) -> --
A54: Displaced Left Turn | T54: FULL | Z54: 6 | AD54: 2 Lanes | AI54: <20mph | AN54: 2 Lanes | AS54: <20mph | AX54: 2 Lanes | BC54: <20mph | BH54: 2 Lanes | BM54: <20mph | BR54: 2 Lanes | BW54: <20mph | CB54: 2 Lanes | CG54: <20mph | CL54: 2 Lanes | CQ54: <20mph | CV54: 2 Lanes | DA54: <20mph | DF54: 2 Lanes | DK54: <20mph | DP54: 2 Lanes | DU54: <20mph | DZ54: 2 Lanes | EE54: <20mph | EJ54: 2 Lanes | EO54: <20mph | ET54: 2 Lanes | EY54: <20mph | FD54: 2 Lanes | FI54: <20mph | FN54: 2 Lanes | FS54: <20mph | FX54: 2 Lanes | GC54: <20mph | GL54: =IF(GV54<=$BX$11,$BR$11,IF(GV54<=$BX$10,$BR$10,IF(GV54<=$BX$9,$BR$9,$BR$8))) -> Good | GQ54: =MIN(HA54:ND55) -> 64 | GV54: =AVERAGE(HA54:ND55) -> 64 | HA54: =IF(AD$19>$Z54,"--",IF(AD54=$CN$8,$CV$8,IF(AD54=$CN$9,$CV$9,$CV$10))*IF(AI54=$CD$8,$CJ$8,IF(AI54=$CD$9,$CJ$9,IF(AI54=$CD$10,$CJ$10,$CJ$11)))) -> 64 | HK54: =IF(AN$19>$Z54,"--",IF(AN54=$CN$8,$CV$8,IF(AN54=$CN$9,$CV$9,$CV$10))*IF(AS54=$CD$8,$CJ$8,IF(AS54=$CD$9,$CJ$9,IF(AS54=$CD$10,$CJ$10,$CJ$11)))) -> 64 | HU54: =IF(AX$19>$Z54,"--",IF(AX54=$CN$8,$CV$8,IF(AX54=$CN$9,$CV$9,$CV$10))*IF(BC54=$CD$8,$CJ$8,IF(BC54=$CD$9,$CJ$9,IF(BC54=$CD$10,$CJ$10,$CJ$11)))) -> 64 | IE54: =IF(BH$19>$Z54,"--",IF(BH54=$CN$8,$CV$8,IF(BH54=$CN$9,$CV$9,$CV$10))*IF(BM54=$CD$8,$CJ$8,IF(BM54=$CD$9,$CJ$9,IF(BM54=$CD$10,$CJ$10,$CJ$11)))) -> 64 | IO54: =IF(BR$19>$Z54,"--",IF(BR54=$CN$8,$CV$8,IF(BR54=$CN$9,$CV$9,$CV$10))*IF(BW54=$CD$8,$CJ$8,IF(BW54=$CD$9,$CJ$9,IF(BW54=$CD$10,$CJ$10,$CJ$11)))) -> 64 | IY54: =IF(CB$19>$Z54,"--",IF(CB54=$CN$8,$CV$8,IF(CB54=$CN$9,$CV$9,$CV$10))*IF(CG54=$CD$8,$CJ$8,IF(CG54=$CD$9,$CJ$9,IF(CG54=$CD$10,$CJ$10,$CJ$11)))) -> 64 | JI54: =IF(CL$19>$Z54,"--",IF(CL54=$CN$8,$CV$8,IF(CL54=$CN$9,$CV$9,$CV$10))*IF(CQ54=$CD$8,$CJ$8,IF(CQ54=$CD$9,$CJ$9,IF(CQ54=$CD$10,$CJ$10,$CJ$11)))) -> -- | JS54: =IF(CV$19>$Z54,"--",IF(CV54=$CN$8,$CV$8,IF(CV54=$CN$9,$CV$9,$CV$10))*IF(DA54=$CD$8,$CJ$8,IF(DA54=$CD$9,$CJ$9,IF(DA54=$CD$10,$CJ$10,$CJ$11)))) -> -- | KC54: =IF(DF$19>$Z54,"--",IF(DF54=$CN$8,$CV$8,IF(DF54=$CN$9,$CV$9,$CV$10))*IF(DK54=$CD$8,$CJ$8,IF(DK54=$CD$9,$CJ$9,IF(DK54=$CD$10,$CJ$10,$CJ$11)))) -> -- | KM54: =IF(DP$19>$Z54,"--",IF(DP54=$CN$8,$CV$8,IF(DP54=$CN$9,$CV$9,$CV$10))*IF(DU54=$CD$8,$CJ$8,IF(DU54=$CD$9,$CJ$9,IF(DU54=$CD$10,$CJ$10,$CJ$11)))) -> -- | KW54: =IF(DZ$19>$Z54,"--",IF(DZ54=$CN$8,$CV$8,IF(DZ54=$CN$9,$CV$9,$CV$10))*IF(EE54=$CD$8,$CJ$8,IF(EE54=$CD$9,$CJ$9,IF(EE54=$CD$10,$CJ$10,$CJ$11)))) -> -- | LG54: =IF(EJ$19>$Z54,"--",IF(EJ54=$CN$8,$CV$8,IF(EJ54=$CN$9,$CV$9,$CV$10))*IF(EO54=$CD$8,$CJ$8,IF(EO54=$CD$9,$CJ$9,IF(EO54=$CD$10,$CJ$10,$CJ$11)))) -> -- | LQ54: =IF(ET$19>$Z54,"--",IF(ET54=$CN$8,$CV$8,IF(ET54=$CN$9,$CV$9,$CV$10))*IF(EY54=$CD$8,$CJ$8,IF(EY54=$CD$9,$CJ$9,IF(EY54=$CD$10,$CJ$10,$CJ$11)))) -> -- | MA54: =IF(FD$19>$Z54,"--",IF(FD54=$CN$8,$CV$8,IF(FD54=$CN$9,$CV$9,$CV$10))*IF(FI54=$CD$8,$CJ$8,IF(FI54=$CD$9,$CJ$9,IF(FI54=$CD$10,$CJ$10,$CJ$11)))) -> -- | MK54: =IF(FN$19>$Z54,"--",IF(FN54=$CN$8,$CV$8,IF(FN54=$CN$9,$CV$9,$CV$10))*IF(FS54=$CD$8,$CJ$8,IF(FS54=$CD$9,$CJ$9,IF(FS54=$CD$10,$CJ$10,$CJ$11)))) -> -- | MU54: =IF(FX$19>$Z54,"--",IF(FX54=$CN$8,$CV$8,IF(FX54=$CN$9,$CV$9,$CV$10))*IF(GC54=$CD$8,$CJ$8,IF(GC54=$CD$9,$CJ$9,IF(GC54=$CD$10,$CJ$10,$CJ$11)))) -> --
A56: ='3 - Alt Num Lanes Input'!E56 -> Signalized Restricted Crossing U-Turn | T56: N-S | Z56: 6 | AD56: 2 Lanes | AI56: <20mph | AN56: 2 Lanes | AS56: <20mph | AX56: 2 Lanes | BC56: <20mph | BH56: 2 Lanes | BM56: <20mph | BR56: 2 Lanes | BW56: <20mph | CB56: 2 Lanes | CG56: <20mph | CL56: 2 Lanes | CQ56: <20mph | CV56: 2 Lanes | DA56: <20mph | DF56: 2 Lanes | DK56: <20mph | DP56: 2 Lanes | DU56: <20mph | DZ56: 2 Lanes | EE56: <20mph | EJ56: 2 Lanes | EO56: <20mph | ET56: 2 Lanes | EY56: <20mph | FD56: 2 Lanes | FI56: <20mph | FN56: 2 Lanes | FS56: <20mph | FX56: 2 Lanes | GC56: <20mph | GL56: =IF(GV56<=$BX$11,$BR$11,IF(GV56<=$BX$10,$BR$10,IF(GV56<=$BX$9,$BR$9,$BR$8))) -> Good | GQ56: =MIN(HA56:ND57) -> 64 | GV56: =AVERAGE(HA56:ND57) -> 64 | HA56: =IF(AD$19>$Z56,"--",IF(AD56=$CN$8,$CV$8,IF(AD56=$CN$9,$CV$9,$CV$10))*IF(AI56=$CD$8,$CJ$8,IF(AI56=$CD$9,$CJ$9,IF(AI56=$CD$10,$CJ$10,$CJ$11)))) -> 64 | HK56: =IF(AN$19>$Z56,"--",IF(AN56=$CN$8,$CV$8,IF(AN56=$CN$9,$CV$9,$CV$10))*IF(AS56=$CD$8,$CJ$8,IF(AS56=$CD$9,$CJ$9,IF(AS56=$CD$10,$CJ$10,$CJ$11)))) -> 64 | HU56: =IF(AX$19>$Z56,"--",IF(AX56=$CN$8,$CV$8,IF(AX56=$CN$9,$CV$9,$CV$10))*IF(BC56=$CD$8,$CJ$8,IF(BC56=$CD$9,$CJ$9,IF(BC56=$CD$10,$CJ$10,$CJ$11)))) -> 64 | IE56: =IF(BH$19>$Z56,"--",IF(BH56=$CN$8,$CV$8,IF(BH56=$CN$9,$CV$9,$CV$10))*IF(BM56=$CD$8,$CJ$8,IF(BM56=$CD$9,$CJ$9,IF(BM56=$CD$10,$CJ$10,$CJ$11)))) -> 64 | IO56: =IF(BR$19>$Z56,"--",IF(BR56=$CN$8,$CV$8,IF(BR56=$CN$9,$CV$9,$CV$10))*IF(BW56=$CD$8,$CJ$8,IF(BW56=$CD$9,$CJ$9,IF(BW56=$CD$10,$CJ$10,$CJ$11)))) -> 64 | IY56: =IF(CB$19>$Z56,"--",IF(CB56=$CN$8,$CV$8,IF(CB56=$CN$9,$CV$9,$CV$10))*IF(CG56=$CD$8,$CJ$8,IF(CG56=$CD$9,$CJ$9,IF(CG56=$CD$10,$CJ$10,$CJ$11)))) -> 64 | JI56: =IF(CL$19>$Z56,"--",IF(CL56=$CN$8,$CV$8,IF(CL56=$CN$9,$CV$9,$CV$10))*IF(CQ56=$CD$8,$CJ$8,IF(CQ56=$CD$9,$CJ$9,IF(CQ56=$CD$10,$CJ$10,$CJ$11)))) -> -- | JS56: =IF(CV$19>$Z56,"--",IF(CV56=$CN$8,$CV$8,IF(CV56=$CN$9,$CV$9,$CV$10))*IF(DA56=$CD$8,$CJ$8,IF(DA56=$CD$9,$CJ$9,IF(DA56=$CD$10,$CJ$10,$CJ$11)))) -> -- | KC56: =IF(DF$19>$Z56,"--",IF(DF56=$CN$8,$CV$8,IF(DF56=$CN$9,$CV$9,$CV$10))*IF(DK56=$CD$8,$CJ$8,IF(DK56=$CD$9,$CJ$9,IF(DK56=$CD$10,$CJ$10,$CJ$11)))) -> -- | KM56: =IF(DP$19>$Z56,"--",IF(DP56=$CN$8,$CV$8,IF(DP56=$CN$9,$CV$9,$CV$10))*IF(DU56=$CD$8,$CJ$8,IF(DU56=$CD$9,$CJ$9,IF(DU56=$CD$10,$CJ$10,$CJ$11)))) -> -- | KW56: =IF(DZ$19>$Z56,"--",IF(DZ56=$CN$8,$CV$8,IF(DZ56=$CN$9,$CV$9,$CV$10))*IF(EE56=$CD$8,$CJ$8,IF(EE56=$CD$9,$CJ$9,IF(EE56=$CD$10,$CJ$10,$CJ$11)))) -> -- | LG56: =IF(EJ$19>$Z56,"--",IF(EJ56=$CN$8,$CV$8,IF(EJ56=$CN$9,$CV$9,$CV$10))*IF(EO56=$CD$8,$CJ$8,IF(EO56=$CD$9,$CJ$9,IF(EO56=$CD$10,$CJ$10,$CJ$11)))) -> -- | LQ56: =IF(ET$19>$Z56,"--",IF(ET56=$CN$8,$CV$8,IF(ET56=$CN$9,$CV$9,$CV$10))*IF(EY56=$CD$8,$CJ$8,IF(EY56=$CD$9,$CJ$9,IF(EY56=$CD$10,$CJ$10,$CJ$11)))) -> -- | MA56: =IF(FD$19>$Z56,"--",IF(FD56=$CN$8,$CV$8,IF(FD56=$CN$9,$CV$9,$CV$10))*IF(FI56=$CD$8,$CJ$8,IF(FI56=$CD$9,$CJ$9,IF(FI56=$CD$10,$CJ$10,$CJ$11)))) -> -- | MK56: =IF(FN$19>$Z56,"--",IF(FN56=$CN$8,$CV$8,IF(FN56=$CN$9,$CV$9,$CV$10))*IF(FS56=$CD$8,$CJ$8,IF(FS56=$CD$9,$CJ$9,IF(FS56=$CD$10,$CJ$10,$CJ$11)))) -> -- | MU56: =IF(FX$19>$Z56,"--",IF(FX56=$CN$8,$CV$8,IF(FX56=$CN$9,$CV$9,$CV$10))*IF(GC56=$CD$8,$CJ$8,IF(GC56=$CD$9,$CJ$9,IF(GC56=$CD$10,$CJ$10,$CJ$11)))) -> --
T58: E-W | Z58: 6 | AD58: 2 Lanes | AI58: <20mph | AN58: 2 Lanes | AS58: <20mph | AX58: 2 Lanes | BC58: <20mph | BH58: 2 Lanes | BM58: <20mph | BR58: 2 Lanes | BW58: <20mph | CB58: 2 Lanes | CG58: <20mph | CL58: 2 Lanes | CQ58: <20mph | CV58: 2 Lanes | DA58: <20mph | DF58: 2 Lanes | DK58: <20mph | DP58: 2 Lanes | DU58: <20mph | DZ58: 2 Lanes | EE58: <20mph | EJ58: 2 Lanes | EO58: <20mph | ET58: 2 Lanes | EY58: <20mph | FD58: 2 Lanes | FI58: <20mph | FN58: 2 Lanes | FS58: <20mph | FX58: 2 Lanes | GC58: <20mph | GL58: =IF(GV58<=$BX$11,$BR$11,IF(GV58<=$BX$10,$BR$10,IF(GV58<=$BX$9,$BR$9,$BR$8))) -> Good | GQ58: =MIN(HA58:ND59) -> 64 | GV58: =AVERAGE(HA58:ND59) -> 64 | HA58: =IF(AD$19>$Z58,"--",IF(AD58=$CN$8,$CV$8,IF(AD58=$CN$9,$CV$9,$CV$10))*IF(AI58=$CD$8,$CJ$8,IF(AI58=$CD$9,$CJ$9,IF(AI58=$CD$10,$CJ$10,$CJ$11)))) -> 64 | HK58: =IF(AN$19>$Z58,"--",IF(AN58=$CN$8,$CV$8,IF(AN58=$CN$9,$CV$9,$CV$10))*IF(AS58=$CD$8,$CJ$8,IF(AS58=$CD$9,$CJ$9,IF(AS58=$CD$10,$CJ$10,$CJ$11)))) -> 64 | HU58: =IF(AX$19>$Z58,"--",IF(AX58=$CN$8,$CV$8,IF(AX58=$CN$9,$CV$9,$CV$10))*IF(BC58=$CD$8,$CJ$8,IF(BC58=$CD$9,$CJ$9,IF(BC58=$CD$10,$CJ$10,$CJ$11)))) -> 64 | IE58: =IF(BH$19>$Z58,"--",IF(BH58=$CN$8,$CV$8,IF(BH58=$CN$9,$CV$9,$CV$10))*IF(BM58=$CD$8,$CJ$8,IF(BM58=$CD$9,$CJ$9,IF(BM58=$CD$10,$CJ$10,$CJ$11)))) -> 64 | IO58: =IF(BR$19>$Z58,"--",IF(BR58=$CN$8,$CV$8,IF(BR58=$CN$9,$CV$9,$CV$10))*IF(BW58=$CD$8,$CJ$8,IF(BW58=$CD$9,$CJ$9,IF(BW58=$CD$10,$CJ$10,$CJ$11)))) -> 64 | IY58: =IF(CB$19>$Z58,"--",IF(CB58=$CN$8,$CV$8,IF(CB58=$CN$9,$CV$9,$CV$10))*IF(CG58=$CD$8,$CJ$8,IF(CG58=$CD$9,$CJ$9,IF(CG58=$CD$10,$CJ$10,$CJ$11)))) -> 64 | JI58: =IF(CL$19>$Z58,"--",IF(CL58=$CN$8,$CV$8,IF(CL58=$CN$9,$CV$9,$CV$10))*IF(CQ58=$CD$8,$CJ$8,IF(CQ58=$CD$9,$CJ$9,IF(CQ58=$CD$10,$CJ$10,$CJ$11)))) -> -- | JS58: =IF(CV$19>$Z58,"--",IF(CV58=$CN$8,$CV$8,IF(CV58=$CN$9,$CV$9,$CV$10))*IF(DA58=$CD$8,$CJ$8,IF(DA58=$CD$9,$CJ$9,IF(DA58=$CD$10,$CJ$10,$CJ$11)))) -> -- | KC58: =IF(DF$19>$Z58,"--",IF(DF58=$CN$8,$CV$8,IF(DF58=$CN$9,$CV$9,$CV$10))*IF(DK58=$CD$8,$CJ$8,IF(DK58=$CD$9,$CJ$9,IF(DK58=$CD$10,$CJ$10,$CJ$11)))) -> -- | KM58: =IF(DP$19>$Z58,"--",IF(DP58=$CN$8,$CV$8,IF(DP58=$CN$9,$CV$9,$CV$10))*IF(DU58=$CD$8,$CJ$8,IF(DU58=$CD$9,$CJ$9,IF(DU58=$CD$10,$CJ$10,$CJ$11)))) -> -- | KW58: =IF(DZ$19>$Z58,"--",IF(DZ58=$CN$8,$CV$8,IF(DZ58=$CN$9,$CV$9,$CV$10))*IF(EE58=$CD$8,$CJ$8,IF(EE58=$CD$9,$CJ$9,IF(EE58=$CD$10,$CJ$10,$CJ$11)))) -> -- | LG58: =IF(EJ$19>$Z58,"--",IF(EJ58=$CN$8,$CV$8,IF(EJ58=$CN$9,$CV$9,$CV$10))*IF(EO58=$CD$8,$CJ$8,IF(EO58=$CD$9,$CJ$9,IF(EO58=$CD$10,$CJ$10,$CJ$11)))) -> -- | LQ58: =IF(ET$19>$Z58,"--",IF(ET58=$CN$8,$CV$8,IF(ET58=$CN$9,$CV$9,$CV$10))*IF(EY58=$CD$8,$CJ$8,IF(EY58=$CD$9,$CJ$9,IF(EY58=$CD$10,$CJ$10,$CJ$11)))) -> -- | MA58: =IF(FD$19>$Z58,"--",IF(FD58=$CN$8,$CV$8,IF(FD58=$CN$9,$CV$9,$CV$10))*IF(FI58=$CD$8,$CJ$8,IF(FI58=$CD$9,$CJ$9,IF(FI58=$CD$10,$CJ$10,$CJ$11)))) -> -- | MK58: =IF(FN$19>$Z58,"--",IF(FN58=$CN$8,$CV$8,IF(FN58=$CN$9,$CV$9,$CV$10))*IF(FS58=$CD$8,$CJ$8,IF(FS58=$CD$9,$CJ$9,IF(FS58=$CD$10,$CJ$10,$CJ$11)))) -> -- | MU58: =IF(FX$19>$Z58,"--",IF(FX58=$CN$8,$CV$8,IF(FX58=$CN$9,$CV$9,$CV$10))*IF(GC58=$CD$8,$CJ$8,IF(GC58=$CD$9,$CJ$9,IF(GC58=$CD$10,$CJ$10,$CJ$11)))) -> --
A60: ='3 - Alt Num Lanes Input'!E60 -> Unsignalized Restricted Crossing U-Turn | T60: N-S | Z60: 6 | AD60: 2 Lanes | AI60: <20mph | AN60: 2 Lanes | AS60: <20mph | AX60: 2 Lanes | BC60: <20mph | BH60: 2 Lanes | BM60: <20mph | BR60: 2 Lanes | BW60: <20mph | CB60: 2 Lanes | CG60: <20mph | CL60: 2 Lanes | CQ60: <20mph | CV60: 2 Lanes | DA60: <20mph | DF60: 2 Lanes | DK60: <20mph | DP60: 2 Lanes | DU60: <20mph | DZ60: 2 Lanes | EE60: <20mph | EJ60: 2 Lanes | EO60: <20mph | ET60: 2 Lanes | EY60: <20mph | FD60: 2 Lanes | FI60: <20mph | FN60: 2 Lanes | FS60: <20mph | FX60: 2 Lanes | GC60: <20mph | GL60: =IF(GV60<=$BX$11,$BR$11,IF(GV60<=$BX$10,$BR$10,IF(GV60<=$BX$9,$BR$9,$BR$8))) -> Good | GQ60: =MIN(HA60:ND61) -> 64 | GV60: =AVERAGE(HA60:ND61) -> 64 | HA60: =IF(AD$19>$Z60,"--",IF(AD60=$CN$8,$CV$8,IF(AD60=$CN$9,$CV$9,$CV$10))*IF(AI60=$CD$8,$CJ$8,IF(AI60=$CD$9,$CJ$9,IF(AI60=$CD$10,$CJ$10,$CJ$11)))) -> 64 | HK60: =IF(AN$19>$Z60,"--",IF(AN60=$CN$8,$CV$8,IF(AN60=$CN$9,$CV$9,$CV$10))*IF(AS60=$CD$8,$CJ$8,IF(AS60=$CD$9,$CJ$9,IF(AS60=$CD$10,$CJ$10,$CJ$11)))) -> 64 | HU60: =IF(AX$19>$Z60,"--",IF(AX60=$CN$8,$CV$8,IF(AX60=$CN$9,$CV$9,$CV$10))*IF(BC60=$CD$8,$CJ$8,IF(BC60=$CD$9,$CJ$9,IF(BC60=$CD$10,$CJ$10,$CJ$11)))) -> 64 | IE60: =IF(BH$19>$Z60,"--",IF(BH60=$CN$8,$CV$8,IF(BH60=$CN$9,$CV$9,$CV$10))*IF(BM60=$CD$8,$CJ$8,IF(BM60=$CD$9,$CJ$9,IF(BM60=$CD$10,$CJ$10,$CJ$11)))) -> 64 | IO60: =IF(BR$19>$Z60,"--",IF(BR60=$CN$8,$CV$8,IF(BR60=$CN$9,$CV$9,$CV$10))*IF(BW60=$CD$8,$CJ$8,IF(BW60=$CD$9,$CJ$9,IF(BW60=$CD$10,$CJ$10,$CJ$11)))) -> 64 | IY60: =IF(CB$19>$Z60,"--",IF(CB60=$CN$8,$CV$8,IF(CB60=$CN$9,$CV$9,$CV$10))*IF(CG60=$CD$8,$CJ$8,IF(CG60=$CD$9,$CJ$9,IF(CG60=$CD$10,$CJ$10,$CJ$11)))) -> 64 | JI60: =IF(CL$19>$Z60,"--",IF(CL60=$CN$8,$CV$8,IF(CL60=$CN$9,$CV$9,$CV$10))*IF(CQ60=$CD$8,$CJ$8,IF(CQ60=$CD$9,$CJ$9,IF(CQ60=$CD$10,$CJ$10,$CJ$11)))) -> -- | JS60: =IF(CV$19>$Z60,"--",IF(CV60=$CN$8,$CV$8,IF(CV60=$CN$9,$CV$9,$CV$10))*IF(DA60=$CD$8,$CJ$8,IF(DA60=$CD$9,$CJ$9,IF(DA60=$CD$10,$CJ$10,$CJ$11)))) -> -- | KC60: =IF(DF$19>$Z60,"--",IF(DF60=$CN$8,$CV$8,IF(DF60=$CN$9,$CV$9,$CV$10))*IF(DK60=$CD$8,$CJ$8,IF(DK60=$CD$9,$CJ$9,IF(DK60=$CD$10,$CJ$10,$CJ$11)))) -> -- | KM60: =IF(DP$19>$Z60,"--",IF(DP60=$CN$8,$CV$8,IF(DP60=$CN$9,$CV$9,$CV$10))*IF(DU60=$CD$8,$CJ$8,IF(DU60=$CD$9,$CJ$9,IF(DU60=$CD$10,$CJ$10,$CJ$11)))) -> -- | KW60: =IF(DZ$19>$Z60,"--",IF(DZ60=$CN$8,$CV$8,IF(DZ60=$CN$9,$CV$9,$CV$10))*IF(EE60=$CD$8,$CJ$8,IF(EE60=$CD$9,$CJ$9,IF(EE60=$CD$10,$CJ$10,$CJ$11)))) -> -- | LG60: =IF(EJ$19>$Z60,"--",IF(EJ60=$CN$8,$CV$8,IF(EJ60=$CN$9,$CV$9,$CV$10))*IF(EO60=$CD$8,$CJ$8,IF(EO60=$CD$9,$CJ$9,IF(EO60=$CD$10,$CJ$10,$CJ$11)))) -> -- | LQ60: =IF(ET$19>$Z60,"--",IF(ET60=$CN$8,$CV$8,IF(ET60=$CN$9,$CV$9,$CV$10))*IF(EY60=$CD$8,$CJ$8,IF(EY60=$CD$9,$CJ$9,IF(EY60=$CD$10,$CJ$10,$CJ$11)))) -> -- | MA60: =IF(FD$19>$Z60,"--",IF(FD60=$CN$8,$CV$8,IF(FD60=$CN$9,$CV$9,$CV$10))*IF(FI60=$CD$8,$CJ$8,IF(FI60=$CD$9,$CJ$9,IF(FI60=$CD$10,$CJ$10,$CJ$11)))) -> -- | MK60: =IF(FN$19>$Z60,"--",IF(FN60=$CN$8,$CV$8,IF(FN60=$CN$9,$CV$9,$CV$10))*IF(FS60=$CD$8,$CJ$8,IF(FS60=$CD$9,$CJ$9,IF(FS60=$CD$10,$CJ$10,$CJ$11)))) -> -- | MU60: =IF(FX$19>$Z60,"--",IF(FX60=$CN$8,$CV$8,IF(FX60=$CN$9,$CV$9,$CV$10))*IF(GC60=$CD$8,$CJ$8,IF(GC60=$CD$9,$CJ$9,IF(GC60=$CD$10,$CJ$10,$CJ$11)))) -> --
T62: E-W | Z62: 6 | AD62: 2 Lanes | AI62: <20mph | AN62: 2 Lanes | AS62: <20mph | AX62: 2 Lanes | BC62: <20mph | BH62: 2 Lanes | BM62: <20mph | BR62: 2 Lanes | BW62: <20mph | CB62: 2 Lanes | CG62: <20mph | CL62: 2 Lanes | CQ62: <20mph | CV62: 2 Lanes | DA62: <20mph | DF62: 2 Lanes | DK62: <20mph | DP62: 2 Lanes | DU62: <20mph | DZ62: 2 Lanes | EE62: <20mph | EJ62: 2 Lanes | EO62: <20mph | ET62: 2 Lanes | EY62: <20mph | FD62: 2 Lanes | FI62: <20mph | FN62: 2 Lanes | FS62: <20mph | FX62: 2 Lanes | GC62: <20mph | GL62: =IF(GV62<=$BX$11,$BR$11,IF(GV62<=$BX$10,$BR$10,IF(GV62<=$BX$9,$BR$9,$BR$8))) -> Good | GQ62: =MIN(HA62:ND63) -> 64 | GV62: =AVERAGE(HA62:ND63) -> 64 | HA62: =IF(AD$19>$Z62,"--",IF(AD62=$CN$8,$CV$8,IF(AD62=$CN$9,$CV$9,$CV$10))*IF(AI62=$CD$8,$CJ$8,IF(AI62=$CD$9,$CJ$9,IF(AI62=$CD$10,$CJ$10,$CJ$11)))) -> 64 | HK62: =IF(AN$19>$Z62,"--",IF(AN62=$CN$8,$CV$8,IF(AN62=$CN$9,$CV$9,$CV$10))*IF(AS62=$CD$8,$CJ$8,IF(AS62=$CD$9,$CJ$9,IF(AS62=$CD$10,$CJ$10,$CJ$11)))) -> 64 | HU62: =IF(AX$19>$Z62,"--",IF(AX62=$CN$8,$CV$8,IF(AX62=$CN$9,$CV$9,$CV$10))*IF(BC62=$CD$8,$CJ$8,IF(BC62=$CD$9,$CJ$9,IF(BC62=$CD$10,$CJ$10,$CJ$11)))) -> 64 | IE62: =IF(BH$19>$Z62,"--",IF(BH62=$CN$8,$CV$8,IF(BH62=$CN$9,$CV$9,$CV$10))*IF(BM62=$CD$8,$CJ$8,IF(BM62=$CD$9,$CJ$9,IF(BM62=$CD$10,$CJ$10,$CJ$11)))) -> 64 | IO62: =IF(BR$19>$Z62,"--",IF(BR62=$CN$8,$CV$8,IF(BR62=$CN$9,$CV$9,$CV$10))*IF(BW62=$CD$8,$CJ$8,IF(BW62=$CD$9,$CJ$9,IF(BW62=$CD$10,$CJ$10,$CJ$11)))) -> 64 | IY62: =IF(CB$19>$Z62,"--",IF(CB62=$CN$8,$CV$8,IF(CB62=$CN$9,$CV$9,$CV$10))*IF(CG62=$CD$8,$CJ$8,IF(CG62=$CD$9,$CJ$9,IF(CG62=$CD$10,$CJ$10,$CJ$11)))) -> 64 | JI62: =IF(CL$19>$Z62,"--",IF(CL62=$CN$8,$CV$8,IF(CL62=$CN$9,$CV$9,$CV$10))*IF(CQ62=$CD$8,$CJ$8,IF(CQ62=$CD$9,$CJ$9,IF(CQ62=$CD$10,$CJ$10,$CJ$11)))) -> -- | JS62: =IF(CV$19>$Z62,"--",IF(CV62=$CN$8,$CV$8,IF(CV62=$CN$9,$CV$9,$CV$10))*IF(DA62=$CD$8,$CJ$8,IF(DA62=$CD$9,$CJ$9,IF(DA62=$CD$10,$CJ$10,$CJ$11)))) -> -- | KC62: =IF(DF$19>$Z62,"--",IF(DF62=$CN$8,$CV$8,IF(DF62=$CN$9,$CV$9,$CV$10))*IF(DK62=$CD$8,$CJ$8,IF(DK62=$CD$9,$CJ$9,IF(DK62=$CD$10,$CJ$10,$CJ$11)))) -> -- | KM62: =IF(DP$19>$Z62,"--",IF(DP62=$CN$8,$CV$8,IF(DP62=$CN$9,$CV$9,$CV$10))*IF(DU62=$CD$8,$CJ$8,IF(DU62=$CD$9,$CJ$9,IF(DU62=$CD$10,$CJ$10,$CJ$11)))) -> -- | KW62: =IF(DZ$19>$Z62,"--",IF(DZ62=$CN$8,$CV$8,IF(DZ62=$CN$9,$CV$9,$CV$10))*IF(EE62=$CD$8,$CJ$8,IF(EE62=$CD$9,$CJ$9,IF(EE62=$CD$10,$CJ$10,$CJ$11)))) -> -- | LG62: =IF(EJ$19>$Z62,"--",IF(EJ62=$CN$8,$CV$8,IF(EJ62=$CN$9,$CV$9,$CV$10))*IF(EO62=$CD$8,$CJ$8,IF(EO62=$CD$9,$CJ$9,IF(EO62=$CD$10,$CJ$10,$CJ$11)))) -> -- | LQ62: =IF(ET$19>$Z62,"--",IF(ET62=$CN$8,$CV$8,IF(ET62=$CN$9,$CV$9,$CV$10))*IF(EY62=$CD$8,$CJ$8,IF(EY62=$CD$9,$CJ$9,IF(EY62=$CD$10,$CJ$10,$CJ$11)))) -> -- | MA62: =IF(FD$19>$Z62,"--",IF(FD62=$CN$8,$CV$8,IF(FD62=$CN$9,$CV$9,$CV$10))*IF(FI62=$CD$8,$CJ$8,IF(FI62=$CD$9,$CJ$9,IF(FI62=$CD$10,$CJ$10,$CJ$11)))) -> -- | MK62: =IF(FN$19>$Z62,"--",IF(FN62=$CN$8,$CV$8,IF(FN62=$CN$9,$CV$9,$CV$10))*IF(FS62=$CD$8,$CJ$8,IF(FS62=$CD$9,$CJ$9,IF(FS62=$CD$10,$CJ$10,$CJ$11)))) -> -- | MU62: =IF(FX$19>$Z62,"--",IF(FX62=$CN$8,$CV$8,IF(FX62=$CN$9,$CV$9,$CV$10))*IF(GC62=$CD$8,$CJ$8,IF(GC62=$CD$9,$CJ$9,IF(GC62=$CD$10,$CJ$10,$CJ$11)))) -> --
A64: Median U-Turn | T64: N-S | Z64: 6 | AD64: 2 Lanes | AI64: <20mph | AN64: 2 Lanes | AS64: <20mph | AX64: 2 Lanes | BC64: <20mph | BH64: 2 Lanes | BM64: <20mph | BR64: 2 Lanes | BW64: <20mph | CB64: 2 Lanes | CG64: <20mph | CL64: 2 Lanes | CQ64: <20mph | CV64: 2 Lanes | DA64: <20mph | DF64: 2 Lanes | DK64: <20mph | DP64: 2 Lanes | DU64: <20mph | DZ64: 2 Lanes | EE64: <20mph | EJ64: 2 Lanes | EO64: <20mph | ET64: 2 Lanes | EY64: <20mph | FD64: 2 Lanes | FI64: <20mph | FN64: 2 Lanes | FS64: <20mph | FX64: 2 Lanes | GC64: <20mph | GL64: =IF(GV64<=$BX$11,$BR$11,IF(GV64<=$BX$10,$BR$10,IF(GV64<=$BX$9,$BR$9,$BR$8))) -> Good | GQ64: =MIN(HA64:ND65) -> 64 | GV64: =AVERAGE(HA64:ND65) -> 64 | HA64: =IF(AD$19>$Z64,"--",IF(AD64=$CN$8,$CV$8,IF(AD64=$CN$9,$CV$9,$CV$10))*IF(AI64=$CD$8,$CJ$8,IF(AI64=$CD$9,$CJ$9,IF(AI64=$CD$10,$CJ$10,$CJ$11)))) -> 64 | HK64: =IF(AN$19>$Z64,"--",IF(AN64=$CN$8,$CV$8,IF(AN64=$CN$9,$CV$9,$CV$10))*IF(AS64=$CD$8,$CJ$8,IF(AS64=$CD$9,$CJ$9,IF(AS64=$CD$10,$CJ$10,$CJ$11)))) -> 64 | HU64: =IF(AX$19>$Z64,"--",IF(AX64=$CN$8,$CV$8,IF(AX64=$CN$9,$CV$9,$CV$10))*IF(BC64=$CD$8,$CJ$8,IF(BC64=$CD$9,$CJ$9,IF(BC64=$CD$10,$CJ$10,$CJ$11)))) -> 64 | IE64: =IF(BH$19>$Z64,"--",IF(BH64=$CN$8,$CV$8,IF(BH64=$CN$9,$CV$9,$CV$10))*IF(BM64=$CD$8,$CJ$8,IF(BM64=$CD$9,$CJ$9,IF(BM64=$CD$10,$CJ$10,$CJ$11)))) -> 64 | IO64: =IF(BR$19>$Z64,"--",IF(BR64=$CN$8,$CV$8,IF(BR64=$CN$9,$CV$9,$CV$10))*IF(BW64=$CD$8,$CJ$8,IF(BW64=$CD$9,$CJ$9,IF(BW64=$CD$10,$CJ$10,$CJ$11)))) -> 64 | IY64: =IF(CB$19>$Z64,"--",IF(CB64=$CN$8,$CV$8,IF(CB64=$CN$9,$CV$9,$CV$10))*IF(CG64=$CD$8,$CJ$8,IF(CG64=$CD$9,$CJ$9,IF(CG64=$CD$10,$CJ$10,$CJ$11)))) -> 64 | JI64: =IF(CL$19>$Z64,"--",IF(CL64=$CN$8,$CV$8,IF(CL64=$CN$9,$CV$9,$CV$10))*IF(CQ64=$CD$8,$CJ$8,IF(CQ64=$CD$9,$CJ$9,IF(CQ64=$CD$10,$CJ$10,$CJ$11)))) -> -- | JS64: =IF(CV$19>$Z64,"--",IF(CV64=$CN$8,$CV$8,IF(CV64=$CN$9,$CV$9,$CV$10))*IF(DA64=$CD$8,$CJ$8,IF(DA64=$CD$9,$CJ$9,IF(DA64=$CD$10,$CJ$10,$CJ$11)))) -> -- | KC64: =IF(DF$19>$Z64,"--",IF(DF64=$CN$8,$CV$8,IF(DF64=$CN$9,$CV$9,$CV$10))*IF(DK64=$CD$8,$CJ$8,IF(DK64=$CD$9,$CJ$9,IF(DK64=$CD$10,$CJ$10,$CJ$11)))) -> -- | KM64: =IF(DP$19>$Z64,"--",IF(DP64=$CN$8,$CV$8,IF(DP64=$CN$9,$CV$9,$CV$10))*IF(DU64=$CD$8,$CJ$8,IF(DU64=$CD$9,$CJ$9,IF(DU64=$CD$10,$CJ$10,$CJ$11)))) -> -- | KW64: =IF(DZ$19>$Z64,"--",IF(DZ64=$CN$8,$CV$8,IF(DZ64=$CN$9,$CV$9,$CV$10))*IF(EE64=$CD$8,$CJ$8,IF(EE64=$CD$9,$CJ$9,IF(EE64=$CD$10,$CJ$10,$CJ$11)))) -> -- | LG64: =IF(EJ$19>$Z64,"--",IF(EJ64=$CN$8,$CV$8,IF(EJ64=$CN$9,$CV$9,$CV$10))*IF(EO64=$CD$8,$CJ$8,IF(EO64=$CD$9,$CJ$9,IF(EO64=$CD$10,$CJ$10,$CJ$11)))) -> -- | LQ64: =IF(ET$19>$Z64,"--",IF(ET64=$CN$8,$CV$8,IF(ET64=$CN$9,$CV$9,$CV$10))*IF(EY64=$CD$8,$CJ$8,IF(EY64=$CD$9,$CJ$9,IF(EY64=$CD$10,$CJ$10,$CJ$11)))) -> -- | MA64: =IF(FD$19>$Z64,"--",IF(FD64=$CN$8,$CV$8,IF(FD64=$CN$9,$CV$9,$CV$10))*IF(FI64=$CD$8,$CJ$8,IF(FI64=$CD$9,$CJ$9,IF(FI64=$CD$10,$CJ$10,$CJ$11)))) -> -- | MK64: =IF(FN$19>$Z64,"--",IF(FN64=$CN$8,$CV$8,IF(FN64=$CN$9,$CV$9,$CV$10))*IF(FS64=$CD$8,$CJ$8,IF(FS64=$CD$9,$CJ$9,IF(FS64=$CD$10,$CJ$10,$CJ$11)))) -> -- | MU64: =IF(FX$19>$Z64,"--",IF(FX64=$CN$8,$CV$8,IF(FX64=$CN$9,$CV$9,$CV$10))*IF(GC64=$CD$8,$CJ$8,IF(GC64=$CD$9,$CJ$9,IF(GC64=$CD$10,$CJ$10,$CJ$11)))) -> --
T66: E-W | Z66: 6 | AD66: 2 Lanes | AI66: <20mph | AN66: 2 Lanes | AS66: <20mph | AX66: 2 Lanes | BC66: <20mph | BH66: 2 Lanes | BM66: <20mph | BR66: 2 Lanes | BW66: <20mph | CB66: 2 Lanes | CG66: <20mph | CL66: 2 Lanes | CQ66: <20mph | CV66: 2 Lanes | DA66: <20mph | DF66: 2 Lanes | DK66: <20mph | DP66: 2 Lanes | DU66: <20mph | DZ66: 2 Lanes | EE66: <20mph | EJ66: 2 Lanes | EO66: <20mph | ET66: 2 Lanes | EY66: <20mph | FD66: 2 Lanes | FI66: <20mph | FN66: 2 Lanes | FS66: <20mph | FX66: 2 Lanes | GC66: <20mph | GL66: =IF(GV66<=$BX$11,$BR$11,IF(GV66<=$BX$10,$BR$10,IF(GV66<=$BX$9,$BR$9,$BR$8))) -> Good | GQ66: =MIN(HA66:ND67) -> 64 | GV66: =AVERAGE(HA66:ND67) -> 64 | HA66: =IF(AD$19>$Z66,"--",IF(AD66=$CN$8,$CV$8,IF(AD66=$CN$9,$CV$9,$CV$10))*IF(AI66=$CD$8,$CJ$8,IF(AI66=$CD$9,$CJ$9,IF(AI66=$CD$10,$CJ$10,$CJ$11)))) -> 64 | HK66: =IF(AN$19>$Z66,"--",IF(AN66=$CN$8,$CV$8,IF(AN66=$CN$9,$CV$9,$CV$10))*IF(AS66=$CD$8,$CJ$8,IF(AS66=$CD$9,$CJ$9,IF(AS66=$CD$10,$CJ$10,$CJ$11)))) -> 64 | HU66: =IF(AX$19>$Z66,"--",IF(AX66=$CN$8,$CV$8,IF(AX66=$CN$9,$CV$9,$CV$10))*IF(BC66=$CD$8,$CJ$8,IF(BC66=$CD$9,$CJ$9,IF(BC66=$CD$10,$CJ$10,$CJ$11)))) -> 64 | IE66: =IF(BH$19>$Z66,"--",IF(BH66=$CN$8,$CV$8,IF(BH66=$CN$9,$CV$9,$CV$10))*IF(BM66=$CD$8,$CJ$8,IF(BM66=$CD$9,$CJ$9,IF(BM66=$CD$10,$CJ$10,$CJ$11)))) -> 64 | IO66: =IF(BR$19>$Z66,"--",IF(BR66=$CN$8,$CV$8,IF(BR66=$CN$9,$CV$9,$CV$10))*IF(BW66=$CD$8,$CJ$8,IF(BW66=$CD$9,$CJ$9,IF(BW66=$CD$10,$CJ$10,$CJ$11)))) -> 64 | IY66: =IF(CB$19>$Z66,"--",IF(CB66=$CN$8,$CV$8,IF(CB66=$CN$9,$CV$9,$CV$10))*IF(CG66=$CD$8,$CJ$8,IF(CG66=$CD$9,$CJ$9,IF(CG66=$CD$10,$CJ$10,$CJ$11)))) -> 64 | JI66: =IF(CL$19>$Z66,"--",IF(CL66=$CN$8,$CV$8,IF(CL66=$CN$9,$CV$9,$CV$10))*IF(CQ66=$CD$8,$CJ$8,IF(CQ66=$CD$9,$CJ$9,IF(CQ66=$CD$10,$CJ$10,$CJ$11)))) -> -- | JS66: =IF(CV$19>$Z66,"--",IF(CV66=$CN$8,$CV$8,IF(CV66=$CN$9,$CV$9,$CV$10))*IF(DA66=$CD$8,$CJ$8,IF(DA66=$CD$9,$CJ$9,IF(DA66=$CD$10,$CJ$10,$CJ$11)))) -> -- | KC66: =IF(DF$19>$Z66,"--",IF(DF66=$CN$8,$CV$8,IF(DF66=$CN$9,$CV$9,$CV$10))*IF(DK66=$CD$8,$CJ$8,IF(DK66=$CD$9,$CJ$9,IF(DK66=$CD$10,$CJ$10,$CJ$11)))) -> -- | KM66: =IF(DP$19>$Z66,"--",IF(DP66=$CN$8,$CV$8,IF(DP66=$CN$9,$CV$9,$CV$10))*IF(DU66=$CD$8,$CJ$8,IF(DU66=$CD$9,$CJ$9,IF(DU66=$CD$10,$CJ$10,$CJ$11)))) -> -- | KW66: =IF(DZ$19>$Z66,"--",IF(DZ66=$CN$8,$CV$8,IF(DZ66=$CN$9,$CV$9,$CV$10))*IF(EE66=$CD$8,$CJ$8,IF(EE66=$CD$9,$CJ$9,IF(EE66=$CD$10,$CJ$10,$CJ$11)))) -> -- | LG66: =IF(EJ$19>$Z66,"--",IF(EJ66=$CN$8,$CV$8,IF(EJ66=$CN$9,$CV$9,$CV$10))*IF(EO66=$CD$8,$CJ$8,IF(EO66=$CD$9,$CJ$9,IF(EO66=$CD$10,$CJ$10,$CJ$11)))) -> -- | LQ66: =IF(ET$19>$Z66,"--",IF(ET66=$CN$8,$CV$8,IF(ET66=$CN$9,$CV$9,$CV$10))*IF(EY66=$CD$8,$CJ$8,IF(EY66=$CD$9,$CJ$9,IF(EY66=$CD$10,$CJ$10,$CJ$11)))) -> -- | MA66: =IF(FD$19>$Z66,"--",IF(FD66=$CN$8,$CV$8,IF(FD66=$CN$9,$CV$9,$CV$10))*IF(FI66=$CD$8,$CJ$8,IF(FI66=$CD$9,$CJ$9,IF(FI66=$CD$10,$CJ$10,$CJ$11)))) -> -- | MK66: =IF(FN$19>$Z66,"--",IF(FN66=$CN$8,$CV$8,IF(FN66=$CN$9,$CV$9,$CV$10))*IF(FS66=$CD$8,$CJ$8,IF(FS66=$CD$9,$CJ$9,IF(FS66=$CD$10,$CJ$10,$CJ$11)))) -> -- | MU66: =IF(FX$19>$Z66,"--",IF(FX66=$CN$8,$CV$8,IF(FX66=$CN$9,$CV$9,$CV$10))*IF(GC66=$CD$8,$CJ$8,IF(GC66=$CD$9,$CJ$9,IF(GC66=$CD$10,$CJ$10,$CJ$11)))) -> --
A68: Partial Median U-Turn | T68: N-S | Z68: 6 | AD68: 2 Lanes | AI68: <20mph | AN68: 2 Lanes | AS68: <20mph | AX68: 2 Lanes | BC68: <20mph | BH68: 2 Lanes | BM68: <20mph | BR68: 2 Lanes | BW68: <20mph | CB68: 2 Lanes | CG68: <20mph | CL68: 2 Lanes | CQ68: <20mph | CV68: 2 Lanes | DA68: <20mph | DF68: 2 Lanes | DK68: <20mph | DP68: 2 Lanes | DU68: <20mph | DZ68: 2 Lanes | EE68: <20mph | EJ68: 2 Lanes | EO68: <20mph | ET68: 2 Lanes | EY68: <20mph | FD68: 2 Lanes | FI68: <20mph | FN68: 2 Lanes | FS68: <20mph | FX68: 2 Lanes | GC68: <20mph | GL68: =IF(GV68<=$BX$11,$BR$11,IF(GV68<=$BX$10,$BR$10,IF(GV68<=$BX$9,$BR$9,$BR$8))) -> Good | GQ68: =MIN(HA68:ND69) -> 64 | GV68: =AVERAGE(HA68:ND69) -> 64 | HA68: =IF(AD$19>$Z68,"--",IF(AD68=$CN$8,$CV$8,IF(AD68=$CN$9,$CV$9,$CV$10))*IF(AI68=$CD$8,$CJ$8,IF(AI68=$CD$9,$CJ$9,IF(AI68=$CD$10,$CJ$10,$CJ$11)))) -> 64 | HK68: =IF(AN$19>$Z68,"--",IF(AN68=$CN$8,$CV$8,IF(AN68=$CN$9,$CV$9,$CV$10))*IF(AS68=$CD$8,$CJ$8,IF(AS68=$CD$9,$CJ$9,IF(AS68=$CD$10,$CJ$10,$CJ$11)))) -> 64 | HU68: =IF(AX$19>$Z68,"--",IF(AX68=$CN$8,$CV$8,IF(AX68=$CN$9,$CV$9,$CV$10))*IF(BC68=$CD$8,$CJ$8,IF(BC68=$CD$9,$CJ$9,IF(BC68=$CD$10,$CJ$10,$CJ$11)))) -> 64 | IE68: =IF(BH$19>$Z68,"--",IF(BH68=$CN$8,$CV$8,IF(BH68=$CN$9,$CV$9,$CV$10))*IF(BM68=$CD$8,$CJ$8,IF(BM68=$CD$9,$CJ$9,IF(BM68=$CD$10,$CJ$10,$CJ$11)))) -> 64 | IO68: =IF(BR$19>$Z68,"--",IF(BR68=$CN$8,$CV$8,IF(BR68=$CN$9,$CV$9,$CV$10))*IF(BW68=$CD$8,$CJ$8,IF(BW68=$CD$9,$CJ$9,IF(BW68=$CD$10,$CJ$10,$CJ$11)))) -> 64 | IY68: =IF(CB$19>$Z68,"--",IF(CB68=$CN$8,$CV$8,IF(CB68=$CN$9,$CV$9,$CV$10))*IF(CG68=$CD$8,$CJ$8,IF(CG68=$CD$9,$CJ$9,IF(CG68=$CD$10,$CJ$10,$CJ$11)))) -> 64 | JI68: =IF(CL$19>$Z68,"--",IF(CL68=$CN$8,$CV$8,IF(CL68=$CN$9,$CV$9,$CV$10))*IF(CQ68=$CD$8,$CJ$8,IF(CQ68=$CD$9,$CJ$9,IF(CQ68=$CD$10,$CJ$10,$CJ$11)))) -> -- | JS68: =IF(CV$19>$Z68,"--",IF(CV68=$CN$8,$CV$8,IF(CV68=$CN$9,$CV$9,$CV$10))*IF(DA68=$CD$8,$CJ$8,IF(DA68=$CD$9,$CJ$9,IF(DA68=$CD$10,$CJ$10,$CJ$11)))) -> -- | KC68: =IF(DF$19>$Z68,"--",IF(DF68=$CN$8,$CV$8,IF(DF68=$CN$9,$CV$9,$CV$10))*IF(DK68=$CD$8,$CJ$8,IF(DK68=$CD$9,$CJ$9,IF(DK68=$CD$10,$CJ$10,$CJ$11)))) -> -- | KM68: =IF(DP$19>$Z68,"--",IF(DP68=$CN$8,$CV$8,IF(DP68=$CN$9,$CV$9,$CV$10))*IF(DU68=$CD$8,$CJ$8,IF(DU68=$CD$9,$CJ$9,IF(DU68=$CD$10,$CJ$10,$CJ$11)))) -> -- | KW68: =IF(DZ$19>$Z68,"--",IF(DZ68=$CN$8,$CV$8,IF(DZ68=$CN$9,$CV$9,$CV$10))*IF(EE68=$CD$8,$CJ$8,IF(EE68=$CD$9,$CJ$9,IF(EE68=$CD$10,$CJ$10,$CJ$11)))) -> -- | LG68: =IF(EJ$19>$Z68,"--",IF(EJ68=$CN$8,$CV$8,IF(EJ68=$CN$9,$CV$9,$CV$10))*IF(EO68=$CD$8,$CJ$8,IF(EO68=$CD$9,$CJ$9,IF(EO68=$CD$10,$CJ$10,$CJ$11)))) -> -- | LQ68: =IF(ET$19>$Z68,"--",IF(ET68=$CN$8,$CV$8,IF(ET68=$CN$9,$CV$9,$CV$10))*IF(EY68=$CD$8,$CJ$8,IF(EY68=$CD$9,$CJ$9,IF(EY68=$CD$10,$CJ$10,$CJ$11)))) -> -- | MA68: =IF(FD$19>$Z68,"--",IF(FD68=$CN$8,$CV$8,IF(FD68=$CN$9,$CV$9,$CV$10))*IF(FI68=$CD$8,$CJ$8,IF(FI68=$CD$9,$CJ$9,IF(FI68=$CD$10,$CJ$10,$CJ$11)))) -> -- | MK68: =IF(FN$19>$Z68,"--",IF(FN68=$CN$8,$CV$8,IF(FN68=$CN$9,$CV$9,$CV$10))*IF(FS68=$CD$8,$CJ$8,IF(FS68=$CD$9,$CJ$9,IF(FS68=$CD$10,$CJ$10,$CJ$11)))) -> -- | MU68: =IF(FX$19>$Z68,"--",IF(FX68=$CN$8,$CV$8,IF(FX68=$CN$9,$CV$9,$CV$10))*IF(GC68=$CD$8,$CJ$8,IF(GC68=$CD$9,$CJ$9,IF(GC68=$CD$10,$CJ$10,$CJ$11)))) -> --
T70: E-W | Z70: 6 | AD70: 2 Lanes | AI70: <20mph | AN70: 2 Lanes | AS70: <20mph | AX70: 2 Lanes | BC70: <20mph | BH70: 2 Lanes | BM70: <20mph | BR70: 2 Lanes | BW70: <20mph | CB70: 2 Lanes | CG70: <20mph | CL70: 2 Lanes | CQ70: <20mph | CV70: 2 Lanes | DA70: <20mph | DF70: 2 Lanes | DK70: <20mph | DP70: 2 Lanes | DU70: <20mph | DZ70: 2 Lanes | EE70: <20mph | EJ70: 2 Lanes | EO70: <20mph | ET70: 2 Lanes | EY70: <20mph | FD70: 2 Lanes | FI70: <20mph | FN70: 2 Lanes | FS70: <20mph | FX70: 2 Lanes | GC70: <20mph | GL70: =IF(GV70<=$BX$11,$BR$11,IF(GV70<=$BX$10,$BR$10,IF(GV70<=$BX$9,$BR$9,$BR$8))) -> Good | GQ70: =MIN(HA70:ND71) -> 64 | GV70: =AVERAGE(HA70:ND71) -> 64 | HA70: =IF(AD$19>$Z70,"--",IF(AD70=$CN$8,$CV$8,IF(AD70=$CN$9,$CV$9,$CV$10))*IF(AI70=$CD$8,$CJ$8,IF(AI70=$CD$9,$CJ$9,IF(AI70=$CD$10,$CJ$10,$CJ$11)))) -> 64 | HK70: =IF(AN$19>$Z70,"--",IF(AN70=$CN$8,$CV$8,IF(AN70=$CN$9,$CV$9,$CV$10))*IF(AS70=$CD$8,$CJ$8,IF(AS70=$CD$9,$CJ$9,IF(AS70=$CD$10,$CJ$10,$CJ$11)))) -> 64 | HU70: =IF(AX$19>$Z70,"--",IF(AX70=$CN$8,$CV$8,IF(AX70=$CN$9,$CV$9,$CV$10))*IF(BC70=$CD$8,$CJ$8,IF(BC70=$CD$9,$CJ$9,IF(BC70=$CD$10,$CJ$10,$CJ$11)))) -> 64 | IE70: =IF(BH$19>$Z70,"--",IF(BH70=$CN$8,$CV$8,IF(BH70=$CN$9,$CV$9,$CV$10))*IF(BM70=$CD$8,$CJ$8,IF(BM70=$CD$9,$CJ$9,IF(BM70=$CD$10,$CJ$10,$CJ$11)))) -> 64 | IO70: =IF(BR$19>$Z70,"--",IF(BR70=$CN$8,$CV$8,IF(BR70=$CN$9,$CV$9,$CV$10))*IF(BW70=$CD$8,$CJ$8,IF(BW70=$CD$9,$CJ$9,IF(BW70=$CD$10,$CJ$10,$CJ$11)))) -> 64 | IY70: =IF(CB$19>$Z70,"--",IF(CB70=$CN$8,$CV$8,IF(CB70=$CN$9,$CV$9,$CV$10))*IF(CG70=$CD$8,$CJ$8,IF(CG70=$CD$9,$CJ$9,IF(CG70=$CD$10,$CJ$10,$CJ$11)))) -> 64 | JI70: =IF(CL$19>$Z70,"--",IF(CL70=$CN$8,$CV$8,IF(CL70=$CN$9,$CV$9,$CV$10))*IF(CQ70=$CD$8,$CJ$8,IF(CQ70=$CD$9,$CJ$9,IF(CQ70=$CD$10,$CJ$10,$CJ$11)))) -> -- | JS70: =IF(CV$19>$Z70,"--",IF(CV70=$CN$8,$CV$8,IF(CV70=$CN$9,$CV$9,$CV$10))*IF(DA70=$CD$8,$CJ$8,IF(DA70=$CD$9,$CJ$9,IF(DA70=$CD$10,$CJ$10,$CJ$11)))) -> -- | KC70: =IF(DF$19>$Z70,"--",IF(DF70=$CN$8,$CV$8,IF(DF70=$CN$9,$CV$9,$CV$10))*IF(DK70=$CD$8,$CJ$8,IF(DK70=$CD$9,$CJ$9,IF(DK70=$CD$10,$CJ$10,$CJ$11)))) -> -- | KM70: =IF(DP$19>$Z70,"--",IF(DP70=$CN$8,$CV$8,IF(DP70=$CN$9,$CV$9,$CV$10))*IF(DU70=$CD$8,$CJ$8,IF(DU70=$CD$9,$CJ$9,IF(DU70=$CD$10,$CJ$10,$CJ$11)))) -> -- | KW70: =IF(DZ$19>$Z70,"--",IF(DZ70=$CN$8,$CV$8,IF(DZ70=$CN$9,$CV$9,$CV$10))*IF(EE70=$CD$8,$CJ$8,IF(EE70=$CD$9,$CJ$9,IF(EE70=$CD$10,$CJ$10,$CJ$11)))) -> -- | LG70: =IF(EJ$19>$Z70,"--",IF(EJ70=$CN$8,$CV$8,IF(EJ70=$CN$9,$CV$9,$CV$10))*IF(EO70=$CD$8,$CJ$8,IF(EO70=$CD$9,$CJ$9,IF(EO70=$CD$10,$CJ$10,$CJ$11)))) -> -- | LQ70: =IF(ET$19>$Z70,"--",IF(ET70=$CN$8,$CV$8,IF(ET70=$CN$9,$CV$9,$CV$10))*IF(EY70=$CD$8,$CJ$8,IF(EY70=$CD$9,$CJ$9,IF(EY70=$CD$10,$CJ$10,$CJ$11)))) -> -- | MA70: =IF(FD$19>$Z70,"--",IF(FD70=$CN$8,$CV$8,IF(FD70=$CN$9,$CV$9,$CV$10))*IF(FI70=$CD$8,$CJ$8,IF(FI70=$CD$9,$CJ$9,IF(FI70=$CD$10,$CJ$10,$CJ$11)))) -> -- | MK70: =IF(FN$19>$Z70,"--",IF(FN70=$CN$8,$CV$8,IF(FN70=$CN$9,$CV$9,$CV$10))*IF(FS70=$CD$8,$CJ$8,IF(FS70=$CD$9,$CJ$9,IF(FS70=$CD$10,$CJ$10,$CJ$11)))) -> -- | MU70: =IF(FX$19>$Z70,"--",IF(FX70=$CN$8,$CV$8,IF(FX70=$CN$9,$CV$9,$CV$10))*IF(GC70=$CD$8,$CJ$8,IF(GC70=$CD$9,$CJ$9,IF(GC70=$CD$10,$CJ$10,$CJ$11)))) -> --
A72: Bowtie | T72: N-S | Z72: 6 | AD72: 2 Lanes | AI72: <20mph | AN72: 2 Lanes | AS72: <20mph | AX72: 2 Lanes | BC72: <20mph | BH72: 2 Lanes | BM72: <20mph | BR72: 2 Lanes | BW72: <20mph | CB72: 2 Lanes | CG72: <20mph | CL72: 2 Lanes | CQ72: <20mph | CV72: 2 Lanes | DA72: <20mph | DF72: 2 Lanes | DK72: <20mph | DP72: 2 Lanes | DU72: <20mph | DZ72: 2 Lanes | EE72: <20mph | EJ72: 2 Lanes | EO72: <20mph | ET72: 2 Lanes | EY72: <20mph | FD72: 2 Lanes | FI72: <20mph | FN72: 2 Lanes | FS72: <20mph | FX72: 2 Lanes | GC72: <20mph | GL72: =IF(GV72<=$BX$11,$BR$11,IF(GV72<=$BX$10,$BR$10,IF(GV72<=$BX$9,$BR$9,$BR$8))) -> Good | GQ72: =MIN(HA72:ND73) -> 64 | GV72: =AVERAGE(HA72:ND73) -> 64 | HA72: =IF(AD$19>$Z72,"--",IF(AD72=$CN$8,$CV$8,IF(AD72=$CN$9,$CV$9,$CV$10))*IF(AI72=$CD$8,$CJ$8,IF(AI72=$CD$9,$CJ$9,IF(AI72=$CD$10,$CJ$10,$CJ$11)))) -> 64 | HK72: =IF(AN$19>$Z72,"--",IF(AN72=$CN$8,$CV$8,IF(AN72=$CN$9,$CV$9,$CV$10))*IF(AS72=$CD$8,$CJ$8,IF(AS72=$CD$9,$CJ$9,IF(AS72=$CD$10,$CJ$10,$CJ$11)))) -> 64 | HU72: =IF(AX$19>$Z72,"--",IF(AX72=$CN$8,$CV$8,IF(AX72=$CN$9,$CV$9,$CV$10))*IF(BC72=$CD$8,$CJ$8,IF(BC72=$CD$9,$CJ$9,IF(BC72=$CD$10,$CJ$10,$CJ$11)))) -> 64 | IE72: =IF(BH$19>$Z72,"--",IF(BH72=$CN$8,$CV$8,IF(BH72=$CN$9,$CV$9,$CV$10))*IF(BM72=$CD$8,$CJ$8,IF(BM72=$CD$9,$CJ$9,IF(BM72=$CD$10,$CJ$10,$CJ$11)))) -> 64 | IO72: =IF(BR$19>$Z72,"--",IF(BR72=$CN$8,$CV$8,IF(BR72=$CN$9,$CV$9,$CV$10))*IF(BW72=$CD$8,$CJ$8,IF(BW72=$CD$9,$CJ$9,IF(BW72=$CD$10,$CJ$10,$CJ$11)))) -> 64 | IY72: =IF(CB$19>$Z72,"--",IF(CB72=$CN$8,$CV$8,IF(CB72=$CN$9,$CV$9,$CV$10))*IF(CG72=$CD$8,$CJ$8,IF(CG72=$CD$9,$CJ$9,IF(CG72=$CD$10,$CJ$10,$CJ$11)))) -> 64 | JI72: =IF(CL$19>$Z72,"--",IF(CL72=$CN$8,$CV$8,IF(CL72=$CN$9,$CV$9,$CV$10))*IF(CQ72=$CD$8,$CJ$8,IF(CQ72=$CD$9,$CJ$9,IF(CQ72=$CD$10,$CJ$10,$CJ$11)))) -> -- | JS72: =IF(CV$19>$Z72,"--",IF(CV72=$CN$8,$CV$8,IF(CV72=$CN$9,$CV$9,$CV$10))*IF(DA72=$CD$8,$CJ$8,IF(DA72=$CD$9,$CJ$9,IF(DA72=$CD$10,$CJ$10,$CJ$11)))) -> -- | KC72: =IF(DF$19>$Z72,"--",IF(DF72=$CN$8,$CV$8,IF(DF72=$CN$9,$CV$9,$CV$10))*IF(DK72=$CD$8,$CJ$8,IF(DK72=$CD$9,$CJ$9,IF(DK72=$CD$10,$CJ$10,$CJ$11)))) -> -- | KM72: =IF(DP$19>$Z72,"--",IF(DP72=$CN$8,$CV$8,IF(DP72=$CN$9,$CV$9,$CV$10))*IF(DU72=$CD$8,$CJ$8,IF(DU72=$CD$9,$CJ$9,IF(DU72=$CD$10,$CJ$10,$CJ$11)))) -> -- | KW72: =IF(DZ$19>$Z72,"--",IF(DZ72=$CN$8,$CV$8,IF(DZ72=$CN$9,$CV$9,$CV$10))*IF(EE72=$CD$8,$CJ$8,IF(EE72=$CD$9,$CJ$9,IF(EE72=$CD$10,$CJ$10,$CJ$11)))) -> -- | LG72: =IF(EJ$19>$Z72,"--",IF(EJ72=$CN$8,$CV$8,IF(EJ72=$CN$9,$CV$9,$CV$10))*IF(EO72=$CD$8,$CJ$8,IF(EO72=$CD$9,$CJ$9,IF(EO72=$CD$10,$CJ$10,$CJ$11)))) -> -- | LQ72: =IF(ET$19>$Z72,"--",IF(ET72=$CN$8,$CV$8,IF(ET72=$CN$9,$CV$9,$CV$10))*IF(EY72=$CD$8,$CJ$8,IF(EY72=$CD$9,$CJ$9,IF(EY72=$CD$10,$CJ$10,$CJ$11)))) -> -- | MA72: =IF(FD$19>$Z72,"--",IF(FD72=$CN$8,$CV$8,IF(FD72=$CN$9,$CV$9,$CV$10))*IF(FI72=$CD$8,$CJ$8,IF(FI72=$CD$9,$CJ$9,IF(FI72=$CD$10,$CJ$10,$CJ$11)))) -> -- | MK72: =IF(FN$19>$Z72,"--",IF(FN72=$CN$8,$CV$8,IF(FN72=$CN$9,$CV$9,$CV$10))*IF(FS72=$CD$8,$CJ$8,IF(FS72=$CD$9,$CJ$9,IF(FS72=$CD$10,$CJ$10,$CJ$11)))) -> -- | MU72: =IF(FX$19>$Z72,"--",IF(FX72=$CN$8,$CV$8,IF(FX72=$CN$9,$CV$9,$CV$10))*IF(GC72=$CD$8,$CJ$8,IF(GC72=$CD$9,$CJ$9,IF(GC72=$CD$10,$CJ$10,$CJ$11)))) -> --
T74: E-W | Z74: 6 | AD74: 2 Lanes | AI74: <20mph | AN74: 2 Lanes | AS74: <20mph | AX74: 2 Lanes | BC74: <20mph | BH74: 2 Lanes | BM74: <20mph | BR74: 2 Lanes | BW74: <20mph | CB74: 2 Lanes | CG74: <20mph | CL74: 2 Lanes | CQ74: <20mph | CV74: 2 Lanes | DA74: <20mph | DF74: 2 Lanes | DK74: <20mph | DP74: 2 Lanes | DU74: <20mph | DZ74: 2 Lanes | EE74: <20mph | EJ74: 2 Lanes | EO74: <20mph | ET74: 2 Lanes | EY74: <20mph | FD74: 2 Lanes | FI74: <20mph | FN74: 2 Lanes | FS74: <20mph | FX74: 2 Lanes | GC74: <20mph | GL74: =IF(GV74<=$BX$11,$BR$11,IF(GV74<=$BX$10,$BR$10,IF(GV74<=$BX$9,$BR$9,$BR$8))) -> Good | GQ74: =MIN(HA74:ND75) -> 64 | GV74: =AVERAGE(HA74:ND75) -> 64 | HA74: =IF(AD$19>$Z74,"--",IF(AD74=$CN$8,$CV$8,IF(AD74=$CN$9,$CV$9,$CV$10))*IF(AI74=$CD$8,$CJ$8,IF(AI74=$CD$9,$CJ$9,IF(AI74=$CD$10,$CJ$10,$CJ$11)))) -> 64 | HK74: =IF(AN$19>$Z74,"--",IF(AN74=$CN$8,$CV$8,IF(AN74=$CN$9,$CV$9,$CV$10))*IF(AS74=$CD$8,$CJ$8,IF(AS74=$CD$9,$CJ$9,IF(AS74=$CD$10,$CJ$10,$CJ$11)))) -> 64 | HU74: =IF(AX$19>$Z74,"--",IF(AX74=$CN$8,$CV$8,IF(AX74=$CN$9,$CV$9,$CV$10))*IF(BC74=$CD$8,$CJ$8,IF(BC74=$CD$9,$CJ$9,IF(BC74=$CD$10,$CJ$10,$CJ$11)))) -> 64 | IE74: =IF(BH$19>$Z74,"--",IF(BH74=$CN$8,$CV$8,IF(BH74=$CN$9,$CV$9,$CV$10))*IF(BM74=$CD$8,$CJ$8,IF(BM74=$CD$9,$CJ$9,IF(BM74=$CD$10,$CJ$10,$CJ$11)))) -> 64 | IO74: =IF(BR$19>$Z74,"--",IF(BR74=$CN$8,$CV$8,IF(BR74=$CN$9,$CV$9,$CV$10))*IF(BW74=$CD$8,$CJ$8,IF(BW74=$CD$9,$CJ$9,IF(BW74=$CD$10,$CJ$10,$CJ$11)))) -> 64 | IY74: =IF(CB$19>$Z74,"--",IF(CB74=$CN$8,$CV$8,IF(CB74=$CN$9,$CV$9,$CV$10))*IF(CG74=$CD$8,$CJ$8,IF(CG74=$CD$9,$CJ$9,IF(CG74=$CD$10,$CJ$10,$CJ$11)))) -> 64 | JI74: =IF(CL$19>$Z74,"--",IF(CL74=$CN$8,$CV$8,IF(CL74=$CN$9,$CV$9,$CV$10))*IF(CQ74=$CD$8,$CJ$8,IF(CQ74=$CD$9,$CJ$9,IF(CQ74=$CD$10,$CJ$10,$CJ$11)))) -> -- | JS74: =IF(CV$19>$Z74,"--",IF(CV74=$CN$8,$CV$8,IF(CV74=$CN$9,$CV$9,$CV$10))*IF(DA74=$CD$8,$CJ$8,IF(DA74=$CD$9,$CJ$9,IF(DA74=$CD$10,$CJ$10,$CJ$11)))) -> -- | KC74: =IF(DF$19>$Z74,"--",IF(DF74=$CN$8,$CV$8,IF(DF74=$CN$9,$CV$9,$CV$10))*IF(DK74=$CD$8,$CJ$8,IF(DK74=$CD$9,$CJ$9,IF(DK74=$CD$10,$CJ$10,$CJ$11)))) -> -- | KM74: =IF(DP$19>$Z74,"--",IF(DP74=$CN$8,$CV$8,IF(DP74=$CN$9,$CV$9,$CV$10))*IF(DU74=$CD$8,$CJ$8,IF(DU74=$CD$9,$CJ$9,IF(DU74=$CD$10,$CJ$10,$CJ$11)))) -> -- | KW74: =IF(DZ$19>$Z74,"--",IF(DZ74=$CN$8,$CV$8,IF(DZ74=$CN$9,$CV$9,$CV$10))*IF(EE74=$CD$8,$CJ$8,IF(EE74=$CD$9,$CJ$9,IF(EE74=$CD$10,$CJ$10,$CJ$11)))) -> -- | LG74: =IF(EJ$19>$Z74,"--",IF(EJ74=$CN$8,$CV$8,IF(EJ74=$CN$9,$CV$9,$CV$10))*IF(EO74=$CD$8,$CJ$8,IF(EO74=$CD$9,$CJ$9,IF(EO74=$CD$10,$CJ$10,$CJ$11)))) -> -- | LQ74: =IF(ET$19>$Z74,"--",IF(ET74=$CN$8,$CV$8,IF(ET74=$CN$9,$CV$9,$CV$10))*IF(EY74=$CD$8,$CJ$8,IF(EY74=$CD$9,$CJ$9,IF(EY74=$CD$10,$CJ$10,$CJ$11)))) -> -- | MA74: =IF(FD$19>$Z74,"--",IF(FD74=$CN$8,$CV$8,IF(FD74=$CN$9,$CV$9,$CV$10))*IF(FI74=$CD$8,$CJ$8,IF(FI74=$CD$9,$CJ$9,IF(FI74=$CD$10,$CJ$10,$CJ$11)))) -> -- | MK74: =IF(FN$19>$Z74,"--",IF(FN74=$CN$8,$CV$8,IF(FN74=$CN$9,$CV$9,$CV$10))*IF(FS74=$CD$8,$CJ$8,IF(FS74=$CD$9,$CJ$9,IF(FS74=$CD$10,$CJ$10,$CJ$11)))) -> -- | MU74: =IF(FX$19>$Z74,"--",IF(FX74=$CN$8,$CV$8,IF(FX74=$CN$9,$CV$9,$CV$10))*IF(GC74=$CD$8,$CJ$8,IF(GC74=$CD$9,$CJ$9,IF(GC74=$CD$10,$CJ$10,$CJ$11)))) -> --
A76: Split Intersection | T76: N-S | Z76: 6 | AD76: 2 Lanes | AI76: <20mph | AN76: 2 Lanes | AS76: <20mph | AX76: 2 Lanes | BC76: <20mph | BH76: 2 Lanes | BM76: <20mph | BR76: 2 Lanes | BW76: <20mph | CB76: 2 Lanes | CG76: <20mph | CL76: 2 Lanes | CQ76: <20mph | CV76: 2 Lanes | DA76: <20mph | DF76: 2 Lanes | DK76: <20mph | DP76: 2 Lanes | DU76: <20mph | DZ76: 2 Lanes | EE76: <20mph | EJ76: 2 Lanes | EO76: <20mph | ET76: 2 Lanes | EY76: <20mph | FD76: 2 Lanes | FI76: <20mph | FN76: 2 Lanes | FS76: <20mph | FX76: 2 Lanes | GC76: <20mph | GL76: =IF(GV76<=$BX$11,$BR$11,IF(GV76<=$BX$10,$BR$10,IF(GV76<=$BX$9,$BR$9,$BR$8))) -> Good | GQ76: =MIN(HA76:ND77) -> 64 | GV76: =AVERAGE(HA76:ND77) -> 64 | HA76: =IF(AD$19>$Z76,"--",IF(AD76=$CN$8,$CV$8,IF(AD76=$CN$9,$CV$9,$CV$10))*IF(AI76=$CD$8,$CJ$8,IF(AI76=$CD$9,$CJ$9,IF(AI76=$CD$10,$CJ$10,$CJ$11)))) -> 64 | HK76: =IF(AN$19>$Z76,"--",IF(AN76=$CN$8,$CV$8,IF(AN76=$CN$9,$CV$9,$CV$10))*IF(AS76=$CD$8,$CJ$8,IF(AS76=$CD$9,$CJ$9,IF(AS76=$CD$10,$CJ$10,$CJ$11)))) -> 64 | HU76: =IF(AX$19>$Z76,"--",IF(AX76=$CN$8,$CV$8,IF(AX76=$CN$9,$CV$9,$CV$10))*IF(BC76=$CD$8,$CJ$8,IF(BC76=$CD$9,$CJ$9,IF(BC76=$CD$10,$CJ$10,$CJ$11)))) -> 64 | IE76: =IF(BH$19>$Z76,"--",IF(BH76=$CN$8,$CV$8,IF(BH76=$CN$9,$CV$9,$CV$10))*IF(BM76=$CD$8,$CJ$8,IF(BM76=$CD$9,$CJ$9,IF(BM76=$CD$10,$CJ$10,$CJ$11)))) -> 64 | IO76: =IF(BR$19>$Z76,"--",IF(BR76=$CN$8,$CV$8,IF(BR76=$CN$9,$CV$9,$CV$10))*IF(BW76=$CD$8,$CJ$8,IF(BW76=$CD$9,$CJ$9,IF(BW76=$CD$10,$CJ$10,$CJ$11)))) -> 64 | IY76: =IF(CB$19>$Z76,"--",IF(CB76=$CN$8,$CV$8,IF(CB76=$CN$9,$CV$9,$CV$10))*IF(CG76=$CD$8,$CJ$8,IF(CG76=$CD$9,$CJ$9,IF(CG76=$CD$10,$CJ$10,$CJ$11)))) -> 64 | JI76: =IF(CL$19>$Z76,"--",IF(CL76=$CN$8,$CV$8,IF(CL76=$CN$9,$CV$9,$CV$10))*IF(CQ76=$CD$8,$CJ$8,IF(CQ76=$CD$9,$CJ$9,IF(CQ76=$CD$10,$CJ$10,$CJ$11)))) -> -- | JS76: =IF(CV$19>$Z76,"--",IF(CV76=$CN$8,$CV$8,IF(CV76=$CN$9,$CV$9,$CV$10))*IF(DA76=$CD$8,$CJ$8,IF(DA76=$CD$9,$CJ$9,IF(DA76=$CD$10,$CJ$10,$CJ$11)))) -> -- | KC76: =IF(DF$19>$Z76,"--",IF(DF76=$CN$8,$CV$8,IF(DF76=$CN$9,$CV$9,$CV$10))*IF(DK76=$CD$8,$CJ$8,IF(DK76=$CD$9,$CJ$9,IF(DK76=$CD$10,$CJ$10,$CJ$11)))) -> -- | KM76: =IF(DP$19>$Z76,"--",IF(DP76=$CN$8,$CV$8,IF(DP76=$CN$9,$CV$9,$CV$10))*IF(DU76=$CD$8,$CJ$8,IF(DU76=$CD$9,$CJ$9,IF(DU76=$CD$10,$CJ$10,$CJ$11)))) -> -- | KW76: =IF(DZ$19>$Z76,"--",IF(DZ76=$CN$8,$CV$8,IF(DZ76=$CN$9,$CV$9,$CV$10))*IF(EE76=$CD$8,$CJ$8,IF(EE76=$CD$9,$CJ$9,IF(EE76=$CD$10,$CJ$10,$CJ$11)))) -> -- | LG76: =IF(EJ$19>$Z76,"--",IF(EJ76=$CN$8,$CV$8,IF(EJ76=$CN$9,$CV$9,$CV$10))*IF(EO76=$CD$8,$CJ$8,IF(EO76=$CD$9,$CJ$9,IF(EO76=$CD$10,$CJ$10,$CJ$11)))) -> -- | LQ76: =IF(ET$19>$Z76,"--",IF(ET76=$CN$8,$CV$8,IF(ET76=$CN$9,$CV$9,$CV$10))*IF(EY76=$CD$8,$CJ$8,IF(EY76=$CD$9,$CJ$9,IF(EY76=$CD$10,$CJ$10,$CJ$11)))) -> -- | MA76: =IF(FD$19>$Z76,"--",IF(FD76=$CN$8,$CV$8,IF(FD76=$CN$9,$CV$9,$CV$10))*IF(FI76=$CD$8,$CJ$8,IF(FI76=$CD$9,$CJ$9,IF(FI76=$CD$10,$CJ$10,$CJ$11)))) -> -- | MK76: =IF(FN$19>$Z76,"--",IF(FN76=$CN$8,$CV$8,IF(FN76=$CN$9,$CV$9,$CV$10))*IF(FS76=$CD$8,$CJ$8,IF(FS76=$CD$9,$CJ$9,IF(FS76=$CD$10,$CJ$10,$CJ$11)))) -> -- | MU76: =IF(FX$19>$Z76,"--",IF(FX76=$CN$8,$CV$8,IF(FX76=$CN$9,$CV$9,$CV$10))*IF(GC76=$CD$8,$CJ$8,IF(GC76=$CD$9,$CJ$9,IF(GC76=$CD$10,$CJ$10,$CJ$11)))) -> --
T78: E-W | Z78: 6 | AD78: 2 Lanes | AI78: <20mph | AN78: 2 Lanes | AS78: <20mph | AX78: 2 Lanes | BC78: <20mph | BH78: 2 Lanes | BM78: <20mph | BR78: 2 Lanes | BW78: <20mph | CB78: 2 Lanes | CG78: <20mph | CL78: 2 Lanes | CQ78: <20mph | CV78: 2 Lanes | DA78: <20mph | DF78: 2 Lanes | DK78: <20mph | DP78: 2 Lanes | DU78: <20mph | DZ78: 2 Lanes | EE78: <20mph | EJ78: 2 Lanes | EO78: <20mph | ET78: 2 Lanes | EY78: <20mph | FD78: 2 Lanes | FI78: <20mph | FN78: 2 Lanes | FS78: <20mph | FX78: 2 Lanes | GC78: <20mph | GL78: =IF(GV78<=$BX$11,$BR$11,IF(GV78<=$BX$10,$BR$10,IF(GV78<=$BX$9,$BR$9,$BR$8))) -> Good | GQ78: =MIN(HA78:ND79) -> 64 | GV78: =AVERAGE(HA78:ND79) -> 64 | HA78: =IF(AD$19>$Z78,"--",IF(AD78=$CN$8,$CV$8,IF(AD78=$CN$9,$CV$9,$CV$10))*IF(AI78=$CD$8,$CJ$8,IF(AI78=$CD$9,$CJ$9,IF(AI78=$CD$10,$CJ$10,$CJ$11)))) -> 64 | HK78: =IF(AN$19>$Z78,"--",IF(AN78=$CN$8,$CV$8,IF(AN78=$CN$9,$CV$9,$CV$10))*IF(AS78=$CD$8,$CJ$8,IF(AS78=$CD$9,$CJ$9,IF(AS78=$CD$10,$CJ$10,$CJ$11)))) -> 64 | HU78: =IF(AX$19>$Z78,"--",IF(AX78=$CN$8,$CV$8,IF(AX78=$CN$9,$CV$9,$CV$10))*IF(BC78=$CD$8,$CJ$8,IF(BC78=$CD$9,$CJ$9,IF(BC78=$CD$10,$CJ$10,$CJ$11)))) -> 64 | IE78: =IF(BH$19>$Z78,"--",IF(BH78=$CN$8,$CV$8,IF(BH78=$CN$9,$CV$9,$CV$10))*IF(BM78=$CD$8,$CJ$8,IF(BM78=$CD$9,$CJ$9,IF(BM78=$CD$10,$CJ$10,$CJ$11)))) -> 64 | IO78: =IF(BR$19>$Z78,"--",IF(BR78=$CN$8,$CV$8,IF(BR78=$CN$9,$CV$9,$CV$10))*IF(BW78=$CD$8,$CJ$8,IF(BW78=$CD$9,$CJ$9,IF(BW78=$CD$10,$CJ$10,$CJ$11)))) -> 64 | IY78: =IF(CB$19>$Z78,"--",IF(CB78=$CN$8,$CV$8,IF(CB78=$CN$9,$CV$9,$CV$10))*IF(CG78=$CD$8,$CJ$8,IF(CG78=$CD$9,$CJ$9,IF(CG78=$CD$10,$CJ$10,$CJ$11)))) -> 64 | JI78: =IF(CL$19>$Z78,"--",IF(CL78=$CN$8,$CV$8,IF(CL78=$CN$9,$CV$9,$CV$10))*IF(CQ78=$CD$8,$CJ$8,IF(CQ78=$CD$9,$CJ$9,IF(CQ78=$CD$10,$CJ$10,$CJ$11)))) -> -- | JS78: =IF(CV$19>$Z78,"--",IF(CV78=$CN$8,$CV$8,IF(CV78=$CN$9,$CV$9,$CV$10))*IF(DA78=$CD$8,$CJ$8,IF(DA78=$CD$9,$CJ$9,IF(DA78=$CD$10,$CJ$10,$CJ$11)))) -> -- | KC78: =IF(DF$19>$Z78,"--",IF(DF78=$CN$8,$CV$8,IF(DF78=$CN$9,$CV$9,$CV$10))*IF(DK78=$CD$8,$CJ$8,IF(DK78=$CD$9,$CJ$9,IF(DK78=$CD$10,$CJ$10,$CJ$11)))) -> -- | KM78: =IF(DP$19>$Z78,"--",IF(DP78=$CN$8,$CV$8,IF(DP78=$CN$9,$CV$9,$CV$10))*IF(DU78=$CD$8,$CJ$8,IF(DU78=$CD$9,$CJ$9,IF(DU78=$CD$10,$CJ$10,$CJ$11)))) -> -- | KW78: =IF(DZ$19>$Z78,"--",IF(DZ78=$CN$8,$CV$8,IF(DZ78=$CN$9,$CV$9,$CV$10))*IF(EE78=$CD$8,$CJ$8,IF(EE78=$CD$9,$CJ$9,IF(EE78=$CD$10,$CJ$10,$CJ$11)))) -> -- | LG78: =IF(EJ$19>$Z78,"--",IF(EJ78=$CN$8,$CV$8,IF(EJ78=$CN$9,$CV$9,$CV$10))*IF(EO78=$CD$8,$CJ$8,IF(EO78=$CD$9,$CJ$9,IF(EO78=$CD$10,$CJ$10,$CJ$11)))) -> -- | LQ78: =IF(ET$19>$Z78,"--",IF(ET78=$CN$8,$CV$8,IF(ET78=$CN$9,$CV$9,$CV$10))*IF(EY78=$CD$8,$CJ$8,IF(EY78=$CD$9,$CJ$9,IF(EY78=$CD$10,$CJ$10,$CJ$11)))) -> -- | MA78: =IF(FD$19>$Z78,"--",IF(FD78=$CN$8,$CV$8,IF(FD78=$CN$9,$CV$9,$CV$10))*IF(FI78=$CD$8,$CJ$8,IF(FI78=$CD$9,$CJ$9,IF(FI78=$CD$10,$CJ$10,$CJ$11)))) -> -- | MK78: =IF(FN$19>$Z78,"--",IF(FN78=$CN$8,$CV$8,IF(FN78=$CN$9,$CV$9,$CV$10))*IF(FS78=$CD$8,$CJ$8,IF(FS78=$CD$9,$CJ$9,IF(FS78=$CD$10,$CJ$10,$CJ$11)))) -> -- | MU78: =IF(FX$19>$Z78,"--",IF(FX78=$CN$8,$CV$8,IF(FX78=$CN$9,$CV$9,$CV$10))*IF(GC78=$CD$8,$CJ$8,IF(GC78=$CD$9,$CJ$9,IF(GC78=$CD$10,$CJ$10,$CJ$11)))) -> --
A81: Pedestrian Crossing Configurations for Separated Intersections | GL81: Pedestrian Multimodal Scoring for Grade-Separated Intersections
A83: TYPE OF INTERSECTION | T83: Sheet | Z83: # Of X-ings | AD83: Crossing #1 | AN83: Crossing #2 | AX83: Crossing #3 | BH83: Crossing #4 | BR83: Crossing #5 | CB83: Crossing #6 | CL83: Crossing #7 | CV83: Crossing #8 | DF83: Crossing #9 | DP83: Crossing #10 | DZ83: Crossing #11 | EJ83: Crossing #12 | ET83: Crossing #13 | FD83: Crossing #14 | FN83: Crossing #15 | FX83: Crossing #16 | GL83: Intx Scores | HA83: Individual Crossing Scores
AD85: # Lanes | AI85: Veh Speed | AN85: # Lanes | AS85: Veh Speed | AX85: # Lanes | BC85: Veh Speed | BH85: # Lanes | BM85: Veh Speed | BR85: # Lanes | BW85: Veh Speed | CB85: # Lanes | CG85: Veh Speed | CL85: # Lanes | CQ85: Veh Speed | CV85: # Lanes | DA85: Veh Speed | DF85: # Lanes | DK85: Veh Speed | DP85: # Lanes | DU85: Veh Speed | DZ85: # Lanes | EE85: Veh Speed | EJ85: # Lanes | EO85: Veh Speed | ET85: # Lanes | EY85: Veh Speed | FD85: # Lanes | FI85: Veh Speed | FN85: # Lanes | FS85: Veh Speed | FX85: # Lanes | GC85: Veh Speed | GL85: Report | GQ85: Worst | GV85: Avg | HA85: #1 | HK85: #2 | HU85: #3 | IE85: #4 | IO85: #5 | IY85: #6 | JI85: #7 | JS85: #8 | KC85: #9 | KM85: #10 | KW85: #11 | LG85: #12 | LQ85: #13 | MA85: #14 | MK85: #15 | MU85: #16
A87: Echelon | T87: N-S | Z87: 4 | AD87: 2 Lanes | AI87: <20mph | AN87: 2 Lanes | AS87: <20mph | AX87: 2 Lanes | BC87: <20mph | BH87: 2 Lanes | BM87: <20mph | BR87: 2 Lanes | BW87: <20mph | CB87: 2 Lanes | CG87: <20mph | CL87: 2 Lanes | CQ87: <20mph | CV87: 2 Lanes | DA87: <20mph | DF87: 2 Lanes | DK87: <20mph | DP87: 2 Lanes | DU87: <20mph | DZ87: 2 Lanes | EE87: <20mph | EJ87: 2 Lanes | EO87: <20mph | ET87: 2 Lanes | EY87: <20mph | FD87: 2 Lanes | FI87: <20mph | FN87: 2 Lanes | FS87: <20mph | FX87: 2 Lanes | GC87: <20mph | GL87: =IF(GV87<=$BX$11,$BR$11,IF(GV87<=$BX$10,$BR$10,IF(GV87<=$BX$9,$BR$9,$BR$8))) -> Good | GQ87: =MIN(HA87:ND88) -> 64 | GV87: =AVERAGE(HA87:ND88) -> 64 | HA87: =IF(AD$19>$Z87,"--",IF(AD87=$CN$8,$CV$8,IF(AD87=$CN$9,$CV$9,$CV$10))*IF(AI87=$CD$8,$CJ$8,IF(AI87=$CD$9,$CJ$9,IF(AI87=$CD$10,$CJ$10,$CJ$11)))) -> 64 | HK87: =IF(AN$19>$Z87,"--",IF(AN87=$CN$8,$CV$8,IF(AN87=$CN$9,$CV$9,$CV$10))*IF(AS87=$CD$8,$CJ$8,IF(AS87=$CD$9,$CJ$9,IF(AS87=$CD$10,$CJ$10,$CJ$11)))) -> 64 | HU87: =IF(AX$19>$Z87,"--",IF(AX87=$CN$8,$CV$8,IF(AX87=$CN$9,$CV$9,$CV$10))*IF(BC87=$CD$8,$CJ$8,IF(BC87=$CD$9,$CJ$9,IF(BC87=$CD$10,$CJ$10,$CJ$11)))) -> 64 | IE87: =IF(BH$19>$Z87,"--",IF(BH87=$CN$8,$CV$8,IF(BH87=$CN$9,$CV$9,$CV$10))*IF(BM87=$CD$8,$CJ$8,IF(BM87=$CD$9,$CJ$9,IF(BM87=$CD$10,$CJ$10,$CJ$11)))) -> 64 | IO87: =IF(BR$19>$Z87,"--",IF(BR87=$CN$8,$CV$8,IF(BR87=$CN$9,$CV$9,$CV$10))*IF(BW87=$CD$8,$CJ$8,IF(BW87=$CD$9,$CJ$9,IF(BW87=$CD$10,$CJ$10,$CJ$11)))) -> -- | IY87: =IF(CB$19>$Z87,"--",IF(CB87=$CN$8,$CV$8,IF(CB87=$CN$9,$CV$9,$CV$10))*IF(CG87=$CD$8,$CJ$8,IF(CG87=$CD$9,$CJ$9,IF(CG87=$CD$10,$CJ$10,$CJ$11)))) -> -- | JI87: =IF(CL$19>$Z87,"--",IF(CL87=$CN$8,$CV$8,IF(CL87=$CN$9,$CV$9,$CV$10))*IF(CQ87=$CD$8,$CJ$8,IF(CQ87=$CD$9,$CJ$9,IF(CQ87=$CD$10,$CJ$10,$CJ$11)))) -> -- | JS87: =IF(CV$19>$Z87,"--",IF(CV87=$CN$8,$CV$8,IF(CV87=$CN$9,$CV$9,$CV$10))*IF(DA87=$CD$8,$CJ$8,IF(DA87=$CD$9,$CJ$9,IF(DA87=$CD$10,$CJ$10,$CJ$11)))) -> -- | KC87: =IF(DF$19>$Z87,"--",IF(DF87=$CN$8,$CV$8,IF(DF87=$CN$9,$CV$9,$CV$10))*IF(DK87=$CD$8,$CJ$8,IF(DK87=$CD$9,$CJ$9,IF(DK87=$CD$10,$CJ$10,$CJ$11)))) -> -- | KM87: =IF(DP$19>$Z87,"--",IF(DP87=$CN$8,$CV$8,IF(DP87=$CN$9,$CV$9,$CV$10))*IF(DU87=$CD$8,$CJ$8,IF(DU87=$CD$9,$CJ$9,IF(DU87=$CD$10,$CJ$10,$CJ$11)))) -> -- | KW87: =IF(DZ$19>$Z87,"--",IF(DZ87=$CN$8,$CV$8,IF(DZ87=$CN$9,$CV$9,$CV$10))*IF(EE87=$CD$8,$CJ$8,IF(EE87=$CD$9,$CJ$9,IF(EE87=$CD$10,$CJ$10,$CJ$11)))) -> -- | LG87: =IF(EJ$19>$Z87,"--",IF(EJ87=$CN$8,$CV$8,IF(EJ87=$CN$9,$CV$9,$CV$10))*IF(EO87=$CD$8,$CJ$8,IF(EO87=$CD$9,$CJ$9,IF(EO87=$CD$10,$CJ$10,$CJ$11)))) -> -- | LQ87: =IF(ET$19>$Z87,"--",IF(ET87=$CN$8,$CV$8,IF(ET87=$CN$9,$CV$9,$CV$10))*IF(EY87=$CD$8,$CJ$8,IF(EY87=$CD$9,$CJ$9,IF(EY87=$CD$10,$CJ$10,$CJ$11)))) -> -- | MA87: =IF(FD$19>$Z87,"--",IF(FD87=$CN$8,$CV$8,IF(FD87=$CN$9,$CV$9,$CV$10))*IF(FI87=$CD$8,$CJ$8,IF(FI87=$CD$9,$CJ$9,IF(FI87=$CD$10,$CJ$10,$CJ$11)))) -> -- | MK87: =IF(FN$19>$Z87,"--",IF(FN87=$CN$8,$CV$8,IF(FN87=$CN$9,$CV$9,$CV$10))*IF(FS87=$CD$8,$CJ$8,IF(FS87=$CD$9,$CJ$9,IF(FS87=$CD$10,$CJ$10,$CJ$11)))) -> -- | MU87: =IF(FX$19>$Z87,"--",IF(FX87=$CN$8,$CV$8,IF(FX87=$CN$9,$CV$9,$CV$10))*IF(GC87=$CD$8,$CJ$8,IF(GC87=$CD$9,$CJ$9,IF(GC87=$CD$10,$CJ$10,$CJ$11)))) -> --
T89: E-W | Z89: 4 | AD89: 2 Lanes | AI89: <20mph | AN89: 2 Lanes | AS89: <20mph | AX89: 2 Lanes | BC89: <20mph | BH89: 2 Lanes | BM89: <20mph | BR89: 2 Lanes | BW89: <20mph | CB89: 2 Lanes | CG89: <20mph | CL89: 2 Lanes | CQ89: <20mph | CV89: 2 Lanes | DA89: <20mph | DF89: 2 Lanes | DK89: <20mph | DP89: 2 Lanes | DU89: <20mph | DZ89: 2 Lanes | EE89: <20mph | EJ89: 2 Lanes | EO89: <20mph | ET89: 2 Lanes | EY89: <20mph | FD89: 2 Lanes | FI89: <20mph | FN89: 2 Lanes | FS89: <20mph | FX89: 2 Lanes | GC89: <20mph | GL89: =IF(GV89<=$BX$11,$BR$11,IF(GV89<=$BX$10,$BR$10,IF(GV89<=$BX$9,$BR$9,$BR$8))) -> Good | GQ89: =MIN(HA89:ND90) -> 64 | GV89: =AVERAGE(HA89:ND90) -> 64 | HA89: =IF(AD$19>$Z89,"--",IF(AD89=$CN$8,$CV$8,IF(AD89=$CN$9,$CV$9,$CV$10))*IF(AI89=$CD$8,$CJ$8,IF(AI89=$CD$9,$CJ$9,IF(AI89=$CD$10,$CJ$10,$CJ$11)))) -> 64 | HK89: =IF(AN$19>$Z89,"--",IF(AN89=$CN$8,$CV$8,IF(AN89=$CN$9,$CV$9,$CV$10))*IF(AS89=$CD$8,$CJ$8,IF(AS89=$CD$9,$CJ$9,IF(AS89=$CD$10,$CJ$10,$CJ$11)))) -> 64 | HU89: =IF(AX$19>$Z89,"--",IF(AX89=$CN$8,$CV$8,IF(AX89=$CN$9,$CV$9,$CV$10))*IF(BC89=$CD$8,$CJ$8,IF(BC89=$CD$9,$CJ$9,IF(BC89=$CD$10,$CJ$10,$CJ$11)))) -> 64 | IE89: =IF(BH$19>$Z89,"--",IF(BH89=$CN$8,$CV$8,IF(BH89=$CN$9,$CV$9,$CV$10))*IF(BM89=$CD$8,$CJ$8,IF(BM89=$CD$9,$CJ$9,IF(BM89=$CD$10,$CJ$10,$CJ$11)))) -> 64 | IO89: =IF(BR$19>$Z89,"--",IF(BR89=$CN$8,$CV$8,IF(BR89=$CN$9,$CV$9,$CV$10))*IF(BW89=$CD$8,$CJ$8,IF(BW89=$CD$9,$CJ$9,IF(BW89=$CD$10,$CJ$10,$CJ$11)))) -> -- | IY89: =IF(CB$19>$Z89,"--",IF(CB89=$CN$8,$CV$8,IF(CB89=$CN$9,$CV$9,$CV$10))*IF(CG89=$CD$8,$CJ$8,IF(CG89=$CD$9,$CJ$9,IF(CG89=$CD$10,$CJ$10,$CJ$11)))) -> -- | JI89: =IF(CL$19>$Z89,"--",IF(CL89=$CN$8,$CV$8,IF(CL89=$CN$9,$CV$9,$CV$10))*IF(CQ89=$CD$8,$CJ$8,IF(CQ89=$CD$9,$CJ$9,IF(CQ89=$CD$10,$CJ$10,$CJ$11)))) -> -- | JS89: =IF(CV$19>$Z89,"--",IF(CV89=$CN$8,$CV$8,IF(CV89=$CN$9,$CV$9,$CV$10))*IF(DA89=$CD$8,$CJ$8,IF(DA89=$CD$9,$CJ$9,IF(DA89=$CD$10,$CJ$10,$CJ$11)))) -> -- | KC89: =IF(DF$19>$Z89,"--",IF(DF89=$CN$8,$CV$8,IF(DF89=$CN$9,$CV$9,$CV$10))*IF(DK89=$CD$8,$CJ$8,IF(DK89=$CD$9,$CJ$9,IF(DK89=$CD$10,$CJ$10,$CJ$11)))) -> -- | KM89: =IF(DP$19>$Z89,"--",IF(DP89=$CN$8,$CV$8,IF(DP89=$CN$9,$CV$9,$CV$10))*IF(DU89=$CD$8,$CJ$8,IF(DU89=$CD$9,$CJ$9,IF(DU89=$CD$10,$CJ$10,$CJ$11)))) -> -- | KW89: =IF(DZ$19>$Z89,"--",IF(DZ89=$CN$8,$CV$8,IF(DZ89=$CN$9,$CV$9,$CV$10))*IF(EE89=$CD$8,$CJ$8,IF(EE89=$CD$9,$CJ$9,IF(EE89=$CD$10,$CJ$10,$CJ$11)))) -> -- | LG89: =IF(EJ$19>$Z89,"--",IF(EJ89=$CN$8,$CV$8,IF(EJ89=$CN$9,$CV$9,$CV$10))*IF(EO89=$CD$8,$CJ$8,IF(EO89=$CD$9,$CJ$9,IF(EO89=$CD$10,$CJ$10,$CJ$11)))) -> -- | LQ89: =IF(ET$19>$Z89,"--",IF(ET89=$CN$8,$CV$8,IF(ET89=$CN$9,$CV$9,$CV$10))*IF(EY89=$CD$8,$CJ$8,IF(EY89=$CD$9,$CJ$9,IF(EY89=$CD$10,$CJ$10,$CJ$11)))) -> -- | MA89: =IF(FD$19>$Z89,"--",IF(FD89=$CN$8,$CV$8,IF(FD89=$CN$9,$CV$9,$CV$10))*IF(FI89=$CD$8,$CJ$8,IF(FI89=$CD$9,$CJ$9,IF(FI89=$CD$10,$CJ$10,$CJ$11)))) -> -- | MK89: =IF(FN$19>$Z89,"--",IF(FN89=$CN$8,$CV$8,IF(FN89=$CN$9,$CV$9,$CV$10))*IF(FS89=$CD$8,$CJ$8,IF(FS89=$CD$9,$CJ$9,IF(FS89=$CD$10,$CJ$10,$CJ$11)))) -> -- | MU89: =IF(FX$19>$Z89,"--",IF(FX89=$CN$8,$CV$8,IF(FX89=$CN$9,$CV$9,$CV$10))*IF(GC89=$CD$8,$CJ$8,IF(GC89=$CD$9,$CJ$9,IF(GC89=$CD$10,$CJ$10,$CJ$11)))) -> --
A91: Center Turn Overpass | T91: FULL | Z91: 4 | AD91: 2 Lanes | AI91: <20mph | AN91: 2 Lanes | AS91: <20mph | AX91: 2 Lanes | BC91: <20mph | BH91: 2 Lanes | BM91: <20mph | BR91: 2 Lanes | BW91: <20mph | CB91: 2 Lanes | CG91: <20mph | CL91: 2 Lanes | CQ91: <20mph | CV91: 2 Lanes | DA91: <20mph | DF91: 2 Lanes | DK91: <20mph | DP91: 2 Lanes | DU91: <20mph | DZ91: 2 Lanes | EE91: <20mph | EJ91: 2 Lanes | EO91: <20mph | ET91: 2 Lanes | EY91: <20mph | FD91: 2 Lanes | FI91: <20mph | FN91: 2 Lanes | FS91: <20mph | FX91: 2 Lanes | GC91: <20mph | GL91: =IF(GV91<=$BX$11,$BR$11,IF(GV91<=$BX$10,$BR$10,IF(GV91<=$BX$9,$BR$9,$BR$8))) -> Good | GQ91: =MIN(HA91:ND92) -> 64 | GV91: =AVERAGE(HA91:ND92) -> 64 | HA91: =IF(AD$19>$Z91,"--",IF(AD91=$CN$8,$CV$8,IF(AD91=$CN$9,$CV$9,$CV$10))*IF(AI91=$CD$8,$CJ$8,IF(AI91=$CD$9,$CJ$9,IF(AI91=$CD$10,$CJ$10,$CJ$11)))) -> 64 | HK91: =IF(AN$19>$Z91,"--",IF(AN91=$CN$8,$CV$8,IF(AN91=$CN$9,$CV$9,$CV$10))*IF(AS91=$CD$8,$CJ$8,IF(AS91=$CD$9,$CJ$9,IF(AS91=$CD$10,$CJ$10,$CJ$11)))) -> 64 | HU91: =IF(AX$19>$Z91,"--",IF(AX91=$CN$8,$CV$8,IF(AX91=$CN$9,$CV$9,$CV$10))*IF(BC91=$CD$8,$CJ$8,IF(BC91=$CD$9,$CJ$9,IF(BC91=$CD$10,$CJ$10,$CJ$11)))) -> 64 | IE91: =IF(BH$19>$Z91,"--",IF(BH91=$CN$8,$CV$8,IF(BH91=$CN$9,$CV$9,$CV$10))*IF(BM91=$CD$8,$CJ$8,IF(BM91=$CD$9,$CJ$9,IF(BM91=$CD$10,$CJ$10,$CJ$11)))) -> 64 | IO91: =IF(BR$19>$Z91,"--",IF(BR91=$CN$8,$CV$8,IF(BR91=$CN$9,$CV$9,$CV$10))*IF(BW91=$CD$8,$CJ$8,IF(BW91=$CD$9,$CJ$9,IF(BW91=$CD$10,$CJ$10,$CJ$11)))) -> -- | IY91: =IF(CB$19>$Z91,"--",IF(CB91=$CN$8,$CV$8,IF(CB91=$CN$9,$CV$9,$CV$10))*IF(CG91=$CD$8,$CJ$8,IF(CG91=$CD$9,$CJ$9,IF(CG91=$CD$10,$CJ$10,$CJ$11)))) -> -- | JI91: =IF(CL$19>$Z91,"--",IF(CL91=$CN$8,$CV$8,IF(CL91=$CN$9,$CV$9,$CV$10))*IF(CQ91=$CD$8,$CJ$8,IF(CQ91=$CD$9,$CJ$9,IF(CQ91=$CD$10,$CJ$10,$CJ$11)))) -> -- | JS91: =IF(CV$19>$Z91,"--",IF(CV91=$CN$8,$CV$8,IF(CV91=$CN$9,$CV$9,$CV$10))*IF(DA91=$CD$8,$CJ$8,IF(DA91=$CD$9,$CJ$9,IF(DA91=$CD$10,$CJ$10,$CJ$11)))) -> -- | KC91: =IF(DF$19>$Z91,"--",IF(DF91=$CN$8,$CV$8,IF(DF91=$CN$9,$CV$9,$CV$10))*IF(DK91=$CD$8,$CJ$8,IF(DK91=$CD$9,$CJ$9,IF(DK91=$CD$10,$CJ$10,$CJ$11)))) -> -- | KM91: =IF(DP$19>$Z91,"--",IF(DP91=$CN$8,$CV$8,IF(DP91=$CN$9,$CV$9,$CV$10))*IF(DU91=$CD$8,$CJ$8,IF(DU91=$CD$9,$CJ$9,IF(DU91=$CD$10,$CJ$10,$CJ$11)))) -> -- | KW91: =IF(DZ$19>$Z91,"--",IF(DZ91=$CN$8,$CV$8,IF(DZ91=$CN$9,$CV$9,$CV$10))*IF(EE91=$CD$8,$CJ$8,IF(EE91=$CD$9,$CJ$9,IF(EE91=$CD$10,$CJ$10,$CJ$11)))) -> -- | LG91: =IF(EJ$19>$Z91,"--",IF(EJ91=$CN$8,$CV$8,IF(EJ91=$CN$9,$CV$9,$CV$10))*IF(EO91=$CD$8,$CJ$8,IF(EO91=$CD$9,$CJ$9,IF(EO91=$CD$10,$CJ$10,$CJ$11)))) -> -- | LQ91: =IF(ET$19>$Z91,"--",IF(ET91=$CN$8,$CV$8,IF(ET91=$CN$9,$CV$9,$CV$10))*IF(EY91=$CD$8,$CJ$8,IF(EY91=$CD$9,$CJ$9,IF(EY91=$CD$10,$CJ$10,$CJ$11)))) -> -- | MA91: =IF(FD$19>$Z91,"--",IF(FD91=$CN$8,$CV$8,IF(FD91=$CN$9,$CV$9,$CV$10))*IF(FI91=$CD$8,$CJ$8,IF(FI91=$CD$9,$CJ$9,IF(FI91=$CD$10,$CJ$10,$CJ$11)))) -> -- | MK91: =IF(FN$19>$Z91,"--",IF(FN91=$CN$8,$CV$8,IF(FN91=$CN$9,$CV$9,$CV$10))*IF(FS91=$CD$8,$CJ$8,IF(FS91=$CD$9,$CJ$9,IF(FS91=$CD$10,$CJ$10,$CJ$11)))) -> -- | MU91: =IF(FX$19>$Z91,"--",IF(FX91=$CN$8,$CV$8,IF(FX91=$CN$9,$CV$9,$CV$10))*IF(GC91=$CD$8,$CJ$8,IF(GC91=$CD$9,$CJ$9,IF(GC91=$CD$10,$CJ$10,$CJ$11)))) -> --
A104: Pedestrian Crossing Configurations for Roundabouts | GL104: Pedestrian Multimodal Scoring for Roundabouts
A106: TYPE OF ROUNDABOUT | T106: Sheet | Z106: # Of X-ings | AD106: Crossing #1 | AN106: Crossing #2 | AX106: Crossing #3 | BH106: Crossing #4 | BR106: Crossing #5 | CB106: Crossing #6 | CL106: Crossing #7 | CV106: Crossing #8 | DF106: Crossing #9 | DP106: Crossing #10 | DZ106: Crossing #11 | EJ106: Crossing #12 | ET106: Crossing #13 | FD106: Crossing #14 | FN106: Crossing #15 | FX106: Crossing #16 | GL106: Intx Scores | HA106: Individual Crossing Scores
AD108: # Lanes | AI108: Veh Speed | AN108: # Lanes | AS108: Veh Speed | AX108: # Lanes | BC108: Veh Speed | BH108: # Lanes | BM108: Veh Speed | BR108: # Lanes | BW108: Veh Speed | CB108: # Lanes | CG108: Veh Speed | CL108: # Lanes | CQ108: Veh Speed | CV108: # Lanes | DA108: Veh Speed | DF108: # Lanes | DK108: Veh Speed | DP108: # Lanes | DU108: Veh Speed | DZ108: # Lanes | EE108: Veh Speed | EJ108: # Lanes | EO108: Veh Speed | ET108: # Lanes | EY108: Veh Speed | FD108: # Lanes | FI108: Veh Speed | FN108: # Lanes | FS108: Veh Speed | FX108: # Lanes | GC108: Veh Speed | GL108: Report | GQ108: Worst | GV108: Avg | HA108: #1 | HK108: #2 | HU108: #3 | IE108: #4 | IO108: #5 | IY108: #6 | JI108: #7 | JS108: #8 | KC108: #9 | KM108: #10 | KW108: #11 | LG108: #12 | LQ108: #13 | MA108: #14 | MK108: #15 | MU108: #16
A110: 50 ICD Miniroundabout | T110: 50 ICD | Z110: 4 | AD110: 1 Lane | AI110: <20mph | AN110: 1 Lane | AS110: <20mph | AX110: 1 Lane | BC110: <20mph | BH110: 1 Lane | BM110: <20mph | BR110: 1 Lane | BW110: <20mph | CB110: 1 Lane | CG110: <20mph | CL110: 1 Lane | CQ110: <20mph | CV110: 1 Lane | DA110: <20mph | DF110: 1 Lane | DK110: <20mph | DP110: 1 Lane | DU110: <20mph | DZ110: 1 Lane | EE110: <20mph | EJ110: 1 Lane | EO110: <20mph | ET110: 1 Lane | EY110: <20mph | FD110: 1 Lane | FI110: <20mph | FN110: 1 Lane | FS110: <20mph | FX110: 1 Lane | GC110: <20mph | GL110: =IF(GV110<=$BX$11,$BR$11,IF(GV110<=$BX$10,$BR$10,IF(GV110<=$BX$9,$BR$9,$BR$8))) -> Excellent | GQ110: =MIN(HA110:ND111) -> 80 | GV110: =AVERAGE(HA110:ND111) -> 80 | HA110: =IF(AD$19>$Z110,"--",IF(AD110=$CN$8,$CV$8,IF(AD110=$CN$9,$CV$9,$CV$10))*IF(AI110=$CD$8,$CJ$8,IF(AI110=$CD$9,$CJ$9,IF(AI110=$CD$10,$CJ$10,$CJ$11)))) -> 80 | HK110: =IF(AN$19>$Z110,"--",IF(AN110=$CN$8,$CV$8,IF(AN110=$CN$9,$CV$9,$CV$10))*IF(AS110=$CD$8,$CJ$8,IF(AS110=$CD$9,$CJ$9,IF(AS110=$CD$10,$CJ$10,$CJ$11)))) -> 80 | HU110: =IF(AX$19>$Z110,"--",IF(AX110=$CN$8,$CV$8,IF(AX110=$CN$9,$CV$9,$CV$10))*IF(BC110=$CD$8,$CJ$8,IF(BC110=$CD$9,$CJ$9,IF(BC110=$CD$10,$CJ$10,$CJ$11)))) -> 80 | IE110: =IF(BH$19>$Z110,"--",IF(BH110=$CN$8,$CV$8,IF(BH110=$CN$9,$CV$9,$CV$10))*IF(BM110=$CD$8,$CJ$8,IF(BM110=$CD$9,$CJ$9,IF(BM110=$CD$10,$CJ$10,$CJ$11)))) -> 80 | IO110: =IF(BR$19>$Z110,"--",IF(BR110=$CN$8,$CV$8,IF(BR110=$CN$9,$CV$9,$CV$10))*IF(BW110=$CD$8,$CJ$8,IF(BW110=$CD$9,$CJ$9,IF(BW110=$CD$10,$CJ$10,$CJ$11)))) -> -- | IY110: =IF(CB$19>$Z110,"--",IF(CB110=$CN$8,$CV$8,IF(CB110=$CN$9,$CV$9,$CV$10))*IF(CG110=$CD$8,$CJ$8,IF(CG110=$CD$9,$CJ$9,IF(CG110=$CD$10,$CJ$10,$CJ$11)))) -> -- | JI110: =IF(CL$19>$Z110,"--",IF(CL110=$CN$8,$CV$8,IF(CL110=$CN$9,$CV$9,$CV$10))*IF(CQ110=$CD$8,$CJ$8,IF(CQ110=$CD$9,$CJ$9,IF(CQ110=$CD$10,$CJ$10,$CJ$11)))) -> -- | JS110: =IF(CV$19>$Z110,"--",IF(CV110=$CN$8,$CV$8,IF(CV110=$CN$9,$CV$9,$CV$10))*IF(DA110=$CD$8,$CJ$8,IF(DA110=$CD$9,$CJ$9,IF(DA110=$CD$10,$CJ$10,$CJ$11)))) -> -- | KC110: =IF(DF$19>$Z110,"--",IF(DF110=$CN$8,$CV$8,IF(DF110=$CN$9,$CV$9,$CV$10))*IF(DK110=$CD$8,$CJ$8,IF(DK110=$CD$9,$CJ$9,IF(DK110=$CD$10,$CJ$10,$CJ$11)))) -> -- | KM110: =IF(DP$19>$Z110,"--",IF(DP110=$CN$8,$CV$8,IF(DP110=$CN$9,$CV$9,$CV$10))*IF(DU110=$CD$8,$CJ$8,IF(DU110=$CD$9,$CJ$9,IF(DU110=$CD$10,$CJ$10,$CJ$11)))) -> -- | KW110: =IF(DZ$19>$Z110,"--",IF(DZ110=$CN$8,$CV$8,IF(DZ110=$CN$9,$CV$9,$CV$10))*IF(EE110=$CD$8,$CJ$8,IF(EE110=$CD$9,$CJ$9,IF(EE110=$CD$10,$CJ$10,$CJ$11)))) -> -- | LG110: =IF(EJ$19>$Z110,"--",IF(EJ110=$CN$8,$CV$8,IF(EJ110=$CN$9,$CV$9,$CV$10))*IF(EO110=$CD$8,$CJ$8,IF(EO110=$CD$9,$CJ$9,IF(EO110=$CD$10,$CJ$10,$CJ$11)))) -> -- | LQ110: =IF(ET$19>$Z110,"--",IF(ET110=$CN$8,$CV$8,IF(ET110=$CN$9,$CV$9,$CV$10))*IF(EY110=$CD$8,$CJ$8,IF(EY110=$CD$9,$CJ$9,IF(EY110=$CD$10,$CJ$10,$CJ$11)))) -> -- | MA110: =IF(FD$19>$Z110,"--",IF(FD110=$CN$8,$CV$8,IF(FD110=$CN$9,$CV$9,$CV$10))*IF(FI110=$CD$8,$CJ$8,IF(FI110=$CD$9,$CJ$9,IF(FI110=$CD$10,$CJ$10,$CJ$11)))) -> -- | MK110: =IF(FN$19>$Z110,"--",IF(FN110=$CN$8,$CV$8,IF(FN110=$CN$9,$CV$9,$CV$10))*IF(FS110=$CD$8,$CJ$8,IF(FS110=$CD$9,$CJ$9,IF(FS110=$CD$10,$CJ$10,$CJ$11)))) -> -- | MU110: =IF(FX$19>$Z110,"--",IF(FX110=$CN$8,$CV$8,IF(FX110=$CN$9,$CV$9,$CV$10))*IF(GC110=$CD$8,$CJ$8,IF(GC110=$CD$9,$CJ$9,IF(GC110=$CD$10,$CJ$10,$CJ$11)))) -> --
A112: 75 ICD Miniroundabout | T112: 75 ICD | Z112: 4 | AD112: 1 Lane | AI112: <20mph | AN112: 1 Lane | AS112: <20mph | AX112: 1 Lane | BC112: <20mph | BH112: 1 Lane | BM112: <20mph | BR112: 1 Lane | BW112: <20mph | CB112: 1 Lane | CG112: <20mph | CL112: 1 Lane | CQ112: <20mph | CV112: 1 Lane | DA112: <20mph | DF112: 1 Lane | DK112: <20mph | DP112: 1 Lane | DU112: <20mph | DZ112: 1 Lane | EE112: <20mph | EJ112: 1 Lane | EO112: <20mph | ET112: 1 Lane | EY112: <20mph | FD112: 1 Lane | FI112: <20mph | FN112: 1 Lane | FS112: <20mph | FX112: 1 Lane | GC112: <20mph | GL112: =IF(GV112<=$BX$11,$BR$11,IF(GV112<=$BX$10,$BR$10,IF(GV112<=$BX$9,$BR$9,$BR$8))) -> Excellent | GQ112: =MIN(HA112:ND113) -> 80 | GV112: =AVERAGE(HA112:ND113) -> 80 | HA112: =IF(AD$19>$Z112,"--",IF(AD112=$CN$8,$CV$8,IF(AD112=$CN$9,$CV$9,$CV$10))*IF(AI112=$CD$8,$CJ$8,IF(AI112=$CD$9,$CJ$9,IF(AI112=$CD$10,$CJ$10,$CJ$11)))) -> 80 | HK112: =IF(AN$19>$Z112,"--",IF(AN112=$CN$8,$CV$8,IF(AN112=$CN$9,$CV$9,$CV$10))*IF(AS112=$CD$8,$CJ$8,IF(AS112=$CD$9,$CJ$9,IF(AS112=$CD$10,$CJ$10,$CJ$11)))) -> 80 | HU112: =IF(AX$19>$Z112,"--",IF(AX112=$CN$8,$CV$8,IF(AX112=$CN$9,$CV$9,$CV$10))*IF(BC112=$CD$8,$CJ$8,IF(BC112=$CD$9,$CJ$9,IF(BC112=$CD$10,$CJ$10,$CJ$11)))) -> 80 | IE112: =IF(BH$19>$Z112,"--",IF(BH112=$CN$8,$CV$8,IF(BH112=$CN$9,$CV$9,$CV$10))*IF(BM112=$CD$8,$CJ$8,IF(BM112=$CD$9,$CJ$9,IF(BM112=$CD$10,$CJ$10,$CJ$11)))) -> 80 | IO112: =IF(BR$19>$Z112,"--",IF(BR112=$CN$8,$CV$8,IF(BR112=$CN$9,$CV$9,$CV$10))*IF(BW112=$CD$8,$CJ$8,IF(BW112=$CD$9,$CJ$9,IF(BW112=$CD$10,$CJ$10,$CJ$11)))) -> -- | IY112: =IF(CB$19>$Z112,"--",IF(CB112=$CN$8,$CV$8,IF(CB112=$CN$9,$CV$9,$CV$10))*IF(CG112=$CD$8,$CJ$8,IF(CG112=$CD$9,$CJ$9,IF(CG112=$CD$10,$CJ$10,$CJ$11)))) -> -- | JI112: =IF(CL$19>$Z112,"--",IF(CL112=$CN$8,$CV$8,IF(CL112=$CN$9,$CV$9,$CV$10))*IF(CQ112=$CD$8,$CJ$8,IF(CQ112=$CD$9,$CJ$9,IF(CQ112=$CD$10,$CJ$10,$CJ$11)))) -> -- | JS112: =IF(CV$19>$Z112,"--",IF(CV112=$CN$8,$CV$8,IF(CV112=$CN$9,$CV$9,$CV$10))*IF(DA112=$CD$8,$CJ$8,IF(DA112=$CD$9,$CJ$9,IF(DA112=$CD$10,$CJ$10,$CJ$11)))) -> -- | KC112: =IF(DF$19>$Z112,"--",IF(DF112=$CN$8,$CV$8,IF(DF112=$CN$9,$CV$9,$CV$10))*IF(DK112=$CD$8,$CJ$8,IF(DK112=$CD$9,$CJ$9,IF(DK112=$CD$10,$CJ$10,$CJ$11)))) -> -- | KM112: =IF(DP$19>$Z112,"--",IF(DP112=$CN$8,$CV$8,IF(DP112=$CN$9,$CV$9,$CV$10))*IF(DU112=$CD$8,$CJ$8,IF(DU112=$CD$9,$CJ$9,IF(DU112=$CD$10,$CJ$10,$CJ$11)))) -> -- | KW112: =IF(DZ$19>$Z112,"--",IF(DZ112=$CN$8,$CV$8,IF(DZ112=$CN$9,$CV$9,$CV$10))*IF(EE112=$CD$8,$CJ$8,IF(EE112=$CD$9,$CJ$9,IF(EE112=$CD$10,$CJ$10,$CJ$11)))) -> -- | LG112: =IF(EJ$19>$Z112,"--",IF(EJ112=$CN$8,$CV$8,IF(EJ112=$CN$9,$CV$9,$CV$10))*IF(EO112=$CD$8,$CJ$8,IF(EO112=$CD$9,$CJ$9,IF(EO112=$CD$10,$CJ$10,$CJ$11)))) -> -- | LQ112: =IF(ET$19>$Z112,"--",IF(ET112=$CN$8,$CV$8,IF(ET112=$CN$9,$CV$9,$CV$10))*IF(EY112=$CD$8,$CJ$8,IF(EY112=$CD$9,$CJ$9,IF(EY112=$CD$10,$CJ$10,$CJ$11)))) -> -- | MA112: =IF(FD$19>$Z112,"--",IF(FD112=$CN$8,$CV$8,IF(FD112=$CN$9,$CV$9,$CV$10))*IF(FI112=$CD$8,$CJ$8,IF(FI112=$CD$9,$CJ$9,IF(FI112=$CD$10,$CJ$10,$CJ$11)))) -> -- | MK112: =IF(FN$19>$Z112,"--",IF(FN112=$CN$8,$CV$8,IF(FN112=$CN$9,$CV$9,$CV$10))*IF(FS112=$CD$8,$CJ$8,IF(FS112=$CD$9,$CJ$9,IF(FS112=$CD$10,$CJ$10,$CJ$11)))) -> -- | MU112: =IF(FX$19>$Z112,"--",IF(FX112=$CN$8,$CV$8,IF(FX112=$CN$9,$CV$9,$CV$10))*IF(GC112=$CD$8,$CJ$8,IF(GC112=$CD$9,$CJ$9,IF(GC112=$CD$10,$CJ$10,$CJ$11)))) -> --
A114: Single Lane Roundabout | T114: 1 X 1 | Z114: 4 | AD114: 1 Lane | AI114: <20mph | AN114: 1 Lane | AS114: <20mph | AX114: 1 Lane | BC114: <20mph | BH114: 1 Lane | BM114: <20mph | BR114: 1 Lane | BW114: <20mph | CB114: 1 Lane | CG114: <20mph | CL114: 1 Lane | CQ114: <20mph | CV114: 1 Lane | DA114: <20mph | DF114: 1 Lane | DK114: <20mph | DP114: 1 Lane | DU114: <20mph | DZ114: 1 Lane | EE114: <20mph | EJ114: 1 Lane | EO114: <20mph | ET114: 1 Lane | EY114: <20mph | FD114: 1 Lane | FI114: <20mph | FN114: 1 Lane | FS114: <20mph | FX114: 1 Lane | GC114: <20mph | GL114: =IF(GV114<=$BX$11,$BR$11,IF(GV114<=$BX$10,$BR$10,IF(GV114<=$BX$9,$BR$9,$BR$8))) -> Excellent | GQ114: =MIN(HA114:ND115) -> 80 | GV114: =AVERAGE(HA114:ND115) -> 80 | HA114: =IF(AD$19>$Z114,"--",IF(AD114=$CN$8,$CV$8,IF(AD114=$CN$9,$CV$9,$CV$10))*IF(AI114=$CD$8,$CJ$8,IF(AI114=$CD$9,$CJ$9,IF(AI114=$CD$10,$CJ$10,$CJ$11)))) -> 80 | HK114: =IF(AN$19>$Z114,"--",IF(AN114=$CN$8,$CV$8,IF(AN114=$CN$9,$CV$9,$CV$10))*IF(AS114=$CD$8,$CJ$8,IF(AS114=$CD$9,$CJ$9,IF(AS114=$CD$10,$CJ$10,$CJ$11)))) -> 80 | HU114: =IF(AX$19>$Z114,"--",IF(AX114=$CN$8,$CV$8,IF(AX114=$CN$9,$CV$9,$CV$10))*IF(BC114=$CD$8,$CJ$8,IF(BC114=$CD$9,$CJ$9,IF(BC114=$CD$10,$CJ$10,$CJ$11)))) -> 80 | IE114: =IF(BH$19>$Z114,"--",IF(BH114=$CN$8,$CV$8,IF(BH114=$CN$9,$CV$9,$CV$10))*IF(BM114=$CD$8,$CJ$8,IF(BM114=$CD$9,$CJ$9,IF(BM114=$CD$10,$CJ$10,$CJ$11)))) -> 80 | IO114: =IF(BR$19>$Z114,"--",IF(BR114=$CN$8,$CV$8,IF(BR114=$CN$9,$CV$9,$CV$10))*IF(BW114=$CD$8,$CJ$8,IF(BW114=$CD$9,$CJ$9,IF(BW114=$CD$10,$CJ$10,$CJ$11)))) -> -- | IY114: =IF(CB$19>$Z114,"--",IF(CB114=$CN$8,$CV$8,IF(CB114=$CN$9,$CV$9,$CV$10))*IF(CG114=$CD$8,$CJ$8,IF(CG114=$CD$9,$CJ$9,IF(CG114=$CD$10,$CJ$10,$CJ$11)))) -> -- | JI114: =IF(CL$19>$Z114,"--",IF(CL114=$CN$8,$CV$8,IF(CL114=$CN$9,$CV$9,$CV$10))*IF(CQ114=$CD$8,$CJ$8,IF(CQ114=$CD$9,$CJ$9,IF(CQ114=$CD$10,$CJ$10,$CJ$11)))) -> -- | JS114: =IF(CV$19>$Z114,"--",IF(CV114=$CN$8,$CV$8,IF(CV114=$CN$9,$CV$9,$CV$10))*IF(DA114=$CD$8,$CJ$8,IF(DA114=$CD$9,$CJ$9,IF(DA114=$CD$10,$CJ$10,$CJ$11)))) -> -- | KC114: =IF(DF$19>$Z114,"--",IF(DF114=$CN$8,$CV$8,IF(DF114=$CN$9,$CV$9,$CV$10))*IF(DK114=$CD$8,$CJ$8,IF(DK114=$CD$9,$CJ$9,IF(DK114=$CD$10,$CJ$10,$CJ$11)))) -> -- | KM114: =IF(DP$19>$Z114,"--",IF(DP114=$CN$8,$CV$8,IF(DP114=$CN$9,$CV$9,$CV$10))*IF(DU114=$CD$8,$CJ$8,IF(DU114=$CD$9,$CJ$9,IF(DU114=$CD$10,$CJ$10,$CJ$11)))) -> -- | KW114: =IF(DZ$19>$Z114,"--",IF(DZ114=$CN$8,$CV$8,IF(DZ114=$CN$9,$CV$9,$CV$10))*IF(EE114=$CD$8,$CJ$8,IF(EE114=$CD$9,$CJ$9,IF(EE114=$CD$10,$CJ$10,$CJ$11)))) -> -- | LG114: =IF(EJ$19>$Z114,"--",IF(EJ114=$CN$8,$CV$8,IF(EJ114=$CN$9,$CV$9,$CV$10))*IF(EO114=$CD$8,$CJ$8,IF(EO114=$CD$9,$CJ$9,IF(EO114=$CD$10,$CJ$10,$CJ$11)))) -> -- | LQ114: =IF(ET$19>$Z114,"--",IF(ET114=$CN$8,$CV$8,IF(ET114=$CN$9,$CV$9,$CV$10))*IF(EY114=$CD$8,$CJ$8,IF(EY114=$CD$9,$CJ$9,IF(EY114=$CD$10,$CJ$10,$CJ$11)))) -> -- | MA114: =IF(FD$19>$Z114,"--",IF(FD114=$CN$8,$CV$8,IF(FD114=$CN$9,$CV$9,$CV$10))*IF(FI114=$CD$8,$CJ$8,IF(FI114=$CD$9,$CJ$9,IF(FI114=$CD$10,$CJ$10,$CJ$11)))) -> -- | MK114: =IF(FN$19>$Z114,"--",IF(FN114=$CN$8,$CV$8,IF(FN114=$CN$9,$CV$9,$CV$10))*IF(FS114=$CD$8,$CJ$8,IF(FS114=$CD$9,$CJ$9,IF(FS114=$CD$10,$CJ$10,$CJ$11)))) -> -- | MU114: =IF(FX$19>$Z114,"--",IF(FX114=$CN$8,$CV$8,IF(FX114=$CN$9,$CV$9,$CV$10))*IF(GC114=$CD$8,$CJ$8,IF(GC114=$CD$9,$CJ$9,IF(GC114=$CD$10,$CJ$10,$CJ$11)))) -> --
A116: Mixed Lane roundabout (1NSx2EW) | T116: 1 X 2 | Z116: 4 | AD116: 1 Lane | AI116: <20mph | AN116: 1 Lane | AS116: <20mph | AX116: 2 Lanes | BC116: <20mph | BH116: 2 Lanes | BM116: <20mph | BR116: 1 Lane | BW116: <20mph | CB116: 1 Lane | CG116: <20mph | CL116: 1 Lane | CQ116: <20mph | CV116: 1 Lane | DA116: <20mph | DF116: 1 Lane | DK116: <20mph | DP116: 1 Lane | DU116: <20mph | DZ116: 1 Lane | EE116: <20mph | EJ116: 1 Lane | EO116: <20mph | ET116: 1 Lane | EY116: <20mph | FD116: 1 Lane | FI116: <20mph | FN116: 1 Lane | FS116: <20mph | FX116: 1 Lane | GC116: <20mph | GL116: =IF(GV116<=$BX$11,$BR$11,IF(GV116<=$BX$10,$BR$10,IF(GV116<=$BX$9,$BR$9,$BR$8))) -> Good | GQ116: =MIN(HA116:ND117) -> 64 | GV116: =AVERAGE(HA116:ND117) -> 72 | HA116: =IF(AD$19>$Z116,"--",IF(AD116=$CN$8,$CV$8,IF(AD116=$CN$9,$CV$9,$CV$10))*IF(AI116=$CD$8,$CJ$8,IF(AI116=$CD$9,$CJ$9,IF(AI116=$CD$10,$CJ$10,$CJ$11)))) -> 80 | HK116: =IF(AN$19>$Z116,"--",IF(AN116=$CN$8,$CV$8,IF(AN116=$CN$9,$CV$9,$CV$10))*IF(AS116=$CD$8,$CJ$8,IF(AS116=$CD$9,$CJ$9,IF(AS116=$CD$10,$CJ$10,$CJ$11)))) -> 80 | HU116: =IF(AX$19>$Z116,"--",IF(AX116=$CN$8,$CV$8,IF(AX116=$CN$9,$CV$9,$CV$10))*IF(BC116=$CD$8,$CJ$8,IF(BC116=$CD$9,$CJ$9,IF(BC116=$CD$10,$CJ$10,$CJ$11)))) -> 64 | IE116: =IF(BH$19>$Z116,"--",IF(BH116=$CN$8,$CV$8,IF(BH116=$CN$9,$CV$9,$CV$10))*IF(BM116=$CD$8,$CJ$8,IF(BM116=$CD$9,$CJ$9,IF(BM116=$CD$10,$CJ$10,$CJ$11)))) -> 64 | IO116: =IF(BR$19>$Z116,"--",IF(BR116=$CN$8,$CV$8,IF(BR116=$CN$9,$CV$9,$CV$10))*IF(BW116=$CD$8,$CJ$8,IF(BW116=$CD$9,$CJ$9,IF(BW116=$CD$10,$CJ$10,$CJ$11)))) -> -- | IY116: =IF(CB$19>$Z116,"--",IF(CB116=$CN$8,$CV$8,IF(CB116=$CN$9,$CV$9,$CV$10))*IF(CG116=$CD$8,$CJ$8,IF(CG116=$CD$9,$CJ$9,IF(CG116=$CD$10,$CJ$10,$CJ$11)))) -> -- | JI116: =IF(CL$19>$Z116,"--",IF(CL116=$CN$8,$CV$8,IF(CL116=$CN$9,$CV$9,$CV$10))*IF(CQ116=$CD$8,$CJ$8,IF(CQ116=$CD$9,$CJ$9,IF(CQ116=$CD$10,$CJ$10,$CJ$11)))) -> -- | JS116: =IF(CV$19>$Z116,"--",IF(CV116=$CN$8,$CV$8,IF(CV116=$CN$9,$CV$9,$CV$10))*IF(DA116=$CD$8,$CJ$8,IF(DA116=$CD$9,$CJ$9,IF(DA116=$CD$10,$CJ$10,$CJ$11)))) -> -- | KC116: =IF(DF$19>$Z116,"--",IF(DF116=$CN$8,$CV$8,IF(DF116=$CN$9,$CV$9,$CV$10))*IF(DK116=$CD$8,$CJ$8,IF(DK116=$CD$9,$CJ$9,IF(DK116=$CD$10,$CJ$10,$CJ$11)))) -> -- | KM116: =IF(DP$19>$Z116,"--",IF(DP116=$CN$8,$CV$8,IF(DP116=$CN$9,$CV$9,$CV$10))*IF(DU116=$CD$8,$CJ$8,IF(DU116=$CD$9,$CJ$9,IF(DU116=$CD$10,$CJ$10,$CJ$11)))) -> -- | KW116: =IF(DZ$19>$Z116,"--",IF(DZ116=$CN$8,$CV$8,IF(DZ116=$CN$9,$CV$9,$CV$10))*IF(EE116=$CD$8,$CJ$8,IF(EE116=$CD$9,$CJ$9,IF(EE116=$CD$10,$CJ$10,$CJ$11)))) -> -- | LG116: =IF(EJ$19>$Z116,"--",IF(EJ116=$CN$8,$CV$8,IF(EJ116=$CN$9,$CV$9,$CV$10))*IF(EO116=$CD$8,$CJ$8,IF(EO116=$CD$9,$CJ$9,IF(EO116=$CD$10,$CJ$10,$CJ$11)))) -> -- | LQ116: =IF(ET$19>$Z116,"--",IF(ET116=$CN$8,$CV$8,IF(ET116=$CN$9,$CV$9,$CV$10))*IF(EY116=$CD$8,$CJ$8,IF(EY116=$CD$9,$CJ$9,IF(EY116=$CD$10,$CJ$10,$CJ$11)))) -> -- | MA116: =IF(FD$19>$Z116,"--",IF(FD116=$CN$8,$CV$8,IF(FD116=$CN$9,$CV$9,$CV$10))*IF(FI116=$CD$8,$CJ$8,IF(FI116=$CD$9,$CJ$9,IF(FI116=$CD$10,$CJ$10,$CJ$11)))) -> -- | MK116: =IF(FN$19>$Z116,"--",IF(FN116=$CN$8,$CV$8,IF(FN116=$CN$9,$CV$9,$CV$10))*IF(FS116=$CD$8,$CJ$8,IF(FS116=$CD$9,$CJ$9,IF(FS116=$CD$10,$CJ$10,$CJ$11)))) -> -- | MU116: =IF(FX$19>$Z116,"--",IF(FX116=$CN$8,$CV$8,IF(FX116=$CN$9,$CV$9,$CV$10))*IF(GC116=$CD$8,$CJ$8,IF(GC116=$CD$9,$CJ$9,IF(GC116=$CD$10,$CJ$10,$CJ$11)))) -> --
A118: Mixed Lane Roundabout (2NSx1EW) | T118: 2 X 1 | Z118: 4 | AD118: 2 Lanes | AI118: <20mph | AN118: 2 Lanes | AS118: <20mph | AX118: 1 Lane | BC118: <20mph | BH118: 1 Lane | BM118: <20mph | BR118: 1 Lane | BW118: <20mph | CB118: 1 Lane | CG118: <20mph | CL118: 1 Lane | CQ118: <20mph | CV118: 1 Lane | DA118: <20mph | DF118: 1 Lane | DK118: <20mph | DP118: 1 Lane | DU118: <20mph | DZ118: 1 Lane | EE118: <20mph | EJ118: 1 Lane | EO118: <20mph | ET118: 1 Lane | EY118: <20mph | FD118: 1 Lane | FI118: <20mph | FN118: 1 Lane | FS118: <20mph | FX118: 1 Lane | GC118: <20mph | GL118: =IF(GV118<=$BX$11,$BR$11,IF(GV118<=$BX$10,$BR$10,IF(GV118<=$BX$9,$BR$9,$BR$8))) -> Good | GQ118: =MIN(HA118:ND119) -> 64 | GV118: =AVERAGE(HA118:ND119) -> 72 | HA118: =IF(AD$19>$Z118,"--",IF(AD118=$CN$8,$CV$8,IF(AD118=$CN$9,$CV$9,$CV$10))*IF(AI118=$CD$8,$CJ$8,IF(AI118=$CD$9,$CJ$9,IF(AI118=$CD$10,$CJ$10,$CJ$11)))) -> 64 | HK118: =IF(AN$19>$Z118,"--",IF(AN118=$CN$8,$CV$8,IF(AN118=$CN$9,$CV$9,$CV$10))*IF(AS118=$CD$8,$CJ$8,IF(AS118=$CD$9,$CJ$9,IF(AS118=$CD$10,$CJ$10,$CJ$11)))) -> 64 | HU118: =IF(AX$19>$Z118,"--",IF(AX118=$CN$8,$CV$8,IF(AX118=$CN$9,$CV$9,$CV$10))*IF(BC118=$CD$8,$CJ$8,IF(BC118=$CD$9,$CJ$9,IF(BC118=$CD$10,$CJ$10,$CJ$11)))) -> 80 | IE118: =IF(BH$19>$Z118,"--",IF(BH118=$CN$8,$CV$8,IF(BH118=$CN$9,$CV$9,$CV$10))*IF(BM118=$CD$8,$CJ$8,IF(BM118=$CD$9,$CJ$9,IF(BM118=$CD$10,$CJ$10,$CJ$11)))) -> 80 | IO118: =IF(BR$19>$Z118,"--",IF(BR118=$CN$8,$CV$8,IF(BR118=$CN$9,$CV$9,$CV$10))*IF(BW118=$CD$8,$CJ$8,IF(BW118=$CD$9,$CJ$9,IF(BW118=$CD$10,$CJ$10,$CJ$11)))) -> -- | IY118: =IF(CB$19>$Z118,"--",IF(CB118=$CN$8,$CV$8,IF(CB118=$CN$9,$CV$9,$CV$10))*IF(CG118=$CD$8,$CJ$8,IF(CG118=$CD$9,$CJ$9,IF(CG118=$CD$10,$CJ$10,$CJ$11)))) -> -- | JI118: =IF(CL$19>$Z118,"--",IF(CL118=$CN$8,$CV$8,IF(CL118=$CN$9,$CV$9,$CV$10))*IF(CQ118=$CD$8,$CJ$8,IF(CQ118=$CD$9,$CJ$9,IF(CQ118=$CD$10,$CJ$10,$CJ$11)))) -> -- | JS118: =IF(CV$19>$Z118,"--",IF(CV118=$CN$8,$CV$8,IF(CV118=$CN$9,$CV$9,$CV$10))*IF(DA118=$CD$8,$CJ$8,IF(DA118=$CD$9,$CJ$9,IF(DA118=$CD$10,$CJ$10,$CJ$11)))) -> -- | KC118: =IF(DF$19>$Z118,"--",IF(DF118=$CN$8,$CV$8,IF(DF118=$CN$9,$CV$9,$CV$10))*IF(DK118=$CD$8,$CJ$8,IF(DK118=$CD$9,$CJ$9,IF(DK118=$CD$10,$CJ$10,$CJ$11)))) -> -- | KM118: =IF(DP$19>$Z118,"--",IF(DP118=$CN$8,$CV$8,IF(DP118=$CN$9,$CV$9,$CV$10))*IF(DU118=$CD$8,$CJ$8,IF(DU118=$CD$9,$CJ$9,IF(DU118=$CD$10,$CJ$10,$CJ$11)))) -> -- | KW118: =IF(DZ$19>$Z118,"--",IF(DZ118=$CN$8,$CV$8,IF(DZ118=$CN$9,$CV$9,$CV$10))*IF(EE118=$CD$8,$CJ$8,IF(EE118=$CD$9,$CJ$9,IF(EE118=$CD$10,$CJ$10,$CJ$11)))) -> -- | LG118: =IF(EJ$19>$Z118,"--",IF(EJ118=$CN$8,$CV$8,IF(EJ118=$CN$9,$CV$9,$CV$10))*IF(EO118=$CD$8,$CJ$8,IF(EO118=$CD$9,$CJ$9,IF(EO118=$CD$10,$CJ$10,$CJ$11)))) -> -- | LQ118: =IF(ET$19>$Z118,"--",IF(ET118=$CN$8,$CV$8,IF(ET118=$CN$9,$CV$9,$CV$10))*IF(EY118=$CD$8,$CJ$8,IF(EY118=$CD$9,$CJ$9,IF(EY118=$CD$10,$CJ$10,$CJ$11)))) -> -- | MA118: =IF(FD$19>$Z118,"--",IF(FD118=$CN$8,$CV$8,IF(FD118=$CN$9,$CV$9,$CV$10))*IF(FI118=$CD$8,$CJ$8,IF(FI118=$CD$9,$CJ$9,IF(FI118=$CD$10,$CJ$10,$CJ$11)))) -> -- | MK118: =IF(FN$19>$Z118,"--",IF(FN118=$CN$8,$CV$8,IF(FN118=$CN$9,$CV$9,$CV$10))*IF(FS118=$CD$8,$CJ$8,IF(FS118=$CD$9,$CJ$9,IF(FS118=$CD$10,$CJ$10,$CJ$11)))) -> -- | MU118: =IF(FX$19>$Z118,"--",IF(FX118=$CN$8,$CV$8,IF(FX118=$CN$9,$CV$9,$CV$10))*IF(GC118=$CD$8,$CJ$8,IF(GC118=$CD$9,$CJ$9,IF(GC118=$CD$10,$CJ$10,$CJ$11)))) -> --
A120: Two Lane Roundabout | T120: 2 X 2 | Z120: 4 | AD120: 2 Lanes | AI120: <20mph | AN120: 2 Lanes | AS120: <20mph | AX120: 2 Lanes | BC120: <20mph | BH120: 2 Lanes | BM120: <20mph | BR120: 1 Lane | BW120: <20mph | CB120: 1 Lane | CG120: <20mph | CL120: 1 Lane | CQ120: <20mph | CV120: 1 Lane | DA120: <20mph | DF120: 1 Lane | DK120: <20mph | DP120: 1 Lane | DU120: <20mph | DZ120: 1 Lane | EE120: <20mph | EJ120: 1 Lane | EO120: <20mph | ET120: 1 Lane | EY120: <20mph | FD120: 1 Lane | FI120: <20mph | FN120: 1 Lane | FS120: <20mph | FX120: 1 Lane | GC120: <20mph | GL120: =IF(GV120<=$BX$11,$BR$11,IF(GV120<=$BX$10,$BR$10,IF(GV120<=$BX$9,$BR$9,$BR$8))) -> Good | GQ120: =MIN(HA120:ND121) -> 64 | GV120: =AVERAGE(HA120:ND121) -> 64 | HA120: =IF(AD$19>$Z120,"--",IF(AD120=$CN$8,$CV$8,IF(AD120=$CN$9,$CV$9,$CV$10))*IF(AI120=$CD$8,$CJ$8,IF(AI120=$CD$9,$CJ$9,IF(AI120=$CD$10,$CJ$10,$CJ$11)))) -> 64 | HK120: =IF(AN$19>$Z120,"--",IF(AN120=$CN$8,$CV$8,IF(AN120=$CN$9,$CV$9,$CV$10))*IF(AS120=$CD$8,$CJ$8,IF(AS120=$CD$9,$CJ$9,IF(AS120=$CD$10,$CJ$10,$CJ$11)))) -> 64 | HU120: =IF(AX$19>$Z120,"--",IF(AX120=$CN$8,$CV$8,IF(AX120=$CN$9,$CV$9,$CV$10))*IF(BC120=$CD$8,$CJ$8,IF(BC120=$CD$9,$CJ$9,IF(BC120=$CD$10,$CJ$10,$CJ$11)))) -> 64 | IE120: =IF(BH$19>$Z120,"--",IF(BH120=$CN$8,$CV$8,IF(BH120=$CN$9,$CV$9,$CV$10))*IF(BM120=$CD$8,$CJ$8,IF(BM120=$CD$9,$CJ$9,IF(BM120=$CD$10,$CJ$10,$CJ$11)))) -> 64 | IO120: =IF(BR$19>$Z120,"--",IF(BR120=$CN$8,$CV$8,IF(BR120=$CN$9,$CV$9,$CV$10))*IF(BW120=$CD$8,$CJ$8,IF(BW120=$CD$9,$CJ$9,IF(BW120=$CD$10,$CJ$10,$CJ$11)))) -> -- | IY120: =IF(CB$19>$Z120,"--",IF(CB120=$CN$8,$CV$8,IF(CB120=$CN$9,$CV$9,$CV$10))*IF(CG120=$CD$8,$CJ$8,IF(CG120=$CD$9,$CJ$9,IF(CG120=$CD$10,$CJ$10,$CJ$11)))) -> -- | JI120: =IF(CL$19>$Z120,"--",IF(CL120=$CN$8,$CV$8,IF(CL120=$CN$9,$CV$9,$CV$10))*IF(CQ120=$CD$8,$CJ$8,IF(CQ120=$CD$9,$CJ$9,IF(CQ120=$CD$10,$CJ$10,$CJ$11)))) -> -- | JS120: =IF(CV$19>$Z120,"--",IF(CV120=$CN$8,$CV$8,IF(CV120=$CN$9,$CV$9,$CV$10))*IF(DA120=$CD$8,$CJ$8,IF(DA120=$CD$9,$CJ$9,IF(DA120=$CD$10,$CJ$10,$CJ$11)))) -> -- | KC120: =IF(DF$19>$Z120,"--",IF(DF120=$CN$8,$CV$8,IF(DF120=$CN$9,$CV$9,$CV$10))*IF(DK120=$CD$8,$CJ$8,IF(DK120=$CD$9,$CJ$9,IF(DK120=$CD$10,$CJ$10,$CJ$11)))) -> -- | KM120: =IF(DP$19>$Z120,"--",IF(DP120=$CN$8,$CV$8,IF(DP120=$CN$9,$CV$9,$CV$10))*IF(DU120=$CD$8,$CJ$8,IF(DU120=$CD$9,$CJ$9,IF(DU120=$CD$10,$CJ$10,$CJ$11)))) -> -- | KW120: =IF(DZ$19>$Z120,"--",IF(DZ120=$CN$8,$CV$8,IF(DZ120=$CN$9,$CV$9,$CV$10))*IF(EE120=$CD$8,$CJ$8,IF(EE120=$CD$9,$CJ$9,IF(EE120=$CD$10,$CJ$10,$CJ$11)))) -> -- | LG120: =IF(EJ$19>$Z120,"--",IF(EJ120=$CN$8,$CV$8,IF(EJ120=$CN$9,$CV$9,$CV$10))*IF(EO120=$CD$8,$CJ$8,IF(EO120=$CD$9,$CJ$9,IF(EO120=$CD$10,$CJ$10,$CJ$11)))) -> -- | LQ120: =IF(ET$19>$Z120,"--",IF(ET120=$CN$8,$CV$8,IF(ET120=$CN$9,$CV$9,$CV$10))*IF(EY120=$CD$8,$CJ$8,IF(EY120=$CD$9,$CJ$9,IF(EY120=$CD$10,$CJ$10,$CJ$11)))) -> -- | MA120: =IF(FD$19>$Z120,"--",IF(FD120=$CN$8,$CV$8,IF(FD120=$CN$9,$CV$9,$CV$10))*IF(FI120=$CD$8,$CJ$8,IF(FI120=$CD$9,$CJ$9,IF(FI120=$CD$10,$CJ$10,$CJ$11)))) -> -- | MK120: =IF(FN$19>$Z120,"--",IF(FN120=$CN$8,$CV$8,IF(FN120=$CN$9,$CV$9,$CV$10))*IF(FS120=$CD$8,$CJ$8,IF(FS120=$CD$9,$CJ$9,IF(FS120=$CD$10,$CJ$10,$CJ$11)))) -> -- | MU120: =IF(FX$19>$Z120,"--",IF(FX120=$CN$8,$CV$8,IF(FX120=$CN$9,$CV$9,$CV$10))*IF(GC120=$CD$8,$CJ$8,IF(GC120=$CD$9,$CJ$9,IF(GC120=$CD$10,$CJ$10,$CJ$11)))) -> --
A122: Three Lane Roundabout | T122: 3 X 3 | Z122: 4 | AD122: 3+ Lanes | AI122: <20mph | AN122: 3+ Lanes | AS122: <20mph | AX122: 3+ Lanes | BC122: <20mph | BH122: 3+ Lanes | BM122: <20mph | BR122: 1 Lane | BW122: <20mph | CB122: 1 Lane | CG122: <20mph | CL122: 1 Lane | CQ122: <20mph | CV122: 1 Lane | DA122: <20mph | DF122: 1 Lane | DK122: <20mph | DP122: 1 Lane | DU122: <20mph | DZ122: 1 Lane | EE122: <20mph | EJ122: 1 Lane | EO122: <20mph | ET122: 1 Lane | EY122: <20mph | FD122: 1 Lane | FI122: <20mph | FN122: 1 Lane | FS122: <20mph | FX122: 1 Lane | GC122: <20mph | GL122: =IF(GV122<=$BX$11,$BR$11,IF(GV122<=$BX$10,$BR$10,IF(GV122<=$BX$9,$BR$9,$BR$8))) -> Fair | GQ122: =MIN(HA122:ND123) -> 48 | GV122: =AVERAGE(HA122:ND123) -> 48 | HA122: =IF(AD$19>$Z122,"--",IF(AD122=$CN$8,$CV$8,IF(AD122=$CN$9,$CV$9,$CV$10))*IF(AI122=$CD$8,$CJ$8,IF(AI122=$CD$9,$CJ$9,IF(AI122=$CD$10,$CJ$10,$CJ$11)))) -> 48 | HK122: =IF(AN$19>$Z122,"--",IF(AN122=$CN$8,$CV$8,IF(AN122=$CN$9,$CV$9,$CV$10))*IF(AS122=$CD$8,$CJ$8,IF(AS122=$CD$9,$CJ$9,IF(AS122=$CD$10,$CJ$10,$CJ$11)))) -> 48 | HU122: =IF(AX$19>$Z122,"--",IF(AX122=$CN$8,$CV$8,IF(AX122=$CN$9,$CV$9,$CV$10))*IF(BC122=$CD$8,$CJ$8,IF(BC122=$CD$9,$CJ$9,IF(BC122=$CD$10,$CJ$10,$CJ$11)))) -> 48 | IE122: =IF(BH$19>$Z122,"--",IF(BH122=$CN$8,$CV$8,IF(BH122=$CN$9,$CV$9,$CV$10))*IF(BM122=$CD$8,$CJ$8,IF(BM122=$CD$9,$CJ$9,IF(BM122=$CD$10,$CJ$10,$CJ$11)))) -> 48 | IO122: =IF(BR$19>$Z122,"--",IF(BR122=$CN$8,$CV$8,IF(BR122=$CN$9,$CV$9,$CV$10))*IF(BW122=$CD$8,$CJ$8,IF(BW122=$CD$9,$CJ$9,IF(BW122=$CD$10,$CJ$10,$CJ$11)))) -> -- | IY122: =IF(CB$19>$Z122,"--",IF(CB122=$CN$8,$CV$8,IF(CB122=$CN$9,$CV$9,$CV$10))*IF(CG122=$CD$8,$CJ$8,IF(CG122=$CD$9,$CJ$9,IF(CG122=$CD$10,$CJ$10,$CJ$11)))) -> -- | JI122: =IF(CL$19>$Z122,"--",IF(CL122=$CN$8,$CV$8,IF(CL122=$CN$9,$CV$9,$CV$10))*IF(CQ122=$CD$8,$CJ$8,IF(CQ122=$CD$9,$CJ$9,IF(CQ122=$CD$10,$CJ$10,$CJ$11)))) -> -- | JS122: =IF(CV$19>$Z122,"--",IF(CV122=$CN$8,$CV$8,IF(CV122=$CN$9,$CV$9,$CV$10))*IF(DA122=$CD$8,$CJ$8,IF(DA122=$CD$9,$CJ$9,IF(DA122=$CD$10,$CJ$10,$CJ$11)))) -> -- | KC122: =IF(DF$19>$Z122,"--",IF(DF122=$CN$8,$CV$8,IF(DF122=$CN$9,$CV$9,$CV$10))*IF(DK122=$CD$8,$CJ$8,IF(DK122=$CD$9,$CJ$9,IF(DK122=$CD$10,$CJ$10,$CJ$11)))) -> -- | KM122: =IF(DP$19>$Z122,"--",IF(DP122=$CN$8,$CV$8,IF(DP122=$CN$9,$CV$9,$CV$10))*IF(DU122=$CD$8,$CJ$8,IF(DU122=$CD$9,$CJ$9,IF(DU122=$CD$10,$CJ$10,$CJ$11)))) -> -- | KW122: =IF(DZ$19>$Z122,"--",IF(DZ122=$CN$8,$CV$8,IF(DZ122=$CN$9,$CV$9,$CV$10))*IF(EE122=$CD$8,$CJ$8,IF(EE122=$CD$9,$CJ$9,IF(EE122=$CD$10,$CJ$10,$CJ$11)))) -> -- | LG122: =IF(EJ$19>$Z122,"--",IF(EJ122=$CN$8,$CV$8,IF(EJ122=$CN$9,$CV$9,$CV$10))*IF(EO122=$CD$8,$CJ$8,IF(EO122=$CD$9,$CJ$9,IF(EO122=$CD$10,$CJ$10,$CJ$11)))) -> -- | LQ122: =IF(ET$19>$Z122,"--",IF(ET122=$CN$8,$CV$8,IF(ET122=$CN$9,$CV$9,$CV$10))*IF(EY122=$CD$8,$CJ$8,IF(EY122=$CD$9,$CJ$9,IF(EY122=$CD$10,$CJ$10,$CJ$11)))) -> -- | MA122: =IF(FD$19>$Z122,"--",IF(FD122=$CN$8,$CV$8,IF(FD122=$CN$9,$CV$9,$CV$10))*IF(FI122=$CD$8,$CJ$8,IF(FI122=$CD$9,$CJ$9,IF(FI122=$CD$10,$CJ$10,$CJ$11)))) -> -- | MK122: =IF(FN$19>$Z122,"--",IF(FN122=$CN$8,$CV$8,IF(FN122=$CN$9,$CV$9,$CV$10))*IF(FS122=$CD$8,$CJ$8,IF(FS122=$CD$9,$CJ$9,IF(FS122=$CD$10,$CJ$10,$CJ$11)))) -> -- | MU122: =IF(FX$19>$Z122,"--",IF(FX122=$CN$8,$CV$8,IF(FX122=$CN$9,$CV$9,$CV$10))*IF(GC122=$CD$8,$CJ$8,IF(GC122=$CD$9,$CJ$9,IF(GC122=$CD$10,$CJ$10,$CJ$11)))) -> --
A125: Pedestrian Crossing Configurations for Interchanges | GL125: Pedestrian Multimodal Scoring for Interchanges
A127: TYPE OF INTERCHANGE | T127: Sheet | Z127: # Of X-ings | AD127: Crossing #1 | AN127: Crossing #2 | AX127: Crossing #3 | BH127: Crossing #4 | BR127: Crossing #5 | CB127: Crossing #6 | CL127: Crossing #7 | CV127: Crossing #8 | DF127: Crossing #9 | DP127: Crossing #10 | DZ127: Crossing #11 | EJ127: Crossing #12 | ET127: Crossing #13 | FD127: Crossing #14 | FN127: Crossing #15 | FX127: Crossing #16 | GL127: Intx Scores | HA127: Individual Crossing Scores
AD129: # Lanes | AI129: Veh Speed | AN129: # Lanes | AS129: Veh Speed | AX129: # Lanes | BC129: Veh Speed | BH129: # Lanes | BM129: Veh Speed | BR129: # Lanes | BW129: Veh Speed | CB129: # Lanes | CG129: Veh Speed | CL129: # Lanes | CQ129: Veh Speed | CV129: # Lanes | DA129: Veh Speed | DF129: # Lanes | DK129: Veh Speed | DP129: # Lanes | DU129: Veh Speed | DZ129: # Lanes | EE129: Veh Speed | EJ129: # Lanes | EO129: Veh Speed | ET129: # Lanes | EY129: Veh Speed | FD129: # Lanes | FI129: Veh Speed | FN129: # Lanes | FS129: Veh Speed | FX129: # Lanes | GC129: Veh Speed | GL129: Report | GQ129: Worst | GV129: Avg | HA129: #1 | HK129: #2 | HU129: #3 | IE129: #4 | IO129: #5 | IY129: #6 | JI129: #7 | JS129: #8 | KC129: #9 | KM129: #10 | KW129: #11 | LG129: #12 | LQ129: #13 | MA129: #14 | MK129: #15 | MU129: #16
A131: Diamond | T131: N-S | Z131: 6 | AD131: 2 Lanes | AI131: <20mph | AN131: 2 Lanes | AS131: <20mph | AX131: 2 Lanes | BC131: <20mph | BH131: 2 Lanes | BM131: <20mph | BR131: 2 Lanes | BW131: <20mph | CB131: 2 Lanes | CG131: <20mph | CL131: 1 Lane | CQ131: <20mph | CV131: 1 Lane | DA131: <20mph | DF131: 1 Lane | DK131: <20mph | DP131: 1 Lane | DU131: <20mph | DZ131: 1 Lane | EE131: <20mph | EJ131: 1 Lane | EO131: <20mph | ET131: 1 Lane | EY131: <20mph | FD131: 1 Lane | FI131: <20mph | FN131: 1 Lane | FS131: <20mph | FX131: 1 Lane | GC131: <20mph | GL131: =IF(GV131<=$BX$11,$BR$11,IF(GV131<=$BX$10,$BR$10,IF(GV131<=$BX$9,$BR$9,$BR$8))) -> Good | GQ131: =MIN(HA131:ND132) -> 64 | GV131: =AVERAGE(HA131:ND132) -> 64 | HA131: =IF(AD$19>$Z131,"--",IF(AD131=$CN$8,$CV$8,IF(AD131=$CN$9,$CV$9,$CV$10))*IF(AI131=$CD$8,$CJ$8,IF(AI131=$CD$9,$CJ$9,IF(AI131=$CD$10,$CJ$10,$CJ$11)))) -> 64 | HK131: =IF(AN$19>$Z131,"--",IF(AN131=$CN$8,$CV$8,IF(AN131=$CN$9,$CV$9,$CV$10))*IF(AS131=$CD$8,$CJ$8,IF(AS131=$CD$9,$CJ$9,IF(AS131=$CD$10,$CJ$10,$CJ$11)))) -> 64 | HU131: =IF(AX$19>$Z131,"--",IF(AX131=$CN$8,$CV$8,IF(AX131=$CN$9,$CV$9,$CV$10))*IF(BC131=$CD$8,$CJ$8,IF(BC131=$CD$9,$CJ$9,IF(BC131=$CD$10,$CJ$10,$CJ$11)))) -> 64 | IE131: =IF(BH$19>$Z131,"--",IF(BH131=$CN$8,$CV$8,IF(BH131=$CN$9,$CV$9,$CV$10))*IF(BM131=$CD$8,$CJ$8,IF(BM131=$CD$9,$CJ$9,IF(BM131=$CD$10,$CJ$10,$CJ$11)))) -> 64 | IO131: =IF(BR$19>$Z131,"--",IF(BR131=$CN$8,$CV$8,IF(BR131=$CN$9,$CV$9,$CV$10))*IF(BW131=$CD$8,$CJ$8,IF(BW131=$CD$9,$CJ$9,IF(BW131=$CD$10,$CJ$10,$CJ$11)))) -> 64 | IY131: =IF(CB$19>$Z131,"--",IF(CB131=$CN$8,$CV$8,IF(CB131=$CN$9,$CV$9,$CV$10))*IF(CG131=$CD$8,$CJ$8,IF(CG131=$CD$9,$CJ$9,IF(CG131=$CD$10,$CJ$10,$CJ$11)))) -> 64 | JI131: =IF(CL$19>$Z131,"--",IF(CL131=$CN$8,$CV$8,IF(CL131=$CN$9,$CV$9,$CV$10))*IF(CQ131=$CD$8,$CJ$8,IF(CQ131=$CD$9,$CJ$9,IF(CQ131=$CD$10,$CJ$10,$CJ$11)))) -> -- | JS131: =IF(CV$19>$Z131,"--",IF(CV131=$CN$8,$CV$8,IF(CV131=$CN$9,$CV$9,$CV$10))*IF(DA131=$CD$8,$CJ$8,IF(DA131=$CD$9,$CJ$9,IF(DA131=$CD$10,$CJ$10,$CJ$11)))) -> -- | KC131: =IF(DF$19>$Z131,"--",IF(DF131=$CN$8,$CV$8,IF(DF131=$CN$9,$CV$9,$CV$10))*IF(DK131=$CD$8,$CJ$8,IF(DK131=$CD$9,$CJ$9,IF(DK131=$CD$10,$CJ$10,$CJ$11)))) -> -- | KM131: =IF(DP$19>$Z131,"--",IF(DP131=$CN$8,$CV$8,IF(DP131=$CN$9,$CV$9,$CV$10))*IF(DU131=$CD$8,$CJ$8,IF(DU131=$CD$9,$CJ$9,IF(DU131=$CD$10,$CJ$10,$CJ$11)))) -> -- | KW131: =IF(DZ$19>$Z131,"--",IF(DZ131=$CN$8,$CV$8,IF(DZ131=$CN$9,$CV$9,$CV$10))*IF(EE131=$CD$8,$CJ$8,IF(EE131=$CD$9,$CJ$9,IF(EE131=$CD$10,$CJ$10,$CJ$11)))) -> -- | LG131: =IF(EJ$19>$Z131,"--",IF(EJ131=$CN$8,$CV$8,IF(EJ131=$CN$9,$CV$9,$CV$10))*IF(EO131=$CD$8,$CJ$8,IF(EO131=$CD$9,$CJ$9,IF(EO131=$CD$10,$CJ$10,$CJ$11)))) -> -- | LQ131: =IF(ET$19>$Z131,"--",IF(ET131=$CN$8,$CV$8,IF(ET131=$CN$9,$CV$9,$CV$10))*IF(EY131=$CD$8,$CJ$8,IF(EY131=$CD$9,$CJ$9,IF(EY131=$CD$10,$CJ$10,$CJ$11)))) -> -- | MA131: =IF(FD$19>$Z131,"--",IF(FD131=$CN$8,$CV$8,IF(FD131=$CN$9,$CV$9,$CV$10))*IF(FI131=$CD$8,$CJ$8,IF(FI131=$CD$9,$CJ$9,IF(FI131=$CD$10,$CJ$10,$CJ$11)))) -> -- | MK131: =IF(FN$19>$Z131,"--",IF(FN131=$CN$8,$CV$8,IF(FN131=$CN$9,$CV$9,$CV$10))*IF(FS131=$CD$8,$CJ$8,IF(FS131=$CD$9,$CJ$9,IF(FS131=$CD$10,$CJ$10,$CJ$11)))) -> -- | MU131: =IF(FX$19>$Z131,"--",IF(FX131=$CN$8,$CV$8,IF(FX131=$CN$9,$CV$9,$CV$10))*IF(GC131=$CD$8,$CJ$8,IF(GC131=$CD$9,$CJ$9,IF(GC131=$CD$10,$CJ$10,$CJ$11)))) -> --
T133: E-W | Z133: 6 | AD133: 2 Lanes | AI133: <20mph | AN133: 2 Lanes | AS133: <20mph | AX133: 2 Lanes | BC133: <20mph | BH133: 2 Lanes | BM133: <20mph | BR133: 2 Lanes | BW133: <20mph | CB133: 2 Lanes | CG133: <20mph | CL133: 1 Lane | CQ133: <20mph | CV133: 1 Lane | DA133: <20mph | DF133: 1 Lane | DK133: <20mph | DP133: 1 Lane | DU133: <20mph | DZ133: 1 Lane | EE133: <20mph | EJ133: 1 Lane | EO133: <20mph | ET133: 1 Lane | EY133: <20mph | FD133: 1 Lane | FI133: <20mph | FN133: 1 Lane | FS133: <20mph | FX133: 1 Lane | GC133: <20mph | GL133: =IF(GV133<=$BX$11,$BR$11,IF(GV133<=$BX$10,$BR$10,IF(GV133<=$BX$9,$BR$9,$BR$8))) -> Good | GQ133: =MIN(HA133:ND134) -> 64 | GV133: =AVERAGE(HA133:ND134) -> 64 | HA133: =IF(AD$19>$Z133,"--",IF(AD133=$CN$8,$CV$8,IF(AD133=$CN$9,$CV$9,$CV$10))*IF(AI133=$CD$8,$CJ$8,IF(AI133=$CD$9,$CJ$9,IF(AI133=$CD$10,$CJ$10,$CJ$11)))) -> 64 | HK133: =IF(AN$19>$Z133,"--",IF(AN133=$CN$8,$CV$8,IF(AN133=$CN$9,$CV$9,$CV$10))*IF(AS133=$CD$8,$CJ$8,IF(AS133=$CD$9,$CJ$9,IF(AS133=$CD$10,$CJ$10,$CJ$11)))) -> 64 | HU133: =IF(AX$19>$Z133,"--",IF(AX133=$CN$8,$CV$8,IF(AX133=$CN$9,$CV$9,$CV$10))*IF(BC133=$CD$8,$CJ$8,IF(BC133=$CD$9,$CJ$9,IF(BC133=$CD$10,$CJ$10,$CJ$11)))) -> 64 | IE133: =IF(BH$19>$Z133,"--",IF(BH133=$CN$8,$CV$8,IF(BH133=$CN$9,$CV$9,$CV$10))*IF(BM133=$CD$8,$CJ$8,IF(BM133=$CD$9,$CJ$9,IF(BM133=$CD$10,$CJ$10,$CJ$11)))) -> 64 | IO133: =IF(BR$19>$Z133,"--",IF(BR133=$CN$8,$CV$8,IF(BR133=$CN$9,$CV$9,$CV$10))*IF(BW133=$CD$8,$CJ$8,IF(BW133=$CD$9,$CJ$9,IF(BW133=$CD$10,$CJ$10,$CJ$11)))) -> 64 | IY133: =IF(CB$19>$Z133,"--",IF(CB133=$CN$8,$CV$8,IF(CB133=$CN$9,$CV$9,$CV$10))*IF(CG133=$CD$8,$CJ$8,IF(CG133=$CD$9,$CJ$9,IF(CG133=$CD$10,$CJ$10,$CJ$11)))) -> 64 | JI133: =IF(CL$19>$Z133,"--",IF(CL133=$CN$8,$CV$8,IF(CL133=$CN$9,$CV$9,$CV$10))*IF(CQ133=$CD$8,$CJ$8,IF(CQ133=$CD$9,$CJ$9,IF(CQ133=$CD$10,$CJ$10,$CJ$11)))) -> -- | JS133: =IF(CV$19>$Z133,"--",IF(CV133=$CN$8,$CV$8,IF(CV133=$CN$9,$CV$9,$CV$10))*IF(DA133=$CD$8,$CJ$8,IF(DA133=$CD$9,$CJ$9,IF(DA133=$CD$10,$CJ$10,$CJ$11)))) -> -- | KC133: =IF(DF$19>$Z133,"--",IF(DF133=$CN$8,$CV$8,IF(DF133=$CN$9,$CV$9,$CV$10))*IF(DK133=$CD$8,$CJ$8,IF(DK133=$CD$9,$CJ$9,IF(DK133=$CD$10,$CJ$10,$CJ$11)))) -> -- | KM133: =IF(DP$19>$Z133,"--",IF(DP133=$CN$8,$CV$8,IF(DP133=$CN$9,$CV$9,$CV$10))*IF(DU133=$CD$8,$CJ$8,IF(DU133=$CD$9,$CJ$9,IF(DU133=$CD$10,$CJ$10,$CJ$11)))) -> -- | KW133: =IF(DZ$19>$Z133,"--",IF(DZ133=$CN$8,$CV$8,IF(DZ133=$CN$9,$CV$9,$CV$10))*IF(EE133=$CD$8,$CJ$8,IF(EE133=$CD$9,$CJ$9,IF(EE133=$CD$10,$CJ$10,$CJ$11)))) -> -- | LG133: =IF(EJ$19>$Z133,"--",IF(EJ133=$CN$8,$CV$8,IF(EJ133=$CN$9,$CV$9,$CV$10))*IF(EO133=$CD$8,$CJ$8,IF(EO133=$CD$9,$CJ$9,IF(EO133=$CD$10,$CJ$10,$CJ$11)))) -> -- | LQ133: =IF(ET$19>$Z133,"--",IF(ET133=$CN$8,$CV$8,IF(ET133=$CN$9,$CV$9,$CV$10))*IF(EY133=$CD$8,$CJ$8,IF(EY133=$CD$9,$CJ$9,IF(EY133=$CD$10,$CJ$10,$CJ$11)))) -> -- | MA133: =IF(FD$19>$Z133,"--",IF(FD133=$CN$8,$CV$8,IF(FD133=$CN$9,$CV$9,$CV$10))*IF(FI133=$CD$8,$CJ$8,IF(FI133=$CD$9,$CJ$9,IF(FI133=$CD$10,$CJ$10,$CJ$11)))) -> -- | MK133: =IF(FN$19>$Z133,"--",IF(FN133=$CN$8,$CV$8,IF(FN133=$CN$9,$CV$9,$CV$10))*IF(FS133=$CD$8,$CJ$8,IF(FS133=$CD$9,$CJ$9,IF(FS133=$CD$10,$CJ$10,$CJ$11)))) -> -- | MU133: =IF(FX$19>$Z133,"--",IF(FX133=$CN$8,$CV$8,IF(FX133=$CN$9,$CV$9,$CV$10))*IF(GC133=$CD$8,$CJ$8,IF(GC133=$CD$9,$CJ$9,IF(GC133=$CD$10,$CJ$10,$CJ$11)))) -> --
A135: Partial Cloverleaf A | T135: N-S | Z135: 6 | AD135: 2 Lanes | AI135: <20mph | AN135: 2 Lanes | AS135: <20mph | AX135: 2 Lanes | BC135: <20mph | BH135: 2 Lanes | BM135: <20mph | BR135: 2 Lanes | BW135: <20mph | CB135: 2 Lanes | CG135: <20mph | CL135: 1 Lane | CQ135: <20mph | CV135: 1 Lane | DA135: <20mph | DF135: 1 Lane | DK135: <20mph | DP135: 1 Lane | DU135: <20mph | DZ135: 1 Lane | EE135: <20mph | EJ135: 1 Lane | EO135: <20mph | ET135: 1 Lane | EY135: <20mph | FD135: 1 Lane | FI135: <20mph | FN135: 1 Lane | FS135: <20mph | FX135: 1 Lane | GC135: <20mph | GL135: =IF(GV135<=$BX$11,$BR$11,IF(GV135<=$BX$10,$BR$10,IF(GV135<=$BX$9,$BR$9,$BR$8))) -> Good | GQ135: =MIN(HA135:ND136) -> 64 | GV135: =AVERAGE(HA135:ND136) -> 64 | HA135: =IF(AD$19>$Z135,"--",IF(AD135=$CN$8,$CV$8,IF(AD135=$CN$9,$CV$9,$CV$10))*IF(AI135=$CD$8,$CJ$8,IF(AI135=$CD$9,$CJ$9,IF(AI135=$CD$10,$CJ$10,$CJ$11)))) -> 64 | HK135: =IF(AN$19>$Z135,"--",IF(AN135=$CN$8,$CV$8,IF(AN135=$CN$9,$CV$9,$CV$10))*IF(AS135=$CD$8,$CJ$8,IF(AS135=$CD$9,$CJ$9,IF(AS135=$CD$10,$CJ$10,$CJ$11)))) -> 64 | HU135: =IF(AX$19>$Z135,"--",IF(AX135=$CN$8,$CV$8,IF(AX135=$CN$9,$CV$9,$CV$10))*IF(BC135=$CD$8,$CJ$8,IF(BC135=$CD$9,$CJ$9,IF(BC135=$CD$10,$CJ$10,$CJ$11)))) -> 64 | IE135: =IF(BH$19>$Z135,"--",IF(BH135=$CN$8,$CV$8,IF(BH135=$CN$9,$CV$9,$CV$10))*IF(BM135=$CD$8,$CJ$8,IF(BM135=$CD$9,$CJ$9,IF(BM135=$CD$10,$CJ$10,$CJ$11)))) -> 64 | IO135: =IF(BR$19>$Z135,"--",IF(BR135=$CN$8,$CV$8,IF(BR135=$CN$9,$CV$9,$CV$10))*IF(BW135=$CD$8,$CJ$8,IF(BW135=$CD$9,$CJ$9,IF(BW135=$CD$10,$CJ$10,$CJ$11)))) -> 64 | IY135: =IF(CB$19>$Z135,"--",IF(CB135=$CN$8,$CV$8,IF(CB135=$CN$9,$CV$9,$CV$10))*IF(CG135=$CD$8,$CJ$8,IF(CG135=$CD$9,$CJ$9,IF(CG135=$CD$10,$CJ$10,$CJ$11)))) -> 64 | JI135: =IF(CL$19>$Z135,"--",IF(CL135=$CN$8,$CV$8,IF(CL135=$CN$9,$CV$9,$CV$10))*IF(CQ135=$CD$8,$CJ$8,IF(CQ135=$CD$9,$CJ$9,IF(CQ135=$CD$10,$CJ$10,$CJ$11)))) -> -- | JS135: =IF(CV$19>$Z135,"--",IF(CV135=$CN$8,$CV$8,IF(CV135=$CN$9,$CV$9,$CV$10))*IF(DA135=$CD$8,$CJ$8,IF(DA135=$CD$9,$CJ$9,IF(DA135=$CD$10,$CJ$10,$CJ$11)))) -> -- | KC135: =IF(DF$19>$Z135,"--",IF(DF135=$CN$8,$CV$8,IF(DF135=$CN$9,$CV$9,$CV$10))*IF(DK135=$CD$8,$CJ$8,IF(DK135=$CD$9,$CJ$9,IF(DK135=$CD$10,$CJ$10,$CJ$11)))) -> -- | KM135: =IF(DP$19>$Z135,"--",IF(DP135=$CN$8,$CV$8,IF(DP135=$CN$9,$CV$9,$CV$10))*IF(DU135=$CD$8,$CJ$8,IF(DU135=$CD$9,$CJ$9,IF(DU135=$CD$10,$CJ$10,$CJ$11)))) -> -- | KW135: =IF(DZ$19>$Z135,"--",IF(DZ135=$CN$8,$CV$8,IF(DZ135=$CN$9,$CV$9,$CV$10))*IF(EE135=$CD$8,$CJ$8,IF(EE135=$CD$9,$CJ$9,IF(EE135=$CD$10,$CJ$10,$CJ$11)))) -> -- | LG135: =IF(EJ$19>$Z135,"--",IF(EJ135=$CN$8,$CV$8,IF(EJ135=$CN$9,$CV$9,$CV$10))*IF(EO135=$CD$8,$CJ$8,IF(EO135=$CD$9,$CJ$9,IF(EO135=$CD$10,$CJ$10,$CJ$11)))) -> -- | LQ135: =IF(ET$19>$Z135,"--",IF(ET135=$CN$8,$CV$8,IF(ET135=$CN$9,$CV$9,$CV$10))*IF(EY135=$CD$8,$CJ$8,IF(EY135=$CD$9,$CJ$9,IF(EY135=$CD$10,$CJ$10,$CJ$11)))) -> -- | MA135: =IF(FD$19>$Z135,"--",IF(FD135=$CN$8,$CV$8,IF(FD135=$CN$9,$CV$9,$CV$10))*IF(FI135=$CD$8,$CJ$8,IF(FI135=$CD$9,$CJ$9,IF(FI135=$CD$10,$CJ$10,$CJ$11)))) -> -- | MK135: =IF(FN$19>$Z135,"--",IF(FN135=$CN$8,$CV$8,IF(FN135=$CN$9,$CV$9,$CV$10))*IF(FS135=$CD$8,$CJ$8,IF(FS135=$CD$9,$CJ$9,IF(FS135=$CD$10,$CJ$10,$CJ$11)))) -> -- | MU135: =IF(FX$19>$Z135,"--",IF(FX135=$CN$8,$CV$8,IF(FX135=$CN$9,$CV$9,$CV$10))*IF(GC135=$CD$8,$CJ$8,IF(GC135=$CD$9,$CJ$9,IF(GC135=$CD$10,$CJ$10,$CJ$11)))) -> --
T137: E-W | Z137: 6 | AD137: 2 Lanes | AI137: <20mph | AN137: 2 Lanes | AS137: <20mph | AX137: 2 Lanes | BC137: <20mph | BH137: 2 Lanes | BM137: <20mph | BR137: 2 Lanes | BW137: <20mph | CB137: 2 Lanes | CG137: <20mph | CL137: 1 Lane | CQ137: <20mph | CV137: 1 Lane | DA137: <20mph | DF137: 1 Lane | DK137: <20mph | DP137: 1 Lane | DU137: <20mph | DZ137: 1 Lane | EE137: <20mph | EJ137: 1 Lane | EO137: <20mph | ET137: 1 Lane | EY137: <20mph | FD137: 1 Lane | FI137: <20mph | FN137: 1 Lane | FS137: <20mph | FX137: 1 Lane | GC137: <20mph | GL137: =IF(GV137<=$BX$11,$BR$11,IF(GV137<=$BX$10,$BR$10,IF(GV137<=$BX$9,$BR$9,$BR$8))) -> Good | GQ137: =MIN(HA137:ND138) -> 64 | GV137: =AVERAGE(HA137:ND138) -> 64 | HA137: =IF(AD$19>$Z137,"--",IF(AD137=$CN$8,$CV$8,IF(AD137=$CN$9,$CV$9,$CV$10))*IF(AI137=$CD$8,$CJ$8,IF(AI137=$CD$9,$CJ$9,IF(AI137=$CD$10,$CJ$10,$CJ$11)))) -> 64 | HK137: =IF(AN$19>$Z137,"--",IF(AN137=$CN$8,$CV$8,IF(AN137=$CN$9,$CV$9,$CV$10))*IF(AS137=$CD$8,$CJ$8,IF(AS137=$CD$9,$CJ$9,IF(AS137=$CD$10,$CJ$10,$CJ$11)))) -> 64 | HU137: =IF(AX$19>$Z137,"--",IF(AX137=$CN$8,$CV$8,IF(AX137=$CN$9,$CV$9,$CV$10))*IF(BC137=$CD$8,$CJ$8,IF(BC137=$CD$9,$CJ$9,IF(BC137=$CD$10,$CJ$10,$CJ$11)))) -> 64 | IE137: =IF(BH$19>$Z137,"--",IF(BH137=$CN$8,$CV$8,IF(BH137=$CN$9,$CV$9,$CV$10))*IF(BM137=$CD$8,$CJ$8,IF(BM137=$CD$9,$CJ$9,IF(BM137=$CD$10,$CJ$10,$CJ$11)))) -> 64 | IO137: =IF(BR$19>$Z137,"--",IF(BR137=$CN$8,$CV$8,IF(BR137=$CN$9,$CV$9,$CV$10))*IF(BW137=$CD$8,$CJ$8,IF(BW137=$CD$9,$CJ$9,IF(BW137=$CD$10,$CJ$10,$CJ$11)))) -> 64 | IY137: =IF(CB$19>$Z137,"--",IF(CB137=$CN$8,$CV$8,IF(CB137=$CN$9,$CV$9,$CV$10))*IF(CG137=$CD$8,$CJ$8,IF(CG137=$CD$9,$CJ$9,IF(CG137=$CD$10,$CJ$10,$CJ$11)))) -> 64 | JI137: =IF(CL$19>$Z137,"--",IF(CL137=$CN$8,$CV$8,IF(CL137=$CN$9,$CV$9,$CV$10))*IF(CQ137=$CD$8,$CJ$8,IF(CQ137=$CD$9,$CJ$9,IF(CQ137=$CD$10,$CJ$10,$CJ$11)))) -> -- | JS137: =IF(CV$19>$Z137,"--",IF(CV137=$CN$8,$CV$8,IF(CV137=$CN$9,$CV$9,$CV$10))*IF(DA137=$CD$8,$CJ$8,IF(DA137=$CD$9,$CJ$9,IF(DA137=$CD$10,$CJ$10,$CJ$11)))) -> -- | KC137: =IF(DF$19>$Z137,"--",IF(DF137=$CN$8,$CV$8,IF(DF137=$CN$9,$CV$9,$CV$10))*IF(DK137=$CD$8,$CJ$8,IF(DK137=$CD$9,$CJ$9,IF(DK137=$CD$10,$CJ$10,$CJ$11)))) -> -- | KM137: =IF(DP$19>$Z137,"--",IF(DP137=$CN$8,$CV$8,IF(DP137=$CN$9,$CV$9,$CV$10))*IF(DU137=$CD$8,$CJ$8,IF(DU137=$CD$9,$CJ$9,IF(DU137=$CD$10,$CJ$10,$CJ$11)))) -> -- | KW137: =IF(DZ$19>$Z137,"--",IF(DZ137=$CN$8,$CV$8,IF(DZ137=$CN$9,$CV$9,$CV$10))*IF(EE137=$CD$8,$CJ$8,IF(EE137=$CD$9,$CJ$9,IF(EE137=$CD$10,$CJ$10,$CJ$11)))) -> -- | LG137: =IF(EJ$19>$Z137,"--",IF(EJ137=$CN$8,$CV$8,IF(EJ137=$CN$9,$CV$9,$CV$10))*IF(EO137=$CD$8,$CJ$8,IF(EO137=$CD$9,$CJ$9,IF(EO137=$CD$10,$CJ$10,$CJ$11)))) -> -- | LQ137: =IF(ET$19>$Z137,"--",IF(ET137=$CN$8,$CV$8,IF(ET137=$CN$9,$CV$9,$CV$10))*IF(EY137=$CD$8,$CJ$8,IF(EY137=$CD$9,$CJ$9,IF(EY137=$CD$10,$CJ$10,$CJ$11)))) -> -- | MA137: =IF(FD$19>$Z137,"--",IF(FD137=$CN$8,$CV$8,IF(FD137=$CN$9,$CV$9,$CV$10))*IF(FI137=$CD$8,$CJ$8,IF(FI137=$CD$9,$CJ$9,IF(FI137=$CD$10,$CJ$10,$CJ$11)))) -> -- | MK137: =IF(FN$19>$Z137,"--",IF(FN137=$CN$8,$CV$8,IF(FN137=$CN$9,$CV$9,$CV$10))*IF(FS137=$CD$8,$CJ$8,IF(FS137=$CD$9,$CJ$9,IF(FS137=$CD$10,$CJ$10,$CJ$11)))) -> -- | MU137: =IF(FX$19>$Z137,"--",IF(FX137=$CN$8,$CV$8,IF(FX137=$CN$9,$CV$9,$CV$10))*IF(GC137=$CD$8,$CJ$8,IF(GC137=$CD$9,$CJ$9,IF(GC137=$CD$10,$CJ$10,$CJ$11)))) -> --
A139: Partial Cloverleaf B | T139: N-S | Z139: 6 | AD139: 2 Lanes | AI139: <20mph | AN139: 2 Lanes | AS139: <20mph | AX139: 2 Lanes | BC139: <20mph | BH139: 2 Lanes | BM139: <20mph | BR139: 2 Lanes | BW139: <20mph | CB139: 2 Lanes | CG139: <20mph | CL139: 1 Lane | CQ139: <20mph | CV139: 1 Lane | DA139: <20mph | DF139: 1 Lane | DK139: <20mph | DP139: 1 Lane | DU139: <20mph | DZ139: 1 Lane | EE139: <20mph | EJ139: 1 Lane | EO139: <20mph | ET139: 1 Lane | EY139: <20mph | FD139: 1 Lane | FI139: <20mph | FN139: 1 Lane | FS139: <20mph | FX139: 1 Lane | GC139: <20mph | GL139: =IF(GV139<=$BX$11,$BR$11,IF(GV139<=$BX$10,$BR$10,IF(GV139<=$BX$9,$BR$9,$BR$8))) -> Good | GQ139: =MIN(HA139:ND140) -> 64 | GV139: =AVERAGE(HA139:ND140) -> 64 | HA139: =IF(AD$19>$Z139,"--",IF(AD139=$CN$8,$CV$8,IF(AD139=$CN$9,$CV$9,$CV$10))*IF(AI139=$CD$8,$CJ$8,IF(AI139=$CD$9,$CJ$9,IF(AI139=$CD$10,$CJ$10,$CJ$11)))) -> 64 | HK139: =IF(AN$19>$Z139,"--",IF(AN139=$CN$8,$CV$8,IF(AN139=$CN$9,$CV$9,$CV$10))*IF(AS139=$CD$8,$CJ$8,IF(AS139=$CD$9,$CJ$9,IF(AS139=$CD$10,$CJ$10,$CJ$11)))) -> 64 | HU139: =IF(AX$19>$Z139,"--",IF(AX139=$CN$8,$CV$8,IF(AX139=$CN$9,$CV$9,$CV$10))*IF(BC139=$CD$8,$CJ$8,IF(BC139=$CD$9,$CJ$9,IF(BC139=$CD$10,$CJ$10,$CJ$11)))) -> 64 | IE139: =IF(BH$19>$Z139,"--",IF(BH139=$CN$8,$CV$8,IF(BH139=$CN$9,$CV$9,$CV$10))*IF(BM139=$CD$8,$CJ$8,IF(BM139=$CD$9,$CJ$9,IF(BM139=$CD$10,$CJ$10,$CJ$11)))) -> 64 | IO139: =IF(BR$19>$Z139,"--",IF(BR139=$CN$8,$CV$8,IF(BR139=$CN$9,$CV$9,$CV$10))*IF(BW139=$CD$8,$CJ$8,IF(BW139=$CD$9,$CJ$9,IF(BW139=$CD$10,$CJ$10,$CJ$11)))) -> 64 | IY139: =IF(CB$19>$Z139,"--",IF(CB139=$CN$8,$CV$8,IF(CB139=$CN$9,$CV$9,$CV$10))*IF(CG139=$CD$8,$CJ$8,IF(CG139=$CD$9,$CJ$9,IF(CG139=$CD$10,$CJ$10,$CJ$11)))) -> 64 | JI139: =IF(CL$19>$Z139,"--",IF(CL139=$CN$8,$CV$8,IF(CL139=$CN$9,$CV$9,$CV$10))*IF(CQ139=$CD$8,$CJ$8,IF(CQ139=$CD$9,$CJ$9,IF(CQ139=$CD$10,$CJ$10,$CJ$11)))) -> -- | JS139: =IF(CV$19>$Z139,"--",IF(CV139=$CN$8,$CV$8,IF(CV139=$CN$9,$CV$9,$CV$10))*IF(DA139=$CD$8,$CJ$8,IF(DA139=$CD$9,$CJ$9,IF(DA139=$CD$10,$CJ$10,$CJ$11)))) -> -- | KC139: =IF(DF$19>$Z139,"--",IF(DF139=$CN$8,$CV$8,IF(DF139=$CN$9,$CV$9,$CV$10))*IF(DK139=$CD$8,$CJ$8,IF(DK139=$CD$9,$CJ$9,IF(DK139=$CD$10,$CJ$10,$CJ$11)))) -> -- | KM139: =IF(DP$19>$Z139,"--",IF(DP139=$CN$8,$CV$8,IF(DP139=$CN$9,$CV$9,$CV$10))*IF(DU139=$CD$8,$CJ$8,IF(DU139=$CD$9,$CJ$9,IF(DU139=$CD$10,$CJ$10,$CJ$11)))) -> -- | KW139: =IF(DZ$19>$Z139,"--",IF(DZ139=$CN$8,$CV$8,IF(DZ139=$CN$9,$CV$9,$CV$10))*IF(EE139=$CD$8,$CJ$8,IF(EE139=$CD$9,$CJ$9,IF(EE139=$CD$10,$CJ$10,$CJ$11)))) -> -- | LG139: =IF(EJ$19>$Z139,"--",IF(EJ139=$CN$8,$CV$8,IF(EJ139=$CN$9,$CV$9,$CV$10))*IF(EO139=$CD$8,$CJ$8,IF(EO139=$CD$9,$CJ$9,IF(EO139=$CD$10,$CJ$10,$CJ$11)))) -> -- | LQ139: =IF(ET$19>$Z139,"--",IF(ET139=$CN$8,$CV$8,IF(ET139=$CN$9,$CV$9,$CV$10))*IF(EY139=$CD$8,$CJ$8,IF(EY139=$CD$9,$CJ$9,IF(EY139=$CD$10,$CJ$10,$CJ$11)))) -> -- | MA139: =IF(FD$19>$Z139,"--",IF(FD139=$CN$8,$CV$8,IF(FD139=$CN$9,$CV$9,$CV$10))*IF(FI139=$CD$8,$CJ$8,IF(FI139=$CD$9,$CJ$9,IF(FI139=$CD$10,$CJ$10,$CJ$11)))) -> -- | MK139: =IF(FN$19>$Z139,"--",IF(FN139=$CN$8,$CV$8,IF(FN139=$CN$9,$CV$9,$CV$10))*IF(FS139=$CD$8,$CJ$8,IF(FS139=$CD$9,$CJ$9,IF(FS139=$CD$10,$CJ$10,$CJ$11)))) -> -- | MU139: =IF(FX$19>$Z139,"--",IF(FX139=$CN$8,$CV$8,IF(FX139=$CN$9,$CV$9,$CV$10))*IF(GC139=$CD$8,$CJ$8,IF(GC139=$CD$9,$CJ$9,IF(GC139=$CD$10,$CJ$10,$CJ$11)))) -> --
T141: E-W | Z141: 6 | AD141: 2 Lanes | AI141: <20mph | AN141: 2 Lanes | AS141: <20mph | AX141: 2 Lanes | BC141: <20mph | BH141: 2 Lanes | BM141: <20mph | BR141: 2 Lanes | BW141: <20mph | CB141: 2 Lanes | CG141: <20mph | CL141: 1 Lane | CQ141: <20mph | CV141: 1 Lane | DA141: <20mph | DF141: 1 Lane | DK141: <20mph | DP141: 1 Lane | DU141: <20mph | DZ141: 1 Lane | EE141: <20mph | EJ141: 1 Lane | EO141: <20mph | ET141: 1 Lane | EY141: <20mph | FD141: 1 Lane | FI141: <20mph | FN141: 1 Lane | FS141: <20mph | FX141: 1 Lane | GC141: <20mph | GL141: =IF(GV141<=$BX$11,$BR$11,IF(GV141<=$BX$10,$BR$10,IF(GV141<=$BX$9,$BR$9,$BR$8))) -> Good | GQ141: =MIN(HA141:ND142) -> 64 | GV141: =AVERAGE(HA141:ND142) -> 64 | HA141: =IF(AD$19>$Z141,"--",IF(AD141=$CN$8,$CV$8,IF(AD141=$CN$9,$CV$9,$CV$10))*IF(AI141=$CD$8,$CJ$8,IF(AI141=$CD$9,$CJ$9,IF(AI141=$CD$10,$CJ$10,$CJ$11)))) -> 64 | HK141: =IF(AN$19>$Z141,"--",IF(AN141=$CN$8,$CV$8,IF(AN141=$CN$9,$CV$9,$CV$10))*IF(AS141=$CD$8,$CJ$8,IF(AS141=$CD$9,$CJ$9,IF(AS141=$CD$10,$CJ$10,$CJ$11)))) -> 64 | HU141: =IF(AX$19>$Z141,"--",IF(AX141=$CN$8,$CV$8,IF(AX141=$CN$9,$CV$9,$CV$10))*IF(BC141=$CD$8,$CJ$8,IF(BC141=$CD$9,$CJ$9,IF(BC141=$CD$10,$CJ$10,$CJ$11)))) -> 64 | IE141: =IF(BH$19>$Z141,"--",IF(BH141=$CN$8,$CV$8,IF(BH141=$CN$9,$CV$9,$CV$10))*IF(BM141=$CD$8,$CJ$8,IF(BM141=$CD$9,$CJ$9,IF(BM141=$CD$10,$CJ$10,$CJ$11)))) -> 64 | IO141: =IF(BR$19>$Z141,"--",IF(BR141=$CN$8,$CV$8,IF(BR141=$CN$9,$CV$9,$CV$10))*IF(BW141=$CD$8,$CJ$8,IF(BW141=$CD$9,$CJ$9,IF(BW141=$CD$10,$CJ$10,$CJ$11)))) -> 64 | IY141: =IF(CB$19>$Z141,"--",IF(CB141=$CN$8,$CV$8,IF(CB141=$CN$9,$CV$9,$CV$10))*IF(CG141=$CD$8,$CJ$8,IF(CG141=$CD$9,$CJ$9,IF(CG141=$CD$10,$CJ$10,$CJ$11)))) -> 64 | JI141: =IF(CL$19>$Z141,"--",IF(CL141=$CN$8,$CV$8,IF(CL141=$CN$9,$CV$9,$CV$10))*IF(CQ141=$CD$8,$CJ$8,IF(CQ141=$CD$9,$CJ$9,IF(CQ141=$CD$10,$CJ$10,$CJ$11)))) -> -- | JS141: =IF(CV$19>$Z141,"--",IF(CV141=$CN$8,$CV$8,IF(CV141=$CN$9,$CV$9,$CV$10))*IF(DA141=$CD$8,$CJ$8,IF(DA141=$CD$9,$CJ$9,IF(DA141=$CD$10,$CJ$10,$CJ$11)))) -> -- | KC141: =IF(DF$19>$Z141,"--",IF(DF141=$CN$8,$CV$8,IF(DF141=$CN$9,$CV$9,$CV$10))*IF(DK141=$CD$8,$CJ$8,IF(DK141=$CD$9,$CJ$9,IF(DK141=$CD$10,$CJ$10,$CJ$11)))) -> -- | KM141: =IF(DP$19>$Z141,"--",IF(DP141=$CN$8,$CV$8,IF(DP141=$CN$9,$CV$9,$CV$10))*IF(DU141=$CD$8,$CJ$8,IF(DU141=$CD$9,$CJ$9,IF(DU141=$CD$10,$CJ$10,$CJ$11)))) -> -- | KW141: =IF(DZ$19>$Z141,"--",IF(DZ141=$CN$8,$CV$8,IF(DZ141=$CN$9,$CV$9,$CV$10))*IF(EE141=$CD$8,$CJ$8,IF(EE141=$CD$9,$CJ$9,IF(EE141=$CD$10,$CJ$10,$CJ$11)))) -> -- | LG141: =IF(EJ$19>$Z141,"--",IF(EJ141=$CN$8,$CV$8,IF(EJ141=$CN$9,$CV$9,$CV$10))*IF(EO141=$CD$8,$CJ$8,IF(EO141=$CD$9,$CJ$9,IF(EO141=$CD$10,$CJ$10,$CJ$11)))) -> -- | LQ141: =IF(ET$19>$Z141,"--",IF(ET141=$CN$8,$CV$8,IF(ET141=$CN$9,$CV$9,$CV$10))*IF(EY141=$CD$8,$CJ$8,IF(EY141=$CD$9,$CJ$9,IF(EY141=$CD$10,$CJ$10,$CJ$11)))) -> -- | MA141: =IF(FD$19>$Z141,"--",IF(FD141=$CN$8,$CV$8,IF(FD141=$CN$9,$CV$9,$CV$10))*IF(FI141=$CD$8,$CJ$8,IF(FI141=$CD$9,$CJ$9,IF(FI141=$CD$10,$CJ$10,$CJ$11)))) -> -- | MK141: =IF(FN$19>$Z141,"--",IF(FN141=$CN$8,$CV$8,IF(FN141=$CN$9,$CV$9,$CV$10))*IF(FS141=$CD$8,$CJ$8,IF(FS141=$CD$9,$CJ$9,IF(FS141=$CD$10,$CJ$10,$CJ$11)))) -> -- | MU141: =IF(FX$19>$Z141,"--",IF(FX141=$CN$8,$CV$8,IF(FX141=$CN$9,$CV$9,$CV$10))*IF(GC141=$CD$8,$CJ$8,IF(GC141=$CD$9,$CJ$9,IF(GC141=$CD$10,$CJ$10,$CJ$11)))) -> --
A143: Displaced Left Turn | T143: N-S | Z143: 6 | AD143: 2 Lanes | AI143: <20mph | AN143: 2 Lanes | AS143: <20mph | AX143: 2 Lanes | BC143: <20mph | BH143: 2 Lanes | BM143: <20mph | BR143: 2 Lanes | BW143: <20mph | CB143: 2 Lanes | CG143: <20mph | CL143: 1 Lane | CQ143: <20mph | CV143: 1 Lane | DA143: <20mph | DF143: 1 Lane | DK143: <20mph | DP143: 1 Lane | DU143: <20mph | DZ143: 1 Lane | EE143: <20mph | EJ143: 1 Lane | EO143: <20mph | ET143: 1 Lane | EY143: <20mph | FD143: 1 Lane | FI143: <20mph | FN143: 1 Lane | FS143: <20mph | FX143: 1 Lane | GC143: <20mph | GL143: =IF(GV143<=$BX$11,$BR$11,IF(GV143<=$BX$10,$BR$10,IF(GV143<=$BX$9,$BR$9,$BR$8))) -> Good | GQ143: =MIN(HA143:ND144) -> 64 | GV143: =AVERAGE(HA143:ND144) -> 64 | HA143: =IF(AD$19>$Z143,"--",IF(AD143=$CN$8,$CV$8,IF(AD143=$CN$9,$CV$9,$CV$10))*IF(AI143=$CD$8,$CJ$8,IF(AI143=$CD$9,$CJ$9,IF(AI143=$CD$10,$CJ$10,$CJ$11)))) -> 64 | HK143: =IF(AN$19>$Z143,"--",IF(AN143=$CN$8,$CV$8,IF(AN143=$CN$9,$CV$9,$CV$10))*IF(AS143=$CD$8,$CJ$8,IF(AS143=$CD$9,$CJ$9,IF(AS143=$CD$10,$CJ$10,$CJ$11)))) -> 64 | HU143: =IF(AX$19>$Z143,"--",IF(AX143=$CN$8,$CV$8,IF(AX143=$CN$9,$CV$9,$CV$10))*IF(BC143=$CD$8,$CJ$8,IF(BC143=$CD$9,$CJ$9,IF(BC143=$CD$10,$CJ$10,$CJ$11)))) -> 64 | IE143: =IF(BH$19>$Z143,"--",IF(BH143=$CN$8,$CV$8,IF(BH143=$CN$9,$CV$9,$CV$10))*IF(BM143=$CD$8,$CJ$8,IF(BM143=$CD$9,$CJ$9,IF(BM143=$CD$10,$CJ$10,$CJ$11)))) -> 64 | IO143: =IF(BR$19>$Z143,"--",IF(BR143=$CN$8,$CV$8,IF(BR143=$CN$9,$CV$9,$CV$10))*IF(BW143=$CD$8,$CJ$8,IF(BW143=$CD$9,$CJ$9,IF(BW143=$CD$10,$CJ$10,$CJ$11)))) -> 64 | IY143: =IF(CB$19>$Z143,"--",IF(CB143=$CN$8,$CV$8,IF(CB143=$CN$9,$CV$9,$CV$10))*IF(CG143=$CD$8,$CJ$8,IF(CG143=$CD$9,$CJ$9,IF(CG143=$CD$10,$CJ$10,$CJ$11)))) -> 64 | JI143: =IF(CL$19>$Z143,"--",IF(CL143=$CN$8,$CV$8,IF(CL143=$CN$9,$CV$9,$CV$10))*IF(CQ143=$CD$8,$CJ$8,IF(CQ143=$CD$9,$CJ$9,IF(CQ143=$CD$10,$CJ$10,$CJ$11)))) -> -- | JS143: =IF(CV$19>$Z143,"--",IF(CV143=$CN$8,$CV$8,IF(CV143=$CN$9,$CV$9,$CV$10))*IF(DA143=$CD$8,$CJ$8,IF(DA143=$CD$9,$CJ$9,IF(DA143=$CD$10,$CJ$10,$CJ$11)))) -> -- | KC143: =IF(DF$19>$Z143,"--",IF(DF143=$CN$8,$CV$8,IF(DF143=$CN$9,$CV$9,$CV$10))*IF(DK143=$CD$8,$CJ$8,IF(DK143=$CD$9,$CJ$9,IF(DK143=$CD$10,$CJ$10,$CJ$11)))) -> -- | KM143: =IF(DP$19>$Z143,"--",IF(DP143=$CN$8,$CV$8,IF(DP143=$CN$9,$CV$9,$CV$10))*IF(DU143=$CD$8,$CJ$8,IF(DU143=$CD$9,$CJ$9,IF(DU143=$CD$10,$CJ$10,$CJ$11)))) -> -- | KW143: =IF(DZ$19>$Z143,"--",IF(DZ143=$CN$8,$CV$8,IF(DZ143=$CN$9,$CV$9,$CV$10))*IF(EE143=$CD$8,$CJ$8,IF(EE143=$CD$9,$CJ$9,IF(EE143=$CD$10,$CJ$10,$CJ$11)))) -> -- | LG143: =IF(EJ$19>$Z143,"--",IF(EJ143=$CN$8,$CV$8,IF(EJ143=$CN$9,$CV$9,$CV$10))*IF(EO143=$CD$8,$CJ$8,IF(EO143=$CD$9,$CJ$9,IF(EO143=$CD$10,$CJ$10,$CJ$11)))) -> -- | LQ143: =IF(ET$19>$Z143,"--",IF(ET143=$CN$8,$CV$8,IF(ET143=$CN$9,$CV$9,$CV$10))*IF(EY143=$CD$8,$CJ$8,IF(EY143=$CD$9,$CJ$9,IF(EY143=$CD$10,$CJ$10,$CJ$11)))) -> -- | MA143: =IF(FD$19>$Z143,"--",IF(FD143=$CN$8,$CV$8,IF(FD143=$CN$9,$CV$9,$CV$10))*IF(FI143=$CD$8,$CJ$8,IF(FI143=$CD$9,$CJ$9,IF(FI143=$CD$10,$CJ$10,$CJ$11)))) -> -- | MK143: =IF(FN$19>$Z143,"--",IF(FN143=$CN$8,$CV$8,IF(FN143=$CN$9,$CV$9,$CV$10))*IF(FS143=$CD$8,$CJ$8,IF(FS143=$CD$9,$CJ$9,IF(FS143=$CD$10,$CJ$10,$CJ$11)))) -> -- | MU143: =IF(FX$19>$Z143,"--",IF(FX143=$CN$8,$CV$8,IF(FX143=$CN$9,$CV$9,$CV$10))*IF(GC143=$CD$8,$CJ$8,IF(GC143=$CD$9,$CJ$9,IF(GC143=$CD$10,$CJ$10,$CJ$11)))) -> --
T145: E-W | Z145: 6 | AD145: 2 Lanes | AI145: <20mph | AN145: 2 Lanes | AS145: <20mph | AX145: 2 Lanes | BC145: <20mph | BH145: 2 Lanes | BM145: <20mph | BR145: 2 Lanes | BW145: <20mph | CB145: 2 Lanes | CG145: <20mph | CL145: 1 Lane | CQ145: <20mph | CV145: 1 Lane | DA145: <20mph | DF145: 1 Lane | DK145: <20mph | DP145: 1 Lane | DU145: <20mph | DZ145: 1 Lane | EE145: <20mph | EJ145: 1 Lane | EO145: <20mph | ET145: 1 Lane | EY145: <20mph | FD145: 1 Lane | FI145: <20mph | FN145: 1 Lane | FS145: <20mph | FX145: 1 Lane | GC145: <20mph | GL145: =IF(GV145<=$BX$11,$BR$11,IF(GV145<=$BX$10,$BR$10,IF(GV145<=$BX$9,$BR$9,$BR$8))) -> Good | GQ145: =MIN(HA145:ND146) -> 64 | GV145: =AVERAGE(HA145:ND146) -> 64 | HA145: =IF(AD$19>$Z145,"--",IF(AD145=$CN$8,$CV$8,IF(AD145=$CN$9,$CV$9,$CV$10))*IF(AI145=$CD$8,$CJ$8,IF(AI145=$CD$9,$CJ$9,IF(AI145=$CD$10,$CJ$10,$CJ$11)))) -> 64 | HK145: =IF(AN$19>$Z145,"--",IF(AN145=$CN$8,$CV$8,IF(AN145=$CN$9,$CV$9,$CV$10))*IF(AS145=$CD$8,$CJ$8,IF(AS145=$CD$9,$CJ$9,IF(AS145=$CD$10,$CJ$10,$CJ$11)))) -> 64 | HU145: =IF(AX$19>$Z145,"--",IF(AX145=$CN$8,$CV$8,IF(AX145=$CN$9,$CV$9,$CV$10))*IF(BC145=$CD$8,$CJ$8,IF(BC145=$CD$9,$CJ$9,IF(BC145=$CD$10,$CJ$10,$CJ$11)))) -> 64 | IE145: =IF(BH$19>$Z145,"--",IF(BH145=$CN$8,$CV$8,IF(BH145=$CN$9,$CV$9,$CV$10))*IF(BM145=$CD$8,$CJ$8,IF(BM145=$CD$9,$CJ$9,IF(BM145=$CD$10,$CJ$10,$CJ$11)))) -> 64 | IO145: =IF(BR$19>$Z145,"--",IF(BR145=$CN$8,$CV$8,IF(BR145=$CN$9,$CV$9,$CV$10))*IF(BW145=$CD$8,$CJ$8,IF(BW145=$CD$9,$CJ$9,IF(BW145=$CD$10,$CJ$10,$CJ$11)))) -> 64 | IY145: =IF(CB$19>$Z145,"--",IF(CB145=$CN$8,$CV$8,IF(CB145=$CN$9,$CV$9,$CV$10))*IF(CG145=$CD$8,$CJ$8,IF(CG145=$CD$9,$CJ$9,IF(CG145=$CD$10,$CJ$10,$CJ$11)))) -> 64 | JI145: =IF(CL$19>$Z145,"--",IF(CL145=$CN$8,$CV$8,IF(CL145=$CN$9,$CV$9,$CV$10))*IF(CQ145=$CD$8,$CJ$8,IF(CQ145=$CD$9,$CJ$9,IF(CQ145=$CD$10,$CJ$10,$CJ$11)))) -> -- | JS145: =IF(CV$19>$Z145,"--",IF(CV145=$CN$8,$CV$8,IF(CV145=$CN$9,$CV$9,$CV$10))*IF(DA145=$CD$8,$CJ$8,IF(DA145=$CD$9,$CJ$9,IF(DA145=$CD$10,$CJ$10,$CJ$11)))) -> -- | KC145: =IF(DF$19>$Z145,"--",IF(DF145=$CN$8,$CV$8,IF(DF145=$CN$9,$CV$9,$CV$10))*IF(DK145=$CD$8,$CJ$8,IF(DK145=$CD$9,$CJ$9,IF(DK145=$CD$10,$CJ$10,$CJ$11)))) -> -- | KM145: =IF(DP$19>$Z145,"--",IF(DP145=$CN$8,$CV$8,IF(DP145=$CN$9,$CV$9,$CV$10))*IF(DU145=$CD$8,$CJ$8,IF(DU145=$CD$9,$CJ$9,IF(DU145=$CD$10,$CJ$10,$CJ$11)))) -> -- | KW145: =IF(DZ$19>$Z145,"--",IF(DZ145=$CN$8,$CV$8,IF(DZ145=$CN$9,$CV$9,$CV$10))*IF(EE145=$CD$8,$CJ$8,IF(EE145=$CD$9,$CJ$9,IF(EE145=$CD$10,$CJ$10,$CJ$11)))) -> -- | LG145: =IF(EJ$19>$Z145,"--",IF(EJ145=$CN$8,$CV$8,IF(EJ145=$CN$9,$CV$9,$CV$10))*IF(EO145=$CD$8,$CJ$8,IF(EO145=$CD$9,$CJ$9,IF(EO145=$CD$10,$CJ$10,$CJ$11)))) -> -- | LQ145: =IF(ET$19>$Z145,"--",IF(ET145=$CN$8,$CV$8,IF(ET145=$CN$9,$CV$9,$CV$10))*IF(EY145=$CD$8,$CJ$8,IF(EY145=$CD$9,$CJ$9,IF(EY145=$CD$10,$CJ$10,$CJ$11)))) -> -- | MA145: =IF(FD$19>$Z145,"--",IF(FD145=$CN$8,$CV$8,IF(FD145=$CN$9,$CV$9,$CV$10))*IF(FI145=$CD$8,$CJ$8,IF(FI145=$CD$9,$CJ$9,IF(FI145=$CD$10,$CJ$10,$CJ$11)))) -> -- | MK145: =IF(FN$19>$Z145,"--",IF(FN145=$CN$8,$CV$8,IF(FN145=$CN$9,$CV$9,$CV$10))*IF(FS145=$CD$8,$CJ$8,IF(FS145=$CD$9,$CJ$9,IF(FS145=$CD$10,$CJ$10,$CJ$11)))) -> -- | MU145: =IF(FX$19>$Z145,"--",IF(FX145=$CN$8,$CV$8,IF(FX145=$CN$9,$CV$9,$CV$10))*IF(GC145=$CD$8,$CJ$8,IF(GC145=$CD$9,$CJ$9,IF(GC145=$CD$10,$CJ$10,$CJ$11)))) -> --
A147: Contraflow Left Interchange | T147: N-S | Z147: 6 | AD147: 2 Lanes | AI147: <20mph | AN147: 2 Lanes | AS147: <20mph | AX147: 2 Lanes | BC147: <20mph | BH147: 2 Lanes | BM147: <20mph | BR147: 2 Lanes | BW147: <20mph | CB147: 2 Lanes | CG147: <20mph | CL147: 1 Lane | CQ147: <20mph | CV147: 1 Lane | DA147: <20mph | DF147: 1 Lane | DK147: <20mph | DP147: 1 Lane | DU147: <20mph | DZ147: 1 Lane | EE147: <20mph | EJ147: 1 Lane | EO147: <20mph | ET147: 1 Lane | EY147: <20mph | FD147: 1 Lane | FI147: <20mph | FN147: 1 Lane | FS147: <20mph | FX147: 1 Lane | GC147: <20mph | GL147: =IF(GV147<=$BX$11,$BR$11,IF(GV147<=$BX$10,$BR$10,IF(GV147<=$BX$9,$BR$9,$BR$8))) -> Good | GQ147: =MIN(HA147:ND148) -> 64 | GV147: =AVERAGE(HA147:ND148) -> 64 | HA147: =IF(AD$19>$Z147,"--",IF(AD147=$CN$8,$CV$8,IF(AD147=$CN$9,$CV$9,$CV$10))*IF(AI147=$CD$8,$CJ$8,IF(AI147=$CD$9,$CJ$9,IF(AI147=$CD$10,$CJ$10,$CJ$11)))) -> 64 | HK147: =IF(AN$19>$Z147,"--",IF(AN147=$CN$8,$CV$8,IF(AN147=$CN$9,$CV$9,$CV$10))*IF(AS147=$CD$8,$CJ$8,IF(AS147=$CD$9,$CJ$9,IF(AS147=$CD$10,$CJ$10,$CJ$11)))) -> 64 | HU147: =IF(AX$19>$Z147,"--",IF(AX147=$CN$8,$CV$8,IF(AX147=$CN$9,$CV$9,$CV$10))*IF(BC147=$CD$8,$CJ$8,IF(BC147=$CD$9,$CJ$9,IF(BC147=$CD$10,$CJ$10,$CJ$11)))) -> 64 | IE147: =IF(BH$19>$Z147,"--",IF(BH147=$CN$8,$CV$8,IF(BH147=$CN$9,$CV$9,$CV$10))*IF(BM147=$CD$8,$CJ$8,IF(BM147=$CD$9,$CJ$9,IF(BM147=$CD$10,$CJ$10,$CJ$11)))) -> 64 | IO147: =IF(BR$19>$Z147,"--",IF(BR147=$CN$8,$CV$8,IF(BR147=$CN$9,$CV$9,$CV$10))*IF(BW147=$CD$8,$CJ$8,IF(BW147=$CD$9,$CJ$9,IF(BW147=$CD$10,$CJ$10,$CJ$11)))) -> 64 | IY147: =IF(CB$19>$Z147,"--",IF(CB147=$CN$8,$CV$8,IF(CB147=$CN$9,$CV$9,$CV$10))*IF(CG147=$CD$8,$CJ$8,IF(CG147=$CD$9,$CJ$9,IF(CG147=$CD$10,$CJ$10,$CJ$11)))) -> 64 | JI147: =IF(CL$19>$Z147,"--",IF(CL147=$CN$8,$CV$8,IF(CL147=$CN$9,$CV$9,$CV$10))*IF(CQ147=$CD$8,$CJ$8,IF(CQ147=$CD$9,$CJ$9,IF(CQ147=$CD$10,$CJ$10,$CJ$11)))) -> -- | JS147: =IF(CV$19>$Z147,"--",IF(CV147=$CN$8,$CV$8,IF(CV147=$CN$9,$CV$9,$CV$10))*IF(DA147=$CD$8,$CJ$8,IF(DA147=$CD$9,$CJ$9,IF(DA147=$CD$10,$CJ$10,$CJ$11)))) -> -- | KC147: =IF(DF$19>$Z147,"--",IF(DF147=$CN$8,$CV$8,IF(DF147=$CN$9,$CV$9,$CV$10))*IF(DK147=$CD$8,$CJ$8,IF(DK147=$CD$9,$CJ$9,IF(DK147=$CD$10,$CJ$10,$CJ$11)))) -> -- | KM147: =IF(DP$19>$Z147,"--",IF(DP147=$CN$8,$CV$8,IF(DP147=$CN$9,$CV$9,$CV$10))*IF(DU147=$CD$8,$CJ$8,IF(DU147=$CD$9,$CJ$9,IF(DU147=$CD$10,$CJ$10,$CJ$11)))) -> -- | KW147: =IF(DZ$19>$Z147,"--",IF(DZ147=$CN$8,$CV$8,IF(DZ147=$CN$9,$CV$9,$CV$10))*IF(EE147=$CD$8,$CJ$8,IF(EE147=$CD$9,$CJ$9,IF(EE147=$CD$10,$CJ$10,$CJ$11)))) -> -- | LG147: =IF(EJ$19>$Z147,"--",IF(EJ147=$CN$8,$CV$8,IF(EJ147=$CN$9,$CV$9,$CV$10))*IF(EO147=$CD$8,$CJ$8,IF(EO147=$CD$9,$CJ$9,IF(EO147=$CD$10,$CJ$10,$CJ$11)))) -> -- | LQ147: =IF(ET$19>$Z147,"--",IF(ET147=$CN$8,$CV$8,IF(ET147=$CN$9,$CV$9,$CV$10))*IF(EY147=$CD$8,$CJ$8,IF(EY147=$CD$9,$CJ$9,IF(EY147=$CD$10,$CJ$10,$CJ$11)))) -> -- | MA147: =IF(FD$19>$Z147,"--",IF(FD147=$CN$8,$CV$8,IF(FD147=$CN$9,$CV$9,$CV$10))*IF(FI147=$CD$8,$CJ$8,IF(FI147=$CD$9,$CJ$9,IF(FI147=$CD$10,$CJ$10,$CJ$11)))) -> -- | MK147: =IF(FN$19>$Z147,"--",IF(FN147=$CN$8,$CV$8,IF(FN147=$CN$9,$CV$9,$CV$10))*IF(FS147=$CD$8,$CJ$8,IF(FS147=$CD$9,$CJ$9,IF(FS147=$CD$10,$CJ$10,$CJ$11)))) -> -- | MU147: =IF(FX$19>$Z147,"--",IF(FX147=$CN$8,$CV$8,IF(FX147=$CN$9,$CV$9,$CV$10))*IF(GC147=$CD$8,$CJ$8,IF(GC147=$CD$9,$CJ$9,IF(GC147=$CD$10,$CJ$10,$CJ$11)))) -> --
T149: E-W | Z149: 6 | AD149: 2 Lanes | AI149: <20mph | AN149: 2 Lanes | AS149: <20mph | AX149: 2 Lanes | BC149: <20mph | BH149: 2 Lanes | BM149: <20mph | BR149: 2 Lanes | BW149: <20mph | CB149: 2 Lanes | CG149: <20mph | CL149: 1 Lane | CQ149: <20mph | CV149: 1 Lane | DA149: <20mph | DF149: 1 Lane | DK149: <20mph | DP149: 1 Lane | DU149: <20mph | DZ149: 1 Lane | EE149: <20mph | EJ149: 1 Lane | EO149: <20mph | ET149: 1 Lane | EY149: <20mph | FD149: 1 Lane | FI149: <20mph | FN149: 1 Lane | FS149: <20mph | FX149: 1 Lane | GC149: <20mph | GL149: =IF(GV149<=$BX$11,$BR$11,IF(GV149<=$BX$10,$BR$10,IF(GV149<=$BX$9,$BR$9,$BR$8))) -> Good | GQ149: =MIN(HA149:ND150) -> 64 | GV149: =AVERAGE(HA149:ND150) -> 64 | HA149: =IF(AD$19>$Z149,"--",IF(AD149=$CN$8,$CV$8,IF(AD149=$CN$9,$CV$9,$CV$10))*IF(AI149=$CD$8,$CJ$8,IF(AI149=$CD$9,$CJ$9,IF(AI149=$CD$10,$CJ$10,$CJ$11)))) -> 64 | HK149: =IF(AN$19>$Z149,"--",IF(AN149=$CN$8,$CV$8,IF(AN149=$CN$9,$CV$9,$CV$10))*IF(AS149=$CD$8,$CJ$8,IF(AS149=$CD$9,$CJ$9,IF(AS149=$CD$10,$CJ$10,$CJ$11)))) -> 64 | HU149: =IF(AX$19>$Z149,"--",IF(AX149=$CN$8,$CV$8,IF(AX149=$CN$9,$CV$9,$CV$10))*IF(BC149=$CD$8,$CJ$8,IF(BC149=$CD$9,$CJ$9,IF(BC149=$CD$10,$CJ$10,$CJ$11)))) -> 64 | IE149: =IF(BH$19>$Z149,"--",IF(BH149=$CN$8,$CV$8,IF(BH149=$CN$9,$CV$9,$CV$10))*IF(BM149=$CD$8,$CJ$8,IF(BM149=$CD$9,$CJ$9,IF(BM149=$CD$10,$CJ$10,$CJ$11)))) -> 64 | IO149: =IF(BR$19>$Z149,"--",IF(BR149=$CN$8,$CV$8,IF(BR149=$CN$9,$CV$9,$CV$10))*IF(BW149=$CD$8,$CJ$8,IF(BW149=$CD$9,$CJ$9,IF(BW149=$CD$10,$CJ$10,$CJ$11)))) -> 64 | IY149: =IF(CB$19>$Z149,"--",IF(CB149=$CN$8,$CV$8,IF(CB149=$CN$9,$CV$9,$CV$10))*IF(CG149=$CD$8,$CJ$8,IF(CG149=$CD$9,$CJ$9,IF(CG149=$CD$10,$CJ$10,$CJ$11)))) -> 64 | JI149: =IF(CL$19>$Z149,"--",IF(CL149=$CN$8,$CV$8,IF(CL149=$CN$9,$CV$9,$CV$10))*IF(CQ149=$CD$8,$CJ$8,IF(CQ149=$CD$9,$CJ$9,IF(CQ149=$CD$10,$CJ$10,$CJ$11)))) -> -- | JS149: =IF(CV$19>$Z149,"--",IF(CV149=$CN$8,$CV$8,IF(CV149=$CN$9,$CV$9,$CV$10))*IF(DA149=$CD$8,$CJ$8,IF(DA149=$CD$9,$CJ$9,IF(DA149=$CD$10,$CJ$10,$CJ$11)))) -> -- | KC149: =IF(DF$19>$Z149,"--",IF(DF149=$CN$8,$CV$8,IF(DF149=$CN$9,$CV$9,$CV$10))*IF(DK149=$CD$8,$CJ$8,IF(DK149=$CD$9,$CJ$9,IF(DK149=$CD$10,$CJ$10,$CJ$11)))) -> -- | KM149: =IF(DP$19>$Z149,"--",IF(DP149=$CN$8,$CV$8,IF(DP149=$CN$9,$CV$9,$CV$10))*IF(DU149=$CD$8,$CJ$8,IF(DU149=$CD$9,$CJ$9,IF(DU149=$CD$10,$CJ$10,$CJ$11)))) -> -- | KW149: =IF(DZ$19>$Z149,"--",IF(DZ149=$CN$8,$CV$8,IF(DZ149=$CN$9,$CV$9,$CV$10))*IF(EE149=$CD$8,$CJ$8,IF(EE149=$CD$9,$CJ$9,IF(EE149=$CD$10,$CJ$10,$CJ$11)))) -> -- | LG149: =IF(EJ$19>$Z149,"--",IF(EJ149=$CN$8,$CV$8,IF(EJ149=$CN$9,$CV$9,$CV$10))*IF(EO149=$CD$8,$CJ$8,IF(EO149=$CD$9,$CJ$9,IF(EO149=$CD$10,$CJ$10,$CJ$11)))) -> -- | LQ149: =IF(ET$19>$Z149,"--",IF(ET149=$CN$8,$CV$8,IF(ET149=$CN$9,$CV$9,$CV$10))*IF(EY149=$CD$8,$CJ$8,IF(EY149=$CD$9,$CJ$9,IF(EY149=$CD$10,$CJ$10,$CJ$11)))) -> -- | MA149: =IF(FD$19>$Z149,"--",IF(FD149=$CN$8,$CV$8,IF(FD149=$CN$9,$CV$9,$CV$10))*IF(FI149=$CD$8,$CJ$8,IF(FI149=$CD$9,$CJ$9,IF(FI149=$CD$10,$CJ$10,$CJ$11)))) -> -- | MK149: =IF(FN$19>$Z149,"--",IF(FN149=$CN$8,$CV$8,IF(FN149=$CN$9,$CV$9,$CV$10))*IF(FS149=$CD$8,$CJ$8,IF(FS149=$CD$9,$CJ$9,IF(FS149=$CD$10,$CJ$10,$CJ$11)))) -> -- | MU149: =IF(FX$19>$Z149,"--",IF(FX149=$CN$8,$CV$8,IF(FX149=$CN$9,$CV$9,$CV$10))*IF(GC149=$CD$8,$CJ$8,IF(GC149=$CD$9,$CJ$9,IF(GC149=$CD$10,$CJ$10,$CJ$11)))) -> --
A151: Diverging Diamond Interchange | T151: N-S | Z151: 6 | AD151: 2 Lanes | AI151: <20mph | AN151: 2 Lanes | AS151: <20mph | AX151: 2 Lanes | BC151: <20mph | BH151: 2 Lanes | BM151: <20mph | BR151: 2 Lanes | BW151: <20mph | CB151: 2 Lanes | CG151: <20mph | CL151: 1 Lane | CQ151: <20mph | CV151: 1 Lane | DA151: <20mph | DF151: 1 Lane | DK151: <20mph | DP151: 1 Lane | DU151: <20mph | DZ151: 1 Lane | EE151: <20mph | EJ151: 1 Lane | EO151: <20mph | ET151: 1 Lane | EY151: <20mph | FD151: 1 Lane | FI151: <20mph | FN151: 1 Lane | FS151: <20mph | FX151: 1 Lane | GC151: <20mph | GL151: =IF(GV151<=$BX$11,$BR$11,IF(GV151<=$BX$10,$BR$10,IF(GV151<=$BX$9,$BR$9,$BR$8))) -> Good | GQ151: =MIN(HA151:ND152) -> 64 | GV151: =AVERAGE(HA151:ND152) -> 64 | HA151: =IF(AD$19>$Z151,"--",IF(AD151=$CN$8,$CV$8,IF(AD151=$CN$9,$CV$9,$CV$10))*IF(AI151=$CD$8,$CJ$8,IF(AI151=$CD$9,$CJ$9,IF(AI151=$CD$10,$CJ$10,$CJ$11)))) -> 64 | HK151: =IF(AN$19>$Z151,"--",IF(AN151=$CN$8,$CV$8,IF(AN151=$CN$9,$CV$9,$CV$10))*IF(AS151=$CD$8,$CJ$8,IF(AS151=$CD$9,$CJ$9,IF(AS151=$CD$10,$CJ$10,$CJ$11)))) -> 64 | HU151: =IF(AX$19>$Z151,"--",IF(AX151=$CN$8,$CV$8,IF(AX151=$CN$9,$CV$9,$CV$10))*IF(BC151=$CD$8,$CJ$8,IF(BC151=$CD$9,$CJ$9,IF(BC151=$CD$10,$CJ$10,$CJ$11)))) -> 64 | IE151: =IF(BH$19>$Z151,"--",IF(BH151=$CN$8,$CV$8,IF(BH151=$CN$9,$CV$9,$CV$10))*IF(BM151=$CD$8,$CJ$8,IF(BM151=$CD$9,$CJ$9,IF(BM151=$CD$10,$CJ$10,$CJ$11)))) -> 64 | IO151: =IF(BR$19>$Z151,"--",IF(BR151=$CN$8,$CV$8,IF(BR151=$CN$9,$CV$9,$CV$10))*IF(BW151=$CD$8,$CJ$8,IF(BW151=$CD$9,$CJ$9,IF(BW151=$CD$10,$CJ$10,$CJ$11)))) -> 64 | IY151: =IF(CB$19>$Z151,"--",IF(CB151=$CN$8,$CV$8,IF(CB151=$CN$9,$CV$9,$CV$10))*IF(CG151=$CD$8,$CJ$8,IF(CG151=$CD$9,$CJ$9,IF(CG151=$CD$10,$CJ$10,$CJ$11)))) -> 64 | JI151: =IF(CL$19>$Z151,"--",IF(CL151=$CN$8,$CV$8,IF(CL151=$CN$9,$CV$9,$CV$10))*IF(CQ151=$CD$8,$CJ$8,IF(CQ151=$CD$9,$CJ$9,IF(CQ151=$CD$10,$CJ$10,$CJ$11)))) -> -- | JS151: =IF(CV$19>$Z151,"--",IF(CV151=$CN$8,$CV$8,IF(CV151=$CN$9,$CV$9,$CV$10))*IF(DA151=$CD$8,$CJ$8,IF(DA151=$CD$9,$CJ$9,IF(DA151=$CD$10,$CJ$10,$CJ$11)))) -> -- | KC151: =IF(DF$19>$Z151,"--",IF(DF151=$CN$8,$CV$8,IF(DF151=$CN$9,$CV$9,$CV$10))*IF(DK151=$CD$8,$CJ$8,IF(DK151=$CD$9,$CJ$9,IF(DK151=$CD$10,$CJ$10,$CJ$11)))) -> -- | KM151: =IF(DP$19>$Z151,"--",IF(DP151=$CN$8,$CV$8,IF(DP151=$CN$9,$CV$9,$CV$10))*IF(DU151=$CD$8,$CJ$8,IF(DU151=$CD$9,$CJ$9,IF(DU151=$CD$10,$CJ$10,$CJ$11)))) -> -- | KW151: =IF(DZ$19>$Z151,"--",IF(DZ151=$CN$8,$CV$8,IF(DZ151=$CN$9,$CV$9,$CV$10))*IF(EE151=$CD$8,$CJ$8,IF(EE151=$CD$9,$CJ$9,IF(EE151=$CD$10,$CJ$10,$CJ$11)))) -> -- | LG151: =IF(EJ$19>$Z151,"--",IF(EJ151=$CN$8,$CV$8,IF(EJ151=$CN$9,$CV$9,$CV$10))*IF(EO151=$CD$8,$CJ$8,IF(EO151=$CD$9,$CJ$9,IF(EO151=$CD$10,$CJ$10,$CJ$11)))) -> -- | LQ151: =IF(ET$19>$Z151,"--",IF(ET151=$CN$8,$CV$8,IF(ET151=$CN$9,$CV$9,$CV$10))*IF(EY151=$CD$8,$CJ$8,IF(EY151=$CD$9,$CJ$9,IF(EY151=$CD$10,$CJ$10,$CJ$11)))) -> -- | MA151: =IF(FD$19>$Z151,"--",IF(FD151=$CN$8,$CV$8,IF(FD151=$CN$9,$CV$9,$CV$10))*IF(FI151=$CD$8,$CJ$8,IF(FI151=$CD$9,$CJ$9,IF(FI151=$CD$10,$CJ$10,$CJ$11)))) -> -- | MK151: =IF(FN$19>$Z151,"--",IF(FN151=$CN$8,$CV$8,IF(FN151=$CN$9,$CV$9,$CV$10))*IF(FS151=$CD$8,$CJ$8,IF(FS151=$CD$9,$CJ$9,IF(FS151=$CD$10,$CJ$10,$CJ$11)))) -> -- | MU151: =IF(FX$19>$Z151,"--",IF(FX151=$CN$8,$CV$8,IF(FX151=$CN$9,$CV$9,$CV$10))*IF(GC151=$CD$8,$CJ$8,IF(GC151=$CD$9,$CJ$9,IF(GC151=$CD$10,$CJ$10,$CJ$11)))) -> --
T153: E-W | Z153: 6 | AD153: 2 Lanes | AI153: <20mph | AN153: 2 Lanes | AS153: <20mph | AX153: 2 Lanes | BC153: <20mph | BH153: 2 Lanes | BM153: <20mph | BR153: 2 Lanes | BW153: <20mph | CB153: 2 Lanes | CG153: <20mph | CL153: 1 Lane | CQ153: <20mph | CV153: 1 Lane | DA153: <20mph | DF153: 1 Lane | DK153: <20mph | DP153: 1 Lane | DU153: <20mph | DZ153: 1 Lane | EE153: <20mph | EJ153: 1 Lane | EO153: <20mph | ET153: 1 Lane | EY153: <20mph | FD153: 1 Lane | FI153: <20mph | FN153: 1 Lane | FS153: <20mph | FX153: 1 Lane | GC153: <20mph | GL153: =IF(GV153<=$BX$11,$BR$11,IF(GV153<=$BX$10,$BR$10,IF(GV153<=$BX$9,$BR$9,$BR$8))) -> Good | GQ153: =MIN(HA153:ND154) -> 64 | GV153: =AVERAGE(HA153:ND154) -> 64 | HA153: =IF(AD$19>$Z153,"--",IF(AD153=$CN$8,$CV$8,IF(AD153=$CN$9,$CV$9,$CV$10))*IF(AI153=$CD$8,$CJ$8,IF(AI153=$CD$9,$CJ$9,IF(AI153=$CD$10,$CJ$10,$CJ$11)))) -> 64 | HK153: =IF(AN$19>$Z153,"--",IF(AN153=$CN$8,$CV$8,IF(AN153=$CN$9,$CV$9,$CV$10))*IF(AS153=$CD$8,$CJ$8,IF(AS153=$CD$9,$CJ$9,IF(AS153=$CD$10,$CJ$10,$CJ$11)))) -> 64 | HU153: =IF(AX$19>$Z153,"--",IF(AX153=$CN$8,$CV$8,IF(AX153=$CN$9,$CV$9,$CV$10))*IF(BC153=$CD$8,$CJ$8,IF(BC153=$CD$9,$CJ$9,IF(BC153=$CD$10,$CJ$10,$CJ$11)))) -> 64 | IE153: =IF(BH$19>$Z153,"--",IF(BH153=$CN$8,$CV$8,IF(BH153=$CN$9,$CV$9,$CV$10))*IF(BM153=$CD$8,$CJ$8,IF(BM153=$CD$9,$CJ$9,IF(BM153=$CD$10,$CJ$10,$CJ$11)))) -> 64 | IO153: =IF(BR$19>$Z153,"--",IF(BR153=$CN$8,$CV$8,IF(BR153=$CN$9,$CV$9,$CV$10))*IF(BW153=$CD$8,$CJ$8,IF(BW153=$CD$9,$CJ$9,IF(BW153=$CD$10,$CJ$10,$CJ$11)))) -> 64 | IY153: =IF(CB$19>$Z153,"--",IF(CB153=$CN$8,$CV$8,IF(CB153=$CN$9,$CV$9,$CV$10))*IF(CG153=$CD$8,$CJ$8,IF(CG153=$CD$9,$CJ$9,IF(CG153=$CD$10,$CJ$10,$CJ$11)))) -> 64 | JI153: =IF(CL$19>$Z153,"--",IF(CL153=$CN$8,$CV$8,IF(CL153=$CN$9,$CV$9,$CV$10))*IF(CQ153=$CD$8,$CJ$8,IF(CQ153=$CD$9,$CJ$9,IF(CQ153=$CD$10,$CJ$10,$CJ$11)))) -> -- | JS153: =IF(CV$19>$Z153,"--",IF(CV153=$CN$8,$CV$8,IF(CV153=$CN$9,$CV$9,$CV$10))*IF(DA153=$CD$8,$CJ$8,IF(DA153=$CD$9,$CJ$9,IF(DA153=$CD$10,$CJ$10,$CJ$11)))) -> -- | KC153: =IF(DF$19>$Z153,"--",IF(DF153=$CN$8,$CV$8,IF(DF153=$CN$9,$CV$9,$CV$10))*IF(DK153=$CD$8,$CJ$8,IF(DK153=$CD$9,$CJ$9,IF(DK153=$CD$10,$CJ$10,$CJ$11)))) -> -- | KM153: =IF(DP$19>$Z153,"--",IF(DP153=$CN$8,$CV$8,IF(DP153=$CN$9,$CV$9,$CV$10))*IF(DU153=$CD$8,$CJ$8,IF(DU153=$CD$9,$CJ$9,IF(DU153=$CD$10,$CJ$10,$CJ$11)))) -> -- | KW153: =IF(DZ$19>$Z153,"--",IF(DZ153=$CN$8,$CV$8,IF(DZ153=$CN$9,$CV$9,$CV$10))*IF(EE153=$CD$8,$CJ$8,IF(EE153=$CD$9,$CJ$9,IF(EE153=$CD$10,$CJ$10,$CJ$11)))) -> -- | LG153: =IF(EJ$19>$Z153,"--",IF(EJ153=$CN$8,$CV$8,IF(EJ153=$CN$9,$CV$9,$CV$10))*IF(EO153=$CD$8,$CJ$8,IF(EO153=$CD$9,$CJ$9,IF(EO153=$CD$10,$CJ$10,$CJ$11)))) -> -- | LQ153: =IF(ET$19>$Z153,"--",IF(ET153=$CN$8,$CV$8,IF(ET153=$CN$9,$CV$9,$CV$10))*IF(EY153=$CD$8,$CJ$8,IF(EY153=$CD$9,$CJ$9,IF(EY153=$CD$10,$CJ$10,$CJ$11)))) -> -- | MA153: =IF(FD$19>$Z153,"--",IF(FD153=$CN$8,$CV$8,IF(FD153=$CN$9,$CV$9,$CV$10))*IF(FI153=$CD$8,$CJ$8,IF(FI153=$CD$9,$CJ$9,IF(FI153=$CD$10,$CJ$10,$CJ$11)))) -> -- | MK153: =IF(FN$19>$Z153,"--",IF(FN153=$CN$8,$CV$8,IF(FN153=$CN$9,$CV$9,$CV$10))*IF(FS153=$CD$8,$CJ$8,IF(FS153=$CD$9,$CJ$9,IF(FS153=$CD$10,$CJ$10,$CJ$11)))) -> -- | MU153: =IF(FX$19>$Z153,"--",IF(FX153=$CN$8,$CV$8,IF(FX153=$CN$9,$CV$9,$CV$10))*IF(GC153=$CD$8,$CJ$8,IF(GC153=$CD$9,$CJ$9,IF(GC153=$CD$10,$CJ$10,$CJ$11)))) -> --
A155: Single Point | T155: N-S | Z155: 6 | AD155: 2 Lanes | AI155: <20mph | AN155: 2 Lanes | AS155: <20mph | AX155: 2 Lanes | BC155: <20mph | BH155: 2 Lanes | BM155: <20mph | BR155: 2 Lanes | BW155: <20mph | CB155: 2 Lanes | CG155: <20mph | CL155: 1 Lane | CQ155: <20mph | CV155: 1 Lane | DA155: <20mph | DF155: 1 Lane | DK155: <20mph | DP155: 1 Lane | DU155: <20mph | DZ155: 1 Lane | EE155: <20mph | EJ155: 1 Lane | EO155: <20mph | ET155: 1 Lane | EY155: <20mph | FD155: 1 Lane | FI155: <20mph | FN155: 1 Lane | FS155: <20mph | FX155: 1 Lane | GC155: <20mph | GL155: =IF(GV155<=$BX$11,$BR$11,IF(GV155<=$BX$10,$BR$10,IF(GV155<=$BX$9,$BR$9,$BR$8))) -> Good | GQ155: =MIN(HA155:ND156) -> 64 | GV155: =AVERAGE(HA155:ND156) -> 64 | HA155: =IF(AD$19>$Z155,"--",IF(AD155=$CN$8,$CV$8,IF(AD155=$CN$9,$CV$9,$CV$10))*IF(AI155=$CD$8,$CJ$8,IF(AI155=$CD$9,$CJ$9,IF(AI155=$CD$10,$CJ$10,$CJ$11)))) -> 64 | HK155: =IF(AN$19>$Z155,"--",IF(AN155=$CN$8,$CV$8,IF(AN155=$CN$9,$CV$9,$CV$10))*IF(AS155=$CD$8,$CJ$8,IF(AS155=$CD$9,$CJ$9,IF(AS155=$CD$10,$CJ$10,$CJ$11)))) -> 64 | HU155: =IF(AX$19>$Z155,"--",IF(AX155=$CN$8,$CV$8,IF(AX155=$CN$9,$CV$9,$CV$10))*IF(BC155=$CD$8,$CJ$8,IF(BC155=$CD$9,$CJ$9,IF(BC155=$CD$10,$CJ$10,$CJ$11)))) -> 64 | IE155: =IF(BH$19>$Z155,"--",IF(BH155=$CN$8,$CV$8,IF(BH155=$CN$9,$CV$9,$CV$10))*IF(BM155=$CD$8,$CJ$8,IF(BM155=$CD$9,$CJ$9,IF(BM155=$CD$10,$CJ$10,$CJ$11)))) -> 64 | IO155: =IF(BR$19>$Z155,"--",IF(BR155=$CN$8,$CV$8,IF(BR155=$CN$9,$CV$9,$CV$10))*IF(BW155=$CD$8,$CJ$8,IF(BW155=$CD$9,$CJ$9,IF(BW155=$CD$10,$CJ$10,$CJ$11)))) -> 64 | IY155: =IF(CB$19>$Z155,"--",IF(CB155=$CN$8,$CV$8,IF(CB155=$CN$9,$CV$9,$CV$10))*IF(CG155=$CD$8,$CJ$8,IF(CG155=$CD$9,$CJ$9,IF(CG155=$CD$10,$CJ$10,$CJ$11)))) -> 64 | JI155: =IF(CL$19>$Z155,"--",IF(CL155=$CN$8,$CV$8,IF(CL155=$CN$9,$CV$9,$CV$10))*IF(CQ155=$CD$8,$CJ$8,IF(CQ155=$CD$9,$CJ$9,IF(CQ155=$CD$10,$CJ$10,$CJ$11)))) -> -- | JS155: =IF(CV$19>$Z155,"--",IF(CV155=$CN$8,$CV$8,IF(CV155=$CN$9,$CV$9,$CV$10))*IF(DA155=$CD$8,$CJ$8,IF(DA155=$CD$9,$CJ$9,IF(DA155=$CD$10,$CJ$10,$CJ$11)))) -> -- | KC155: =IF(DF$19>$Z155,"--",IF(DF155=$CN$8,$CV$8,IF(DF155=$CN$9,$CV$9,$CV$10))*IF(DK155=$CD$8,$CJ$8,IF(DK155=$CD$9,$CJ$9,IF(DK155=$CD$10,$CJ$10,$CJ$11)))) -> -- | KM155: =IF(DP$19>$Z155,"--",IF(DP155=$CN$8,$CV$8,IF(DP155=$CN$9,$CV$9,$CV$10))*IF(DU155=$CD$8,$CJ$8,IF(DU155=$CD$9,$CJ$9,IF(DU155=$CD$10,$CJ$10,$CJ$11)))) -> -- | KW155: =IF(DZ$19>$Z155,"--",IF(DZ155=$CN$8,$CV$8,IF(DZ155=$CN$9,$CV$9,$CV$10))*IF(EE155=$CD$8,$CJ$8,IF(EE155=$CD$9,$CJ$9,IF(EE155=$CD$10,$CJ$10,$CJ$11)))) -> -- | LG155: =IF(EJ$19>$Z155,"--",IF(EJ155=$CN$8,$CV$8,IF(EJ155=$CN$9,$CV$9,$CV$10))*IF(EO155=$CD$8,$CJ$8,IF(EO155=$CD$9,$CJ$9,IF(EO155=$CD$10,$CJ$10,$CJ$11)))) -> -- | LQ155: =IF(ET$19>$Z155,"--",IF(ET155=$CN$8,$CV$8,IF(ET155=$CN$9,$CV$9,$CV$10))*IF(EY155=$CD$8,$CJ$8,IF(EY155=$CD$9,$CJ$9,IF(EY155=$CD$10,$CJ$10,$CJ$11)))) -> -- | MA155: =IF(FD$19>$Z155,"--",IF(FD155=$CN$8,$CV$8,IF(FD155=$CN$9,$CV$9,$CV$10))*IF(FI155=$CD$8,$CJ$8,IF(FI155=$CD$9,$CJ$9,IF(FI155=$CD$10,$CJ$10,$CJ$11)))) -> -- | MK155: =IF(FN$19>$Z155,"--",IF(FN155=$CN$8,$CV$8,IF(FN155=$CN$9,$CV$9,$CV$10))*IF(FS155=$CD$8,$CJ$8,IF(FS155=$CD$9,$CJ$9,IF(FS155=$CD$10,$CJ$10,$CJ$11)))) -> -- | MU155: =IF(FX$19>$Z155,"--",IF(FX155=$CN$8,$CV$8,IF(FX155=$CN$9,$CV$9,$CV$10))*IF(GC155=$CD$8,$CJ$8,IF(GC155=$CD$9,$CJ$9,IF(GC155=$CD$10,$CJ$10,$CJ$11)))) -> --
T157: E-W | Z157: 6 | AD157: 2 Lanes | AI157: <20mph | AN157: 2 Lanes | AS157: <20mph | AX157: 2 Lanes | BC157: <20mph | BH157: 2 Lanes | BM157: <20mph | BR157: 2 Lanes | BW157: <20mph | CB157: 2 Lanes | CG157: <20mph | CL157: 1 Lane | CQ157: <20mph | CV157: 1 Lane | DA157: <20mph | DF157: 1 Lane | DK157: <20mph | DP157: 1 Lane | DU157: <20mph | DZ157: 1 Lane | EE157: <20mph | EJ157: 1 Lane | EO157: <20mph | ET157: 1 Lane | EY157: <20mph | FD157: 1 Lane | FI157: <20mph | FN157: 1 Lane | FS157: <20mph | FX157: 1 Lane | GC157: <20mph | GL157: =IF(GV157<=$BX$11,$BR$11,IF(GV157<=$BX$10,$BR$10,IF(GV157<=$BX$9,$BR$9,$BR$8))) -> Good | GQ157: =MIN(HA157:ND158) -> 64 | GV157: =AVERAGE(HA157:ND158) -> 64 | HA157: =IF(AD$19>$Z157,"--",IF(AD157=$CN$8,$CV$8,IF(AD157=$CN$9,$CV$9,$CV$10))*IF(AI157=$CD$8,$CJ$8,IF(AI157=$CD$9,$CJ$9,IF(AI157=$CD$10,$CJ$10,$CJ$11)))) -> 64 | HK157: =IF(AN$19>$Z157,"--",IF(AN157=$CN$8,$CV$8,IF(AN157=$CN$9,$CV$9,$CV$10))*IF(AS157=$CD$8,$CJ$8,IF(AS157=$CD$9,$CJ$9,IF(AS157=$CD$10,$CJ$10,$CJ$11)))) -> 64 | HU157: =IF(AX$19>$Z157,"--",IF(AX157=$CN$8,$CV$8,IF(AX157=$CN$9,$CV$9,$CV$10))*IF(BC157=$CD$8,$CJ$8,IF(BC157=$CD$9,$CJ$9,IF(BC157=$CD$10,$CJ$10,$CJ$11)))) -> 64 | IE157: =IF(BH$19>$Z157,"--",IF(BH157=$CN$8,$CV$8,IF(BH157=$CN$9,$CV$9,$CV$10))*IF(BM157=$CD$8,$CJ$8,IF(BM157=$CD$9,$CJ$9,IF(BM157=$CD$10,$CJ$10,$CJ$11)))) -> 64 | IO157: =IF(BR$19>$Z157,"--",IF(BR157=$CN$8,$CV$8,IF(BR157=$CN$9,$CV$9,$CV$10))*IF(BW157=$CD$8,$CJ$8,IF(BW157=$CD$9,$CJ$9,IF(BW157=$CD$10,$CJ$10,$CJ$11)))) -> 64 | IY157: =IF(CB$19>$Z157,"--",IF(CB157=$CN$8,$CV$8,IF(CB157=$CN$9,$CV$9,$CV$10))*IF(CG157=$CD$8,$CJ$8,IF(CG157=$CD$9,$CJ$9,IF(CG157=$CD$10,$CJ$10,$CJ$11)))) -> 64 | JI157: =IF(CL$19>$Z157,"--",IF(CL157=$CN$8,$CV$8,IF(CL157=$CN$9,$CV$9,$CV$10))*IF(CQ157=$CD$8,$CJ$8,IF(CQ157=$CD$9,$CJ$9,IF(CQ157=$CD$10,$CJ$10,$CJ$11)))) -> -- | JS157: =IF(CV$19>$Z157,"--",IF(CV157=$CN$8,$CV$8,IF(CV157=$CN$9,$CV$9,$CV$10))*IF(DA157=$CD$8,$CJ$8,IF(DA157=$CD$9,$CJ$9,IF(DA157=$CD$10,$CJ$10,$CJ$11)))) -> -- | KC157: =IF(DF$19>$Z157,"--",IF(DF157=$CN$8,$CV$8,IF(DF157=$CN$9,$CV$9,$CV$10))*IF(DK157=$CD$8,$CJ$8,IF(DK157=$CD$9,$CJ$9,IF(DK157=$CD$10,$CJ$10,$CJ$11)))) -> -- | KM157: =IF(DP$19>$Z157,"--",IF(DP157=$CN$8,$CV$8,IF(DP157=$CN$9,$CV$9,$CV$10))*IF(DU157=$CD$8,$CJ$8,IF(DU157=$CD$9,$CJ$9,IF(DU157=$CD$10,$CJ$10,$CJ$11)))) -> -- | KW157: =IF(DZ$19>$Z157,"--",IF(DZ157=$CN$8,$CV$8,IF(DZ157=$CN$9,$CV$9,$CV$10))*IF(EE157=$CD$8,$CJ$8,IF(EE157=$CD$9,$CJ$9,IF(EE157=$CD$10,$CJ$10,$CJ$11)))) -> -- | LG157: =IF(EJ$19>$Z157,"--",IF(EJ157=$CN$8,$CV$8,IF(EJ157=$CN$9,$CV$9,$CV$10))*IF(EO157=$CD$8,$CJ$8,IF(EO157=$CD$9,$CJ$9,IF(EO157=$CD$10,$CJ$10,$CJ$11)))) -> -- | LQ157: =IF(ET$19>$Z157,"--",IF(ET157=$CN$8,$CV$8,IF(ET157=$CN$9,$CV$9,$CV$10))*IF(EY157=$CD$8,$CJ$8,IF(EY157=$CD$9,$CJ$9,IF(EY157=$CD$10,$CJ$10,$CJ$11)))) -> -- | MA157: =IF(FD$19>$Z157,"--",IF(FD157=$CN$8,$CV$8,IF(FD157=$CN$9,$CV$9,$CV$10))*IF(FI157=$CD$8,$CJ$8,IF(FI157=$CD$9,$CJ$9,IF(FI157=$CD$10,$CJ$10,$CJ$11)))) -> -- | MK157: =IF(FN$19>$Z157,"--",IF(FN157=$CN$8,$CV$8,IF(FN157=$CN$9,$CV$9,$CV$10))*IF(FS157=$CD$8,$CJ$8,IF(FS157=$CD$9,$CJ$9,IF(FS157=$CD$10,$CJ$10,$CJ$11)))) -> -- | MU157: =IF(FX$19>$Z157,"--",IF(FX157=$CN$8,$CV$8,IF(FX157=$CN$9,$CV$9,$CV$10))*IF(GC157=$CD$8,$CJ$8,IF(GC157=$CD$9,$CJ$9,IF(GC157=$CD$10,$CJ$10,$CJ$11)))) -> --
A159: Single Point with Roundabout | T159: N-S | Z159: 6 | AD159: 2 Lanes | AI159: <20mph | AN159: 2 Lanes | AS159: <20mph | AX159: 2 Lanes | BC159: <20mph | BH159: 2 Lanes | BM159: <20mph | BR159: 2 Lanes | BW159: <20mph | CB159: 2 Lanes | CG159: <20mph | CL159: 1 Lane | CQ159: <20mph | CV159: 1 Lane | DA159: <20mph | DF159: 1 Lane | DK159: <20mph | DP159: 1 Lane | DU159: <20mph | DZ159: 1 Lane | EE159: <20mph | EJ159: 1 Lane | EO159: <20mph | ET159: 1 Lane | EY159: <20mph | FD159: 1 Lane | FI159: <20mph | FN159: 1 Lane | FS159: <20mph | FX159: 1 Lane | GC159: <20mph | GL159: =IF(GV159<=$BX$11,$BR$11,IF(GV159<=$BX$10,$BR$10,IF(GV159<=$BX$9,$BR$9,$BR$8))) -> Good | GQ159: =MIN(HA159:ND160) -> 64 | GV159: =AVERAGE(HA159:ND160) -> 64 | HA159: =IF(AD$19>$Z159,"--",IF(AD159=$CN$8,$CV$8,IF(AD159=$CN$9,$CV$9,$CV$10))*IF(AI159=$CD$8,$CJ$8,IF(AI159=$CD$9,$CJ$9,IF(AI159=$CD$10,$CJ$10,$CJ$11)))) -> 64 | HK159: =IF(AN$19>$Z159,"--",IF(AN159=$CN$8,$CV$8,IF(AN159=$CN$9,$CV$9,$CV$10))*IF(AS159=$CD$8,$CJ$8,IF(AS159=$CD$9,$CJ$9,IF(AS159=$CD$10,$CJ$10,$CJ$11)))) -> 64 | HU159: =IF(AX$19>$Z159,"--",IF(AX159=$CN$8,$CV$8,IF(AX159=$CN$9,$CV$9,$CV$10))*IF(BC159=$CD$8,$CJ$8,IF(BC159=$CD$9,$CJ$9,IF(BC159=$CD$10,$CJ$10,$CJ$11)))) -> 64 | IE159: =IF(BH$19>$Z159,"--",IF(BH159=$CN$8,$CV$8,IF(BH159=$CN$9,$CV$9,$CV$10))*IF(BM159=$CD$8,$CJ$8,IF(BM159=$CD$9,$CJ$9,IF(BM159=$CD$10,$CJ$10,$CJ$11)))) -> 64 | IO159: =IF(BR$19>$Z159,"--",IF(BR159=$CN$8,$CV$8,IF(BR159=$CN$9,$CV$9,$CV$10))*IF(BW159=$CD$8,$CJ$8,IF(BW159=$CD$9,$CJ$9,IF(BW159=$CD$10,$CJ$10,$CJ$11)))) -> 64 | IY159: =IF(CB$19>$Z159,"--",IF(CB159=$CN$8,$CV$8,IF(CB159=$CN$9,$CV$9,$CV$10))*IF(CG159=$CD$8,$CJ$8,IF(CG159=$CD$9,$CJ$9,IF(CG159=$CD$10,$CJ$10,$CJ$11)))) -> 64 | JI159: =IF(CL$19>$Z159,"--",IF(CL159=$CN$8,$CV$8,IF(CL159=$CN$9,$CV$9,$CV$10))*IF(CQ159=$CD$8,$CJ$8,IF(CQ159=$CD$9,$CJ$9,IF(CQ159=$CD$10,$CJ$10,$CJ$11)))) -> -- | JS159: =IF(CV$19>$Z159,"--",IF(CV159=$CN$8,$CV$8,IF(CV159=$CN$9,$CV$9,$CV$10))*IF(DA159=$CD$8,$CJ$8,IF(DA159=$CD$9,$CJ$9,IF(DA159=$CD$10,$CJ$10,$CJ$11)))) -> -- | KC159: =IF(DF$19>$Z159,"--",IF(DF159=$CN$8,$CV$8,IF(DF159=$CN$9,$CV$9,$CV$10))*IF(DK159=$CD$8,$CJ$8,IF(DK159=$CD$9,$CJ$9,IF(DK159=$CD$10,$CJ$10,$CJ$11)))) -> -- | KM159: =IF(DP$19>$Z159,"--",IF(DP159=$CN$8,$CV$8,IF(DP159=$CN$9,$CV$9,$CV$10))*IF(DU159=$CD$8,$CJ$8,IF(DU159=$CD$9,$CJ$9,IF(DU159=$CD$10,$CJ$10,$CJ$11)))) -> -- | KW159: =IF(DZ$19>$Z159,"--",IF(DZ159=$CN$8,$CV$8,IF(DZ159=$CN$9,$CV$9,$CV$10))*IF(EE159=$CD$8,$CJ$8,IF(EE159=$CD$9,$CJ$9,IF(EE159=$CD$10,$CJ$10,$CJ$11)))) -> -- | LG159: =IF(EJ$19>$Z159,"--",IF(EJ159=$CN$8,$CV$8,IF(EJ159=$CN$9,$CV$9,$CV$10))*IF(EO159=$CD$8,$CJ$8,IF(EO159=$CD$9,$CJ$9,IF(EO159=$CD$10,$CJ$10,$CJ$11)))) -> -- | LQ159: =IF(ET$19>$Z159,"--",IF(ET159=$CN$8,$CV$8,IF(ET159=$CN$9,$CV$9,$CV$10))*IF(EY159=$CD$8,$CJ$8,IF(EY159=$CD$9,$CJ$9,IF(EY159=$CD$10,$CJ$10,$CJ$11)))) -> -- | MA159: =IF(FD$19>$Z159,"--",IF(FD159=$CN$8,$CV$8,IF(FD159=$CN$9,$CV$9,$CV$10))*IF(FI159=$CD$8,$CJ$8,IF(FI159=$CD$9,$CJ$9,IF(FI159=$CD$10,$CJ$10,$CJ$11)))) -> -- | MK159: =IF(FN$19>$Z159,"--",IF(FN159=$CN$8,$CV$8,IF(FN159=$CN$9,$CV$9,$CV$10))*IF(FS159=$CD$8,$CJ$8,IF(FS159=$CD$9,$CJ$9,IF(FS159=$CD$10,$CJ$10,$CJ$11)))) -> -- | MU159: =IF(FX$19>$Z159,"--",IF(FX159=$CN$8,$CV$8,IF(FX159=$CN$9,$CV$9,$CV$10))*IF(GC159=$CD$8,$CJ$8,IF(GC159=$CD$9,$CJ$9,IF(GC159=$CD$10,$CJ$10,$CJ$11)))) -> --
T161: E-W | Z161: 6 | AD161: 2 Lanes | AI161: <20mph | AN161: 2 Lanes | AS161: <20mph | AX161: 2 Lanes | BC161: <20mph | BH161: 2 Lanes | BM161: <20mph | BR161: 2 Lanes | BW161: <20mph | CB161: 2 Lanes | CG161: <20mph | CL161: 1 Lane | CQ161: <20mph | CV161: 1 Lane | DA161: <20mph | DF161: 1 Lane | DK161: <20mph | DP161: 1 Lane | DU161: <20mph | DZ161: 1 Lane | EE161: <20mph | EJ161: 1 Lane | EO161: <20mph | ET161: 1 Lane | EY161: <20mph | FD161: 1 Lane | FI161: <20mph | FN161: 1 Lane | FS161: <20mph | FX161: 1 Lane | GC161: <20mph | GL161: =IF(GV161<=$BX$11,$BR$11,IF(GV161<=$BX$10,$BR$10,IF(GV161<=$BX$9,$BR$9,$BR$8))) -> Good | GQ161: =MIN(HA161:ND162) -> 64 | GV161: =AVERAGE(HA161:ND162) -> 64 | HA161: =IF(AD$19>$Z161,"--",IF(AD161=$CN$8,$CV$8,IF(AD161=$CN$9,$CV$9,$CV$10))*IF(AI161=$CD$8,$CJ$8,IF(AI161=$CD$9,$CJ$9,IF(AI161=$CD$10,$CJ$10,$CJ$11)))) -> 64 | HK161: =IF(AN$19>$Z161,"--",IF(AN161=$CN$8,$CV$8,IF(AN161=$CN$9,$CV$9,$CV$10))*IF(AS161=$CD$8,$CJ$8,IF(AS161=$CD$9,$CJ$9,IF(AS161=$CD$10,$CJ$10,$CJ$11)))) -> 64 | HU161: =IF(AX$19>$Z161,"--",IF(AX161=$CN$8,$CV$8,IF(AX161=$CN$9,$CV$9,$CV$10))*IF(BC161=$CD$8,$CJ$8,IF(BC161=$CD$9,$CJ$9,IF(BC161=$CD$10,$CJ$10,$CJ$11)))) -> 64 | IE161: =IF(BH$19>$Z161,"--",IF(BH161=$CN$8,$CV$8,IF(BH161=$CN$9,$CV$9,$CV$10))*IF(BM161=$CD$8,$CJ$8,IF(BM161=$CD$9,$CJ$9,IF(BM161=$CD$10,$CJ$10,$CJ$11)))) -> 64 | IO161: =IF(BR$19>$Z161,"--",IF(BR161=$CN$8,$CV$8,IF(BR161=$CN$9,$CV$9,$CV$10))*IF(BW161=$CD$8,$CJ$8,IF(BW161=$CD$9,$CJ$9,IF(BW161=$CD$10,$CJ$10,$CJ$11)))) -> 64 | IY161: =IF(CB$19>$Z161,"--",IF(CB161=$CN$8,$CV$8,IF(CB161=$CN$9,$CV$9,$CV$10))*IF(CG161=$CD$8,$CJ$8,IF(CG161=$CD$9,$CJ$9,IF(CG161=$CD$10,$CJ$10,$CJ$11)))) -> 64 | JI161: =IF(CL$19>$Z161,"--",IF(CL161=$CN$8,$CV$8,IF(CL161=$CN$9,$CV$9,$CV$10))*IF(CQ161=$CD$8,$CJ$8,IF(CQ161=$CD$9,$CJ$9,IF(CQ161=$CD$10,$CJ$10,$CJ$11)))) -> -- | JS161: =IF(CV$19>$Z161,"--",IF(CV161=$CN$8,$CV$8,IF(CV161=$CN$9,$CV$9,$CV$10))*IF(DA161=$CD$8,$CJ$8,IF(DA161=$CD$9,$CJ$9,IF(DA161=$CD$10,$CJ$10,$CJ$11)))) -> -- | KC161: =IF(DF$19>$Z161,"--",IF(DF161=$CN$8,$CV$8,IF(DF161=$CN$9,$CV$9,$CV$10))*IF(DK161=$CD$8,$CJ$8,IF(DK161=$CD$9,$CJ$9,IF(DK161=$CD$10,$CJ$10,$CJ$11)))) -> -- | KM161: =IF(DP$19>$Z161,"--",IF(DP161=$CN$8,$CV$8,IF(DP161=$CN$9,$CV$9,$CV$10))*IF(DU161=$CD$8,$CJ$8,IF(DU161=$CD$9,$CJ$9,IF(DU161=$CD$10,$CJ$10,$CJ$11)))) -> -- | KW161: =IF(DZ$19>$Z161,"--",IF(DZ161=$CN$8,$CV$8,IF(DZ161=$CN$9,$CV$9,$CV$10))*IF(EE161=$CD$8,$CJ$8,IF(EE161=$CD$9,$CJ$9,IF(EE161=$CD$10,$CJ$10,$CJ$11)))) -> -- | LG161: =IF(EJ$19>$Z161,"--",IF(EJ161=$CN$8,$CV$8,IF(EJ161=$CN$9,$CV$9,$CV$10))*IF(EO161=$CD$8,$CJ$8,IF(EO161=$CD$9,$CJ$9,IF(EO161=$CD$10,$CJ$10,$CJ$11)))) -> -- | LQ161: =IF(ET$19>$Z161,"--",IF(ET161=$CN$8,$CV$8,IF(ET161=$CN$9,$CV$9,$CV$10))*IF(EY161=$CD$8,$CJ$8,IF(EY161=$CD$9,$CJ$9,IF(EY161=$CD$10,$CJ$10,$CJ$11)))) -> -- | MA161: =IF(FD$19>$Z161,"--",IF(FD161=$CN$8,$CV$8,IF(FD161=$CN$9,$CV$9,$CV$10))*IF(FI161=$CD$8,$CJ$8,IF(FI161=$CD$9,$CJ$9,IF(FI161=$CD$10,$CJ$10,$CJ$11)))) -> -- | MK161: =IF(FN$19>$Z161,"--",IF(FN161=$CN$8,$CV$8,IF(FN161=$CN$9,$CV$9,$CV$10))*IF(FS161=$CD$8,$CJ$8,IF(FS161=$CD$9,$CJ$9,IF(FS161=$CD$10,$CJ$10,$CJ$11)))) -> -- | MU161: =IF(FX$19>$Z161,"--",IF(FX161=$CN$8,$CV$8,IF(FX161=$CN$9,$CV$9,$CV$10))*IF(GC161=$CD$8,$CJ$8,IF(GC161=$CD$9,$CJ$9,IF(GC161=$CD$10,$CJ$10,$CJ$11)))) -> --

Sheet Multimodal Bike
A2: Capacity Analysis for Planning of Junctions
A4: Multimodal Intersection Configuration for Bicycle Segments
BR7: Scoring Ranges | CD7: Veh Speed | CP7: Bike Lane Type
BR8: Excellent | BX8: 100 | BZ8: 80 | CD8: <20mph | CJ8: 10 | CP8: Separate Path | DA8: 10
BR9: Good | BX9: 79 | BZ9: 60 | CD9: 20-30mph | CJ9: 8 | CP9: On-Street Lane | DA9: 8
BR10: Fair | BX10: 59 | BZ10: 40 | CD10: >30mph | CJ10: 6 | CP10: Shared with Vehicles | DA10: 6
BR11: Poor | BX11: 39 | BZ11: 0
A17: Bicycle Segment Configurations for Non-roundabout Intersections | GL17: Bicycle Multimodal Scoring for Non-Roundabout Intersections
A19: DO NOT MODIFY THIS ROW | AD19: 1 | AI19: =AD19 -> 1 | AN19: 2 | AS19: =AN19 -> 2 | AX19: 3 | BC19: =AX19 -> 3 | BH19: 4 | BM19: =BH19 -> 4 | BR19: 5 | BW19: =BR19 -> 5 | CB19: 6 | CG19: =CB19 -> 6 | CL19: 7 | CQ19: =CL19 -> 7 | CV19: 8 | DA19: =CV19 -> 8 | DF19: 9 | DK19: =DF19 -> 9 | DP19: 10 | DU19: =DP19 -> 10 | DZ19: 11 | EE19: =DZ19 -> 11 | EJ19: 12 | EO19: =EJ19 -> 12 | ET19: 13 | EY19: =ET19 -> 13 | FD19: 14 | FI19: =FD19 -> 14 | FN19: 15 | FS19: =FN19 -> 15 | FX19: 16 | GC19: =FX19 -> 16
A20: TYPE OF INTERSECTION | T20: Sheet | Z20: # Of Seg. | AD20: Segment #1 | AN20: Segment #2 | AX20: Segment #3 | BH20: Segment #4 | BR20: Segment #5 | CB20: Segment #6 | CL20: Segment #7 | CV20: Segment #8 | DF20: Segment #9 | DP20: Segment #10 | DZ20: Segment #11 | EJ20: Segment #12 | ET20: Crossing #13 | FD20: Crossing #14 | FN20: Crossing #15 | FX20: Crossing #16 | GL20: Intx Scores | HA20: Individual Segment Scores
AD22: Bike Lane | AI22: Veh Speed | AN22: Bike Lane | AS22: Veh Speed | AX22: Bike Lane | BC22: Veh Speed | BH22: Bike Lane | BM22: Veh Speed | BR22: Bike Lane | BW22: Veh Speed | CB22: Bike Lane | CG22: Veh Speed | CL22: Bike Lane | CQ22: Veh Speed | CV22: Bike Lane | DA22: Veh Speed | DF22: Bike Lane | DK22: Veh Speed | DP22: Bike Lane | DU22: Veh Speed | DZ22: Bike Lane | EE22: Veh Speed | EJ22: Bike Lane | EO22: Veh Speed | ET22: Bike Lane | EY22: Veh Speed | FD22: Bike Lane | FI22: Veh Speed | FN22: Bike Lane | FS22: Veh Speed | FX22: Bike Lane | GC22: Veh Speed | GL22: Report | GQ22: Worst | GV22: Avg | HA22: #1 | HK22: #2 | HU22: #3 | IE22: #4 | IO22: #5 | IY22: #6 | JI22: #7 | JS22: #8 | KC22: #9 | KM22: #10 | KW22: #11 | LG22: #12 | LQ22: #13 | MA22: #14 | MK22: #15 | MU22: #16
A24: ='3 - Alt Num Lanes Input'!E24 -> Traffic Signal | T24: FULL | Z24: 6 | AD24: On-Street Lane | AI24: <20mph | AN24: On-Street Lane | AS24: <20mph | AX24: On-Street Lane | BC24: <20mph | BH24: On-Street Lane | BM24: <20mph | BR24: On-Street Lane | BW24: <20mph | CB24: On-Street Lane | CG24: <20mph | CL24: On-Street Lane | CQ24: <20mph | CV24: On-Street Lane | DA24: <20mph | DF24: On-Street Lane | DK24: <20mph | DP24: On-Street Lane | DU24: <20mph | DZ24: On-Street Lane | EE24: <20mph | EJ24: On-Street Lane | EO24: <20mph | ET24: Separate Path | EY24: <20mph | FD24: Separate Path | FI24: <20mph | FN24: Separate Path | FS24: <20mph | FX24: Separate Path | GC24: <20mph | GL24: =IF(GV24<=$BX$11,$BR$11,IF(GV24<=$BX$10,$BR$10,IF(GV24<=$BX$9,$BR$9,$BR$8))) -> Excellent | GQ24: =MIN(HA24:ND25) -> 80 | GV24: =AVERAGE(HA24:ND25) -> 80 | HA24: =IF(AD$19>$Z24,"--",IF(AD24=$CP$8,$DA$8,IF(AD24=$CP$9,$DA$9,$DA$10))*IF(AI24=$CD$8,$CJ$8,IF(AI24=$CD$9,$CJ$9,$CJ$10))) -> 80 | HK24: =IF(AN$19>$Z24,"--",IF(AN24=$CP$8,$DA$8,IF(AN24=$CP$9,$DA$9,$DA$10))*IF(AS24=$CD$8,$CJ$8,IF(AS24=$CD$9,$CJ$9,$CJ$10))) -> 80 | HU24: =IF(AX$19>$Z24,"--",IF(AX24=$CP$8,$DA$8,IF(AX24=$CP$9,$DA$9,$DA$10))*IF(BC24=$CD$8,$CJ$8,IF(BC24=$CD$9,$CJ$9,$CJ$10))) -> 80 | IE24: =IF(BH$19>$Z24,"--",IF(BH24=$CP$8,$DA$8,IF(BH24=$CP$9,$DA$9,$DA$10))*IF(BM24=$CD$8,$CJ$8,IF(BM24=$CD$9,$CJ$9,$CJ$10))) -> 80 | IO24: =IF(BR$19>$Z24,"--",IF(BR24=$CP$8,$DA$8,IF(BR24=$CP$9,$DA$9,$DA$10))*IF(BW24=$CD$8,$CJ$8,IF(BW24=$CD$9,$CJ$9,$CJ$10))) -> 80 | IY24: =IF(CB$19>$Z24,"--",IF(CB24=$CP$8,$DA$8,IF(CB24=$CP$9,$DA$9,$DA$10))*IF(CG24=$CD$8,$CJ$8,IF(CG24=$CD$9,$CJ$9,$CJ$10))) -> 80 | JI24: =IF(CL$19>$Z24,"--",IF(CL24=$CP$8,$DA$8,IF(CL24=$CP$9,$DA$9,$DA$10))*IF(CQ24=$CD$8,$CJ$8,IF(CQ24=$CD$9,$CJ$9,$CJ$10))) -> -- | JS24: =IF(CV$19>$Z24,"--",IF(CV24=$CP$8,$DA$8,IF(CV24=$CP$9,$DA$9,$DA$10))*IF(DA24=$CD$8,$CJ$8,IF(DA24=$CD$9,$CJ$9,$CJ$10))) -> -- | KC24: =IF(DF$19>$Z24,"--",IF(DF24=$CP$8,$DA$8,IF(DF24=$CP$9,$DA$9,$DA$10))*IF(DK24=$CD$8,$CJ$8,IF(DK24=$CD$9,$CJ$9,$CJ$10))) -> -- | KM24: =IF(DP$19>$Z24,"--",IF(DP24=$CP$8,$DA$8,IF(DP24=$CP$9,$DA$9,$DA$10))*IF(DU24=$CD$8,$CJ$8,IF(DU24=$CD$9,$CJ$9,$CJ$10))) -> -- | KW24: =IF(DZ$19>$Z24,"--",IF(DZ24=$CP$8,$DA$8,IF(DZ24=$CP$9,$DA$9,$DA$10))*IF(EE24=$CD$8,$CJ$8,IF(EE24=$CD$9,$CJ$9,$CJ$10))) -> -- | LG24: =IF(EJ$19>$Z24,"--",IF(EJ24=$CP$8,$DA$8,IF(EJ24=$CP$9,$DA$9,$DA$10))*IF(EO24=$CD$8,$CJ$8,IF(EO24=$CD$9,$CJ$9,$CJ$10))) -> -- | LQ24: =IF(ET$19>$Z24,"--",IF(ET24=$CP$8,$DA$8,IF(ET24=$CP$9,$DA$9,$DA$10))*IF(EY24=$CD$8,$CJ$8,IF(EY24=$CD$9,$CJ$9,$CJ$10))) -> -- | MA24: =IF(FD$19>$Z24,"--",IF(FD24=$CP$8,$DA$8,IF(FD24=$CP$9,$DA$9,$DA$10))*IF(FI24=$CD$8,$CJ$8,IF(FI24=$CD$9,$CJ$9,$CJ$10))) -> -- | MK24: =IF(FN$19>$Z24,"--",IF(FN24=$CP$8,$DA$8,IF(FN24=$CP$9,$DA$9,$DA$10))*IF(FS24=$CD$8,$CJ$8,IF(FS24=$CD$9,$CJ$9,$CJ$10))) -> -- | MU24: =IF(FX$19>$Z24,"--",IF(FX24=$CP$8,$DA$8,IF(FX24=$CP$9,$DA$9,$DA$10))*IF(GC24=$CD$8,$CJ$8,IF(GC24=$CD$9,$CJ$9,$CJ$10))) -> --
A26: Conventional Shared RT LN | T26: CSRL | Z26: 4 | AD26: On-Street Lane | AI26: <20mph | AN26: On-Street Lane | AS26: <20mph | AX26: On-Street Lane | BC26: <20mph | BH26: On-Street Lane | BM26: <20mph | BR26: On-Street Lane | BW26: <20mph | CB26: On-Street Lane | CG26: Stop / Signal | CL26: On-Street Lane | CQ26: Stop / Signal | CV26: On-Street Lane | DA26: Stop / Signal | DF26: On-Street Lane | DK26: Stop / Signal | DP26: On-Street Lane | DU26: <20mph | DZ26: On-Street Lane | EE26: Stop / Signal | EJ26: On-Street Lane | EO26: Stop / Signal | ET26: Separate Path | EY26: Stop / Signal | FD26: Separate Path | FI26: Stop / Signal | FN26: Separate Path | FS26: <20mph | FX26: Separate Path | GC26: <20mph | GL26: =IF(GV26<=$BX$11,$BR$11,IF(GV26<=$BX$10,$BR$10,IF(GV26<=$BX$9,$BR$9,$BR$8))) -> Excellent | GQ26: =MIN(HA26:ND27) -> 80 | GV26: =AVERAGE(HA26:ND27) -> 80 | HA26: =IF(AD$19>$Z26,"--",IF(AD26=$CP$8,$DA$8,IF(AD26=$CP$9,$DA$9,$DA$10))*IF(AI26=$CD$8,$CJ$8,IF(AI26=$CD$9,$CJ$9,$CJ$10))) -> 80 | HK26: =IF(AN$19>$Z26,"--",IF(AN26=$CP$8,$DA$8,IF(AN26=$CP$9,$DA$9,$DA$10))*IF(AS26=$CD$8,$CJ$8,IF(AS26=$CD$9,$CJ$9,$CJ$10))) -> 80 | HU26: =IF(AX$19>$Z26,"--",IF(AX26=$CP$8,$DA$8,IF(AX26=$CP$9,$DA$9,$DA$10))*IF(BC26=$CD$8,$CJ$8,IF(BC26=$CD$9,$CJ$9,$CJ$10))) -> 80 | IE26: =IF(BH$19>$Z26,"--",IF(BH26=$CP$8,$DA$8,IF(BH26=$CP$9,$DA$9,$DA$10))*IF(BM26=$CD$8,$CJ$8,IF(BM26=$CD$9,$CJ$9,$CJ$10))) -> 80 | IO26: =IF(BR$19>$Z26,"--",IF(BR26=$CP$8,$DA$8,IF(BR26=$CP$9,$DA$9,$DA$10))*IF(BW26=$CD$8,$CJ$8,IF(BW26=$CD$9,$CJ$9,$CJ$10))) -> -- | IY26: =IF(CB$19>$Z26,"--",IF(CB26=$CP$8,$DA$8,IF(CB26=$CP$9,$DA$9,$DA$10))*IF(CG26=$CD$8,$CJ$8,IF(CG26=$CD$9,$CJ$9,$CJ$10))) -> -- | JI26: =IF(CL$19>$Z26,"--",IF(CL26=$CP$8,$DA$8,IF(CL26=$CP$9,$DA$9,$DA$10))*IF(CQ26=$CD$8,$CJ$8,IF(CQ26=$CD$9,$CJ$9,$CJ$10))) -> -- | JS26: =IF(CV$19>$Z26,"--",IF(CV26=$CP$8,$DA$8,IF(CV26=$CP$9,$DA$9,$DA$10))*IF(DA26=$CD$8,$CJ$8,IF(DA26=$CD$9,$CJ$9,$CJ$10))) -> -- | KC26: =IF(DF$19>$Z26,"--",IF(DF26=$CP$8,$DA$8,IF(DF26=$CP$9,$DA$9,$DA$10))*IF(DK26=$CD$8,$CJ$8,IF(DK26=$CD$9,$CJ$9,$CJ$10))) -> -- | KM26: =IF(DP$19>$Z26,"--",IF(DP26=$CP$8,$DA$8,IF(DP26=$CP$9,$DA$9,$DA$10))*IF(DU26=$CD$8,$CJ$8,IF(DU26=$CD$9,$CJ$9,$CJ$10))) -> -- | KW26: =IF(DZ$19>$Z26,"--",IF(DZ26=$CP$8,$DA$8,IF(DZ26=$CP$9,$DA$9,$DA$10))*IF(EE26=$CD$8,$CJ$8,IF(EE26=$CD$9,$CJ$9,$CJ$10))) -> -- | LG26: =IF(EJ$19>$Z26,"--",IF(EJ26=$CP$8,$DA$8,IF(EJ26=$CP$9,$DA$9,$DA$10))*IF(EO26=$CD$8,$CJ$8,IF(EO26=$CD$9,$CJ$9,$CJ$10))) -> -- | LQ26: =IF(ET$19>$Z26,"--",IF(ET26=$CP$8,$DA$8,IF(ET26=$CP$9,$DA$9,$DA$10))*IF(EY26=$CD$8,$CJ$8,IF(EY26=$CD$9,$CJ$9,$CJ$10))) -> -- | MA26: =IF(FD$19>$Z26,"--",IF(FD26=$CP$8,$DA$8,IF(FD26=$CP$9,$DA$9,$DA$10))*IF(FI26=$CD$8,$CJ$8,IF(FI26=$CD$9,$CJ$9,$CJ$10))) -> -- | MK26: =IF(FN$19>$Z26,"--",IF(FN26=$CP$8,$DA$8,IF(FN26=$CP$9,$DA$9,$DA$10))*IF(FS26=$CD$8,$CJ$8,IF(FS26=$CD$9,$CJ$9,$CJ$10))) -> -- | MU26: =IF(FX$19>$Z26,"--",IF(FX26=$CP$8,$DA$8,IF(FX26=$CP$9,$DA$9,$DA$10))*IF(GC26=$CD$8,$CJ$8,IF(GC26=$CD$9,$CJ$9,$CJ$10))) -> --
A28: ='3 - Alt Num Lanes Input'!E28 -> Two-Way Stop Control | T28: N-S | Z28: 4 | AD28: On-Street Lane | AI28: >30mph | AN28: On-Street Lane | AS28: >30mph | AX28: On-Street Lane | BC28: <20mph | BH28: On-Street Lane | BM28: <20mph | BR28: On-Street Lane | BW28: <20mph | CB28: On-Street Lane | CG28: >30mph | CL28: On-Street Lane | CQ28: >30mph | CV28: On-Street Lane | DA28: Stop / Signal | DF28: On-Street Lane | DK28: Stop / Signal | DP28: On-Street Lane | DU28: <20mph | DZ28: On-Street Lane | EE28: >30mph | EJ28: On-Street Lane | EO28: >30mph | ET28: Separate Path | EY28: Stop / Signal | FD28: Separate Path | FI28: Stop / Signal | FN28: Separate Path | FS28: <20mph | FX28: Separate Path | GC28: <20mph | GL28: =IF(GV28<=$BX$11,$BR$11,IF(GV28<=$BX$10,$BR$10,IF(GV28<=$BX$9,$BR$9,$BR$8))) -> Good | GQ28: =MIN(HA28:ND29) -> 48 | GV28: =AVERAGE(HA28:ND29) -> 64 | HA28: =IF(AD$19>$Z28,"--",IF(AD28=$CP$8,$DA$8,IF(AD28=$CP$9,$DA$9,$DA$10))*IF(AI28=$CD$8,$CJ$8,IF(AI28=$CD$9,$CJ$9,$CJ$10))) -> 48 | HK28: =IF(AN$19>$Z28,"--",IF(AN28=$CP$8,$DA$8,IF(AN28=$CP$9,$DA$9,$DA$10))*IF(AS28=$CD$8,$CJ$8,IF(AS28=$CD$9,$CJ$9,$CJ$10))) -> 48 | HU28: =IF(AX$19>$Z28,"--",IF(AX28=$CP$8,$DA$8,IF(AX28=$CP$9,$DA$9,$DA$10))*IF(BC28=$CD$8,$CJ$8,IF(BC28=$CD$9,$CJ$9,$CJ$10))) -> 80 | IE28: =IF(BH$19>$Z28,"--",IF(BH28=$CP$8,$DA$8,IF(BH28=$CP$9,$DA$9,$DA$10))*IF(BM28=$CD$8,$CJ$8,IF(BM28=$CD$9,$CJ$9,$CJ$10))) -> 80 | IO28: =IF(BR$19>$Z28,"--",IF(BR28=$CP$8,$DA$8,IF(BR28=$CP$9,$DA$9,$DA$10))*IF(BW28=$CD$8,$CJ$8,IF(BW28=$CD$9,$CJ$9,$CJ$10))) -> -- | IY28: =IF(CB$19>$Z28,"--",IF(CB28=$CP$8,$DA$8,IF(CB28=$CP$9,$DA$9,$DA$10))*IF(CG28=$CD$8,$CJ$8,IF(CG28=$CD$9,$CJ$9,$CJ$10))) -> -- | JI28: =IF(CL$19>$Z28,"--",IF(CL28=$CP$8,$DA$8,IF(CL28=$CP$9,$DA$9,$DA$10))*IF(CQ28=$CD$8,$CJ$8,IF(CQ28=$CD$9,$CJ$9,$CJ$10))) -> -- | JS28: =IF(CV$19>$Z28,"--",IF(CV28=$CP$8,$DA$8,IF(CV28=$CP$9,$DA$9,$DA$10))*IF(DA28=$CD$8,$CJ$8,IF(DA28=$CD$9,$CJ$9,$CJ$10))) -> -- | KC28: =IF(DF$19>$Z28,"--",IF(DF28=$CP$8,$DA$8,IF(DF28=$CP$9,$DA$9,$DA$10))*IF(DK28=$CD$8,$CJ$8,IF(DK28=$CD$9,$CJ$9,$CJ$10))) -> -- | KM28: =IF(DP$19>$Z28,"--",IF(DP28=$CP$8,$DA$8,IF(DP28=$CP$9,$DA$9,$DA$10))*IF(DU28=$CD$8,$CJ$8,IF(DU28=$CD$9,$CJ$9,$CJ$10))) -> -- | KW28: =IF(DZ$19>$Z28,"--",IF(DZ28=$CP$8,$DA$8,IF(DZ28=$CP$9,$DA$9,$DA$10))*IF(EE28=$CD$8,$CJ$8,IF(EE28=$CD$9,$CJ$9,$CJ$10))) -> -- | LG28: =IF(EJ$19>$Z28,"--",IF(EJ28=$CP$8,$DA$8,IF(EJ28=$CP$9,$DA$9,$DA$10))*IF(EO28=$CD$8,$CJ$8,IF(EO28=$CD$9,$CJ$9,$CJ$10))) -> -- | LQ28: =IF(ET$19>$Z28,"--",IF(ET28=$CP$8,$DA$8,IF(ET28=$CP$9,$DA$9,$DA$10))*IF(EY28=$CD$8,$CJ$8,IF(EY28=$CD$9,$CJ$9,$CJ$10))) -> -- | MA28: =IF(FD$19>$Z28,"--",IF(FD28=$CP$8,$DA$8,IF(FD28=$CP$9,$DA$9,$DA$10))*IF(FI28=$CD$8,$CJ$8,IF(FI28=$CD$9,$CJ$9,$CJ$10))) -> -- | MK28: =IF(FN$19>$Z28,"--",IF(FN28=$CP$8,$DA$8,IF(FN28=$CP$9,$DA$9,$DA$10))*IF(FS28=$CD$8,$CJ$8,IF(FS28=$CD$9,$CJ$9,$CJ$10))) -> -- | MU28: =IF(FX$19>$Z28,"--",IF(FX28=$CP$8,$DA$8,IF(FX28=$CP$9,$DA$9,$DA$10))*IF(GC28=$CD$8,$CJ$8,IF(GC28=$CD$9,$CJ$9,$CJ$10))) -> --
T30: E-W | Z30: 4 | AD30: On-Street Lane | AI30: >30mph | AN30: On-Street Lane | AS30: >30mph | AX30: On-Street Lane | BC30: <20mph | BH30: On-Street Lane | BM30: <20mph | BR30: On-Street Lane | BW30: <20mph | CB30: On-Street Lane | CG30: >30mph | CL30: On-Street Lane | CQ30: >30mph | CV30: On-Street Lane | DA30: Stop / Signal | DF30: On-Street Lane | DK30: Stop / Signal | DP30: On-Street Lane | DU30: <20mph | DZ30: On-Street Lane | EE30: >30mph | EJ30: On-Street Lane | EO30: >30mph | ET30: Separate Path | EY30: Stop / Signal | FD30: Separate Path | FI30: Stop / Signal | FN30: Separate Path | FS30: <20mph | FX30: Separate Path | GC30: <20mph | GL30: =IF(GV30<=$BX$11,$BR$11,IF(GV30<=$BX$10,$BR$10,IF(GV30<=$BX$9,$BR$9,$BR$8))) -> Good | GQ30: =MIN(HA30:ND31) -> 48 | GV30: =AVERAGE(HA30:ND31) -> 64 | HA30: =IF(AD$19>$Z30,"--",IF(AD30=$CP$8,$DA$8,IF(AD30=$CP$9,$DA$9,$DA$10))*IF(AI30=$CD$8,$CJ$8,IF(AI30=$CD$9,$CJ$9,$CJ$10))) -> 48 | HK30: =IF(AN$19>$Z30,"--",IF(AN30=$CP$8,$DA$8,IF(AN30=$CP$9,$DA$9,$DA$10))*IF(AS30=$CD$8,$CJ$8,IF(AS30=$CD$9,$CJ$9,$CJ$10))) -> 48 | HU30: =IF(AX$19>$Z30,"--",IF(AX30=$CP$8,$DA$8,IF(AX30=$CP$9,$DA$9,$DA$10))*IF(BC30=$CD$8,$CJ$8,IF(BC30=$CD$9,$CJ$9,$CJ$10))) -> 80 | IE30: =IF(BH$19>$Z30,"--",IF(BH30=$CP$8,$DA$8,IF(BH30=$CP$9,$DA$9,$DA$10))*IF(BM30=$CD$8,$CJ$8,IF(BM30=$CD$9,$CJ$9,$CJ$10))) -> 80 | IO30: =IF(BR$19>$Z30,"--",IF(BR30=$CP$8,$DA$8,IF(BR30=$CP$9,$DA$9,$DA$10))*IF(BW30=$CD$8,$CJ$8,IF(BW30=$CD$9,$CJ$9,$CJ$10))) -> -- | IY30: =IF(CB$19>$Z30,"--",IF(CB30=$CP$8,$DA$8,IF(CB30=$CP$9,$DA$9,$DA$10))*IF(CG30=$CD$8,$CJ$8,IF(CG30=$CD$9,$CJ$9,$CJ$10))) -> -- | JI30: =IF(CL$19>$Z30,"--",IF(CL30=$CP$8,$DA$8,IF(CL30=$CP$9,$DA$9,$DA$10))*IF(CQ30=$CD$8,$CJ$8,IF(CQ30=$CD$9,$CJ$9,$CJ$10))) -> -- | JS30: =IF(CV$19>$Z30,"--",IF(CV30=$CP$8,$DA$8,IF(CV30=$CP$9,$DA$9,$DA$10))*IF(DA30=$CD$8,$CJ$8,IF(DA30=$CD$9,$CJ$9,$CJ$10))) -> -- | KC30: =IF(DF$19>$Z30,"--",IF(DF30=$CP$8,$DA$8,IF(DF30=$CP$9,$DA$9,$DA$10))*IF(DK30=$CD$8,$CJ$8,IF(DK30=$CD$9,$CJ$9,$CJ$10))) -> -- | KM30: =IF(DP$19>$Z30,"--",IF(DP30=$CP$8,$DA$8,IF(DP30=$CP$9,$DA$9,$DA$10))*IF(DU30=$CD$8,$CJ$8,IF(DU30=$CD$9,$CJ$9,$CJ$10))) -> -- | KW30: =IF(DZ$19>$Z30,"--",IF(DZ30=$CP$8,$DA$8,IF(DZ30=$CP$9,$DA$9,$DA$10))*IF(EE30=$CD$8,$CJ$8,IF(EE30=$CD$9,$CJ$9,$CJ$10))) -> -- | LG30: =IF(EJ$19>$Z30,"--",IF(EJ30=$CP$8,$DA$8,IF(EJ30=$CP$9,$DA$9,$DA$10))*IF(EO30=$CD$8,$CJ$8,IF(EO30=$CD$9,$CJ$9,$CJ$10))) -> -- | LQ30: =IF(ET$19>$Z30,"--",IF(ET30=$CP$8,$DA$8,IF(ET30=$CP$9,$DA$9,$DA$10))*IF(EY30=$CD$8,$CJ$8,IF(EY30=$CD$9,$CJ$9,$CJ$10))) -> -- | MA30: =IF(FD$19>$Z30,"--",IF(FD30=$CP$8,$DA$8,IF(FD30=$CP$9,$DA$9,$DA$10))*IF(FI30=$CD$8,$CJ$8,IF(FI30=$CD$9,$CJ$9,$CJ$10))) -> -- | MK30: =IF(FN$19>$Z30,"--",IF(FN30=$CP$8,$DA$8,IF(FN30=$CP$9,$DA$9,$DA$10))*IF(FS30=$CD$8,$CJ$8,IF(FS30=$CD$9,$CJ$9,$CJ$10))) -> -- | MU30: =IF(FX$19>$Z30,"--",IF(FX30=$CP$8,$DA$8,IF(FX30=$CP$9,$DA$9,$DA$10))*IF(GC30=$CD$8,$CJ$8,IF(GC30=$CD$9,$CJ$9,$CJ$10))) -> --
A32: All-Way Stop Control | T32: FULL | Z32: 4 | AD32: On-Street Lane | AI32: <20mph | AN32: On-Street Lane | AS32: <20mph | AX32: On-Street Lane | BC32: <20mph | BH32: On-Street Lane | BM32: <20mph | BR32: On-Street Lane | BW32: <20mph | CB32: On-Street Lane | CG32: <20mph | CL32: On-Street Lane | CQ32: <20mph | CV32: On-Street Lane | DA32: <20mph | DF32: On-Street Lane | DK32: <20mph | DP32: On-Street Lane | DU32: <20mph | DZ32: On-Street Lane | EE32: <20mph | EJ32: On-Street Lane | EO32: <20mph | ET32: Separate Path | EY32: <20mph | FD32: Separate Path | FI32: <20mph | FN32: Separate Path | FS32: <20mph | FX32: Separate Path | GC32: <20mph | GL32: =IF(GV32<=$BX$11,$BR$11,IF(GV32<=$BX$10,$BR$10,IF(GV32<=$BX$9,$BR$9,$BR$8))) -> Excellent | GQ32: =MIN(HA32:ND33) -> 80 | GV32: =AVERAGE(HA32:ND33) -> 80 | HA32: =IF(AD$19>$Z32,"--",IF(AD32=$CP$8,$DA$8,IF(AD32=$CP$9,$DA$9,$DA$10))*IF(AI32=$CD$8,$CJ$8,IF(AI32=$CD$9,$CJ$9,$CJ$10))) -> 80 | HK32: =IF(AN$19>$Z32,"--",IF(AN32=$CP$8,$DA$8,IF(AN32=$CP$9,$DA$9,$DA$10))*IF(AS32=$CD$8,$CJ$8,IF(AS32=$CD$9,$CJ$9,$CJ$10))) -> 80 | HU32: =IF(AX$19>$Z32,"--",IF(AX32=$CP$8,$DA$8,IF(AX32=$CP$9,$DA$9,$DA$10))*IF(BC32=$CD$8,$CJ$8,IF(BC32=$CD$9,$CJ$9,$CJ$10))) -> 80 | IE32: =IF(BH$19>$Z32,"--",IF(BH32=$CP$8,$DA$8,IF(BH32=$CP$9,$DA$9,$DA$10))*IF(BM32=$CD$8,$CJ$8,IF(BM32=$CD$9,$CJ$9,$CJ$10))) -> 80 | IO32: =IF(BR$19>$Z32,"--",IF(BR32=$CP$8,$DA$8,IF(BR32=$CP$9,$DA$9,$DA$10))*IF(BW32=$CD$8,$CJ$8,IF(BW32=$CD$9,$CJ$9,$CJ$10))) -> -- | IY32: =IF(CB$19>$Z32,"--",IF(CB32=$CP$8,$DA$8,IF(CB32=$CP$9,$DA$9,$DA$10))*IF(CG32=$CD$8,$CJ$8,IF(CG32=$CD$9,$CJ$9,$CJ$10))) -> -- | JI32: =IF(CL$19>$Z32,"--",IF(CL32=$CP$8,$DA$8,IF(CL32=$CP$9,$DA$9,$DA$10))*IF(CQ32=$CD$8,$CJ$8,IF(CQ32=$CD$9,$CJ$9,$CJ$10))) -> -- | JS32: =IF(CV$19>$Z32,"--",IF(CV32=$CP$8,$DA$8,IF(CV32=$CP$9,$DA$9,$DA$10))*IF(DA32=$CD$8,$CJ$8,IF(DA32=$CD$9,$CJ$9,$CJ$10))) -> -- | KC32: =IF(DF$19>$Z32,"--",IF(DF32=$CP$8,$DA$8,IF(DF32=$CP$9,$DA$9,$DA$10))*IF(DK32=$CD$8,$CJ$8,IF(DK32=$CD$9,$CJ$9,$CJ$10))) -> -- | KM32: =IF(DP$19>$Z32,"--",IF(DP32=$CP$8,$DA$8,IF(DP32=$CP$9,$DA$9,$DA$10))*IF(DU32=$CD$8,$CJ$8,IF(DU32=$CD$9,$CJ$9,$CJ$10))) -> -- | KW32: =IF(DZ$19>$Z32,"--",IF(DZ32=$CP$8,$DA$8,IF(DZ32=$CP$9,$DA$9,$DA$10))*IF(EE32=$CD$8,$CJ$8,IF(EE32=$CD$9,$CJ$9,$CJ$10))) -> -- | LG32: =IF(EJ$19>$Z32,"--",IF(EJ32=$CP$8,$DA$8,IF(EJ32=$CP$9,$DA$9,$DA$10))*IF(EO32=$CD$8,$CJ$8,IF(EO32=$CD$9,$CJ$9,$CJ$10))) -> -- | LQ32: =IF(ET$19>$Z32,"--",IF(ET32=$CP$8,$DA$8,IF(ET32=$CP$9,$DA$9,$DA$10))*IF(EY32=$CD$8,$CJ$8,IF(EY32=$CD$9,$CJ$9,$CJ$10))) -> -- | MA32: =IF(FD$19>$Z32,"--",IF(FD32=$CP$8,$DA$8,IF(FD32=$CP$9,$DA$9,$DA$10))*IF(FI32=$CD$8,$CJ$8,IF(FI32=$CD$9,$CJ$9,$CJ$10))) -> -- | MK32: =IF(FN$19>$Z32,"--",IF(FN32=$CP$8,$DA$8,IF(FN32=$CP$9,$DA$9,$DA$10))*IF(FS32=$CD$8,$CJ$8,IF(FS32=$CD$9,$CJ$9,$CJ$10))) -> -- | MU32: =IF(FX$19>$Z32,"--",IF(FX32=$CP$8,$DA$8,IF(FX32=$CP$9,$DA$9,$DA$10))*IF(GC32=$CD$8,$CJ$8,IF(GC32=$CD$9,$CJ$9,$CJ$10))) -> --
A34: Continuous Green T | T34: W | Z34: 6 | AD34: On-Street Lane | AI34: <20mph | AN34: On-Street Lane | AS34: <20mph | AX34: On-Street Lane | BC34: <20mph | BH34: On-Street Lane | BM34: <20mph | BR34: On-Street Lane | BW34: <20mph | CB34: On-Street Lane | CG34: <20mph | CL34: On-Street Lane | CQ34: <20mph | CV34: On-Street Lane | DA34: <20mph | DF34: On-Street Lane | DK34: <20mph | DP34: On-Street Lane | DU34: <20mph | DZ34: On-Street Lane | EE34: <20mph | EJ34: On-Street Lane | EO34: <20mph | ET34: Separate Path | EY34: <20mph | FD34: Separate Path | FI34: <20mph | FN34: Separate Path | FS34: <20mph | FX34: Separate Path | GC34: <20mph | GL34: =IF(GV34<=$BX$11,$BR$11,IF(GV34<=$BX$10,$BR$10,IF(GV34<=$BX$9,$BR$9,$BR$8))) -> Excellent | GQ34: =MIN(HA34:ND35) -> 80 | GV34: =AVERAGE(HA34:ND35) -> 80 | HA34: =IF(AD$19>$Z34,"--",IF(AD34=$CP$8,$DA$8,IF(AD34=$CP$9,$DA$9,$DA$10))*IF(AI34=$CD$8,$CJ$8,IF(AI34=$CD$9,$CJ$9,$CJ$10))) -> 80 | HK34: =IF(AN$19>$Z34,"--",IF(AN34=$CP$8,$DA$8,IF(AN34=$CP$9,$DA$9,$DA$10))*IF(AS34=$CD$8,$CJ$8,IF(AS34=$CD$9,$CJ$9,$CJ$10))) -> 80 | HU34: =IF(AX$19>$Z34,"--",IF(AX34=$CP$8,$DA$8,IF(AX34=$CP$9,$DA$9,$DA$10))*IF(BC34=$CD$8,$CJ$8,IF(BC34=$CD$9,$CJ$9,$CJ$10))) -> 80 | IE34: =IF(BH$19>$Z34,"--",IF(BH34=$CP$8,$DA$8,IF(BH34=$CP$9,$DA$9,$DA$10))*IF(BM34=$CD$8,$CJ$8,IF(BM34=$CD$9,$CJ$9,$CJ$10))) -> 80 | IO34: =IF(BR$19>$Z34,"--",IF(BR34=$CP$8,$DA$8,IF(BR34=$CP$9,$DA$9,$DA$10))*IF(BW34=$CD$8,$CJ$8,IF(BW34=$CD$9,$CJ$9,$CJ$10))) -> 80 | IY34: =IF(CB$19>$Z34,"--",IF(CB34=$CP$8,$DA$8,IF(CB34=$CP$9,$DA$9,$DA$10))*IF(CG34=$CD$8,$CJ$8,IF(CG34=$CD$9,$CJ$9,$CJ$10))) -> 80 | JI34: =IF(CL$19>$Z34,"--",IF(CL34=$CP$8,$DA$8,IF(CL34=$CP$9,$DA$9,$DA$10))*IF(CQ34=$CD$8,$CJ$8,IF(CQ34=$CD$9,$CJ$9,$CJ$10))) -> -- | JS34: =IF(CV$19>$Z34,"--",IF(CV34=$CP$8,$DA$8,IF(CV34=$CP$9,$DA$9,$DA$10))*IF(DA34=$CD$8,$CJ$8,IF(DA34=$CD$9,$CJ$9,$CJ$10))) -> -- | KC34: =IF(DF$19>$Z34,"--",IF(DF34=$CP$8,$DA$8,IF(DF34=$CP$9,$DA$9,$DA$10))*IF(DK34=$CD$8,$CJ$8,IF(DK34=$CD$9,$CJ$9,$CJ$10))) -> -- | KM34: =IF(DP$19>$Z34,"--",IF(DP34=$CP$8,$DA$8,IF(DP34=$CP$9,$DA$9,$DA$10))*IF(DU34=$CD$8,$CJ$8,IF(DU34=$CD$9,$CJ$9,$CJ$10))) -> -- | KW34: =IF(DZ$19>$Z34,"--",IF(DZ34=$CP$8,$DA$8,IF(DZ34=$CP$9,$DA$9,$DA$10))*IF(EE34=$CD$8,$CJ$8,IF(EE34=$CD$9,$CJ$9,$CJ$10))) -> -- | LG34: =IF(EJ$19>$Z34,"--",IF(EJ34=$CP$8,$DA$8,IF(EJ34=$CP$9,$DA$9,$DA$10))*IF(EO34=$CD$8,$CJ$8,IF(EO34=$CD$9,$CJ$9,$CJ$10))) -> -- | LQ34: =IF(ET$19>$Z34,"--",IF(ET34=$CP$8,$DA$8,IF(ET34=$CP$9,$DA$9,$DA$10))*IF(EY34=$CD$8,$CJ$8,IF(EY34=$CD$9,$CJ$9,$CJ$10))) -> -- | MA34: =IF(FD$19>$Z34,"--",IF(FD34=$CP$8,$DA$8,IF(FD34=$CP$9,$DA$9,$DA$10))*IF(FI34=$CD$8,$CJ$8,IF(FI34=$CD$9,$CJ$9,$CJ$10))) -> -- | MK34: =IF(FN$19>$Z34,"--",IF(FN34=$CP$8,$DA$8,IF(FN34=$CP$9,$DA$9,$DA$10))*IF(FS34=$CD$8,$CJ$8,IF(FS34=$CD$9,$CJ$9,$CJ$10))) -> -- | MU34: =IF(FX$19>$Z34,"--",IF(FX34=$CP$8,$DA$8,IF(FX34=$CP$9,$DA$9,$DA$10))*IF(GC34=$CD$8,$CJ$8,IF(GC34=$CD$9,$CJ$9,$CJ$10))) -> --
T36: N | Z36: 6 | AD36: On-Street Lane | AI36: <20mph | AN36: On-Street Lane | AS36: <20mph | AX36: On-Street Lane | BC36: <20mph | BH36: On-Street Lane | BM36: <20mph | BR36: On-Street Lane | BW36: <20mph | CB36: On-Street Lane | CG36: <20mph | CL36: On-Street Lane | CQ36: <20mph | CV36: On-Street Lane | DA36: <20mph | DF36: On-Street Lane | DK36: <20mph | DP36: On-Street Lane | DU36: <20mph | DZ36: On-Street Lane | EE36: <20mph | EJ36: On-Street Lane | EO36: <20mph | ET36: Separate Path | EY36: <20mph | FD36: Separate Path | FI36: <20mph | FN36: Separate Path | FS36: <20mph | FX36: Separate Path | GC36: <20mph | GL36: =IF(GV36<=$BX$11,$BR$11,IF(GV36<=$BX$10,$BR$10,IF(GV36<=$BX$9,$BR$9,$BR$8))) -> Excellent | GQ36: =MIN(HA36:ND37) -> 80 | GV36: =AVERAGE(HA36:ND37) -> 80 | HA36: =IF(AD$19>$Z36,"--",IF(AD36=$CP$8,$DA$8,IF(AD36=$CP$9,$DA$9,$DA$10))*IF(AI36=$CD$8,$CJ$8,IF(AI36=$CD$9,$CJ$9,$CJ$10))) -> 80 | HK36: =IF(AN$19>$Z36,"--",IF(AN36=$CP$8,$DA$8,IF(AN36=$CP$9,$DA$9,$DA$10))*IF(AS36=$CD$8,$CJ$8,IF(AS36=$CD$9,$CJ$9,$CJ$10))) -> 80 | HU36: =IF(AX$19>$Z36,"--",IF(AX36=$CP$8,$DA$8,IF(AX36=$CP$9,$DA$9,$DA$10))*IF(BC36=$CD$8,$CJ$8,IF(BC36=$CD$9,$CJ$9,$CJ$10))) -> 80 | IE36: =IF(BH$19>$Z36,"--",IF(BH36=$CP$8,$DA$8,IF(BH36=$CP$9,$DA$9,$DA$10))*IF(BM36=$CD$8,$CJ$8,IF(BM36=$CD$9,$CJ$9,$CJ$10))) -> 80 | IO36: =IF(BR$19>$Z36,"--",IF(BR36=$CP$8,$DA$8,IF(BR36=$CP$9,$DA$9,$DA$10))*IF(BW36=$CD$8,$CJ$8,IF(BW36=$CD$9,$CJ$9,$CJ$10))) -> 80 | IY36: =IF(CB$19>$Z36,"--",IF(CB36=$CP$8,$DA$8,IF(CB36=$CP$9,$DA$9,$DA$10))*IF(CG36=$CD$8,$CJ$8,IF(CG36=$CD$9,$CJ$9,$CJ$10))) -> 80 | JI36: =IF(CL$19>$Z36,"--",IF(CL36=$CP$8,$DA$8,IF(CL36=$CP$9,$DA$9,$DA$10))*IF(CQ36=$CD$8,$CJ$8,IF(CQ36=$CD$9,$CJ$9,$CJ$10))) -> -- | JS36: =IF(CV$19>$Z36,"--",IF(CV36=$CP$8,$DA$8,IF(CV36=$CP$9,$DA$9,$DA$10))*IF(DA36=$CD$8,$CJ$8,IF(DA36=$CD$9,$CJ$9,$CJ$10))) -> -- | KC36: =IF(DF$19>$Z36,"--",IF(DF36=$CP$8,$DA$8,IF(DF36=$CP$9,$DA$9,$DA$10))*IF(DK36=$CD$8,$CJ$8,IF(DK36=$CD$9,$CJ$9,$CJ$10))) -> -- | KM36: =IF(DP$19>$Z36,"--",IF(DP36=$CP$8,$DA$8,IF(DP36=$CP$9,$DA$9,$DA$10))*IF(DU36=$CD$8,$CJ$8,IF(DU36=$CD$9,$CJ$9,$CJ$10))) -> -- | KW36: =IF(DZ$19>$Z36,"--",IF(DZ36=$CP$8,$DA$8,IF(DZ36=$CP$9,$DA$9,$DA$10))*IF(EE36=$CD$8,$CJ$8,IF(EE36=$CD$9,$CJ$9,$CJ$10))) -> -- | LG36: =IF(EJ$19>$Z36,"--",IF(EJ36=$CP$8,$DA$8,IF(EJ36=$CP$9,$DA$9,$DA$10))*IF(EO36=$CD$8,$CJ$8,IF(EO36=$CD$9,$CJ$9,$CJ$10))) -> -- | LQ36: =IF(ET$19>$Z36,"--",IF(ET36=$CP$8,$DA$8,IF(ET36=$CP$9,$DA$9,$DA$10))*IF(EY36=$CD$8,$CJ$8,IF(EY36=$CD$9,$CJ$9,$CJ$10))) -> -- | MA36: =IF(FD$19>$Z36,"--",IF(FD36=$CP$8,$DA$8,IF(FD36=$CP$9,$DA$9,$DA$10))*IF(FI36=$CD$8,$CJ$8,IF(FI36=$CD$9,$CJ$9,$CJ$10))) -> -- | MK36: =IF(FN$19>$Z36,"--",IF(FN36=$CP$8,$DA$8,IF(FN36=$CP$9,$DA$9,$DA$10))*IF(FS36=$CD$8,$CJ$8,IF(FS36=$CD$9,$CJ$9,$CJ$10))) -> -- | MU36: =IF(FX$19>$Z36,"--",IF(FX36=$CP$8,$DA$8,IF(FX36=$CP$9,$DA$9,$DA$10))*IF(GC36=$CD$8,$CJ$8,IF(GC36=$CD$9,$CJ$9,$CJ$10))) -> --
T38: E | Z38: 6 | AD38: On-Street Lane | AI38: <20mph | AN38: On-Street Lane | AS38: <20mph | AX38: On-Street Lane | BC38: <20mph | BH38: On-Street Lane | BM38: <20mph | BR38: On-Street Lane | BW38: <20mph | CB38: On-Street Lane | CG38: <20mph | CL38: On-Street Lane | CQ38: <20mph | CV38: On-Street Lane | DA38: <20mph | DF38: On-Street Lane | DK38: <20mph | DP38: On-Street Lane | DU38: <20mph | DZ38: On-Street Lane | EE38: <20mph | EJ38: On-Street Lane | EO38: <20mph | ET38: Separate Path | EY38: <20mph | FD38: Separate Path | FI38: <20mph | FN38: Separate Path | FS38: <20mph | FX38: Separate Path | GC38: <20mph | GL38: =IF(GV38<=$BX$11,$BR$11,IF(GV38<=$BX$10,$BR$10,IF(GV38<=$BX$9,$BR$9,$BR$8))) -> Excellent | GQ38: =MIN(HA38:ND39) -> 80 | GV38: =AVERAGE(HA38:ND39) -> 80 | HA38: =IF(AD$19>$Z38,"--",IF(AD38=$CP$8,$DA$8,IF(AD38=$CP$9,$DA$9,$DA$10))*IF(AI38=$CD$8,$CJ$8,IF(AI38=$CD$9,$CJ$9,$CJ$10))) -> 80 | HK38: =IF(AN$19>$Z38,"--",IF(AN38=$CP$8,$DA$8,IF(AN38=$CP$9,$DA$9,$DA$10))*IF(AS38=$CD$8,$CJ$8,IF(AS38=$CD$9,$CJ$9,$CJ$10))) -> 80 | HU38: =IF(AX$19>$Z38,"--",IF(AX38=$CP$8,$DA$8,IF(AX38=$CP$9,$DA$9,$DA$10))*IF(BC38=$CD$8,$CJ$8,IF(BC38=$CD$9,$CJ$9,$CJ$10))) -> 80 | IE38: =IF(BH$19>$Z38,"--",IF(BH38=$CP$8,$DA$8,IF(BH38=$CP$9,$DA$9,$DA$10))*IF(BM38=$CD$8,$CJ$8,IF(BM38=$CD$9,$CJ$9,$CJ$10))) -> 80 | IO38: =IF(BR$19>$Z38,"--",IF(BR38=$CP$8,$DA$8,IF(BR38=$CP$9,$DA$9,$DA$10))*IF(BW38=$CD$8,$CJ$8,IF(BW38=$CD$9,$CJ$9,$CJ$10))) -> 80 | IY38: =IF(CB$19>$Z38,"--",IF(CB38=$CP$8,$DA$8,IF(CB38=$CP$9,$DA$9,$DA$10))*IF(CG38=$CD$8,$CJ$8,IF(CG38=$CD$9,$CJ$9,$CJ$10))) -> 80 | JI38: =IF(CL$19>$Z38,"--",IF(CL38=$CP$8,$DA$8,IF(CL38=$CP$9,$DA$9,$DA$10))*IF(CQ38=$CD$8,$CJ$8,IF(CQ38=$CD$9,$CJ$9,$CJ$10))) -> -- | JS38: =IF(CV$19>$Z38,"--",IF(CV38=$CP$8,$DA$8,IF(CV38=$CP$9,$DA$9,$DA$10))*IF(DA38=$CD$8,$CJ$8,IF(DA38=$CD$9,$CJ$9,$CJ$10))) -> -- | KC38: =IF(DF$19>$Z38,"--",IF(DF38=$CP$8,$DA$8,IF(DF38=$CP$9,$DA$9,$DA$10))*IF(DK38=$CD$8,$CJ$8,IF(DK38=$CD$9,$CJ$9,$CJ$10))) -> -- | KM38: =IF(DP$19>$Z38,"--",IF(DP38=$CP$8,$DA$8,IF(DP38=$CP$9,$DA$9,$DA$10))*IF(DU38=$CD$8,$CJ$8,IF(DU38=$CD$9,$CJ$9,$CJ$10))) -> -- | KW38: =IF(DZ$19>$Z38,"--",IF(DZ38=$CP$8,$DA$8,IF(DZ38=$CP$9,$DA$9,$DA$10))*IF(EE38=$CD$8,$CJ$8,IF(EE38=$CD$9,$CJ$9,$CJ$10))) -> -- | LG38: =IF(EJ$19>$Z38,"--",IF(EJ38=$CP$8,$DA$8,IF(EJ38=$CP$9,$DA$9,$DA$10))*IF(EO38=$CD$8,$CJ$8,IF(EO38=$CD$9,$CJ$9,$CJ$10))) -> -- | LQ38: =IF(ET$19>$Z38,"--",IF(ET38=$CP$8,$DA$8,IF(ET38=$CP$9,$DA$9,$DA$10))*IF(EY38=$CD$8,$CJ$8,IF(EY38=$CD$9,$CJ$9,$CJ$10))) -> -- | MA38: =IF(FD$19>$Z38,"--",IF(FD38=$CP$8,$DA$8,IF(FD38=$CP$9,$DA$9,$DA$10))*IF(FI38=$CD$8,$CJ$8,IF(FI38=$CD$9,$CJ$9,$CJ$10))) -> -- | MK38: =IF(FN$19>$Z38,"--",IF(FN38=$CP$8,$DA$8,IF(FN38=$CP$9,$DA$9,$DA$10))*IF(FS38=$CD$8,$CJ$8,IF(FS38=$CD$9,$CJ$9,$CJ$10))) -> -- | MU38: =IF(FX$19>$Z38,"--",IF(FX38=$CP$8,$DA$8,IF(FX38=$CP$9,$DA$9,$DA$10))*IF(GC38=$CD$8,$CJ$8,IF(GC38=$CD$9,$CJ$9,$CJ$10))) -> --
T40: S | Z40: 6 | AD40: On-Street Lane | AI40: <20mph | AN40: On-Street Lane | AS40: <20mph | AX40: On-Street Lane | BC40: <20mph | BH40: On-Street Lane | BM40: <20mph | BR40: On-Street Lane | BW40: <20mph | CB40: On-Street Lane | CG40: <20mph | CL40: On-Street Lane | CQ40: <20mph | CV40: On-Street Lane | DA40: <20mph | DF40: On-Street Lane | DK40: <20mph | DP40: On-Street Lane | DU40: <20mph | DZ40: On-Street Lane | EE40: <20mph | EJ40: On-Street Lane | EO40: <20mph | ET40: Separate Path | EY40: <20mph | FD40: Separate Path | FI40: <20mph | FN40: Separate Path | FS40: <20mph | FX40: Separate Path | GC40: <20mph | GL40: =IF(GV40<=$BX$11,$BR$11,IF(GV40<=$BX$10,$BR$10,IF(GV40<=$BX$9,$BR$9,$BR$8))) -> Excellent | GQ40: =MIN(HA40:ND41) -> 80 | GV40: =AVERAGE(HA40:ND41) -> 80 | HA40: =IF(AD$19>$Z40,"--",IF(AD40=$CP$8,$DA$8,IF(AD40=$CP$9,$DA$9,$DA$10))*IF(AI40=$CD$8,$CJ$8,IF(AI40=$CD$9,$CJ$9,$CJ$10))) -> 80 | HK40: =IF(AN$19>$Z40,"--",IF(AN40=$CP$8,$DA$8,IF(AN40=$CP$9,$DA$9,$DA$10))*IF(AS40=$CD$8,$CJ$8,IF(AS40=$CD$9,$CJ$9,$CJ$10))) -> 80 | HU40: =IF(AX$19>$Z40,"--",IF(AX40=$CP$8,$DA$8,IF(AX40=$CP$9,$DA$9,$DA$10))*IF(BC40=$CD$8,$CJ$8,IF(BC40=$CD$9,$CJ$9,$CJ$10))) -> 80 | IE40: =IF(BH$19>$Z40,"--",IF(BH40=$CP$8,$DA$8,IF(BH40=$CP$9,$DA$9,$DA$10))*IF(BM40=$CD$8,$CJ$8,IF(BM40=$CD$9,$CJ$9,$CJ$10))) -> 80 | IO40: =IF(BR$19>$Z40,"--",IF(BR40=$CP$8,$DA$8,IF(BR40=$CP$9,$DA$9,$DA$10))*IF(BW40=$CD$8,$CJ$8,IF(BW40=$CD$9,$CJ$9,$CJ$10))) -> 80 | IY40: =IF(CB$19>$Z40,"--",IF(CB40=$CP$8,$DA$8,IF(CB40=$CP$9,$DA$9,$DA$10))*IF(CG40=$CD$8,$CJ$8,IF(CG40=$CD$9,$CJ$9,$CJ$10))) -> 80 | JI40: =IF(CL$19>$Z40,"--",IF(CL40=$CP$8,$DA$8,IF(CL40=$CP$9,$DA$9,$DA$10))*IF(CQ40=$CD$8,$CJ$8,IF(CQ40=$CD$9,$CJ$9,$CJ$10))) -> -- | JS40: =IF(CV$19>$Z40,"--",IF(CV40=$CP$8,$DA$8,IF(CV40=$CP$9,$DA$9,$DA$10))*IF(DA40=$CD$8,$CJ$8,IF(DA40=$CD$9,$CJ$9,$CJ$10))) -> -- | KC40: =IF(DF$19>$Z40,"--",IF(DF40=$CP$8,$DA$8,IF(DF40=$CP$9,$DA$9,$DA$10))*IF(DK40=$CD$8,$CJ$8,IF(DK40=$CD$9,$CJ$9,$CJ$10))) -> -- | KM40: =IF(DP$19>$Z40,"--",IF(DP40=$CP$8,$DA$8,IF(DP40=$CP$9,$DA$9,$DA$10))*IF(DU40=$CD$8,$CJ$8,IF(DU40=$CD$9,$CJ$9,$CJ$10))) -> -- | KW40: =IF(DZ$19>$Z40,"--",IF(DZ40=$CP$8,$DA$8,IF(DZ40=$CP$9,$DA$9,$DA$10))*IF(EE40=$CD$8,$CJ$8,IF(EE40=$CD$9,$CJ$9,$CJ$10))) -> -- | LG40: =IF(EJ$19>$Z40,"--",IF(EJ40=$CP$8,$DA$8,IF(EJ40=$CP$9,$DA$9,$DA$10))*IF(EO40=$CD$8,$CJ$8,IF(EO40=$CD$9,$CJ$9,$CJ$10))) -> -- | LQ40: =IF(ET$19>$Z40,"--",IF(ET40=$CP$8,$DA$8,IF(ET40=$CP$9,$DA$9,$DA$10))*IF(EY40=$CD$8,$CJ$8,IF(EY40=$CD$9,$CJ$9,$CJ$10))) -> -- | MA40: =IF(FD$19>$Z40,"--",IF(FD40=$CP$8,$DA$8,IF(FD40=$CP$9,$DA$9,$DA$10))*IF(FI40=$CD$8,$CJ$8,IF(FI40=$CD$9,$CJ$9,$CJ$10))) -> -- | MK40: =IF(FN$19>$Z40,"--",IF(FN40=$CP$8,$DA$8,IF(FN40=$CP$9,$DA$9,$DA$10))*IF(FS40=$CD$8,$CJ$8,IF(FS40=$CD$9,$CJ$9,$CJ$10))) -> -- | MU40: =IF(FX$19>$Z40,"--",IF(FX40=$CP$8,$DA$8,IF(FX40=$CP$9,$DA$9,$DA$10))*IF(GC40=$CD$8,$CJ$8,IF(GC40=$CD$9,$CJ$9,$CJ$10))) -> --
A42: Quadrant Roadway | T42: S-W | Z42: 6 | AD42: On-Street Lane | AI42: <20mph | AN42: On-Street Lane | AS42: <20mph | AX42: On-Street Lane | BC42: <20mph | BH42: On-Street Lane | BM42: <20mph | BR42: On-Street Lane | BW42: <20mph | CB42: On-Street Lane | CG42: <20mph | CL42: On-Street Lane | CQ42: <20mph | CV42: On-Street Lane | DA42: <20mph | DF42: On-Street Lane | DK42: <20mph | DP42: On-Street Lane | DU42: <20mph | DZ42: On-Street Lane | EE42: <20mph | EJ42: On-Street Lane | EO42: <20mph | ET42: Separate Path | EY42: <20mph | FD42: Separate Path | FI42: <20mph | FN42: Separate Path | FS42: <20mph | FX42: Separate Path | GC42: <20mph | GL42: =IF(GV42<=$BX$11,$BR$11,IF(GV42<=$BX$10,$BR$10,IF(GV42<=$BX$9,$BR$9,$BR$8))) -> Excellent | GQ42: =MIN(HA42:ND43) -> 80 | GV42: =AVERAGE(HA42:ND43) -> 80 | HA42: =IF(AD$19>$Z42,"--",IF(AD42=$CP$8,$DA$8,IF(AD42=$CP$9,$DA$9,$DA$10))*IF(AI42=$CD$8,$CJ$8,IF(AI42=$CD$9,$CJ$9,$CJ$10))) -> 80 | HK42: =IF(AN$19>$Z42,"--",IF(AN42=$CP$8,$DA$8,IF(AN42=$CP$9,$DA$9,$DA$10))*IF(AS42=$CD$8,$CJ$8,IF(AS42=$CD$9,$CJ$9,$CJ$10))) -> 80 | HU42: =IF(AX$19>$Z42,"--",IF(AX42=$CP$8,$DA$8,IF(AX42=$CP$9,$DA$9,$DA$10))*IF(BC42=$CD$8,$CJ$8,IF(BC42=$CD$9,$CJ$9,$CJ$10))) -> 80 | IE42: =IF(BH$19>$Z42,"--",IF(BH42=$CP$8,$DA$8,IF(BH42=$CP$9,$DA$9,$DA$10))*IF(BM42=$CD$8,$CJ$8,IF(BM42=$CD$9,$CJ$9,$CJ$10))) -> 80 | IO42: =IF(BR$19>$Z42,"--",IF(BR42=$CP$8,$DA$8,IF(BR42=$CP$9,$DA$9,$DA$10))*IF(BW42=$CD$8,$CJ$8,IF(BW42=$CD$9,$CJ$9,$CJ$10))) -> 80 | IY42: =IF(CB$19>$Z42,"--",IF(CB42=$CP$8,$DA$8,IF(CB42=$CP$9,$DA$9,$DA$10))*IF(CG42=$CD$8,$CJ$8,IF(CG42=$CD$9,$CJ$9,$CJ$10))) -> 80 | JI42: =IF(CL$19>$Z42,"--",IF(CL42=$CP$8,$DA$8,IF(CL42=$CP$9,$DA$9,$DA$10))*IF(CQ42=$CD$8,$CJ$8,IF(CQ42=$CD$9,$CJ$9,$CJ$10))) -> -- | JS42: =IF(CV$19>$Z42,"--",IF(CV42=$CP$8,$DA$8,IF(CV42=$CP$9,$DA$9,$DA$10))*IF(DA42=$CD$8,$CJ$8,IF(DA42=$CD$9,$CJ$9,$CJ$10))) -> -- | KC42: =IF(DF$19>$Z42,"--",IF(DF42=$CP$8,$DA$8,IF(DF42=$CP$9,$DA$9,$DA$10))*IF(DK42=$CD$8,$CJ$8,IF(DK42=$CD$9,$CJ$9,$CJ$10))) -> -- | KM42: =IF(DP$19>$Z42,"--",IF(DP42=$CP$8,$DA$8,IF(DP42=$CP$9,$DA$9,$DA$10))*IF(DU42=$CD$8,$CJ$8,IF(DU42=$CD$9,$CJ$9,$CJ$10))) -> -- | KW42: =IF(DZ$19>$Z42,"--",IF(DZ42=$CP$8,$DA$8,IF(DZ42=$CP$9,$DA$9,$DA$10))*IF(EE42=$CD$8,$CJ$8,IF(EE42=$CD$9,$CJ$9,$CJ$10))) -> -- | LG42: =IF(EJ$19>$Z42,"--",IF(EJ42=$CP$8,$DA$8,IF(EJ42=$CP$9,$DA$9,$DA$10))*IF(EO42=$CD$8,$CJ$8,IF(EO42=$CD$9,$CJ$9,$CJ$10))) -> -- | LQ42: =IF(ET$19>$Z42,"--",IF(ET42=$CP$8,$DA$8,IF(ET42=$CP$9,$DA$9,$DA$10))*IF(EY42=$CD$8,$CJ$8,IF(EY42=$CD$9,$CJ$9,$CJ$10))) -> -- | MA42: =IF(FD$19>$Z42,"--",IF(FD42=$CP$8,$DA$8,IF(FD42=$CP$9,$DA$9,$DA$10))*IF(FI42=$CD$8,$CJ$8,IF(FI42=$CD$9,$CJ$9,$CJ$10))) -> -- | MK42: =IF(FN$19>$Z42,"--",IF(FN42=$CP$8,$DA$8,IF(FN42=$CP$9,$DA$9,$DA$10))*IF(FS42=$CD$8,$CJ$8,IF(FS42=$CD$9,$CJ$9,$CJ$10))) -> -- | MU42: =IF(FX$19>$Z42,"--",IF(FX42=$CP$8,$DA$8,IF(FX42=$CP$9,$DA$9,$DA$10))*IF(GC42=$CD$8,$CJ$8,IF(GC42=$CD$9,$CJ$9,$CJ$10))) -> --
T44: N-E | Z44: 6 | AD44: On-Street Lane | AI44: <20mph | AN44: On-Street Lane | AS44: <20mph | AX44: On-Street Lane | BC44: <20mph | BH44: On-Street Lane | BM44: <20mph | BR44: On-Street Lane | BW44: <20mph | CB44: On-Street Lane | CG44: <20mph | CL44: On-Street Lane | CQ44: <20mph | CV44: On-Street Lane | DA44: <20mph | DF44: On-Street Lane | DK44: <20mph | DP44: On-Street Lane | DU44: <20mph | DZ44: On-Street Lane | EE44: <20mph | EJ44: On-Street Lane | EO44: <20mph | ET44: Separate Path | EY44: <20mph | FD44: Separate Path | FI44: <20mph | FN44: Separate Path | FS44: <20mph | FX44: Separate Path | GC44: <20mph | GL44: =IF(GV44<=$BX$11,$BR$11,IF(GV44<=$BX$10,$BR$10,IF(GV44<=$BX$9,$BR$9,$BR$8))) -> Excellent | GQ44: =MIN(HA44:ND45) -> 80 | GV44: =AVERAGE(HA44:ND45) -> 80 | HA44: =IF(AD$19>$Z44,"--",IF(AD44=$CP$8,$DA$8,IF(AD44=$CP$9,$DA$9,$DA$10))*IF(AI44=$CD$8,$CJ$8,IF(AI44=$CD$9,$CJ$9,$CJ$10))) -> 80 | HK44: =IF(AN$19>$Z44,"--",IF(AN44=$CP$8,$DA$8,IF(AN44=$CP$9,$DA$9,$DA$10))*IF(AS44=$CD$8,$CJ$8,IF(AS44=$CD$9,$CJ$9,$CJ$10))) -> 80 | HU44: =IF(AX$19>$Z44,"--",IF(AX44=$CP$8,$DA$8,IF(AX44=$CP$9,$DA$9,$DA$10))*IF(BC44=$CD$8,$CJ$8,IF(BC44=$CD$9,$CJ$9,$CJ$10))) -> 80 | IE44: =IF(BH$19>$Z44,"--",IF(BH44=$CP$8,$DA$8,IF(BH44=$CP$9,$DA$9,$DA$10))*IF(BM44=$CD$8,$CJ$8,IF(BM44=$CD$9,$CJ$9,$CJ$10))) -> 80 | IO44: =IF(BR$19>$Z44,"--",IF(BR44=$CP$8,$DA$8,IF(BR44=$CP$9,$DA$9,$DA$10))*IF(BW44=$CD$8,$CJ$8,IF(BW44=$CD$9,$CJ$9,$CJ$10))) -> 80 | IY44: =IF(CB$19>$Z44,"--",IF(CB44=$CP$8,$DA$8,IF(CB44=$CP$9,$DA$9,$DA$10))*IF(CG44=$CD$8,$CJ$8,IF(CG44=$CD$9,$CJ$9,$CJ$10))) -> 80 | JI44: =IF(CL$19>$Z44,"--",IF(CL44=$CP$8,$DA$8,IF(CL44=$CP$9,$DA$9,$DA$10))*IF(CQ44=$CD$8,$CJ$8,IF(CQ44=$CD$9,$CJ$9,$CJ$10))) -> -- | JS44: =IF(CV$19>$Z44,"--",IF(CV44=$CP$8,$DA$8,IF(CV44=$CP$9,$DA$9,$DA$10))*IF(DA44=$CD$8,$CJ$8,IF(DA44=$CD$9,$CJ$9,$CJ$10))) -> -- | KC44: =IF(DF$19>$Z44,"--",IF(DF44=$CP$8,$DA$8,IF(DF44=$CP$9,$DA$9,$DA$10))*IF(DK44=$CD$8,$CJ$8,IF(DK44=$CD$9,$CJ$9,$CJ$10))) -> -- | KM44: =IF(DP$19>$Z44,"--",IF(DP44=$CP$8,$DA$8,IF(DP44=$CP$9,$DA$9,$DA$10))*IF(DU44=$CD$8,$CJ$8,IF(DU44=$CD$9,$CJ$9,$CJ$10))) -> -- | KW44: =IF(DZ$19>$Z44,"--",IF(DZ44=$CP$8,$DA$8,IF(DZ44=$CP$9,$DA$9,$DA$10))*IF(EE44=$CD$8,$CJ$8,IF(EE44=$CD$9,$CJ$9,$CJ$10))) -> -- | LG44: =IF(EJ$19>$Z44,"--",IF(EJ44=$CP$8,$DA$8,IF(EJ44=$CP$9,$DA$9,$DA$10))*IF(EO44=$CD$8,$CJ$8,IF(EO44=$CD$9,$CJ$9,$CJ$10))) -> -- | LQ44: =IF(ET$19>$Z44,"--",IF(ET44=$CP$8,$DA$8,IF(ET44=$CP$9,$DA$9,$DA$10))*IF(EY44=$CD$8,$CJ$8,IF(EY44=$CD$9,$CJ$9,$CJ$10))) -> -- | MA44: =IF(FD$19>$Z44,"--",IF(FD44=$CP$8,$DA$8,IF(FD44=$CP$9,$DA$9,$DA$10))*IF(FI44=$CD$8,$CJ$8,IF(FI44=$CD$9,$CJ$9,$CJ$10))) -> -- | MK44: =IF(FN$19>$Z44,"--",IF(FN44=$CP$8,$DA$8,IF(FN44=$CP$9,$DA$9,$DA$10))*IF(FS44=$CD$8,$CJ$8,IF(FS44=$CD$9,$CJ$9,$CJ$10))) -> -- | MU44: =IF(FX$19>$Z44,"--",IF(FX44=$CP$8,$DA$8,IF(FX44=$CP$9,$DA$9,$DA$10))*IF(GC44=$CD$8,$CJ$8,IF(GC44=$CD$9,$CJ$9,$CJ$10))) -> --
T46: S-E | Z46: 6 | AD46: On-Street Lane | AI46: <20mph | AN46: On-Street Lane | AS46: <20mph | AX46: On-Street Lane | BC46: <20mph | BH46: On-Street Lane | BM46: <20mph | BR46: On-Street Lane | BW46: <20mph | CB46: On-Street Lane | CG46: <20mph | CL46: On-Street Lane | CQ46: <20mph | CV46: On-Street Lane | DA46: <20mph | DF46: On-Street Lane | DK46: <20mph | DP46: On-Street Lane | DU46: <20mph | DZ46: On-Street Lane | EE46: <20mph | EJ46: On-Street Lane | EO46: <20mph | ET46: Separate Path | EY46: <20mph | FD46: Separate Path | FI46: <20mph | FN46: Separate Path | FS46: <20mph | FX46: Separate Path | GC46: <20mph | GL46: =IF(GV46<=$BX$11,$BR$11,IF(GV46<=$BX$10,$BR$10,IF(GV46<=$BX$9,$BR$9,$BR$8))) -> Excellent | GQ46: =MIN(HA46:ND47) -> 80 | GV46: =AVERAGE(HA46:ND47) -> 80 | HA46: =IF(AD$19>$Z46,"--",IF(AD46=$CP$8,$DA$8,IF(AD46=$CP$9,$DA$9,$DA$10))*IF(AI46=$CD$8,$CJ$8,IF(AI46=$CD$9,$CJ$9,$CJ$10))) -> 80 | HK46: =IF(AN$19>$Z46,"--",IF(AN46=$CP$8,$DA$8,IF(AN46=$CP$9,$DA$9,$DA$10))*IF(AS46=$CD$8,$CJ$8,IF(AS46=$CD$9,$CJ$9,$CJ$10))) -> 80 | HU46: =IF(AX$19>$Z46,"--",IF(AX46=$CP$8,$DA$8,IF(AX46=$CP$9,$DA$9,$DA$10))*IF(BC46=$CD$8,$CJ$8,IF(BC46=$CD$9,$CJ$9,$CJ$10))) -> 80 | IE46: =IF(BH$19>$Z46,"--",IF(BH46=$CP$8,$DA$8,IF(BH46=$CP$9,$DA$9,$DA$10))*IF(BM46=$CD$8,$CJ$8,IF(BM46=$CD$9,$CJ$9,$CJ$10))) -> 80 | IO46: =IF(BR$19>$Z46,"--",IF(BR46=$CP$8,$DA$8,IF(BR46=$CP$9,$DA$9,$DA$10))*IF(BW46=$CD$8,$CJ$8,IF(BW46=$CD$9,$CJ$9,$CJ$10))) -> 80 | IY46: =IF(CB$19>$Z46,"--",IF(CB46=$CP$8,$DA$8,IF(CB46=$CP$9,$DA$9,$DA$10))*IF(CG46=$CD$8,$CJ$8,IF(CG46=$CD$9,$CJ$9,$CJ$10))) -> 80 | JI46: =IF(CL$19>$Z46,"--",IF(CL46=$CP$8,$DA$8,IF(CL46=$CP$9,$DA$9,$DA$10))*IF(CQ46=$CD$8,$CJ$8,IF(CQ46=$CD$9,$CJ$9,$CJ$10))) -> -- | JS46: =IF(CV$19>$Z46,"--",IF(CV46=$CP$8,$DA$8,IF(CV46=$CP$9,$DA$9,$DA$10))*IF(DA46=$CD$8,$CJ$8,IF(DA46=$CD$9,$CJ$9,$CJ$10))) -> -- | KC46: =IF(DF$19>$Z46,"--",IF(DF46=$CP$8,$DA$8,IF(DF46=$CP$9,$DA$9,$DA$10))*IF(DK46=$CD$8,$CJ$8,IF(DK46=$CD$9,$CJ$9,$CJ$10))) -> -- | KM46: =IF(DP$19>$Z46,"--",IF(DP46=$CP$8,$DA$8,IF(DP46=$CP$9,$DA$9,$DA$10))*IF(DU46=$CD$8,$CJ$8,IF(DU46=$CD$9,$CJ$9,$CJ$10))) -> -- | KW46: =IF(DZ$19>$Z46,"--",IF(DZ46=$CP$8,$DA$8,IF(DZ46=$CP$9,$DA$9,$DA$10))*IF(EE46=$CD$8,$CJ$8,IF(EE46=$CD$9,$CJ$9,$CJ$10))) -> -- | LG46: =IF(EJ$19>$Z46,"--",IF(EJ46=$CP$8,$DA$8,IF(EJ46=$CP$9,$DA$9,$DA$10))*IF(EO46=$CD$8,$CJ$8,IF(EO46=$CD$9,$CJ$9,$CJ$10))) -> -- | LQ46: =IF(ET$19>$Z46,"--",IF(ET46=$CP$8,$DA$8,IF(ET46=$CP$9,$DA$9,$DA$10))*IF(EY46=$CD$8,$CJ$8,IF(EY46=$CD$9,$CJ$9,$CJ$10))) -> -- | MA46: =IF(FD$19>$Z46,"--",IF(FD46=$CP$8,$DA$8,IF(FD46=$CP$9,$DA$9,$DA$10))*IF(FI46=$CD$8,$CJ$8,IF(FI46=$CD$9,$CJ$9,$CJ$10))) -> -- | MK46: =IF(FN$19>$Z46,"--",IF(FN46=$CP$8,$DA$8,IF(FN46=$CP$9,$DA$9,$DA$10))*IF(FS46=$CD$8,$CJ$8,IF(FS46=$CD$9,$CJ$9,$CJ$10))) -> -- | MU46: =IF(FX$19>$Z46,"--",IF(FX46=$CP$8,$DA$8,IF(FX46=$CP$9,$DA$9,$DA$10))*IF(GC46=$CD$8,$CJ$8,IF(GC46=$CD$9,$CJ$9,$CJ$10))) -> --
T48: N-W | Z48: 6 | AD48: On-Street Lane | AI48: <20mph | AN48: On-Street Lane | AS48: <20mph | AX48: On-Street Lane | BC48: <20mph | BH48: On-Street Lane | BM48: <20mph | BR48: On-Street Lane | BW48: <20mph | CB48: On-Street Lane | CG48: <20mph | CL48: On-Street Lane | CQ48: <20mph | CV48: On-Street Lane | DA48: <20mph | DF48: On-Street Lane | DK48: <20mph | DP48: On-Street Lane | DU48: <20mph | DZ48: On-Street Lane | EE48: <20mph | EJ48: On-Street Lane | EO48: <20mph | ET48: Separate Path | EY48: <20mph | FD48: Separate Path | FI48: <20mph | FN48: Separate Path | FS48: <20mph | FX48: Separate Path | GC48: <20mph | GL48: =IF(GV48<=$BX$11,$BR$11,IF(GV48<=$BX$10,$BR$10,IF(GV48<=$BX$9,$BR$9,$BR$8))) -> Excellent | GQ48: =MIN(HA48:ND49) -> 80 | GV48: =AVERAGE(HA48:ND49) -> 80 | HA48: =IF(AD$19>$Z48,"--",IF(AD48=$CP$8,$DA$8,IF(AD48=$CP$9,$DA$9,$DA$10))*IF(AI48=$CD$8,$CJ$8,IF(AI48=$CD$9,$CJ$9,$CJ$10))) -> 80 | HK48: =IF(AN$19>$Z48,"--",IF(AN48=$CP$8,$DA$8,IF(AN48=$CP$9,$DA$9,$DA$10))*IF(AS48=$CD$8,$CJ$8,IF(AS48=$CD$9,$CJ$9,$CJ$10))) -> 80 | HU48: =IF(AX$19>$Z48,"--",IF(AX48=$CP$8,$DA$8,IF(AX48=$CP$9,$DA$9,$DA$10))*IF(BC48=$CD$8,$CJ$8,IF(BC48=$CD$9,$CJ$9,$CJ$10))) -> 80 | IE48: =IF(BH$19>$Z48,"--",IF(BH48=$CP$8,$DA$8,IF(BH48=$CP$9,$DA$9,$DA$10))*IF(BM48=$CD$8,$CJ$8,IF(BM48=$CD$9,$CJ$9,$CJ$10))) -> 80 | IO48: =IF(BR$19>$Z48,"--",IF(BR48=$CP$8,$DA$8,IF(BR48=$CP$9,$DA$9,$DA$10))*IF(BW48=$CD$8,$CJ$8,IF(BW48=$CD$9,$CJ$9,$CJ$10))) -> 80 | IY48: =IF(CB$19>$Z48,"--",IF(CB48=$CP$8,$DA$8,IF(CB48=$CP$9,$DA$9,$DA$10))*IF(CG48=$CD$8,$CJ$8,IF(CG48=$CD$9,$CJ$9,$CJ$10))) -> 80 | JI48: =IF(CL$19>$Z48,"--",IF(CL48=$CP$8,$DA$8,IF(CL48=$CP$9,$DA$9,$DA$10))*IF(CQ48=$CD$8,$CJ$8,IF(CQ48=$CD$9,$CJ$9,$CJ$10))) -> -- | JS48: =IF(CV$19>$Z48,"--",IF(CV48=$CP$8,$DA$8,IF(CV48=$CP$9,$DA$9,$DA$10))*IF(DA48=$CD$8,$CJ$8,IF(DA48=$CD$9,$CJ$9,$CJ$10))) -> -- | KC48: =IF(DF$19>$Z48,"--",IF(DF48=$CP$8,$DA$8,IF(DF48=$CP$9,$DA$9,$DA$10))*IF(DK48=$CD$8,$CJ$8,IF(DK48=$CD$9,$CJ$9,$CJ$10))) -> -- | KM48: =IF(DP$19>$Z48,"--",IF(DP48=$CP$8,$DA$8,IF(DP48=$CP$9,$DA$9,$DA$10))*IF(DU48=$CD$8,$CJ$8,IF(DU48=$CD$9,$CJ$9,$CJ$10))) -> -- | KW48: =IF(DZ$19>$Z48,"--",IF(DZ48=$CP$8,$DA$8,IF(DZ48=$CP$9,$DA$9,$DA$10))*IF(EE48=$CD$8,$CJ$8,IF(EE48=$CD$9,$CJ$9,$CJ$10))) -> -- | LG48: =IF(EJ$19>$Z48,"--",IF(EJ48=$CP$8,$DA$8,IF(EJ48=$CP$9,$DA$9,$DA$10))*IF(EO48=$CD$8,$CJ$8,IF(EO48=$CD$9,$CJ$9,$CJ$10))) -> -- | LQ48: =IF(ET$19>$Z48,"--",IF(ET48=$CP$8,$DA$8,IF(ET48=$CP$9,$DA$9,$DA$10))*IF(EY48=$CD$8,$CJ$8,IF(EY48=$CD$9,$CJ$9,$CJ$10))) -> -- | MA48: =IF(FD$19>$Z48,"--",IF(FD48=$CP$8,$DA$8,IF(FD48=$CP$9,$DA$9,$DA$10))*IF(FI48=$CD$8,$CJ$8,IF(FI48=$CD$9,$CJ$9,$CJ$10))) -> -- | MK48: =IF(FN$19>$Z48,"--",IF(FN48=$CP$8,$DA$8,IF(FN48=$CP$9,$DA$9,$DA$10))*IF(FS48=$CD$8,$CJ$8,IF(FS48=$CD$9,$CJ$9,$CJ$10))) -> -- | MU48: =IF(FX$19>$Z48,"--",IF(FX48=$CP$8,$DA$8,IF(FX48=$CP$9,$DA$9,$DA$10))*IF(GC48=$CD$8,$CJ$8,IF(GC48=$CD$9,$CJ$9,$CJ$10))) -> --
A50: Partial Displaced Left Turn | T50: N-S | Z50: 6 | AD50: On-Street Lane | AI50: <20mph | AN50: On-Street Lane | AS50: <20mph | AX50: On-Street Lane | BC50: <20mph | BH50: On-Street Lane | BM50: <20mph | BR50: On-Street Lane | BW50: <20mph | CB50: On-Street Lane | CG50: <20mph | CL50: On-Street Lane | CQ50: <20mph | CV50: On-Street Lane | DA50: <20mph | DF50: On-Street Lane | DK50: <20mph | DP50: On-Street Lane | DU50: <20mph | DZ50: On-Street Lane | EE50: <20mph | EJ50: On-Street Lane | EO50: <20mph | ET50: Separate Path | EY50: <20mph | FD50: Separate Path | FI50: <20mph | FN50: Separate Path | FS50: <20mph | FX50: Separate Path | GC50: <20mph | GL50: =IF(GV50<=$BX$11,$BR$11,IF(GV50<=$BX$10,$BR$10,IF(GV50<=$BX$9,$BR$9,$BR$8))) -> Excellent | GQ50: =MIN(HA50:ND51) -> 80 | GV50: =AVERAGE(HA50:ND51) -> 80 | HA50: =IF(AD$19>$Z50,"--",IF(AD50=$CP$8,$DA$8,IF(AD50=$CP$9,$DA$9,$DA$10))*IF(AI50=$CD$8,$CJ$8,IF(AI50=$CD$9,$CJ$9,$CJ$10))) -> 80 | HK50: =IF(AN$19>$Z50,"--",IF(AN50=$CP$8,$DA$8,IF(AN50=$CP$9,$DA$9,$DA$10))*IF(AS50=$CD$8,$CJ$8,IF(AS50=$CD$9,$CJ$9,$CJ$10))) -> 80 | HU50: =IF(AX$19>$Z50,"--",IF(AX50=$CP$8,$DA$8,IF(AX50=$CP$9,$DA$9,$DA$10))*IF(BC50=$CD$8,$CJ$8,IF(BC50=$CD$9,$CJ$9,$CJ$10))) -> 80 | IE50: =IF(BH$19>$Z50,"--",IF(BH50=$CP$8,$DA$8,IF(BH50=$CP$9,$DA$9,$DA$10))*IF(BM50=$CD$8,$CJ$8,IF(BM50=$CD$9,$CJ$9,$CJ$10))) -> 80 | IO50: =IF(BR$19>$Z50,"--",IF(BR50=$CP$8,$DA$8,IF(BR50=$CP$9,$DA$9,$DA$10))*IF(BW50=$CD$8,$CJ$8,IF(BW50=$CD$9,$CJ$9,$CJ$10))) -> 80 | IY50: =IF(CB$19>$Z50,"--",IF(CB50=$CP$8,$DA$8,IF(CB50=$CP$9,$DA$9,$DA$10))*IF(CG50=$CD$8,$CJ$8,IF(CG50=$CD$9,$CJ$9,$CJ$10))) -> 80 | JI50: =IF(CL$19>$Z50,"--",IF(CL50=$CP$8,$DA$8,IF(CL50=$CP$9,$DA$9,$DA$10))*IF(CQ50=$CD$8,$CJ$8,IF(CQ50=$CD$9,$CJ$9,$CJ$10))) -> -- | JS50: =IF(CV$19>$Z50,"--",IF(CV50=$CP$8,$DA$8,IF(CV50=$CP$9,$DA$9,$DA$10))*IF(DA50=$CD$8,$CJ$8,IF(DA50=$CD$9,$CJ$9,$CJ$10))) -> -- | KC50: =IF(DF$19>$Z50,"--",IF(DF50=$CP$8,$DA$8,IF(DF50=$CP$9,$DA$9,$DA$10))*IF(DK50=$CD$8,$CJ$8,IF(DK50=$CD$9,$CJ$9,$CJ$10))) -> -- | KM50: =IF(DP$19>$Z50,"--",IF(DP50=$CP$8,$DA$8,IF(DP50=$CP$9,$DA$9,$DA$10))*IF(DU50=$CD$8,$CJ$8,IF(DU50=$CD$9,$CJ$9,$CJ$10))) -> -- | KW50: =IF(DZ$19>$Z50,"--",IF(DZ50=$CP$8,$DA$8,IF(DZ50=$CP$9,$DA$9,$DA$10))*IF(EE50=$CD$8,$CJ$8,IF(EE50=$CD$9,$CJ$9,$CJ$10))) -> -- | LG50: =IF(EJ$19>$Z50,"--",IF(EJ50=$CP$8,$DA$8,IF(EJ50=$CP$9,$DA$9,$DA$10))*IF(EO50=$CD$8,$CJ$8,IF(EO50=$CD$9,$CJ$9,$CJ$10))) -> -- | LQ50: =IF(ET$19>$Z50,"--",IF(ET50=$CP$8,$DA$8,IF(ET50=$CP$9,$DA$9,$DA$10))*IF(EY50=$CD$8,$CJ$8,IF(EY50=$CD$9,$CJ$9,$CJ$10))) -> -- | MA50: =IF(FD$19>$Z50,"--",IF(FD50=$CP$8,$DA$8,IF(FD50=$CP$9,$DA$9,$DA$10))*IF(FI50=$CD$8,$CJ$8,IF(FI50=$CD$9,$CJ$9,$CJ$10))) -> -- | MK50: =IF(FN$19>$Z50,"--",IF(FN50=$CP$8,$DA$8,IF(FN50=$CP$9,$DA$9,$DA$10))*IF(FS50=$CD$8,$CJ$8,IF(FS50=$CD$9,$CJ$9,$CJ$10))) -> -- | MU50: =IF(FX$19>$Z50,"--",IF(FX50=$CP$8,$DA$8,IF(FX50=$CP$9,$DA$9,$DA$10))*IF(GC50=$CD$8,$CJ$8,IF(GC50=$CD$9,$CJ$9,$CJ$10))) -> --
T52: E-W | Z52: 6 | AD52: On-Street Lane | AI52: <20mph | AN52: On-Street Lane | AS52: <20mph | AX52: On-Street Lane | BC52: <20mph | BH52: On-Street Lane | BM52: <20mph | BR52: On-Street Lane | BW52: <20mph | CB52: On-Street Lane | CG52: <20mph | CL52: On-Street Lane | CQ52: <20mph | CV52: On-Street Lane | DA52: <20mph | DF52: On-Street Lane | DK52: <20mph | DP52: On-Street Lane | DU52: <20mph | DZ52: On-Street Lane | EE52: <20mph | EJ52: On-Street Lane | EO52: <20mph | ET52: Separate Path | EY52: <20mph | FD52: Separate Path | FI52: <20mph | FN52: Separate Path | FS52: <20mph | FX52: Separate Path | GC52: <20mph | GL52: =IF(GV52<=$BX$11,$BR$11,IF(GV52<=$BX$10,$BR$10,IF(GV52<=$BX$9,$BR$9,$BR$8))) -> Excellent | GQ52: =MIN(HA52:ND53) -> 80 | GV52: =AVERAGE(HA52:ND53) -> 80 | HA52: =IF(AD$19>$Z52,"--",IF(AD52=$CP$8,$DA$8,IF(AD52=$CP$9,$DA$9,$DA$10))*IF(AI52=$CD$8,$CJ$8,IF(AI52=$CD$9,$CJ$9,$CJ$10))) -> 80 | HK52: =IF(AN$19>$Z52,"--",IF(AN52=$CP$8,$DA$8,IF(AN52=$CP$9,$DA$9,$DA$10))*IF(AS52=$CD$8,$CJ$8,IF(AS52=$CD$9,$CJ$9,$CJ$10))) -> 80 | HU52: =IF(AX$19>$Z52,"--",IF(AX52=$CP$8,$DA$8,IF(AX52=$CP$9,$DA$9,$DA$10))*IF(BC52=$CD$8,$CJ$8,IF(BC52=$CD$9,$CJ$9,$CJ$10))) -> 80 | IE52: =IF(BH$19>$Z52,"--",IF(BH52=$CP$8,$DA$8,IF(BH52=$CP$9,$DA$9,$DA$10))*IF(BM52=$CD$8,$CJ$8,IF(BM52=$CD$9,$CJ$9,$CJ$10))) -> 80 | IO52: =IF(BR$19>$Z52,"--",IF(BR52=$CP$8,$DA$8,IF(BR52=$CP$9,$DA$9,$DA$10))*IF(BW52=$CD$8,$CJ$8,IF(BW52=$CD$9,$CJ$9,$CJ$10))) -> 80 | IY52: =IF(CB$19>$Z52,"--",IF(CB52=$CP$8,$DA$8,IF(CB52=$CP$9,$DA$9,$DA$10))*IF(CG52=$CD$8,$CJ$8,IF(CG52=$CD$9,$CJ$9,$CJ$10))) -> 80 | JI52: =IF(CL$19>$Z52,"--",IF(CL52=$CP$8,$DA$8,IF(CL52=$CP$9,$DA$9,$DA$10))*IF(CQ52=$CD$8,$CJ$8,IF(CQ52=$CD$9,$CJ$9,$CJ$10))) -> -- | JS52: =IF(CV$19>$Z52,"--",IF(CV52=$CP$8,$DA$8,IF(CV52=$CP$9,$DA$9,$DA$10))*IF(DA52=$CD$8,$CJ$8,IF(DA52=$CD$9,$CJ$9,$CJ$10))) -> -- | KC52: =IF(DF$19>$Z52,"--",IF(DF52=$CP$8,$DA$8,IF(DF52=$CP$9,$DA$9,$DA$10))*IF(DK52=$CD$8,$CJ$8,IF(DK52=$CD$9,$CJ$9,$CJ$10))) -> -- | KM52: =IF(DP$19>$Z52,"--",IF(DP52=$CP$8,$DA$8,IF(DP52=$CP$9,$DA$9,$DA$10))*IF(DU52=$CD$8,$CJ$8,IF(DU52=$CD$9,$CJ$9,$CJ$10))) -> -- | KW52: =IF(DZ$19>$Z52,"--",IF(DZ52=$CP$8,$DA$8,IF(DZ52=$CP$9,$DA$9,$DA$10))*IF(EE52=$CD$8,$CJ$8,IF(EE52=$CD$9,$CJ$9,$CJ$10))) -> -- | LG52: =IF(EJ$19>$Z52,"--",IF(EJ52=$CP$8,$DA$8,IF(EJ52=$CP$9,$DA$9,$DA$10))*IF(EO52=$CD$8,$CJ$8,IF(EO52=$CD$9,$CJ$9,$CJ$10))) -> -- | LQ52: =IF(ET$19>$Z52,"--",IF(ET52=$CP$8,$DA$8,IF(ET52=$CP$9,$DA$9,$DA$10))*IF(EY52=$CD$8,$CJ$8,IF(EY52=$CD$9,$CJ$9,$CJ$10))) -> -- | MA52: =IF(FD$19>$Z52,"--",IF(FD52=$CP$8,$DA$8,IF(FD52=$CP$9,$DA$9,$DA$10))*IF(FI52=$CD$8,$CJ$8,IF(FI52=$CD$9,$CJ$9,$CJ$10))) -> -- | MK52: =IF(FN$19>$Z52,"--",IF(FN52=$CP$8,$DA$8,IF(FN52=$CP$9,$DA$9,$DA$10))*IF(FS52=$CD$8,$CJ$8,IF(FS52=$CD$9,$CJ$9,$CJ$10))) -> -- | MU52: =IF(FX$19>$Z52,"--",IF(FX52=$CP$8,$DA$8,IF(FX52=$CP$9,$DA$9,$DA$10))*IF(GC52=$CD$8,$CJ$8,IF(GC52=$CD$9,$CJ$9,$CJ$10))) -> --
A54: Displaced Left Turn | T54: FULL | Z54: 6 | AD54: On-Street Lane | AI54: <20mph | AN54: On-Street Lane | AS54: <20mph | AX54: On-Street Lane | BC54: <20mph | BH54: On-Street Lane | BM54: <20mph | BR54: On-Street Lane | BW54: <20mph | CB54: On-Street Lane | CG54: <20mph | CL54: On-Street Lane | CQ54: <20mph | CV54: On-Street Lane | DA54: <20mph | DF54: On-Street Lane | DK54: <20mph | DP54: On-Street Lane | DU54: <20mph | DZ54: On-Street Lane | EE54: <20mph | EJ54: On-Street Lane | EO54: <20mph | ET54: Separate Path | EY54: <20mph | FD54: Separate Path | FI54: <20mph | FN54: Separate Path | FS54: <20mph | FX54: Separate Path | GC54: <20mph | GL54: =IF(GV54<=$BX$11,$BR$11,IF(GV54<=$BX$10,$BR$10,IF(GV54<=$BX$9,$BR$9,$BR$8))) -> Excellent | GQ54: =MIN(HA54:ND55) -> 80 | GV54: =AVERAGE(HA54:ND55) -> 80 | HA54: =IF(AD$19>$Z54,"--",IF(AD54=$CP$8,$DA$8,IF(AD54=$CP$9,$DA$9,$DA$10))*IF(AI54=$CD$8,$CJ$8,IF(AI54=$CD$9,$CJ$9,$CJ$10))) -> 80 | HK54: =IF(AN$19>$Z54,"--",IF(AN54=$CP$8,$DA$8,IF(AN54=$CP$9,$DA$9,$DA$10))*IF(AS54=$CD$8,$CJ$8,IF(AS54=$CD$9,$CJ$9,$CJ$10))) -> 80 | HU54: =IF(AX$19>$Z54,"--",IF(AX54=$CP$8,$DA$8,IF(AX54=$CP$9,$DA$9,$DA$10))*IF(BC54=$CD$8,$CJ$8,IF(BC54=$CD$9,$CJ$9,$CJ$10))) -> 80 | IE54: =IF(BH$19>$Z54,"--",IF(BH54=$CP$8,$DA$8,IF(BH54=$CP$9,$DA$9,$DA$10))*IF(BM54=$CD$8,$CJ$8,IF(BM54=$CD$9,$CJ$9,$CJ$10))) -> 80 | IO54: =IF(BR$19>$Z54,"--",IF(BR54=$CP$8,$DA$8,IF(BR54=$CP$9,$DA$9,$DA$10))*IF(BW54=$CD$8,$CJ$8,IF(BW54=$CD$9,$CJ$9,$CJ$10))) -> 80 | IY54: =IF(CB$19>$Z54,"--",IF(CB54=$CP$8,$DA$8,IF(CB54=$CP$9,$DA$9,$DA$10))*IF(CG54=$CD$8,$CJ$8,IF(CG54=$CD$9,$CJ$9,$CJ$10))) -> 80 | JI54: =IF(CL$19>$Z54,"--",IF(CL54=$CP$8,$DA$8,IF(CL54=$CP$9,$DA$9,$DA$10))*IF(CQ54=$CD$8,$CJ$8,IF(CQ54=$CD$9,$CJ$9,$CJ$10))) -> -- | JS54: =IF(CV$19>$Z54,"--",IF(CV54=$CP$8,$DA$8,IF(CV54=$CP$9,$DA$9,$DA$10))*IF(DA54=$CD$8,$CJ$8,IF(DA54=$CD$9,$CJ$9,$CJ$10))) -> -- | KC54: =IF(DF$19>$Z54,"--",IF(DF54=$CP$8,$DA$8,IF(DF54=$CP$9,$DA$9,$DA$10))*IF(DK54=$CD$8,$CJ$8,IF(DK54=$CD$9,$CJ$9,$CJ$10))) -> -- | KM54: =IF(DP$19>$Z54,"--",IF(DP54=$CP$8,$DA$8,IF(DP54=$CP$9,$DA$9,$DA$10))*IF(DU54=$CD$8,$CJ$8,IF(DU54=$CD$9,$CJ$9,$CJ$10))) -> -- | KW54: =IF(DZ$19>$Z54,"--",IF(DZ54=$CP$8,$DA$8,IF(DZ54=$CP$9,$DA$9,$DA$10))*IF(EE54=$CD$8,$CJ$8,IF(EE54=$CD$9,$CJ$9,$CJ$10))) -> -- | LG54: =IF(EJ$19>$Z54,"--",IF(EJ54=$CP$8,$DA$8,IF(EJ54=$CP$9,$DA$9,$DA$10))*IF(EO54=$CD$8,$CJ$8,IF(EO54=$CD$9,$CJ$9,$CJ$10))) -> -- | LQ54: =IF(ET$19>$Z54,"--",IF(ET54=$CP$8,$DA$8,IF(ET54=$CP$9,$DA$9,$DA$10))*IF(EY54=$CD$8,$CJ$8,IF(EY54=$CD$9,$CJ$9,$CJ$10))) -> -- | MA54: =IF(FD$19>$Z54,"--",IF(FD54=$CP$8,$DA$8,IF(FD54=$CP$9,$DA$9,$DA$10))*IF(FI54=$CD$8,$CJ$8,IF(FI54=$CD$9,$CJ$9,$CJ$10))) -> -- | MK54: =IF(FN$19>$Z54,"--",IF(FN54=$CP$8,$DA$8,IF(FN54=$CP$9,$DA$9,$DA$10))*IF(FS54=$CD$8,$CJ$8,IF(FS54=$CD$9,$CJ$9,$CJ$10))) -> -- | MU54: =IF(FX$19>$Z54,"--",IF(FX54=$CP$8,$DA$8,IF(FX54=$CP$9,$DA$9,$DA$10))*IF(GC54=$CD$8,$CJ$8,IF(GC54=$CD$9,$CJ$9,$CJ$10))) -> --
A56: ='3 - Alt Num Lanes Input'!E56 -> Signalized Restricted Crossing U-Turn | T56: N-S | Z56: 6 | AD56: On-Street Lane | AI56: <20mph | AN56: On-Street Lane | AS56: <20mph | AX56: On-Street Lane | BC56: <20mph | BH56: On-Street Lane | BM56: <20mph | BR56: On-Street Lane | BW56: <20mph | CB56: On-Street Lane | CG56: <20mph | CL56: On-Street Lane | CQ56: <20mph | CV56: On-Street Lane | DA56: <20mph | DF56: On-Street Lane | DK56: <20mph | DP56: On-Street Lane | DU56: <20mph | DZ56: On-Street Lane | EE56: <20mph | EJ56: On-Street Lane | EO56: <20mph | ET56: Separate Path | EY56: <20mph | FD56: Separate Path | FI56: <20mph | FN56: Separate Path | FS56: <20mph | FX56: Separate Path | GC56: <20mph | GL56: =IF(GV56<=$BX$11,$BR$11,IF(GV56<=$BX$10,$BR$10,IF(GV56<=$BX$9,$BR$9,$BR$8))) -> Excellent | GQ56: =MIN(HA56:ND57) -> 80 | GV56: =AVERAGE(HA56:ND57) -> 80 | HA56: =IF(AD$19>$Z56,"--",IF(AD56=$CP$8,$DA$8,IF(AD56=$CP$9,$DA$9,$DA$10))*IF(AI56=$CD$8,$CJ$8,IF(AI56=$CD$9,$CJ$9,$CJ$10))) -> 80 | HK56: =IF(AN$19>$Z56,"--",IF(AN56=$CP$8,$DA$8,IF(AN56=$CP$9,$DA$9,$DA$10))*IF(AS56=$CD$8,$CJ$8,IF(AS56=$CD$9,$CJ$9,$CJ$10))) -> 80 | HU56: =IF(AX$19>$Z56,"--",IF(AX56=$CP$8,$DA$8,IF(AX56=$CP$9,$DA$9,$DA$10))*IF(BC56=$CD$8,$CJ$8,IF(BC56=$CD$9,$CJ$9,$CJ$10))) -> 80 | IE56: =IF(BH$19>$Z56,"--",IF(BH56=$CP$8,$DA$8,IF(BH56=$CP$9,$DA$9,$DA$10))*IF(BM56=$CD$8,$CJ$8,IF(BM56=$CD$9,$CJ$9,$CJ$10))) -> 80 | IO56: =IF(BR$19>$Z56,"--",IF(BR56=$CP$8,$DA$8,IF(BR56=$CP$9,$DA$9,$DA$10))*IF(BW56=$CD$8,$CJ$8,IF(BW56=$CD$9,$CJ$9,$CJ$10))) -> 80 | IY56: =IF(CB$19>$Z56,"--",IF(CB56=$CP$8,$DA$8,IF(CB56=$CP$9,$DA$9,$DA$10))*IF(CG56=$CD$8,$CJ$8,IF(CG56=$CD$9,$CJ$9,$CJ$10))) -> 80 | JI56: =IF(CL$19>$Z56,"--",IF(CL56=$CP$8,$DA$8,IF(CL56=$CP$9,$DA$9,$DA$10))*IF(CQ56=$CD$8,$CJ$8,IF(CQ56=$CD$9,$CJ$9,$CJ$10))) -> -- | JS56: =IF(CV$19>$Z56,"--",IF(CV56=$CP$8,$DA$8,IF(CV56=$CP$9,$DA$9,$DA$10))*IF(DA56=$CD$8,$CJ$8,IF(DA56=$CD$9,$CJ$9,$CJ$10))) -> -- | KC56: =IF(DF$19>$Z56,"--",IF(DF56=$CP$8,$DA$8,IF(DF56=$CP$9,$DA$9,$DA$10))*IF(DK56=$CD$8,$CJ$8,IF(DK56=$CD$9,$CJ$9,$CJ$10))) -> -- | KM56: =IF(DP$19>$Z56,"--",IF(DP56=$CP$8,$DA$8,IF(DP56=$CP$9,$DA$9,$DA$10))*IF(DU56=$CD$8,$CJ$8,IF(DU56=$CD$9,$CJ$9,$CJ$10))) -> -- | KW56: =IF(DZ$19>$Z56,"--",IF(DZ56=$CP$8,$DA$8,IF(DZ56=$CP$9,$DA$9,$DA$10))*IF(EE56=$CD$8,$CJ$8,IF(EE56=$CD$9,$CJ$9,$CJ$10))) -> -- | LG56: =IF(EJ$19>$Z56,"--",IF(EJ56=$CP$8,$DA$8,IF(EJ56=$CP$9,$DA$9,$DA$10))*IF(EO56=$CD$8,$CJ$8,IF(EO56=$CD$9,$CJ$9,$CJ$10))) -> -- | LQ56: =IF(ET$19>$Z56,"--",IF(ET56=$CP$8,$DA$8,IF(ET56=$CP$9,$DA$9,$DA$10))*IF(EY56=$CD$8,$CJ$8,IF(EY56=$CD$9,$CJ$9,$CJ$10))) -> -- | MA56: =IF(FD$19>$Z56,"--",IF(FD56=$CP$8,$DA$8,IF(FD56=$CP$9,$DA$9,$DA$10))*IF(FI56=$CD$8,$CJ$8,IF(FI56=$CD$9,$CJ$9,$CJ$10))) -> -- | MK56: =IF(FN$19>$Z56,"--",IF(FN56=$CP$8,$DA$8,IF(FN56=$CP$9,$DA$9,$DA$10))*IF(FS56=$CD$8,$CJ$8,IF(FS56=$CD$9,$CJ$9,$CJ$10))) -> -- | MU56: =IF(FX$19>$Z56,"--",IF(FX56=$CP$8,$DA$8,IF(FX56=$CP$9,$DA$9,$DA$10))*IF(GC56=$CD$8,$CJ$8,IF(GC56=$CD$9,$CJ$9,$CJ$10))) -> --
T58: E-W | Z58: 6 | AD58: On-Street Lane | AI58: <20mph | AN58: On-Street Lane | AS58: <20mph | AX58: On-Street Lane | BC58: <20mph | BH58: On-Street Lane | BM58: <20mph | BR58: On-Street Lane | BW58: <20mph | CB58: On-Street Lane | CG58: <20mph | CL58: On-Street Lane | CQ58: <20mph | CV58: On-Street Lane | DA58: <20mph | DF58: On-Street Lane | DK58: <20mph | DP58: On-Street Lane | DU58: <20mph | DZ58: On-Street Lane | EE58: <20mph | EJ58: On-Street Lane | EO58: <20mph | ET58: Separate Path | EY58: <20mph | FD58: Separate Path | FI58: <20mph | FN58: Separate Path | FS58: <20mph | FX58: Separate Path | GC58: <20mph | GL58: =IF(GV58<=$BX$11,$BR$11,IF(GV58<=$BX$10,$BR$10,IF(GV58<=$BX$9,$BR$9,$BR$8))) -> Excellent | GQ58: =MIN(HA58:ND59) -> 80 | GV58: =AVERAGE(HA58:ND59) -> 80 | HA58: =IF(AD$19>$Z58,"--",IF(AD58=$CP$8,$DA$8,IF(AD58=$CP$9,$DA$9,$DA$10))*IF(AI58=$CD$8,$CJ$8,IF(AI58=$CD$9,$CJ$9,$CJ$10))) -> 80 | HK58: =IF(AN$19>$Z58,"--",IF(AN58=$CP$8,$DA$8,IF(AN58=$CP$9,$DA$9,$DA$10))*IF(AS58=$CD$8,$CJ$8,IF(AS58=$CD$9,$CJ$9,$CJ$10))) -> 80 | HU58: =IF(AX$19>$Z58,"--",IF(AX58=$CP$8,$DA$8,IF(AX58=$CP$9,$DA$9,$DA$10))*IF(BC58=$CD$8,$CJ$8,IF(BC58=$CD$9,$CJ$9,$CJ$10))) -> 80 | IE58: =IF(BH$19>$Z58,"--",IF(BH58=$CP$8,$DA$8,IF(BH58=$CP$9,$DA$9,$DA$10))*IF(BM58=$CD$8,$CJ$8,IF(BM58=$CD$9,$CJ$9,$CJ$10))) -> 80 | IO58: =IF(BR$19>$Z58,"--",IF(BR58=$CP$8,$DA$8,IF(BR58=$CP$9,$DA$9,$DA$10))*IF(BW58=$CD$8,$CJ$8,IF(BW58=$CD$9,$CJ$9,$CJ$10))) -> 80 | IY58: =IF(CB$19>$Z58,"--",IF(CB58=$CP$8,$DA$8,IF(CB58=$CP$9,$DA$9,$DA$10))*IF(CG58=$CD$8,$CJ$8,IF(CG58=$CD$9,$CJ$9,$CJ$10))) -> 80 | JI58: =IF(CL$19>$Z58,"--",IF(CL58=$CP$8,$DA$8,IF(CL58=$CP$9,$DA$9,$DA$10))*IF(CQ58=$CD$8,$CJ$8,IF(CQ58=$CD$9,$CJ$9,$CJ$10))) -> -- | JS58: =IF(CV$19>$Z58,"--",IF(CV58=$CP$8,$DA$8,IF(CV58=$CP$9,$DA$9,$DA$10))*IF(DA58=$CD$8,$CJ$8,IF(DA58=$CD$9,$CJ$9,$CJ$10))) -> -- | KC58: =IF(DF$19>$Z58,"--",IF(DF58=$CP$8,$DA$8,IF(DF58=$CP$9,$DA$9,$DA$10))*IF(DK58=$CD$8,$CJ$8,IF(DK58=$CD$9,$CJ$9,$CJ$10))) -> -- | KM58: =IF(DP$19>$Z58,"--",IF(DP58=$CP$8,$DA$8,IF(DP58=$CP$9,$DA$9,$DA$10))*IF(DU58=$CD$8,$CJ$8,IF(DU58=$CD$9,$CJ$9,$CJ$10))) -> -- | KW58: =IF(DZ$19>$Z58,"--",IF(DZ58=$CP$8,$DA$8,IF(DZ58=$CP$9,$DA$9,$DA$10))*IF(EE58=$CD$8,$CJ$8,IF(EE58=$CD$9,$CJ$9,$CJ$10))) -> -- | LG58: =IF(EJ$19>$Z58,"--",IF(EJ58=$CP$8,$DA$8,IF(EJ58=$CP$9,$DA$9,$DA$10))*IF(EO58=$CD$8,$CJ$8,IF(EO58=$CD$9,$CJ$9,$CJ$10))) -> -- | LQ58: =IF(ET$19>$Z58,"--",IF(ET58=$CP$8,$DA$8,IF(ET58=$CP$9,$DA$9,$DA$10))*IF(EY58=$CD$8,$CJ$8,IF(EY58=$CD$9,$CJ$9,$CJ$10))) -> -- | MA58: =IF(FD$19>$Z58,"--",IF(FD58=$CP$8,$DA$8,IF(FD58=$CP$9,$DA$9,$DA$10))*IF(FI58=$CD$8,$CJ$8,IF(FI58=$CD$9,$CJ$9,$CJ$10))) -> -- | MK58: =IF(FN$19>$Z58,"--",IF(FN58=$CP$8,$DA$8,IF(FN58=$CP$9,$DA$9,$DA$10))*IF(FS58=$CD$8,$CJ$8,IF(FS58=$CD$9,$CJ$9,$CJ$10))) -> -- | MU58: =IF(FX$19>$Z58,"--",IF(FX58=$CP$8,$DA$8,IF(FX58=$CP$9,$DA$9,$DA$10))*IF(GC58=$CD$8,$CJ$8,IF(GC58=$CD$9,$CJ$9,$CJ$10))) -> --
A60: ='3 - Alt Num Lanes Input'!E60 -> Unsignalized Restricted Crossing U-Turn | T60: N-S | Z60: 6 | AD60: On-Street Lane | AI60: <20mph | AN60: On-Street Lane | AS60: <20mph | AX60: On-Street Lane | BC60: <20mph | BH60: On-Street Lane | BM60: <20mph | BR60: On-Street Lane | BW60: <20mph | CB60: On-Street Lane | CG60: <20mph | CL60: On-Street Lane | CQ60: <20mph | CV60: On-Street Lane | DA60: <20mph | DF60: On-Street Lane | DK60: <20mph | DP60: On-Street Lane | DU60: <20mph | DZ60: On-Street Lane | EE60: <20mph | EJ60: On-Street Lane | EO60: <20mph | ET60: Separate Path | EY60: <20mph | FD60: Separate Path | FI60: <20mph | FN60: Separate Path | FS60: <20mph | FX60: Separate Path | GC60: <20mph | GL60: =IF(GV60<=$BX$11,$BR$11,IF(GV60<=$BX$10,$BR$10,IF(GV60<=$BX$9,$BR$9,$BR$8))) -> Excellent | GQ60: =MIN(HA60:ND61) -> 80 | GV60: =AVERAGE(HA60:ND61) -> 80 | HA60: =IF(AD$19>$Z60,"--",IF(AD60=$CP$8,$DA$8,IF(AD60=$CP$9,$DA$9,$DA$10))*IF(AI60=$CD$8,$CJ$8,IF(AI60=$CD$9,$CJ$9,$CJ$10))) -> 80 | HK60: =IF(AN$19>$Z60,"--",IF(AN60=$CP$8,$DA$8,IF(AN60=$CP$9,$DA$9,$DA$10))*IF(AS60=$CD$8,$CJ$8,IF(AS60=$CD$9,$CJ$9,$CJ$10))) -> 80 | HU60: =IF(AX$19>$Z60,"--",IF(AX60=$CP$8,$DA$8,IF(AX60=$CP$9,$DA$9,$DA$10))*IF(BC60=$CD$8,$CJ$8,IF(BC60=$CD$9,$CJ$9,$CJ$10))) -> 80 | IE60: =IF(BH$19>$Z60,"--",IF(BH60=$CP$8,$DA$8,IF(BH60=$CP$9,$DA$9,$DA$10))*IF(BM60=$CD$8,$CJ$8,IF(BM60=$CD$9,$CJ$9,$CJ$10))) -> 80 | IO60: =IF(BR$19>$Z60,"--",IF(BR60=$CP$8,$DA$8,IF(BR60=$CP$9,$DA$9,$DA$10))*IF(BW60=$CD$8,$CJ$8,IF(BW60=$CD$9,$CJ$9,$CJ$10))) -> 80 | IY60: =IF(CB$19>$Z60,"--",IF(CB60=$CP$8,$DA$8,IF(CB60=$CP$9,$DA$9,$DA$10))*IF(CG60=$CD$8,$CJ$8,IF(CG60=$CD$9,$CJ$9,$CJ$10))) -> 80 | JI60: =IF(CL$19>$Z60,"--",IF(CL60=$CP$8,$DA$8,IF(CL60=$CP$9,$DA$9,$DA$10))*IF(CQ60=$CD$8,$CJ$8,IF(CQ60=$CD$9,$CJ$9,$CJ$10))) -> -- | JS60: =IF(CV$19>$Z60,"--",IF(CV60=$CP$8,$DA$8,IF(CV60=$CP$9,$DA$9,$DA$10))*IF(DA60=$CD$8,$CJ$8,IF(DA60=$CD$9,$CJ$9,$CJ$10))) -> -- | KC60: =IF(DF$19>$Z60,"--",IF(DF60=$CP$8,$DA$8,IF(DF60=$CP$9,$DA$9,$DA$10))*IF(DK60=$CD$8,$CJ$8,IF(DK60=$CD$9,$CJ$9,$CJ$10))) -> -- | KM60: =IF(DP$19>$Z60,"--",IF(DP60=$CP$8,$DA$8,IF(DP60=$CP$9,$DA$9,$DA$10))*IF(DU60=$CD$8,$CJ$8,IF(DU60=$CD$9,$CJ$9,$CJ$10))) -> -- | KW60: =IF(DZ$19>$Z60,"--",IF(DZ60=$CP$8,$DA$8,IF(DZ60=$CP$9,$DA$9,$DA$10))*IF(EE60=$CD$8,$CJ$8,IF(EE60=$CD$9,$CJ$9,$CJ$10))) -> -- | LG60: =IF(EJ$19>$Z60,"--",IF(EJ60=$CP$8,$DA$8,IF(EJ60=$CP$9,$DA$9,$DA$10))*IF(EO60=$CD$8,$CJ$8,IF(EO60=$CD$9,$CJ$9,$CJ$10))) -> -- | LQ60: =IF(ET$19>$Z60,"--",IF(ET60=$CP$8,$DA$8,IF(ET60=$CP$9,$DA$9,$DA$10))*IF(EY60=$CD$8,$CJ$8,IF(EY60=$CD$9,$CJ$9,$CJ$10))) -> -- | MA60: =IF(FD$19>$Z60,"--",IF(FD60=$CP$8,$DA$8,IF(FD60=$CP$9,$DA$9,$DA$10))*IF(FI60=$CD$8,$CJ$8,IF(FI60=$CD$9,$CJ$9,$CJ$10))) -> -- | MK60: =IF(FN$19>$Z60,"--",IF(FN60=$CP$8,$DA$8,IF(FN60=$CP$9,$DA$9,$DA$10))*IF(FS60=$CD$8,$CJ$8,IF(FS60=$CD$9,$CJ$9,$CJ$10))) -> -- | MU60: =IF(FX$19>$Z60,"--",IF(FX60=$CP$8,$DA$8,IF(FX60=$CP$9,$DA$9,$DA$10))*IF(GC60=$CD$8,$CJ$8,IF(GC60=$CD$9,$CJ$9,$CJ$10))) -> --
T62: E-W | Z62: 6 | AD62: On-Street Lane | AI62: <20mph | AN62: On-Street Lane | AS62: <20mph | AX62: On-Street Lane | BC62: <20mph | BH62: On-Street Lane | BM62: <20mph | BR62: On-Street Lane | BW62: <20mph | CB62: On-Street Lane | CG62: <20mph | CL62: On-Street Lane | CQ62: <20mph | CV62: On-Street Lane | DA62: <20mph | DF62: On-Street Lane | DK62: <20mph | DP62: On-Street Lane | DU62: <20mph | DZ62: On-Street Lane | EE62: <20mph | EJ62: On-Street Lane | EO62: <20mph | ET62: Separate Path | EY62: <20mph | FD62: Separate Path | FI62: <20mph | FN62: Separate Path | FS62: <20mph | FX62: Separate Path | GC62: <20mph | GL62: =IF(GV62<=$BX$11,$BR$11,IF(GV62<=$BX$10,$BR$10,IF(GV62<=$BX$9,$BR$9,$BR$8))) -> Excellent | GQ62: =MIN(HA62:ND63) -> 80 | GV62: =AVERAGE(HA62:ND63) -> 80 | HA62: =IF(AD$19>$Z62,"--",IF(AD62=$CP$8,$DA$8,IF(AD62=$CP$9,$DA$9,$DA$10))*IF(AI62=$CD$8,$CJ$8,IF(AI62=$CD$9,$CJ$9,$CJ$10))) -> 80 | HK62: =IF(AN$19>$Z62,"--",IF(AN62=$CP$8,$DA$8,IF(AN62=$CP$9,$DA$9,$DA$10))*IF(AS62=$CD$8,$CJ$8,IF(AS62=$CD$9,$CJ$9,$CJ$10))) -> 80 | HU62: =IF(AX$19>$Z62,"--",IF(AX62=$CP$8,$DA$8,IF(AX62=$CP$9,$DA$9,$DA$10))*IF(BC62=$CD$8,$CJ$8,IF(BC62=$CD$9,$CJ$9,$CJ$10))) -> 80 | IE62: =IF(BH$19>$Z62,"--",IF(BH62=$CP$8,$DA$8,IF(BH62=$CP$9,$DA$9,$DA$10))*IF(BM62=$CD$8,$CJ$8,IF(BM62=$CD$9,$CJ$9,$CJ$10))) -> 80 | IO62: =IF(BR$19>$Z62,"--",IF(BR62=$CP$8,$DA$8,IF(BR62=$CP$9,$DA$9,$DA$10))*IF(BW62=$CD$8,$CJ$8,IF(BW62=$CD$9,$CJ$9,$CJ$10))) -> 80 | IY62: =IF(CB$19>$Z62,"--",IF(CB62=$CP$8,$DA$8,IF(CB62=$CP$9,$DA$9,$DA$10))*IF(CG62=$CD$8,$CJ$8,IF(CG62=$CD$9,$CJ$9,$CJ$10))) -> 80 | JI62: =IF(CL$19>$Z62,"--",IF(CL62=$CP$8,$DA$8,IF(CL62=$CP$9,$DA$9,$DA$10))*IF(CQ62=$CD$8,$CJ$8,IF(CQ62=$CD$9,$CJ$9,$CJ$10))) -> -- | JS62: =IF(CV$19>$Z62,"--",IF(CV62=$CP$8,$DA$8,IF(CV62=$CP$9,$DA$9,$DA$10))*IF(DA62=$CD$8,$CJ$8,IF(DA62=$CD$9,$CJ$9,$CJ$10))) -> -- | KC62: =IF(DF$19>$Z62,"--",IF(DF62=$CP$8,$DA$8,IF(DF62=$CP$9,$DA$9,$DA$10))*IF(DK62=$CD$8,$CJ$8,IF(DK62=$CD$9,$CJ$9,$CJ$10))) -> -- | KM62: =IF(DP$19>$Z62,"--",IF(DP62=$CP$8,$DA$8,IF(DP62=$CP$9,$DA$9,$DA$10))*IF(DU62=$CD$8,$CJ$8,IF(DU62=$CD$9,$CJ$9,$CJ$10))) -> -- | KW62: =IF(DZ$19>$Z62,"--",IF(DZ62=$CP$8,$DA$8,IF(DZ62=$CP$9,$DA$9,$DA$10))*IF(EE62=$CD$8,$CJ$8,IF(EE62=$CD$9,$CJ$9,$CJ$10))) -> -- | LG62: =IF(EJ$19>$Z62,"--",IF(EJ62=$CP$8,$DA$8,IF(EJ62=$CP$9,$DA$9,$DA$10))*IF(EO62=$CD$8,$CJ$8,IF(EO62=$CD$9,$CJ$9,$CJ$10))) -> -- | LQ62: =IF(ET$19>$Z62,"--",IF(ET62=$CP$8,$DA$8,IF(ET62=$CP$9,$DA$9,$DA$10))*IF(EY62=$CD$8,$CJ$8,IF(EY62=$CD$9,$CJ$9,$CJ$10))) -> -- | MA62: =IF(FD$19>$Z62,"--",IF(FD62=$CP$8,$DA$8,IF(FD62=$CP$9,$DA$9,$DA$10))*IF(FI62=$CD$8,$CJ$8,IF(FI62=$CD$9,$CJ$9,$CJ$10))) -> -- | MK62: =IF(FN$19>$Z62,"--",IF(FN62=$CP$8,$DA$8,IF(FN62=$CP$9,$DA$9,$DA$10))*IF(FS62=$CD$8,$CJ$8,IF(FS62=$CD$9,$CJ$9,$CJ$10))) -> -- | MU62: =IF(FX$19>$Z62,"--",IF(FX62=$CP$8,$DA$8,IF(FX62=$CP$9,$DA$9,$DA$10))*IF(GC62=$CD$8,$CJ$8,IF(GC62=$CD$9,$CJ$9,$CJ$10))) -> --
